Workbook

Sheet TEJ子產業評估
B2: =TEXT(TEJdata!$B$2,"YYYY/MM")&"月營收" -> 2026/03月營收 | G2: 股價表現 | I2: 籌碼面
A3: TEJ子產業名稱 | B3: 產業 家數 | C3: 合併月營收 YoY(%) | D3: 合併月營收 MoM(%) | E3: 合併累計營收 YoY(%) | F3: 合併單月營收 (百萬元) | G3: 平均週報酬率(%) | H3: 平均月報酬率(%) | I3: 近5日外資 持股增減(%) | J3: 近5日投信 持股增減(%) | K3: 近5日融資 增減(%) | L3: 本表為TEJ自行分類的子產業資料，左表僅列出包含5間以上公司的產業
C4: ▼ | D4: ▼ | E4: ▼ | F4: ▼ | G4: ▼ | H4: ▼ | I4: ▼ | J4: ▼ | K4: ▼
C5: ▲ | D5: ▲ | E5: ▲ | F5: ▲ | G5: ▲ | H5: ▲ | I5: ▲ | J5: ▲ | K5: ▲
A6: M28J 產險 | B6: =COUNTIF(TEJdata!$P:$P,$A6) -> 5 | C6: =IF(SUMIF(TEJdata!$P:$P,$A6,TEJdata!$B:$B)=0,"",IF(AND(SUMIF(TEJdata!$P:$P,$A6,TEJdata!$B:$B)>0,SUMIF(TEJdata!$P:$P,$A6,TEJdata!$D:$D)<0),(SUMIF(TEJdata!$P:$P,$A6,TEJdata!$B:$B)/ABS(SUMIF(TEJdata!$P:$P,$A6,TEJdata!$D:$D)-1))*100,(SUMIF(TEJdata!$P:$P,$A6,TEJdata!$B:$B)/SUMIF(TEJdata!$P:$P,$A6,TEJdata!$D:$D)-1)*100)) ->  | D6: =IF(SUMIF(TEJdata!$P:$P,$A6,TEJdata!$B:$B)=0,"",(SUMIF(TEJdata!$P:$P,$A6,TEJdata!$B:$B)/SUMIF(TEJdata!$P:$P,$A6,TEJdata!$C:$C)-1)*100) ->  | E6: =IF(SUMIF(TEJdata!$P:$P,$A6,TEJdata!$E:$E)=0,"",(SUMIF(TEJdata!$P:$P,$A6,TEJdata!$E:$E)/SUMIF(TEJdata!$P:$P,$A6,TEJdata!$F:$F)-1)*100) ->  | F6: =SUMIF(TEJdata!$P:$P,$A6,TEJdata!$B:$B)/1000 -> 0 | G6: =SUMIF(TEJdata!$P:$P,$A6,TEJdata!$G:$G)/$B6 -> 2.8848 | H6: =SUMIF(TEJdata!$P:$P,$A6,TEJdata!$H:$H)/$B6 -> 5.22798 | I6: =IF(SUMIF(TEJdata!$P:$P,$A6,TEJdata!$I:$I)=0,0,IFERROR((SUMIF(TEJdata!$P:$P,$A6,TEJdata!$I:$I)/SUMIF(TEJdata!$P:$P,$A6,TEJdata!$J:$J)-1)*100,"-")) -> 2.403133329 | J6: =IF(SUMIF(TEJdata!$P:$P,$A6,TEJdata!$K:$K)=0,0,IFERROR((SUMIF(TEJdata!$P:$P,$A6,TEJdata!$K:$K)/SUMIF(TEJdata!$P:$P,$A6,TEJdata!$L:$L)-1)*100,"-")) -> 0.3420214648 | K6: =IF(SUMIF(TEJdata!$P:$P,$A6,TEJdata!$M:$M)=0,0,IFERROR((SUMIF(TEJdata!$P:$P,$A6,TEJdata!$M:$M)/SUMIF(TEJdata!$P:$P,$A6,TEJdata!$N:$N)-1)*100,"-")) -> -8.617234469
A7: M23G3B 記憶體模組 | B7: =COUNTIF(TEJdata!$P:$P,$A7) -> 9 | C7: =IF(SUMIF(TEJdata!$P:$P,$A7,TEJdata!$B:$B)=0,"",IF(AND(SUMIF(TEJdata!$P:$P,$A7,TEJdata!$B:$B)>0,SUMIF(TEJdata!$P:$P,$A7,TEJdata!$D:$D)<0),(SUMIF(TEJdata!$P:$P,$A7,TEJdata!$B:$B)/ABS(SUMIF(TEJdata!$P:$P,$A7,TEJdata!$D:$D)-1))*100,(SUMIF(TEJdata!$P:$P,$A7,TEJdata!$B:$B)/SUMIF(TEJdata!$P:$P,$A7,TEJdata!$D:$D)-1)*100)) -> 220.9087883 | D7: =IF(SUMIF(TEJdata!$P:$P,$A7,TEJdata!$B:$B)=0,"",(SUMIF(TEJdata!$P:$P,$A7,TEJdata!$B:$B)/SUMIF(TEJdata!$P:$P,$A7,TEJdata!$C:$C)-1)*100) -> 68.58907435 | E7: =IF(SUMIF(TEJdata!$P:$P,$A7,TEJdata!$E:$E)=0,"",(SUMIF(TEJdata!$P:$P,$A7,TEJdata!$E:$E)/SUMIF(TEJdata!$P:$P,$A7,TEJdata!$F:$F)-1)*100) -> 194.24492 | F7: =SUMIF(TEJdata!$P:$P,$A7,TEJdata!$B:$B)/1000 -> 32375.48 | G7: =SUMIF(TEJdata!$P:$P,$A7,TEJdata!$G:$G)/$B7 -> 7.641811111 | H7: =SUMIF(TEJdata!$P:$P,$A7,TEJdata!$H:$H)/$B7 -> 16.75455556 | I7: =IF(SUMIF(TEJdata!$P:$P,$A7,TEJdata!$I:$I)=0,0,IFERROR((SUMIF(TEJdata!$P:$P,$A7,TEJdata!$I:$I)/SUMIF(TEJdata!$P:$P,$A7,TEJdata!$J:$J)-1)*100,"-")) -> -15.40029167 | J7: =IF(SUMIF(TEJdata!$P:$P,$A7,TEJdata!$K:$K)=0,0,IFERROR((SUMIF(TEJdata!$P:$P,$A7,TEJdata!$K:$K)/SUMIF(TEJdata!$P:$P,$A7,TEJdata!$L:$L)-1)*100,"-")) -> 0.03783245268 | K7: =IF(SUMIF(TEJdata!$P:$P,$A7,TEJdata!$M:$M)=0,0,IFERROR((SUMIF(TEJdata!$P:$P,$A7,TEJdata!$M:$M)/SUMIF(TEJdata!$P:$P,$A7,TEJdata!$N:$N)-1)*100,"-")) -> 21.7384141
A8: M23G5E 記憶體IC | B8: =COUNTIF(TEJdata!$P:$P,$A8) -> 5 | C8: =IF(SUMIF(TEJdata!$P:$P,$A8,TEJdata!$B:$B)=0,"",IF(AND(SUMIF(TEJdata!$P:$P,$A8,TEJdata!$B:$B)>0,SUMIF(TEJdata!$P:$P,$A8,TEJdata!$D:$D)<0),(SUMIF(TEJdata!$P:$P,$A8,TEJdata!$B:$B)/ABS(SUMIF(TEJdata!$P:$P,$A8,TEJdata!$D:$D)-1))*100,(SUMIF(TEJdata!$P:$P,$A8,TEJdata!$B:$B)/SUMIF(TEJdata!$P:$P,$A8,TEJdata!$D:$D)-1)*100)) -> 212.1754699 | D8: =IF(SUMIF(TEJdata!$P:$P,$A8,TEJdata!$B:$B)=0,"",(SUMIF(TEJdata!$P:$P,$A8,TEJdata!$B:$B)/SUMIF(TEJdata!$P:$P,$A8,TEJdata!$C:$C)-1)*100) -> 46.88378424 | E8: =IF(SUMIF(TEJdata!$P:$P,$A8,TEJdata!$E:$E)=0,"",(SUMIF(TEJdata!$P:$P,$A8,TEJdata!$E:$E)/SUMIF(TEJdata!$P:$P,$A8,TEJdata!$F:$F)-1)*100) -> 185.0244705 | F8: =SUMIF(TEJdata!$P:$P,$A8,TEJdata!$B:$B)/1000 -> 23379.489 | G8: =SUMIF(TEJdata!$P:$P,$A8,TEJdata!$G:$G)/$B8 -> 7.10722 | H8: =SUMIF(TEJdata!$P:$P,$A8,TEJdata!$H:$H)/$B8 -> 9.09124 | I8: =IF(SUMIF(TEJdata!$P:$P,$A8,TEJdata!$I:$I)=0,0,IFERROR((SUMIF(TEJdata!$P:$P,$A8,TEJdata!$I:$I)/SUMIF(TEJdata!$P:$P,$A8,TEJdata!$J:$J)-1)*100,"-")) -> -8.130518102 | J8: =IF(SUMIF(TEJdata!$P:$P,$A8,TEJdata!$K:$K)=0,0,IFERROR((SUMIF(TEJdata!$P:$P,$A8,TEJdata!$K:$K)/SUMIF(TEJdata!$P:$P,$A8,TEJdata!$L:$L)-1)*100,"-")) -> -7.326698696 | K8: =IF(SUMIF(TEJdata!$P:$P,$A8,TEJdata!$M:$M)=0,0,IFERROR((SUMIF(TEJdata!$P:$P,$A8,TEJdata!$M:$M)/SUMIF(TEJdata!$P:$P,$A8,TEJdata!$N:$N)-1)*100,"-")) -> 13.03270092
A9: M99H 電視廣播 | B9: =COUNTIF(TEJdata!$P:$P,$A9) -> 6 | C9: =IF(SUMIF(TEJdata!$P:$P,$A9,TEJdata!$B:$B)=0,"",IF(AND(SUMIF(TEJdata!$P:$P,$A9,TEJdata!$B:$B)>0,SUMIF(TEJdata!$P:$P,$A9,TEJdata!$D:$D)<0),(SUMIF(TEJdata!$P:$P,$A9,TEJdata!$B:$B)/ABS(SUMIF(TEJdata!$P:$P,$A9,TEJdata!$D:$D)-1))*100,(SUMIF(TEJdata!$P:$P,$A9,TEJdata!$B:$B)/SUMIF(TEJdata!$P:$P,$A9,TEJdata!$D:$D)-1)*100)) -> 187.4572563 | D9: =IF(SUMIF(TEJdata!$P:$P,$A9,TEJdata!$B:$B)=0,"",(SUMIF(TEJdata!$P:$P,$A9,TEJdata!$B:$B)/SUMIF(TEJdata!$P:$P,$A9,TEJdata!$C:$C)-1)*100) -> 247.6001341 | E9: =IF(SUMIF(TEJdata!$P:$P,$A9,TEJdata!$E:$E)=0,"",(SUMIF(TEJdata!$P:$P,$A9,TEJdata!$E:$E)/SUMIF(TEJdata!$P:$P,$A9,TEJdata!$F:$F)-1)*100) -> 90.05520074 | F9: =SUMIF(TEJdata!$P:$P,$A9,TEJdata!$B:$B)/1000 -> 1150.838 | G9: =SUMIF(TEJdata!$P:$P,$A9,TEJdata!$G:$G)/$B9 -> 2.733033333 | H9: =SUMIF(TEJdata!$P:$P,$A9,TEJdata!$H:$H)/$B9 -> -0.68915 | I9: =IF(SUMIF(TEJdata!$P:$P,$A9,TEJdata!$I:$I)=0,0,IFERROR((SUMIF(TEJdata!$P:$P,$A9,TEJdata!$I:$I)/SUMIF(TEJdata!$P:$P,$A9,TEJdata!$J:$J)-1)*100,"-")) -> -0.4436325678 | J9: =IF(SUMIF(TEJdata!$P:$P,$A9,TEJdata!$K:$K)=0,0,IFERROR((SUMIF(TEJdata!$P:$P,$A9,TEJdata!$K:$K)/SUMIF(TEJdata!$P:$P,$A9,TEJdata!$L:$L)-1)*100,"-")) -> 0 | K9: =IF(SUMIF(TEJdata!$P:$P,$A9,TEJdata!$M:$M)=0,0,IFERROR((SUMIF(TEJdata!$P:$P,$A9,TEJdata!$M:$M)/SUMIF(TEJdata!$P:$P,$A9,TEJdata!$N:$N)-1)*100,"-")) -> -1.159494976
A10: M30A 證券 | B10: =COUNTIF(TEJdata!$P:$P,$A10) -> 8 | C10: =IF(SUMIF(TEJdata!$P:$P,$A10,TEJdata!$B:$B)=0,"",IF(AND(SUMIF(TEJdata!$P:$P,$A10,TEJdata!$B:$B)>0,SUMIF(TEJdata!$P:$P,$A10,TEJdata!$D:$D)<0),(SUMIF(TEJdata!$P:$P,$A10,TEJdata!$B:$B)/ABS(SUMIF(TEJdata!$P:$P,$A10,TEJdata!$D:$D)-1))*100,(SUMIF(TEJdata!$P:$P,$A10,TEJdata!$B:$B)/SUMIF(TEJdata!$P:$P,$A10,TEJdata!$D:$D)-1)*100)) -> 89.31811118 | D10: =IF(SUMIF(TEJdata!$P:$P,$A10,TEJdata!$B:$B)=0,"",(SUMIF(TEJdata!$P:$P,$A10,TEJdata!$B:$B)/SUMIF(TEJdata!$P:$P,$A10,TEJdata!$C:$C)-1)*100) -> -87.70125048 | E10: =IF(SUMIF(TEJdata!$P:$P,$A10,TEJdata!$E:$E)=0,"",(SUMIF(TEJdata!$P:$P,$A10,TEJdata!$E:$E)/SUMIF(TEJdata!$P:$P,$A10,TEJdata!$F:$F)-1)*100) -> 227.1110938 | F10: =SUMIF(TEJdata!$P:$P,$A10,TEJdata!$B:$B)/1000 -> 925.811 | G10: =SUMIF(TEJdata!$P:$P,$A10,TEJdata!$G:$G)/$B10 -> 1.5196875 | H10: =SUMIF(TEJdata!$P:$P,$A10,TEJdata!$H:$H)/$B10 -> 2.627425 | I10: =IF(SUMIF(TEJdata!$P:$P,$A10,TEJdata!$I:$I)=0,0,IFERROR((SUMIF(TEJdata!$P:$P,$A10,TEJdata!$I:$I)/SUMIF(TEJdata!$P:$P,$A10,TEJdata!$J:$J)-1)*100,"-")) -> 0.2698236676 | J10: =IF(SUMIF(TEJdata!$P:$P,$A10,TEJdata!$K:$K)=0,0,IFERROR((SUMIF(TEJdata!$P:$P,$A10,TEJdata!$K:$K)/SUMIF(TEJdata!$P:$P,$A10,TEJdata!$L:$L)-1)*100,"-")) -> -0.2105298998 | K10: =IF(SUMIF(TEJdata!$P:$P,$A10,TEJdata!$M:$M)=0,0,IFERROR((SUMIF(TEJdata!$P:$P,$A10,TEJdata!$M:$M)/SUMIF(TEJdata!$P:$P,$A10,TEJdata!$N:$N)-1)*100,"-")) -> -4.080374408
A11: M99L1 貴金屬回收 | B11: =COUNTIF(TEJdata!$P:$P,$A11) -> 5 | C11: =IF(SUMIF(TEJdata!$P:$P,$A11,TEJdata!$B:$B)=0,"",IF(AND(SUMIF(TEJdata!$P:$P,$A11,TEJdata!$B:$B)>0,SUMIF(TEJdata!$P:$P,$A11,TEJdata!$D:$D)<0),(SUMIF(TEJdata!$P:$P,$A11,TEJdata!$B:$B)/ABS(SUMIF(TEJdata!$P:$P,$A11,TEJdata!$D:$D)-1))*100,(SUMIF(TEJdata!$P:$P,$A11,TEJdata!$B:$B)/SUMIF(TEJdata!$P:$P,$A11,TEJdata!$D:$D)-1)*100)) -> 82.221173 | D11: =IF(SUMIF(TEJdata!$P:$P,$A11,TEJdata!$B:$B)=0,"",(SUMIF(TEJdata!$P:$P,$A11,TEJdata!$B:$B)/SUMIF(TEJdata!$P:$P,$A11,TEJdata!$C:$C)-1)*100) -> 34.82651921 | E11: =IF(SUMIF(TEJdata!$P:$P,$A11,TEJdata!$E:$E)=0,"",(SUMIF(TEJdata!$P:$P,$A11,TEJdata!$E:$E)/SUMIF(TEJdata!$P:$P,$A11,TEJdata!$F:$F)-1)*100) -> 75.10503501 | F11: =SUMIF(TEJdata!$P:$P,$A11,TEJdata!$B:$B)/1000 -> 7491.045 | G11: =SUMIF(TEJdata!$P:$P,$A11,TEJdata!$G:$G)/$B11 -> 8.90692 | H11: =SUMIF(TEJdata!$P:$P,$A11,TEJdata!$H:$H)/$B11 -> 10.11222 | I11: =IF(SUMIF(TEJdata!$P:$P,$A11,TEJdata!$I:$I)=0,0,IFERROR((SUMIF(TEJdata!$P:$P,$A11,TEJdata!$I:$I)/SUMIF(TEJdata!$P:$P,$A11,TEJdata!$J:$J)-1)*100,"-")) -> -0.03762925118 | J11: =IF(SUMIF(TEJdata!$P:$P,$A11,TEJdata!$K:$K)=0,0,IFERROR((SUMIF(TEJdata!$P:$P,$A11,TEJdata!$K:$K)/SUMIF(TEJdata!$P:$P,$A11,TEJdata!$L:$L)-1)*100,"-")) -> 25.7788162 | K11: =IF(SUMIF(TEJdata!$P:$P,$A11,TEJdata!$M:$M)=0,0,IFERROR((SUMIF(TEJdata!$P:$P,$A11,TEJdata!$M:$M)/SUMIF(TEJdata!$P:$P,$A11,TEJdata!$N:$N)-1)*100,"-")) -> 16.9993831
A12: M23D9B 散熱零組件 | B12: =COUNTIF(TEJdata!$P:$P,$A12) -> 12 | C12: =IF(SUMIF(TEJdata!$P:$P,$A12,TEJdata!$B:$B)=0,"",IF(AND(SUMIF(TEJdata!$P:$P,$A12,TEJdata!$B:$B)>0,SUMIF(TEJdata!$P:$P,$A12,TEJdata!$D:$D)<0),(SUMIF(TEJdata!$P:$P,$A12,TEJdata!$B:$B)/ABS(SUMIF(TEJdata!$P:$P,$A12,TEJdata!$D:$D)-1))*100,(SUMIF(TEJdata!$P:$P,$A12,TEJdata!$B:$B)/SUMIF(TEJdata!$P:$P,$A12,TEJdata!$D:$D)-1)*100)) -> 74.03531407 | D12: =IF(SUMIF(TEJdata!$P:$P,$A12,TEJdata!$B:$B)=0,"",(SUMIF(TEJdata!$P:$P,$A12,TEJdata!$B:$B)/SUMIF(TEJdata!$P:$P,$A12,TEJdata!$C:$C)-1)*100) -> 36.99896827 | E12: =IF(SUMIF(TEJdata!$P:$P,$A12,TEJdata!$E:$E)=0,"",(SUMIF(TEJdata!$P:$P,$A12,TEJdata!$E:$E)/SUMIF(TEJdata!$P:$P,$A12,TEJdata!$F:$F)-1)*100) -> 72.49833183 | F12: =SUMIF(TEJdata!$P:$P,$A12,TEJdata!$B:$B)/1000 -> 28720.35 | G12: =SUMIF(TEJdata!$P:$P,$A12,TEJdata!$G:$G)/$B12 -> 6.031975 | H12: =SUMIF(TEJdata!$P:$P,$A12,TEJdata!$H:$H)/$B12 -> 9.556458333 | I12: =IF(SUMIF(TEJdata!$P:$P,$A12,TEJdata!$I:$I)=0,0,IFERROR((SUMIF(TEJdata!$P:$P,$A12,TEJdata!$I:$I)/SUMIF(TEJdata!$P:$P,$A12,TEJdata!$J:$J)-1)*100,"-")) -> 0.6522601532 | J12: =IF(SUMIF(TEJdata!$P:$P,$A12,TEJdata!$K:$K)=0,0,IFERROR((SUMIF(TEJdata!$P:$P,$A12,TEJdata!$K:$K)/SUMIF(TEJdata!$P:$P,$A12,TEJdata!$L:$L)-1)*100,"-")) -> -1.99251919 | K12: =IF(SUMIF(TEJdata!$P:$P,$A12,TEJdata!$M:$M)=0,0,IFERROR((SUMIF(TEJdata!$P:$P,$A12,TEJdata!$M:$M)/SUMIF(TEJdata!$P:$P,$A12,TEJdata!$N:$N)-1)*100,"-")) -> 1.126415148
A13: M23T2 零組件代理 | B13: =COUNTIF(TEJdata!$P:$P,$A13) -> 35 | C13: =IF(SUMIF(TEJdata!$P:$P,$A13,TEJdata!$B:$B)=0,"",IF(AND(SUMIF(TEJdata!$P:$P,$A13,TEJdata!$B:$B)>0,SUMIF(TEJdata!$P:$P,$A13,TEJdata!$D:$D)<0),(SUMIF(TEJdata!$P:$P,$A13,TEJdata!$B:$B)/ABS(SUMIF(TEJdata!$P:$P,$A13,TEJdata!$D:$D)-1))*100,(SUMIF(TEJdata!$P:$P,$A13,TEJdata!$B:$B)/SUMIF(TEJdata!$P:$P,$A13,TEJdata!$D:$D)-1)*100)) -> 68.37259098 | D13: =IF(SUMIF(TEJdata!$P:$P,$A13,TEJdata!$B:$B)=0,"",(SUMIF(TEJdata!$P:$P,$A13,TEJdata!$B:$B)/SUMIF(TEJdata!$P:$P,$A13,TEJdata!$C:$C)-1)*100) -> 74.34987361 | E13: =IF(SUMIF(TEJdata!$P:$P,$A13,TEJdata!$E:$E)=0,"",(SUMIF(TEJdata!$P:$P,$A13,TEJdata!$E:$E)/SUMIF(TEJdata!$P:$P,$A13,TEJdata!$F:$F)-1)*100) -> 58.57913595 | F13: =SUMIF(TEJdata!$P:$P,$A13,TEJdata!$B:$B)/1000 -> 469404.032 | G13: =SUMIF(TEJdata!$P:$P,$A13,TEJdata!$G:$G)/$B13 -> 6.903517143 | H13: =SUMIF(TEJdata!$P:$P,$A13,TEJdata!$H:$H)/$B13 -> 8.77508 | I13: =IF(SUMIF(TEJdata!$P:$P,$A13,TEJdata!$I:$I)=0,0,IFERROR((SUMIF(TEJdata!$P:$P,$A13,TEJdata!$I:$I)/SUMIF(TEJdata!$P:$P,$A13,TEJdata!$J:$J)-1)*100,"-")) -> 1.575758259 | J13: =IF(SUMIF(TEJdata!$P:$P,$A13,TEJdata!$K:$K)=0,0,IFERROR((SUMIF(TEJdata!$P:$P,$A13,TEJdata!$K:$K)/SUMIF(TEJdata!$P:$P,$A13,TEJdata!$L:$L)-1)*100,"-")) -> -0.756113541 | K13: =IF(SUMIF(TEJdata!$P:$P,$A13,TEJdata!$M:$M)=0,0,IFERROR((SUMIF(TEJdata!$P:$P,$A13,TEJdata!$M:$M)/SUMIF(TEJdata!$P:$P,$A13,TEJdata!$N:$N)-1)*100,"-")) -> 4.069436323
A14: M23B3X 其他PCB材 | B14: =COUNTIF(TEJdata!$P:$P,$A14) -> 9 | C14: =IF(SUMIF(TEJdata!$P:$P,$A14,TEJdata!$B:$B)=0,"",IF(AND(SUMIF(TEJdata!$P:$P,$A14,TEJdata!$B:$B)>0,SUMIF(TEJdata!$P:$P,$A14,TEJdata!$D:$D)<0),(SUMIF(TEJdata!$P:$P,$A14,TEJdata!$B:$B)/ABS(SUMIF(TEJdata!$P:$P,$A14,TEJdata!$D:$D)-1))*100,(SUMIF(TEJdata!$P:$P,$A14,TEJdata!$B:$B)/SUMIF(TEJdata!$P:$P,$A14,TEJdata!$D:$D)-1)*100)) -> 56.75696038 | D14: =IF(SUMIF(TEJdata!$P:$P,$A14,TEJdata!$B:$B)=0,"",(SUMIF(TEJdata!$P:$P,$A14,TEJdata!$B:$B)/SUMIF(TEJdata!$P:$P,$A14,TEJdata!$C:$C)-1)*100) -> 16.88093296 | E14: =IF(SUMIF(TEJdata!$P:$P,$A14,TEJdata!$E:$E)=0,"",(SUMIF(TEJdata!$P:$P,$A14,TEJdata!$E:$E)/SUMIF(TEJdata!$P:$P,$A14,TEJdata!$F:$F)-1)*100) -> 54.60893841 | F14: =SUMIF(TEJdata!$P:$P,$A14,TEJdata!$B:$B)/1000 -> 3516.253 | G14: =SUMIF(TEJdata!$P:$P,$A14,TEJdata!$G:$G)/$B14 -> 16.25395556 | H14: =SUMIF(TEJdata!$P:$P,$A14,TEJdata!$H:$H)/$B14 -> 13.88867778 | I14: =IF(SUMIF(TEJdata!$P:$P,$A14,TEJdata!$I:$I)=0,0,IFERROR((SUMIF(TEJdata!$P:$P,$A14,TEJdata!$I:$I)/SUMIF(TEJdata!$P:$P,$A14,TEJdata!$J:$J)-1)*100,"-")) -> 35.03468441 | J14: =IF(SUMIF(TEJdata!$P:$P,$A14,TEJdata!$K:$K)=0,0,IFERROR((SUMIF(TEJdata!$P:$P,$A14,TEJdata!$K:$K)/SUMIF(TEJdata!$P:$P,$A14,TEJdata!$L:$L)-1)*100,"-")) -> 2.388779312 | K14: =IF(SUMIF(TEJdata!$P:$P,$A14,TEJdata!$M:$M)=0,0,IFERROR((SUMIF(TEJdata!$P:$P,$A14,TEJdata!$M:$M)/SUMIF(TEJdata!$P:$P,$A14,TEJdata!$N:$N)-1)*100,"-")) -> 9.906935751
A15: M23A1 EMS | B15: =COUNTIF(TEJdata!$P:$P,$A15) -> 9 | C15: =IF(SUMIF(TEJdata!$P:$P,$A15,TEJdata!$B:$B)=0,"",IF(AND(SUMIF(TEJdata!$P:$P,$A15,TEJdata!$B:$B)>0,SUMIF(TEJdata!$P:$P,$A15,TEJdata!$D:$D)<0),(SUMIF(TEJdata!$P:$P,$A15,TEJdata!$B:$B)/ABS(SUMIF(TEJdata!$P:$P,$A15,TEJdata!$D:$D)-1))*100,(SUMIF(TEJdata!$P:$P,$A15,TEJdata!$B:$B)/SUMIF(TEJdata!$P:$P,$A15,TEJdata!$D:$D)-1)*100)) -> 56.42121659 | D15: =IF(SUMIF(TEJdata!$P:$P,$A15,TEJdata!$B:$B)=0,"",(SUMIF(TEJdata!$P:$P,$A15,TEJdata!$B:$B)/SUMIF(TEJdata!$P:$P,$A15,TEJdata!$C:$C)-1)*100) -> 38.51676028 | E15: =IF(SUMIF(TEJdata!$P:$P,$A15,TEJdata!$E:$E)=0,"",(SUMIF(TEJdata!$P:$P,$A15,TEJdata!$E:$E)/SUMIF(TEJdata!$P:$P,$A15,TEJdata!$F:$F)-1)*100) -> 41.90609235 | F15: =SUMIF(TEJdata!$P:$P,$A15,TEJdata!$B:$B)/1000 -> 1784998.129 | G15: =SUMIF(TEJdata!$P:$P,$A15,TEJdata!$G:$G)/$B15 -> 6.536511111 | H15: =SUMIF(TEJdata!$P:$P,$A15,TEJdata!$H:$H)/$B15 -> 3.799711111 | I15: =IF(SUMIF(TEJdata!$P:$P,$A15,TEJdata!$I:$I)=0,0,IFERROR((SUMIF(TEJdata!$P:$P,$A15,TEJdata!$I:$I)/SUMIF(TEJdata!$P:$P,$A15,TEJdata!$J:$J)-1)*100,"-")) -> 1.348604512 | J15: =IF(SUMIF(TEJdata!$P:$P,$A15,TEJdata!$K:$K)=0,0,IFERROR((SUMIF(TEJdata!$P:$P,$A15,TEJdata!$K:$K)/SUMIF(TEJdata!$P:$P,$A15,TEJdata!$L:$L)-1)*100,"-")) -> 0.1037185563 | K15: =IF(SUMIF(TEJdata!$P:$P,$A15,TEJdata!$M:$M)=0,0,IFERROR((SUMIF(TEJdata!$P:$P,$A15,TEJdata!$M:$M)/SUMIF(TEJdata!$P:$P,$A15,TEJdata!$N:$N)-1)*100,"-")) -> -1.539155169
A16: M23H1 廠辦機電 | B16: =COUNTIF(TEJdata!$P:$P,$A16) -> 15 | C16: =IF(SUMIF(TEJdata!$P:$P,$A16,TEJdata!$B:$B)=0,"",IF(AND(SUMIF(TEJdata!$P:$P,$A16,TEJdata!$B:$B)>0,SUMIF(TEJdata!$P:$P,$A16,TEJdata!$D:$D)<0),(SUMIF(TEJdata!$P:$P,$A16,TEJdata!$B:$B)/ABS(SUMIF(TEJdata!$P:$P,$A16,TEJdata!$D:$D)-1))*100,(SUMIF(TEJdata!$P:$P,$A16,TEJdata!$B:$B)/SUMIF(TEJdata!$P:$P,$A16,TEJdata!$D:$D)-1)*100)) -> 55.55435137 | D16: =IF(SUMIF(TEJdata!$P:$P,$A16,TEJdata!$B:$B)=0,"",(SUMIF(TEJdata!$P:$P,$A16,TEJdata!$B:$B)/SUMIF(TEJdata!$P:$P,$A16,TEJdata!$C:$C)-1)*100) -> 41.84732791 | E16: =IF(SUMIF(TEJdata!$P:$P,$A16,TEJdata!$E:$E)=0,"",(SUMIF(TEJdata!$P:$P,$A16,TEJdata!$E:$E)/SUMIF(TEJdata!$P:$P,$A16,TEJdata!$F:$F)-1)*100) -> 44.91114781 | F16: =SUMIF(TEJdata!$P:$P,$A16,TEJdata!$B:$B)/1000 -> 34562.388 | G16: =SUMIF(TEJdata!$P:$P,$A16,TEJdata!$G:$G)/$B16 -> 11.09018667 | H16: =SUMIF(TEJdata!$P:$P,$A16,TEJdata!$H:$H)/$B16 -> 12.29666 | I16: =IF(SUMIF(TEJdata!$P:$P,$A16,TEJdata!$I:$I)=0,0,IFERROR((SUMIF(TEJdata!$P:$P,$A16,TEJdata!$I:$I)/SUMIF(TEJdata!$P:$P,$A16,TEJdata!$J:$J)-1)*100,"-")) -> 1.648538231 | J16: =IF(SUMIF(TEJdata!$P:$P,$A16,TEJdata!$K:$K)=0,0,IFERROR((SUMIF(TEJdata!$P:$P,$A16,TEJdata!$K:$K)/SUMIF(TEJdata!$P:$P,$A16,TEJdata!$L:$L)-1)*100,"-")) -> -0.9931731784 | K16: =IF(SUMIF(TEJdata!$P:$P,$A16,TEJdata!$M:$M)=0,0,IFERROR((SUMIF(TEJdata!$P:$P,$A16,TEJdata!$M:$M)/SUMIF(TEJdata!$P:$P,$A16,TEJdata!$N:$N)-1)*100,"-")) -> 5.476759232
A17: M23D9A 沖壓零組件 | B17: =COUNTIF(TEJdata!$P:$P,$A17) -> 25 | C17: =IF(SUMIF(TEJdata!$P:$P,$A17,TEJdata!$B:$B)=0,"",IF(AND(SUMIF(TEJdata!$P:$P,$A17,TEJdata!$B:$B)>0,SUMIF(TEJdata!$P:$P,$A17,TEJdata!$D:$D)<0),(SUMIF(TEJdata!$P:$P,$A17,TEJdata!$B:$B)/ABS(SUMIF(TEJdata!$P:$P,$A17,TEJdata!$D:$D)-1))*100,(SUMIF(TEJdata!$P:$P,$A17,TEJdata!$B:$B)/SUMIF(TEJdata!$P:$P,$A17,TEJdata!$D:$D)-1)*100)) -> 6.150343843 | D17: =IF(SUMIF(TEJdata!$P:$P,$A17,TEJdata!$B:$B)=0,"",(SUMIF(TEJdata!$P:$P,$A17,TEJdata!$B:$B)/SUMIF(TEJdata!$P:$P,$A17,TEJdata!$C:$C)-1)*100) -> 26.64138595 | E17: =IF(SUMIF(TEJdata!$P:$P,$A17,TEJdata!$E:$E)=0,"",(SUMIF(TEJdata!$P:$P,$A17,TEJdata!$E:$E)/SUMIF(TEJdata!$P:$P,$A17,TEJdata!$F:$F)-1)*100) -> 2.951458948 | F17: =SUMIF(TEJdata!$P:$P,$A17,TEJdata!$B:$B)/1000 -> 10872.415 | G17: =SUMIF(TEJdata!$P:$P,$A17,TEJdata!$G:$G)/$B17 -> 5.290636 | H17: =SUMIF(TEJdata!$P:$P,$A17,TEJdata!$H:$H)/$B17 -> 5.371752 | I17: =IF(SUMIF(TEJdata!$P:$P,$A17,TEJdata!$I:$I)=0,0,IFERROR((SUMIF(TEJdata!$P:$P,$A17,TEJdata!$I:$I)/SUMIF(TEJdata!$P:$P,$A17,TEJdata!$J:$J)-1)*100,"-")) -> 3.543090958 | J17: =IF(SUMIF(TEJdata!$P:$P,$A17,TEJdata!$K:$K)=0,0,IFERROR((SUMIF(TEJdata!$P:$P,$A17,TEJdata!$K:$K)/SUMIF(TEJdata!$P:$P,$A17,TEJdata!$L:$L)-1)*100,"-")) -> -3.217528622 | K17: =IF(SUMIF(TEJdata!$P:$P,$A17,TEJdata!$M:$M)=0,0,IFERROR((SUMIF(TEJdata!$P:$P,$A17,TEJdata!$M:$M)/SUMIF(TEJdata!$P:$P,$A17,TEJdata!$N:$N)-1)*100,"-")) -> 1.948734535
A18: M25A 建設 | B18: =COUNTIF(TEJdata!$P:$P,$A18) -> 74 | C18: =IF(SUMIF(TEJdata!$P:$P,$A18,TEJdata!$B:$B)=0,"",IF(AND(SUMIF(TEJdata!$P:$P,$A18,TEJdata!$B:$B)>0,SUMIF(TEJdata!$P:$P,$A18,TEJdata!$D:$D)<0),(SUMIF(TEJdata!$P:$P,$A18,TEJdata!$B:$B)/ABS(SUMIF(TEJdata!$P:$P,$A18,TEJdata!$D:$D)-1))*100,(SUMIF(TEJdata!$P:$P,$A18,TEJdata!$B:$B)/SUMIF(TEJdata!$P:$P,$A18,TEJdata!$D:$D)-1)*100)) -> 50.85553587 | D18: =IF(SUMIF(TEJdata!$P:$P,$A18,TEJdata!$B:$B)=0,"",(SUMIF(TEJdata!$P:$P,$A18,TEJdata!$B:$B)/SUMIF(TEJdata!$P:$P,$A18,TEJdata!$C:$C)-1)*100) -> 68.28758884 | E18: =IF(SUMIF(TEJdata!$P:$P,$A18,TEJdata!$E:$E)=0,"",(SUMIF(TEJdata!$P:$P,$A18,TEJdata!$E:$E)/SUMIF(TEJdata!$P:$P,$A18,TEJdata!$F:$F)-1)*100) -> 57.24162362 | F18: =SUMIF(TEJdata!$P:$P,$A18,TEJdata!$B:$B)/1000 -> 49522.359 | G18: =SUMIF(TEJdata!$P:$P,$A18,TEJdata!$G:$G)/$B18 -> 0.8757067568 | H18: =SUMIF(TEJdata!$P:$P,$A18,TEJdata!$H:$H)/$B18 -> 0.4565972973 | I18: =IF(SUMIF(TEJdata!$P:$P,$A18,TEJdata!$I:$I)=0,0,IFERROR((SUMIF(TEJdata!$P:$P,$A18,TEJdata!$I:$I)/SUMIF(TEJdata!$P:$P,$A18,TEJdata!$J:$J)-1)*100,"-")) -> 0.2877673774 | J18: =IF(SUMIF(TEJdata!$P:$P,$A18,TEJdata!$K:$K)=0,0,IFERROR((SUMIF(TEJdata!$P:$P,$A18,TEJdata!$K:$K)/SUMIF(TEJdata!$P:$P,$A18,TEJdata!$L:$L)-1)*100,"-")) -> -0.2639820606 | K18: =IF(SUMIF(TEJdata!$P:$P,$A18,TEJdata!$M:$M)=0,0,IFERROR((SUMIF(TEJdata!$P:$P,$A18,TEJdata!$M:$M)/SUMIF(TEJdata!$P:$P,$A18,TEJdata!$N:$N)-1)*100,"-")) -> -0.3189210562
A19: M23T1 3C通路 | B19: =COUNTIF(TEJdata!$P:$P,$A19) -> 17 | C19: =IF(SUMIF(TEJdata!$P:$P,$A19,TEJdata!$B:$B)=0,"",IF(AND(SUMIF(TEJdata!$P:$P,$A19,TEJdata!$B:$B)>0,SUMIF(TEJdata!$P:$P,$A19,TEJdata!$D:$D)<0),(SUMIF(TEJdata!$P:$P,$A19,TEJdata!$B:$B)/ABS(SUMIF(TEJdata!$P:$P,$A19,TEJdata!$D:$D)-1))*100,(SUMIF(TEJdata!$P:$P,$A19,TEJdata!$B:$B)/SUMIF(TEJdata!$P:$P,$A19,TEJdata!$D:$D)-1)*100)) -> 49.54154389 | D19: =IF(SUMIF(TEJdata!$P:$P,$A19,TEJdata!$B:$B)=0,"",(SUMIF(TEJdata!$P:$P,$A19,TEJdata!$B:$B)/SUMIF(TEJdata!$P:$P,$A19,TEJdata!$C:$C)-1)*100) -> 74.14905516 | E19: =IF(SUMIF(TEJdata!$P:$P,$A19,TEJdata!$E:$E)=0,"",(SUMIF(TEJdata!$P:$P,$A19,TEJdata!$E:$E)/SUMIF(TEJdata!$P:$P,$A19,TEJdata!$F:$F)-1)*100) -> 30.37968169 | F19: =SUMIF(TEJdata!$P:$P,$A19,TEJdata!$B:$B)/1000 -> 76932.057 | G19: =SUMIF(TEJdata!$P:$P,$A19,TEJdata!$G:$G)/$B19 -> 0.8213352941 | H19: =SUMIF(TEJdata!$P:$P,$A19,TEJdata!$H:$H)/$B19 -> 0.8895529412 | I19: =IF(SUMIF(TEJdata!$P:$P,$A19,TEJdata!$I:$I)=0,0,IFERROR((SUMIF(TEJdata!$P:$P,$A19,TEJdata!$I:$I)/SUMIF(TEJdata!$P:$P,$A19,TEJdata!$J:$J)-1)*100,"-")) -> -0.2210892552 | J19: =IF(SUMIF(TEJdata!$P:$P,$A19,TEJdata!$K:$K)=0,0,IFERROR((SUMIF(TEJdata!$P:$P,$A19,TEJdata!$K:$K)/SUMIF(TEJdata!$P:$P,$A19,TEJdata!$L:$L)-1)*100,"-")) -> 1.908007241 | K19: =IF(SUMIF(TEJdata!$P:$P,$A19,TEJdata!$M:$M)=0,0,IFERROR((SUMIF(TEJdata!$P:$P,$A19,TEJdata!$M:$M)/SUMIF(TEJdata!$P:$P,$A19,TEJdata!$N:$N)-1)*100,"-")) -> 0.1829268293
A20: M23B3A 銅箔基板 | B20: =COUNTIF(TEJdata!$P:$P,$A20) -> 5 | C20: =IF(SUMIF(TEJdata!$P:$P,$A20,TEJdata!$B:$B)=0,"",IF(AND(SUMIF(TEJdata!$P:$P,$A20,TEJdata!$B:$B)>0,SUMIF(TEJdata!$P:$P,$A20,TEJdata!$D:$D)<0),(SUMIF(TEJdata!$P:$P,$A20,TEJdata!$B:$B)/ABS(SUMIF(TEJdata!$P:$P,$A20,TEJdata!$D:$D)-1))*100,(SUMIF(TEJdata!$P:$P,$A20,TEJdata!$B:$B)/SUMIF(TEJdata!$P:$P,$A20,TEJdata!$D:$D)-1)*100)) -> 48.97550681 | D20: =IF(SUMIF(TEJdata!$P:$P,$A20,TEJdata!$B:$B)=0,"",(SUMIF(TEJdata!$P:$P,$A20,TEJdata!$B:$B)/SUMIF(TEJdata!$P:$P,$A20,TEJdata!$C:$C)-1)*100) -> 23.53957506 | E20: =IF(SUMIF(TEJdata!$P:$P,$A20,TEJdata!$E:$E)=0,"",(SUMIF(TEJdata!$P:$P,$A20,TEJdata!$E:$E)/SUMIF(TEJdata!$P:$P,$A20,TEJdata!$F:$F)-1)*100) -> 46.00139805 | F20: =SUMIF(TEJdata!$P:$P,$A20,TEJdata!$B:$B)/1000 -> 19643.231 | G20: =SUMIF(TEJdata!$P:$P,$A20,TEJdata!$G:$G)/$B20 -> 18.9252 | H20: =SUMIF(TEJdata!$P:$P,$A20,TEJdata!$H:$H)/$B20 -> 47.98128 | I20: =IF(SUMIF(TEJdata!$P:$P,$A20,TEJdata!$I:$I)=0,0,IFERROR((SUMIF(TEJdata!$P:$P,$A20,TEJdata!$I:$I)/SUMIF(TEJdata!$P:$P,$A20,TEJdata!$J:$J)-1)*100,"-")) -> -1.381270791 | J20: =IF(SUMIF(TEJdata!$P:$P,$A20,TEJdata!$K:$K)=0,0,IFERROR((SUMIF(TEJdata!$P:$P,$A20,TEJdata!$K:$K)/SUMIF(TEJdata!$P:$P,$A20,TEJdata!$L:$L)-1)*100,"-")) -> 3.118831941 | K20: =IF(SUMIF(TEJdata!$P:$P,$A20,TEJdata!$M:$M)=0,0,IFERROR((SUMIF(TEJdata!$P:$P,$A20,TEJdata!$M:$M)/SUMIF(TEJdata!$P:$P,$A20,TEJdata!$N:$N)-1)*100,"-")) -> -0.6616917252
A21: M23G5Z 其他IC | B21: =COUNTIF(TEJdata!$P:$P,$A21) -> 9 | C21: =IF(SUMIF(TEJdata!$P:$P,$A21,TEJdata!$B:$B)=0,"",IF(AND(SUMIF(TEJdata!$P:$P,$A21,TEJdata!$B:$B)>0,SUMIF(TEJdata!$P:$P,$A21,TEJdata!$D:$D)<0),(SUMIF(TEJdata!$P:$P,$A21,TEJdata!$B:$B)/ABS(SUMIF(TEJdata!$P:$P,$A21,TEJdata!$D:$D)-1))*100,(SUMIF(TEJdata!$P:$P,$A21,TEJdata!$B:$B)/SUMIF(TEJdata!$P:$P,$A21,TEJdata!$D:$D)-1)*100)) -> 46.83637541 | D21: =IF(SUMIF(TEJdata!$P:$P,$A21,TEJdata!$B:$B)=0,"",(SUMIF(TEJdata!$P:$P,$A21,TEJdata!$B:$B)/SUMIF(TEJdata!$P:$P,$A21,TEJdata!$C:$C)-1)*100) -> 34.11271231 | E21: =IF(SUMIF(TEJdata!$P:$P,$A21,TEJdata!$E:$E)=0,"",(SUMIF(TEJdata!$P:$P,$A21,TEJdata!$E:$E)/SUMIF(TEJdata!$P:$P,$A21,TEJdata!$F:$F)-1)*100) -> 45.56777341 | F21: =SUMIF(TEJdata!$P:$P,$A21,TEJdata!$B:$B)/1000 -> 3012.197 | G21: =SUMIF(TEJdata!$P:$P,$A21,TEJdata!$G:$G)/$B21 -> 4.486777778 | H21: =SUMIF(TEJdata!$P:$P,$A21,TEJdata!$H:$H)/$B21 -> 10.2596 | I21: =IF(SUMIF(TEJdata!$P:$P,$A21,TEJdata!$I:$I)=0,0,IFERROR((SUMIF(TEJdata!$P:$P,$A21,TEJdata!$I:$I)/SUMIF(TEJdata!$P:$P,$A21,TEJdata!$J:$J)-1)*100,"-")) -> 1.389153517 | J21: =IF(SUMIF(TEJdata!$P:$P,$A21,TEJdata!$K:$K)=0,0,IFERROR((SUMIF(TEJdata!$P:$P,$A21,TEJdata!$K:$K)/SUMIF(TEJdata!$P:$P,$A21,TEJdata!$L:$L)-1)*100,"-")) -> 1.584158416 | K21: =IF(SUMIF(TEJdata!$P:$P,$A21,TEJdata!$M:$M)=0,0,IFERROR((SUMIF(TEJdata!$P:$P,$A21,TEJdata!$M:$M)/SUMIF(TEJdata!$P:$P,$A21,TEJdata!$N:$N)-1)*100,"-")) -> -2.125310516
A22: M23B2D 其他PCB | B22: =COUNTIF(TEJdata!$P:$P,$A22) -> 5 | C22: =IF(SUMIF(TEJdata!$P:$P,$A22,TEJdata!$B:$B)=0,"",IF(AND(SUMIF(TEJdata!$P:$P,$A22,TEJdata!$B:$B)>0,SUMIF(TEJdata!$P:$P,$A22,TEJdata!$D:$D)<0),(SUMIF(TEJdata!$P:$P,$A22,TEJdata!$B:$B)/ABS(SUMIF(TEJdata!$P:$P,$A22,TEJdata!$D:$D)-1))*100,(SUMIF(TEJdata!$P:$P,$A22,TEJdata!$B:$B)/SUMIF(TEJdata!$P:$P,$A22,TEJdata!$D:$D)-1)*100)) -> 42.82553872 | D22: =IF(SUMIF(TEJdata!$P:$P,$A22,TEJdata!$B:$B)=0,"",(SUMIF(TEJdata!$P:$P,$A22,TEJdata!$B:$B)/SUMIF(TEJdata!$P:$P,$A22,TEJdata!$C:$C)-1)*100) -> 17.53963416 | E22: =IF(SUMIF(TEJdata!$P:$P,$A22,TEJdata!$E:$E)=0,"",(SUMIF(TEJdata!$P:$P,$A22,TEJdata!$E:$E)/SUMIF(TEJdata!$P:$P,$A22,TEJdata!$F:$F)-1)*100) -> 33.10762741 | F22: =SUMIF(TEJdata!$P:$P,$A22,TEJdata!$B:$B)/1000 -> 3676.695 | G22: =SUMIF(TEJdata!$P:$P,$A22,TEJdata!$G:$G)/$B22 -> 18.5958 | H22: =SUMIF(TEJdata!$P:$P,$A22,TEJdata!$H:$H)/$B22 -> 60.39156 | I22: =IF(SUMIF(TEJdata!$P:$P,$A22,TEJdata!$I:$I)=0,0,IFERROR((SUMIF(TEJdata!$P:$P,$A22,TEJdata!$I:$I)/SUMIF(TEJdata!$P:$P,$A22,TEJdata!$J:$J)-1)*100,"-")) -> -7.143951266 | J22: =IF(SUMIF(TEJdata!$P:$P,$A22,TEJdata!$K:$K)=0,0,IFERROR((SUMIF(TEJdata!$P:$P,$A22,TEJdata!$K:$K)/SUMIF(TEJdata!$P:$P,$A22,TEJdata!$L:$L)-1)*100,"-")) -> 1.893297163 | K22: =IF(SUMIF(TEJdata!$P:$P,$A22,TEJdata!$M:$M)=0,0,IFERROR((SUMIF(TEJdata!$P:$P,$A22,TEJdata!$M:$M)/SUMIF(TEJdata!$P:$P,$A22,TEJdata!$N:$N)-1)*100,"-")) -> 34.96780584
A23: M23G1A 晶圓代工 | B23: =COUNTIF(TEJdata!$P:$P,$A23) -> 6 | C23: =IF(SUMIF(TEJdata!$P:$P,$A23,TEJdata!$B:$B)=0,"",IF(AND(SUMIF(TEJdata!$P:$P,$A23,TEJdata!$B:$B)>0,SUMIF(TEJdata!$P:$P,$A23,TEJdata!$D:$D)<0),(SUMIF(TEJdata!$P:$P,$A23,TEJdata!$B:$B)/ABS(SUMIF(TEJdata!$P:$P,$A23,TEJdata!$D:$D)-1))*100,(SUMIF(TEJdata!$P:$P,$A23,TEJdata!$B:$B)/SUMIF(TEJdata!$P:$P,$A23,TEJdata!$D:$D)-1)*100)) -> 41.83277542 | D23: =IF(SUMIF(TEJdata!$P:$P,$A23,TEJdata!$B:$B)=0,"",(SUMIF(TEJdata!$P:$P,$A23,TEJdata!$B:$B)/SUMIF(TEJdata!$P:$P,$A23,TEJdata!$C:$C)-1)*100) -> 29.22448209 | E23: =IF(SUMIF(TEJdata!$P:$P,$A23,TEJdata!$E:$E)=0,"",(SUMIF(TEJdata!$P:$P,$A23,TEJdata!$E:$E)/SUMIF(TEJdata!$P:$P,$A23,TEJdata!$F:$F)-1)*100) -> 32.67436885 | F23: =SUMIF(TEJdata!$P:$P,$A23,TEJdata!$B:$B)/1000 -> 446402.452 | G23: =SUMIF(TEJdata!$P:$P,$A23,TEJdata!$G:$G)/$B23 -> 9.43415 | H23: =SUMIF(TEJdata!$P:$P,$A23,TEJdata!$H:$H)/$B23 -> 1.95525 | I23: =IF(SUMIF(TEJdata!$P:$P,$A23,TEJdata!$I:$I)=0,0,IFERROR((SUMIF(TEJdata!$P:$P,$A23,TEJdata!$I:$I)/SUMIF(TEJdata!$P:$P,$A23,TEJdata!$J:$J)-1)*100,"-")) -> 0.388268013 | J23: =IF(SUMIF(TEJdata!$P:$P,$A23,TEJdata!$K:$K)=0,0,IFERROR((SUMIF(TEJdata!$P:$P,$A23,TEJdata!$K:$K)/SUMIF(TEJdata!$P:$P,$A23,TEJdata!$L:$L)-1)*100,"-")) -> 0.7621286623 | K23: =IF(SUMIF(TEJdata!$P:$P,$A23,TEJdata!$M:$M)=0,0,IFERROR((SUMIF(TEJdata!$P:$P,$A23,TEJdata!$M:$M)/SUMIF(TEJdata!$P:$P,$A23,TEJdata!$N:$N)-1)*100,"-")) -> 7.003867488
A24: M15Z 其他電製品 | B24: =COUNTIF(TEJdata!$P:$P,$A24) -> 10 | C24: =IF(SUMIF(TEJdata!$P:$P,$A24,TEJdata!$B:$B)=0,"",IF(AND(SUMIF(TEJdata!$P:$P,$A24,TEJdata!$B:$B)>0,SUMIF(TEJdata!$P:$P,$A24,TEJdata!$D:$D)<0),(SUMIF(TEJdata!$P:$P,$A24,TEJdata!$B:$B)/ABS(SUMIF(TEJdata!$P:$P,$A24,TEJdata!$D:$D)-1))*100,(SUMIF(TEJdata!$P:$P,$A24,TEJdata!$B:$B)/SUMIF(TEJdata!$P:$P,$A24,TEJdata!$D:$D)-1)*100)) -> 41.06307073 | D24: =IF(SUMIF(TEJdata!$P:$P,$A24,TEJdata!$B:$B)=0,"",(SUMIF(TEJdata!$P:$P,$A24,TEJdata!$B:$B)/SUMIF(TEJdata!$P:$P,$A24,TEJdata!$C:$C)-1)*100) -> 38.96933283 | E24: =IF(SUMIF(TEJdata!$P:$P,$A24,TEJdata!$E:$E)=0,"",(SUMIF(TEJdata!$P:$P,$A24,TEJdata!$E:$E)/SUMIF(TEJdata!$P:$P,$A24,TEJdata!$F:$F)-1)*100) -> 46.06964296 | F24: =SUMIF(TEJdata!$P:$P,$A24,TEJdata!$B:$B)/1000 -> 3004.271 | G24: =SUMIF(TEJdata!$P:$P,$A24,TEJdata!$G:$G)/$B24 -> 2.85367 | H24: =SUMIF(TEJdata!$P:$P,$A24,TEJdata!$H:$H)/$B24 -> 2.40102 | I24: =IF(SUMIF(TEJdata!$P:$P,$A24,TEJdata!$I:$I)=0,0,IFERROR((SUMIF(TEJdata!$P:$P,$A24,TEJdata!$I:$I)/SUMIF(TEJdata!$P:$P,$A24,TEJdata!$J:$J)-1)*100,"-")) -> 1.228023767 | J24: =IF(SUMIF(TEJdata!$P:$P,$A24,TEJdata!$K:$K)=0,0,IFERROR((SUMIF(TEJdata!$P:$P,$A24,TEJdata!$K:$K)/SUMIF(TEJdata!$P:$P,$A24,TEJdata!$L:$L)-1)*100,"-")) -> -1.020517778 | K24: =IF(SUMIF(TEJdata!$P:$P,$A24,TEJdata!$M:$M)=0,0,IFERROR((SUMIF(TEJdata!$P:$P,$A24,TEJdata!$M:$M)/SUMIF(TEJdata!$P:$P,$A24,TEJdata!$N:$N)-1)*100,"-")) -> 2.971428571
A25: M17C1D 大分子新藥 | B25: =COUNTIF(TEJdata!$P:$P,$A25) -> 12 | C25: =IF(SUMIF(TEJdata!$P:$P,$A25,TEJdata!$B:$B)=0,"",IF(AND(SUMIF(TEJdata!$P:$P,$A25,TEJdata!$B:$B)>0,SUMIF(TEJdata!$P:$P,$A25,TEJdata!$D:$D)<0),(SUMIF(TEJdata!$P:$P,$A25,TEJdata!$B:$B)/ABS(SUMIF(TEJdata!$P:$P,$A25,TEJdata!$D:$D)-1))*100,(SUMIF(TEJdata!$P:$P,$A25,TEJdata!$B:$B)/SUMIF(TEJdata!$P:$P,$A25,TEJdata!$D:$D)-1)*100)) -> 40.10523749 | D25: =IF(SUMIF(TEJdata!$P:$P,$A25,TEJdata!$B:$B)=0,"",(SUMIF(TEJdata!$P:$P,$A25,TEJdata!$B:$B)/SUMIF(TEJdata!$P:$P,$A25,TEJdata!$C:$C)-1)*100) -> 30.36910948 | E25: =IF(SUMIF(TEJdata!$P:$P,$A25,TEJdata!$E:$E)=0,"",(SUMIF(TEJdata!$P:$P,$A25,TEJdata!$E:$E)/SUMIF(TEJdata!$P:$P,$A25,TEJdata!$F:$F)-1)*100) -> 42.53794403 | F25: =SUMIF(TEJdata!$P:$P,$A25,TEJdata!$B:$B)/1000 -> 2534.309 | G25: =SUMIF(TEJdata!$P:$P,$A25,TEJdata!$G:$G)/$B25 -> -2.622208333 | H25: =SUMIF(TEJdata!$P:$P,$A25,TEJdata!$H:$H)/$B25 -> -0.9237083333 | I25: =IF(SUMIF(TEJdata!$P:$P,$A25,TEJdata!$I:$I)=0,0,IFERROR((SUMIF(TEJdata!$P:$P,$A25,TEJdata!$I:$I)/SUMIF(TEJdata!$P:$P,$A25,TEJdata!$J:$J)-1)*100,"-")) -> -0.5991566665 | J25: =IF(SUMIF(TEJdata!$P:$P,$A25,TEJdata!$K:$K)=0,0,IFERROR((SUMIF(TEJdata!$P:$P,$A25,TEJdata!$K:$K)/SUMIF(TEJdata!$P:$P,$A25,TEJdata!$L:$L)-1)*100,"-")) -> 0.155823919 | K25: =IF(SUMIF(TEJdata!$P:$P,$A25,TEJdata!$M:$M)=0,0,IFERROR((SUMIF(TEJdata!$P:$P,$A25,TEJdata!$M:$M)/SUMIF(TEJdata!$P:$P,$A25,TEJdata!$N:$N)-1)*100,"-")) -> 1.681200211
A26: M23K1 網通工程 | B26: =COUNTIF(TEJdata!$P:$P,$A26) -> 7 | C26: =IF(SUMIF(TEJdata!$P:$P,$A26,TEJdata!$B:$B)=0,"",IF(AND(SUMIF(TEJdata!$P:$P,$A26,TEJdata!$B:$B)>0,SUMIF(TEJdata!$P:$P,$A26,TEJdata!$D:$D)<0),(SUMIF(TEJdata!$P:$P,$A26,TEJdata!$B:$B)/ABS(SUMIF(TEJdata!$P:$P,$A26,TEJdata!$D:$D)-1))*100,(SUMIF(TEJdata!$P:$P,$A26,TEJdata!$B:$B)/SUMIF(TEJdata!$P:$P,$A26,TEJdata!$D:$D)-1)*100)) -> 39.4522131 | D26: =IF(SUMIF(TEJdata!$P:$P,$A26,TEJdata!$B:$B)=0,"",(SUMIF(TEJdata!$P:$P,$A26,TEJdata!$B:$B)/SUMIF(TEJdata!$P:$P,$A26,TEJdata!$C:$C)-1)*100) -> 37.56733985 | E26: =IF(SUMIF(TEJdata!$P:$P,$A26,TEJdata!$E:$E)=0,"",(SUMIF(TEJdata!$P:$P,$A26,TEJdata!$E:$E)/SUMIF(TEJdata!$P:$P,$A26,TEJdata!$F:$F)-1)*100) -> 33.56413041 | F26: =SUMIF(TEJdata!$P:$P,$A26,TEJdata!$B:$B)/1000 -> 1438.444 | G26: =SUMIF(TEJdata!$P:$P,$A26,TEJdata!$G:$G)/$B26 -> 5.781457143 | H26: =SUMIF(TEJdata!$P:$P,$A26,TEJdata!$H:$H)/$B26 -> 8.895214286 | I26: =IF(SUMIF(TEJdata!$P:$P,$A26,TEJdata!$I:$I)=0,0,IFERROR((SUMIF(TEJdata!$P:$P,$A26,TEJdata!$I:$I)/SUMIF(TEJdata!$P:$P,$A26,TEJdata!$J:$J)-1)*100,"-")) -> 2.528698724 | J26: =IF(SUMIF(TEJdata!$P:$P,$A26,TEJdata!$K:$K)=0,0,IFERROR((SUMIF(TEJdata!$P:$P,$A26,TEJdata!$K:$K)/SUMIF(TEJdata!$P:$P,$A26,TEJdata!$L:$L)-1)*100,"-")) -> -3.680981595 | K26: =IF(SUMIF(TEJdata!$P:$P,$A26,TEJdata!$M:$M)=0,0,IFERROR((SUMIF(TEJdata!$P:$P,$A26,TEJdata!$M:$M)/SUMIF(TEJdata!$P:$P,$A26,TEJdata!$N:$N)-1)*100,"-")) -> 0.6878436436
A27: M23G3A 化合物SEMI | B27: =COUNTIF(TEJdata!$P:$P,$A27) -> 6 | C27: =IF(SUMIF(TEJdata!$P:$P,$A27,TEJdata!$B:$B)=0,"",IF(AND(SUMIF(TEJdata!$P:$P,$A27,TEJdata!$B:$B)>0,SUMIF(TEJdata!$P:$P,$A27,TEJdata!$D:$D)<0),(SUMIF(TEJdata!$P:$P,$A27,TEJdata!$B:$B)/ABS(SUMIF(TEJdata!$P:$P,$A27,TEJdata!$D:$D)-1))*100,(SUMIF(TEJdata!$P:$P,$A27,TEJdata!$B:$B)/SUMIF(TEJdata!$P:$P,$A27,TEJdata!$D:$D)-1)*100)) -> 38.13394212 | D27: =IF(SUMIF(TEJdata!$P:$P,$A27,TEJdata!$B:$B)=0,"",(SUMIF(TEJdata!$P:$P,$A27,TEJdata!$B:$B)/SUMIF(TEJdata!$P:$P,$A27,TEJdata!$C:$C)-1)*100) -> 17.31166887 | E27: =IF(SUMIF(TEJdata!$P:$P,$A27,TEJdata!$E:$E)=0,"",(SUMIF(TEJdata!$P:$P,$A27,TEJdata!$E:$E)/SUMIF(TEJdata!$P:$P,$A27,TEJdata!$F:$F)-1)*100) -> 37.59962987 | F27: =SUMIF(TEJdata!$P:$P,$A27,TEJdata!$B:$B)/1000 -> 3182.682 | G27: =SUMIF(TEJdata!$P:$P,$A27,TEJdata!$G:$G)/$B27 -> 20.40828333 | H27: =SUMIF(TEJdata!$P:$P,$A27,TEJdata!$H:$H)/$B27 -> 51.36541667 | I27: =IF(SUMIF(TEJdata!$P:$P,$A27,TEJdata!$I:$I)=0,0,IFERROR((SUMIF(TEJdata!$P:$P,$A27,TEJdata!$I:$I)/SUMIF(TEJdata!$P:$P,$A27,TEJdata!$J:$J)-1)*100,"-")) -> -1.071821987 | J27: =IF(SUMIF(TEJdata!$P:$P,$A27,TEJdata!$K:$K)=0,0,IFERROR((SUMIF(TEJdata!$P:$P,$A27,TEJdata!$K:$K)/SUMIF(TEJdata!$P:$P,$A27,TEJdata!$L:$L)-1)*100,"-")) -> 3.728858047 | K27: =IF(SUMIF(TEJdata!$P:$P,$A27,TEJdata!$M:$M)=0,0,IFERROR((SUMIF(TEJdata!$P:$P,$A27,TEJdata!$M:$M)/SUMIF(TEJdata!$P:$P,$A27,TEJdata!$N:$N)-1)*100,"-")) -> 2.727866928
A28: M23H2 電機設備 | B28: =COUNTIF(TEJdata!$P:$P,$A28) -> 60 | C28: =IF(SUMIF(TEJdata!$P:$P,$A28,TEJdata!$B:$B)=0,"",IF(AND(SUMIF(TEJdata!$P:$P,$A28,TEJdata!$B:$B)>0,SUMIF(TEJdata!$P:$P,$A28,TEJdata!$D:$D)<0),(SUMIF(TEJdata!$P:$P,$A28,TEJdata!$B:$B)/ABS(SUMIF(TEJdata!$P:$P,$A28,TEJdata!$D:$D)-1))*100,(SUMIF(TEJdata!$P:$P,$A28,TEJdata!$B:$B)/SUMIF(TEJdata!$P:$P,$A28,TEJdata!$D:$D)-1)*100)) -> 38.0944766 | D28: =IF(SUMIF(TEJdata!$P:$P,$A28,TEJdata!$B:$B)=0,"",(SUMIF(TEJdata!$P:$P,$A28,TEJdata!$B:$B)/SUMIF(TEJdata!$P:$P,$A28,TEJdata!$C:$C)-1)*100) -> 23.18089373 | E28: =IF(SUMIF(TEJdata!$P:$P,$A28,TEJdata!$E:$E)=0,"",(SUMIF(TEJdata!$P:$P,$A28,TEJdata!$E:$E)/SUMIF(TEJdata!$P:$P,$A28,TEJdata!$F:$F)-1)*100) -> 38.38803848 | F28: =SUMIF(TEJdata!$P:$P,$A28,TEJdata!$B:$B)/1000 -> 24576.877 | G28: =SUMIF(TEJdata!$P:$P,$A28,TEJdata!$G:$G)/$B28 -> 11.66871833 | H28: =SUMIF(TEJdata!$P:$P,$A28,TEJdata!$H:$H)/$B28 -> 30.216805 | I28: =IF(SUMIF(TEJdata!$P:$P,$A28,TEJdata!$I:$I)=0,0,IFERROR((SUMIF(TEJdata!$P:$P,$A28,TEJdata!$I:$I)/SUMIF(TEJdata!$P:$P,$A28,TEJdata!$J:$J)-1)*100,"-")) -> 1.14864223 | J28: =IF(SUMIF(TEJdata!$P:$P,$A28,TEJdata!$K:$K)=0,0,IFERROR((SUMIF(TEJdata!$P:$P,$A28,TEJdata!$K:$K)/SUMIF(TEJdata!$P:$P,$A28,TEJdata!$L:$L)-1)*100,"-")) -> 3.85114147 | K28: =IF(SUMIF(TEJdata!$P:$P,$A28,TEJdata!$M:$M)=0,0,IFERROR((SUMIF(TEJdata!$P:$P,$A28,TEJdata!$M:$M)/SUMIF(TEJdata!$P:$P,$A28,TEJdata!$N:$N)-1)*100,"-")) -> 12.08710194
A29: M17C1B 學名藥 | B29: =COUNTIF(TEJdata!$P:$P,$A29) -> 19 | C29: =IF(SUMIF(TEJdata!$P:$P,$A29,TEJdata!$B:$B)=0,"",IF(AND(SUMIF(TEJdata!$P:$P,$A29,TEJdata!$B:$B)>0,SUMIF(TEJdata!$P:$P,$A29,TEJdata!$D:$D)<0),(SUMIF(TEJdata!$P:$P,$A29,TEJdata!$B:$B)/ABS(SUMIF(TEJdata!$P:$P,$A29,TEJdata!$D:$D)-1))*100,(SUMIF(TEJdata!$P:$P,$A29,TEJdata!$B:$B)/SUMIF(TEJdata!$P:$P,$A29,TEJdata!$D:$D)-1)*100)) -> 38.07215657 | D29: =IF(SUMIF(TEJdata!$P:$P,$A29,TEJdata!$B:$B)=0,"",(SUMIF(TEJdata!$P:$P,$A29,TEJdata!$B:$B)/SUMIF(TEJdata!$P:$P,$A29,TEJdata!$C:$C)-1)*100) -> 47.3524387 | E29: =IF(SUMIF(TEJdata!$P:$P,$A29,TEJdata!$E:$E)=0,"",(SUMIF(TEJdata!$P:$P,$A29,TEJdata!$E:$E)/SUMIF(TEJdata!$P:$P,$A29,TEJdata!$F:$F)-1)*100) -> 13.94608371 | F29: =SUMIF(TEJdata!$P:$P,$A29,TEJdata!$B:$B)/1000 -> 10483.765 | G29: =SUMIF(TEJdata!$P:$P,$A29,TEJdata!$G:$G)/$B29 -> -0.3820789474 | H29: =SUMIF(TEJdata!$P:$P,$A29,TEJdata!$H:$H)/$B29 -> 0.4629 | I29: =IF(SUMIF(TEJdata!$P:$P,$A29,TEJdata!$I:$I)=0,0,IFERROR((SUMIF(TEJdata!$P:$P,$A29,TEJdata!$I:$I)/SUMIF(TEJdata!$P:$P,$A29,TEJdata!$J:$J)-1)*100,"-")) -> -0.8162794421 | J29: =IF(SUMIF(TEJdata!$P:$P,$A29,TEJdata!$K:$K)=0,0,IFERROR((SUMIF(TEJdata!$P:$P,$A29,TEJdata!$K:$K)/SUMIF(TEJdata!$P:$P,$A29,TEJdata!$L:$L)-1)*100,"-")) -> 2.277039848 | K29: =IF(SUMIF(TEJdata!$P:$P,$A29,TEJdata!$M:$M)=0,0,IFERROR((SUMIF(TEJdata!$P:$P,$A29,TEJdata!$M:$M)/SUMIF(TEJdata!$P:$P,$A29,TEJdata!$N:$N)-1)*100,"-")) -> -0.4850240213
A30: M23K2 衛星微波 | B30: =COUNTIF(TEJdata!$P:$P,$A30) -> 9 | C30: =IF(SUMIF(TEJdata!$P:$P,$A30,TEJdata!$B:$B)=0,"",IF(AND(SUMIF(TEJdata!$P:$P,$A30,TEJdata!$B:$B)>0,SUMIF(TEJdata!$P:$P,$A30,TEJdata!$D:$D)<0),(SUMIF(TEJdata!$P:$P,$A30,TEJdata!$B:$B)/ABS(SUMIF(TEJdata!$P:$P,$A30,TEJdata!$D:$D)-1))*100,(SUMIF(TEJdata!$P:$P,$A30,TEJdata!$B:$B)/SUMIF(TEJdata!$P:$P,$A30,TEJdata!$D:$D)-1)*100)) -> 38.00592642 | D30: =IF(SUMIF(TEJdata!$P:$P,$A30,TEJdata!$B:$B)=0,"",(SUMIF(TEJdata!$P:$P,$A30,TEJdata!$B:$B)/SUMIF(TEJdata!$P:$P,$A30,TEJdata!$C:$C)-1)*100) -> 34.23283682 | E30: =IF(SUMIF(TEJdata!$P:$P,$A30,TEJdata!$E:$E)=0,"",(SUMIF(TEJdata!$P:$P,$A30,TEJdata!$E:$E)/SUMIF(TEJdata!$P:$P,$A30,TEJdata!$F:$F)-1)*100) -> 40.81004875 | F30: =SUMIF(TEJdata!$P:$P,$A30,TEJdata!$B:$B)/1000 -> 1512.694 | G30: =SUMIF(TEJdata!$P:$P,$A30,TEJdata!$G:$G)/$B30 -> 1.406733333 | H30: =SUMIF(TEJdata!$P:$P,$A30,TEJdata!$H:$H)/$B30 -> 7.8289 | I30: =IF(SUMIF(TEJdata!$P:$P,$A30,TEJdata!$I:$I)=0,0,IFERROR((SUMIF(TEJdata!$P:$P,$A30,TEJdata!$I:$I)/SUMIF(TEJdata!$P:$P,$A30,TEJdata!$J:$J)-1)*100,"-")) -> -5.742927387 | J30: =IF(SUMIF(TEJdata!$P:$P,$A30,TEJdata!$K:$K)=0,0,IFERROR((SUMIF(TEJdata!$P:$P,$A30,TEJdata!$K:$K)/SUMIF(TEJdata!$P:$P,$A30,TEJdata!$L:$L)-1)*100,"-")) -> 13.67119901 | K30: =IF(SUMIF(TEJdata!$P:$P,$A30,TEJdata!$M:$M)=0,0,IFERROR((SUMIF(TEJdata!$P:$P,$A30,TEJdata!$M:$M)/SUMIF(TEJdata!$P:$P,$A30,TEJdata!$N:$N)-1)*100,"-")) -> 4.881432572
A31: M21A 輪胎 | B31: =COUNTIF(TEJdata!$P:$P,$A31) -> 5 | C31: =IF(SUMIF(TEJdata!$P:$P,$A31,TEJdata!$B:$B)=0,"",IF(AND(SUMIF(TEJdata!$P:$P,$A31,TEJdata!$B:$B)>0,SUMIF(TEJdata!$P:$P,$A31,TEJdata!$D:$D)<0),(SUMIF(TEJdata!$P:$P,$A31,TEJdata!$B:$B)/ABS(SUMIF(TEJdata!$P:$P,$A31,TEJdata!$D:$D)-1))*100,(SUMIF(TEJdata!$P:$P,$A31,TEJdata!$B:$B)/SUMIF(TEJdata!$P:$P,$A31,TEJdata!$D:$D)-1)*100)) -> 33.32439808 | D31: =IF(SUMIF(TEJdata!$P:$P,$A31,TEJdata!$B:$B)=0,"",(SUMIF(TEJdata!$P:$P,$A31,TEJdata!$B:$B)/SUMIF(TEJdata!$P:$P,$A31,TEJdata!$C:$C)-1)*100) -> 87.68096896 | E31: =IF(SUMIF(TEJdata!$P:$P,$A31,TEJdata!$E:$E)=0,"",(SUMIF(TEJdata!$P:$P,$A31,TEJdata!$E:$E)/SUMIF(TEJdata!$P:$P,$A31,TEJdata!$F:$F)-1)*100) -> 9.583271925 | F31: =SUMIF(TEJdata!$P:$P,$A31,TEJdata!$B:$B)/1000 -> 17437.878 | G31: =SUMIF(TEJdata!$P:$P,$A31,TEJdata!$G:$G)/$B31 -> -1.74066 | H31: =SUMIF(TEJdata!$P:$P,$A31,TEJdata!$H:$H)/$B31 -> 5.51894 | I31: =IF(SUMIF(TEJdata!$P:$P,$A31,TEJdata!$I:$I)=0,0,IFERROR((SUMIF(TEJdata!$P:$P,$A31,TEJdata!$I:$I)/SUMIF(TEJdata!$P:$P,$A31,TEJdata!$J:$J)-1)*100,"-")) -> -0.7196213643 | J31: =IF(SUMIF(TEJdata!$P:$P,$A31,TEJdata!$K:$K)=0,0,IFERROR((SUMIF(TEJdata!$P:$P,$A31,TEJdata!$K:$K)/SUMIF(TEJdata!$P:$P,$A31,TEJdata!$L:$L)-1)*100,"-")) -> -0.1656848306 | K31: =IF(SUMIF(TEJdata!$P:$P,$A31,TEJdata!$M:$M)=0,0,IFERROR((SUMIF(TEJdata!$P:$P,$A31,TEJdata!$M:$M)/SUMIF(TEJdata!$P:$P,$A31,TEJdata!$N:$N)-1)*100,"-")) -> 1.330381706
A32: M23A3 品牌及主板 | B32: =COUNTIF(TEJdata!$P:$P,$A32) -> 8 | C32: =IF(SUMIF(TEJdata!$P:$P,$A32,TEJdata!$B:$B)=0,"",IF(AND(SUMIF(TEJdata!$P:$P,$A32,TEJdata!$B:$B)>0,SUMIF(TEJdata!$P:$P,$A32,TEJdata!$D:$D)<0),(SUMIF(TEJdata!$P:$P,$A32,TEJdata!$B:$B)/ABS(SUMIF(TEJdata!$P:$P,$A32,TEJdata!$D:$D)-1))*100,(SUMIF(TEJdata!$P:$P,$A32,TEJdata!$B:$B)/SUMIF(TEJdata!$P:$P,$A32,TEJdata!$D:$D)-1)*100)) -> 29.00576146 | D32: =IF(SUMIF(TEJdata!$P:$P,$A32,TEJdata!$B:$B)=0,"",(SUMIF(TEJdata!$P:$P,$A32,TEJdata!$B:$B)/SUMIF(TEJdata!$P:$P,$A32,TEJdata!$C:$C)-1)*100) -> 42.31579244 | E32: =IF(SUMIF(TEJdata!$P:$P,$A32,TEJdata!$E:$E)=0,"",(SUMIF(TEJdata!$P:$P,$A32,TEJdata!$E:$E)/SUMIF(TEJdata!$P:$P,$A32,TEJdata!$F:$F)-1)*100) -> 35.1807645 | F32: =SUMIF(TEJdata!$P:$P,$A32,TEJdata!$B:$B)/1000 -> 183279.667 | G32: =SUMIF(TEJdata!$P:$P,$A32,TEJdata!$G:$G)/$B32 -> 4.6580625 | H32: =SUMIF(TEJdata!$P:$P,$A32,TEJdata!$H:$H)/$B32 -> 14.57875 | I32: =IF(SUMIF(TEJdata!$P:$P,$A32,TEJdata!$I:$I)=0,0,IFERROR((SUMIF(TEJdata!$P:$P,$A32,TEJdata!$I:$I)/SUMIF(TEJdata!$P:$P,$A32,TEJdata!$J:$J)-1)*100,"-")) -> 0.08628689579 | J32: =IF(SUMIF(TEJdata!$P:$P,$A32,TEJdata!$K:$K)=0,0,IFERROR((SUMIF(TEJdata!$P:$P,$A32,TEJdata!$K:$K)/SUMIF(TEJdata!$P:$P,$A32,TEJdata!$L:$L)-1)*100,"-")) -> -0.01272792007 | K32: =IF(SUMIF(TEJdata!$P:$P,$A32,TEJdata!$M:$M)=0,0,IFERROR((SUMIF(TEJdata!$P:$P,$A32,TEJdata!$M:$M)/SUMIF(TEJdata!$P:$P,$A32,TEJdata!$N:$N)-1)*100,"-")) -> -0.8502946755
A33: M28L 金融控股 | B33: =COUNTIF(TEJdata!$P:$P,$A33) -> 13 | C33: =IF(SUMIF(TEJdata!$P:$P,$A33,TEJdata!$B:$B)=0,"",IF(AND(SUMIF(TEJdata!$P:$P,$A33,TEJdata!$B:$B)>0,SUMIF(TEJdata!$P:$P,$A33,TEJdata!$D:$D)<0),(SUMIF(TEJdata!$P:$P,$A33,TEJdata!$B:$B)/ABS(SUMIF(TEJdata!$P:$P,$A33,TEJdata!$D:$D)-1))*100,(SUMIF(TEJdata!$P:$P,$A33,TEJdata!$B:$B)/SUMIF(TEJdata!$P:$P,$A33,TEJdata!$D:$D)-1)*100)) -> 28.0851938 | D33: =IF(SUMIF(TEJdata!$P:$P,$A33,TEJdata!$B:$B)=0,"",(SUMIF(TEJdata!$P:$P,$A33,TEJdata!$B:$B)/SUMIF(TEJdata!$P:$P,$A33,TEJdata!$C:$C)-1)*100) -> -88.56142258 | E33: =IF(SUMIF(TEJdata!$P:$P,$A33,TEJdata!$E:$E)=0,"",(SUMIF(TEJdata!$P:$P,$A33,TEJdata!$E:$E)/SUMIF(TEJdata!$P:$P,$A33,TEJdata!$F:$F)-1)*100) -> 29.09637166 | F33: =SUMIF(TEJdata!$P:$P,$A33,TEJdata!$B:$B)/1000 -> 17583.529 | G33: =SUMIF(TEJdata!$P:$P,$A33,TEJdata!$G:$G)/$B33 -> 1.627546154 | H33: =SUMIF(TEJdata!$P:$P,$A33,TEJdata!$H:$H)/$B33 -> 1.849530769 | I33: =IF(SUMIF(TEJdata!$P:$P,$A33,TEJdata!$I:$I)=0,0,IFERROR((SUMIF(TEJdata!$P:$P,$A33,TEJdata!$I:$I)/SUMIF(TEJdata!$P:$P,$A33,TEJdata!$J:$J)-1)*100,"-")) -> 0.2634058137 | J33: =IF(SUMIF(TEJdata!$P:$P,$A33,TEJdata!$K:$K)=0,0,IFERROR((SUMIF(TEJdata!$P:$P,$A33,TEJdata!$K:$K)/SUMIF(TEJdata!$P:$P,$A33,TEJdata!$L:$L)-1)*100,"-")) -> 0.2339824126 | K33: =IF(SUMIF(TEJdata!$P:$P,$A33,TEJdata!$M:$M)=0,0,IFERROR((SUMIF(TEJdata!$P:$P,$A33,TEJdata!$M:$M)/SUMIF(TEJdata!$P:$P,$A33,TEJdata!$N:$N)-1)*100,"-")) -> -2.223116792
A34: M23K4 網通設備 | B34: =COUNTIF(TEJdata!$P:$P,$A34) -> 28 | C34: =IF(SUMIF(TEJdata!$P:$P,$A34,TEJdata!$B:$B)=0,"",IF(AND(SUMIF(TEJdata!$P:$P,$A34,TEJdata!$B:$B)>0,SUMIF(TEJdata!$P:$P,$A34,TEJdata!$D:$D)<0),(SUMIF(TEJdata!$P:$P,$A34,TEJdata!$B:$B)/ABS(SUMIF(TEJdata!$P:$P,$A34,TEJdata!$D:$D)-1))*100,(SUMIF(TEJdata!$P:$P,$A34,TEJdata!$B:$B)/SUMIF(TEJdata!$P:$P,$A34,TEJdata!$D:$D)-1)*100)) -> 26.47500854 | D34: =IF(SUMIF(TEJdata!$P:$P,$A34,TEJdata!$B:$B)=0,"",(SUMIF(TEJdata!$P:$P,$A34,TEJdata!$B:$B)/SUMIF(TEJdata!$P:$P,$A34,TEJdata!$C:$C)-1)*100) -> 23.09168815 | E34: =IF(SUMIF(TEJdata!$P:$P,$A34,TEJdata!$E:$E)=0,"",(SUMIF(TEJdata!$P:$P,$A34,TEJdata!$E:$E)/SUMIF(TEJdata!$P:$P,$A34,TEJdata!$F:$F)-1)*100) -> 24.59221268 | F34: =SUMIF(TEJdata!$P:$P,$A34,TEJdata!$B:$B)/1000 -> 61494.537 | G34: =SUMIF(TEJdata!$P:$P,$A34,TEJdata!$G:$G)/$B34 -> 3.098142857 | H34: =SUMIF(TEJdata!$P:$P,$A34,TEJdata!$H:$H)/$B34 -> 5.321353571 | I34: =IF(SUMIF(TEJdata!$P:$P,$A34,TEJdata!$I:$I)=0,0,IFERROR((SUMIF(TEJdata!$P:$P,$A34,TEJdata!$I:$I)/SUMIF(TEJdata!$P:$P,$A34,TEJdata!$J:$J)-1)*100,"-")) -> -0.3592478039 | J34: =IF(SUMIF(TEJdata!$P:$P,$A34,TEJdata!$K:$K)=0,0,IFERROR((SUMIF(TEJdata!$P:$P,$A34,TEJdata!$K:$K)/SUMIF(TEJdata!$P:$P,$A34,TEJdata!$L:$L)-1)*100,"-")) -> 9.853266194 | K34: =IF(SUMIF(TEJdata!$P:$P,$A34,TEJdata!$M:$M)=0,0,IFERROR((SUMIF(TEJdata!$P:$P,$A34,TEJdata!$M:$M)/SUMIF(TEJdata!$P:$P,$A34,TEJdata!$N:$N)-1)*100,"-")) -> -0.3697395206
A35: M23B2B 硬板 | B35: =COUNTIF(TEJdata!$P:$P,$A35) -> 22 | C35: =IF(SUMIF(TEJdata!$P:$P,$A35,TEJdata!$B:$B)=0,"",IF(AND(SUMIF(TEJdata!$P:$P,$A35,TEJdata!$B:$B)>0,SUMIF(TEJdata!$P:$P,$A35,TEJdata!$D:$D)<0),(SUMIF(TEJdata!$P:$P,$A35,TEJdata!$B:$B)/ABS(SUMIF(TEJdata!$P:$P,$A35,TEJdata!$D:$D)-1))*100,(SUMIF(TEJdata!$P:$P,$A35,TEJdata!$B:$B)/SUMIF(TEJdata!$P:$P,$A35,TEJdata!$D:$D)-1)*100)) -> 25.65321484 | D35: =IF(SUMIF(TEJdata!$P:$P,$A35,TEJdata!$B:$B)=0,"",(SUMIF(TEJdata!$P:$P,$A35,TEJdata!$B:$B)/SUMIF(TEJdata!$P:$P,$A35,TEJdata!$C:$C)-1)*100) -> 24.70538249 | E35: =IF(SUMIF(TEJdata!$P:$P,$A35,TEJdata!$E:$E)=0,"",(SUMIF(TEJdata!$P:$P,$A35,TEJdata!$E:$E)/SUMIF(TEJdata!$P:$P,$A35,TEJdata!$F:$F)-1)*100) -> 25.6359876 | F35: =SUMIF(TEJdata!$P:$P,$A35,TEJdata!$B:$B)/1000 -> 38005.579 | G35: =SUMIF(TEJdata!$P:$P,$A35,TEJdata!$G:$G)/$B35 -> 8.121331818 | H35: =SUMIF(TEJdata!$P:$P,$A35,TEJdata!$H:$H)/$B35 -> 16.3307 | I35: =IF(SUMIF(TEJdata!$P:$P,$A35,TEJdata!$I:$I)=0,0,IFERROR((SUMIF(TEJdata!$P:$P,$A35,TEJdata!$I:$I)/SUMIF(TEJdata!$P:$P,$A35,TEJdata!$J:$J)-1)*100,"-")) -> 0.9018685031 | J35: =IF(SUMIF(TEJdata!$P:$P,$A35,TEJdata!$K:$K)=0,0,IFERROR((SUMIF(TEJdata!$P:$P,$A35,TEJdata!$K:$K)/SUMIF(TEJdata!$P:$P,$A35,TEJdata!$L:$L)-1)*100,"-")) -> 0.0420337973 | K35: =IF(SUMIF(TEJdata!$P:$P,$A35,TEJdata!$M:$M)=0,0,IFERROR((SUMIF(TEJdata!$P:$P,$A35,TEJdata!$M:$M)/SUMIF(TEJdata!$P:$P,$A35,TEJdata!$N:$N)-1)*100,"-")) -> 1.759588242
A36: M23D3 電源供應器 | B36: =COUNTIF(TEJdata!$P:$P,$A36) -> 28 | C36: =IF(SUMIF(TEJdata!$P:$P,$A36,TEJdata!$B:$B)=0,"",IF(AND(SUMIF(TEJdata!$P:$P,$A36,TEJdata!$B:$B)>0,SUMIF(TEJdata!$P:$P,$A36,TEJdata!$D:$D)<0),(SUMIF(TEJdata!$P:$P,$A36,TEJdata!$B:$B)/ABS(SUMIF(TEJdata!$P:$P,$A36,TEJdata!$D:$D)-1))*100,(SUMIF(TEJdata!$P:$P,$A36,TEJdata!$B:$B)/SUMIF(TEJdata!$P:$P,$A36,TEJdata!$D:$D)-1)*100)) -> 25.58555985 | D36: =IF(SUMIF(TEJdata!$P:$P,$A36,TEJdata!$B:$B)=0,"",(SUMIF(TEJdata!$P:$P,$A36,TEJdata!$B:$B)/SUMIF(TEJdata!$P:$P,$A36,TEJdata!$C:$C)-1)*100) -> 22.45766528 | E36: =IF(SUMIF(TEJdata!$P:$P,$A36,TEJdata!$E:$E)=0,"",(SUMIF(TEJdata!$P:$P,$A36,TEJdata!$E:$E)/SUMIF(TEJdata!$P:$P,$A36,TEJdata!$F:$F)-1)*100) -> 23.45394696 | F36: =SUMIF(TEJdata!$P:$P,$A36,TEJdata!$B:$B)/1000 -> 89697.1 | G36: =SUMIF(TEJdata!$P:$P,$A36,TEJdata!$G:$G)/$B36 -> 1.873810714 | H36: =SUMIF(TEJdata!$P:$P,$A36,TEJdata!$H:$H)/$B36 -> -0.12895 | I36: =IF(SUMIF(TEJdata!$P:$P,$A36,TEJdata!$I:$I)=0,0,IFERROR((SUMIF(TEJdata!$P:$P,$A36,TEJdata!$I:$I)/SUMIF(TEJdata!$P:$P,$A36,TEJdata!$J:$J)-1)*100,"-")) -> 0.832833804 | J36: =IF(SUMIF(TEJdata!$P:$P,$A36,TEJdata!$K:$K)=0,0,IFERROR((SUMIF(TEJdata!$P:$P,$A36,TEJdata!$K:$K)/SUMIF(TEJdata!$P:$P,$A36,TEJdata!$L:$L)-1)*100,"-")) -> 0.02990016263 | K36: =IF(SUMIF(TEJdata!$P:$P,$A36,TEJdata!$M:$M)=0,0,IFERROR((SUMIF(TEJdata!$P:$P,$A36,TEJdata!$M:$M)/SUMIF(TEJdata!$P:$P,$A36,TEJdata!$N:$N)-1)*100,"-")) -> 0.2192711843
A37: M23C9 安全監控 | B37: =COUNTIF(TEJdata!$P:$P,$A37) -> 10 | C37: =IF(SUMIF(TEJdata!$P:$P,$A37,TEJdata!$B:$B)=0,"",IF(AND(SUMIF(TEJdata!$P:$P,$A37,TEJdata!$B:$B)>0,SUMIF(TEJdata!$P:$P,$A37,TEJdata!$D:$D)<0),(SUMIF(TEJdata!$P:$P,$A37,TEJdata!$B:$B)/ABS(SUMIF(TEJdata!$P:$P,$A37,TEJdata!$D:$D)-1))*100,(SUMIF(TEJdata!$P:$P,$A37,TEJdata!$B:$B)/SUMIF(TEJdata!$P:$P,$A37,TEJdata!$D:$D)-1)*100)) -> 25.04398209 | D37: =IF(SUMIF(TEJdata!$P:$P,$A37,TEJdata!$B:$B)=0,"",(SUMIF(TEJdata!$P:$P,$A37,TEJdata!$B:$B)/SUMIF(TEJdata!$P:$P,$A37,TEJdata!$C:$C)-1)*100) -> 23.56839901 | E37: =IF(SUMIF(TEJdata!$P:$P,$A37,TEJdata!$E:$E)=0,"",(SUMIF(TEJdata!$P:$P,$A37,TEJdata!$E:$E)/SUMIF(TEJdata!$P:$P,$A37,TEJdata!$F:$F)-1)*100) -> 11.6910806 | F37: =SUMIF(TEJdata!$P:$P,$A37,TEJdata!$B:$B)/1000 -> 806.72 | G37: =SUMIF(TEJdata!$P:$P,$A37,TEJdata!$G:$G)/$B37 -> 1.7495 | H37: =SUMIF(TEJdata!$P:$P,$A37,TEJdata!$H:$H)/$B37 -> 6.76203 | I37: =IF(SUMIF(TEJdata!$P:$P,$A37,TEJdata!$I:$I)=0,0,IFERROR((SUMIF(TEJdata!$P:$P,$A37,TEJdata!$I:$I)/SUMIF(TEJdata!$P:$P,$A37,TEJdata!$J:$J)-1)*100,"-")) -> -2.579885637 | J37: =IF(SUMIF(TEJdata!$P:$P,$A37,TEJdata!$K:$K)=0,0,IFERROR((SUMIF(TEJdata!$P:$P,$A37,TEJdata!$K:$K)/SUMIF(TEJdata!$P:$P,$A37,TEJdata!$L:$L)-1)*100,"-")) -> -3.773584906 | K37: =IF(SUMIF(TEJdata!$P:$P,$A37,TEJdata!$M:$M)=0,0,IFERROR((SUMIF(TEJdata!$P:$P,$A37,TEJdata!$M:$M)/SUMIF(TEJdata!$P:$P,$A37,TEJdata!$N:$N)-1)*100,"-")) -> 2.215914294
A38: M99ZX 其他服務 | B38: =COUNTIF(TEJdata!$P:$P,$A38) -> 10 | C38: =IF(SUMIF(TEJdata!$P:$P,$A38,TEJdata!$B:$B)=0,"",IF(AND(SUMIF(TEJdata!$P:$P,$A38,TEJdata!$B:$B)>0,SUMIF(TEJdata!$P:$P,$A38,TEJdata!$D:$D)<0),(SUMIF(TEJdata!$P:$P,$A38,TEJdata!$B:$B)/ABS(SUMIF(TEJdata!$P:$P,$A38,TEJdata!$D:$D)-1))*100,(SUMIF(TEJdata!$P:$P,$A38,TEJdata!$B:$B)/SUMIF(TEJdata!$P:$P,$A38,TEJdata!$D:$D)-1)*100)) -> 22.33708018 | D38: =IF(SUMIF(TEJdata!$P:$P,$A38,TEJdata!$B:$B)=0,"",(SUMIF(TEJdata!$P:$P,$A38,TEJdata!$B:$B)/SUMIF(TEJdata!$P:$P,$A38,TEJdata!$C:$C)-1)*100) -> 14.50956436 | E38: =IF(SUMIF(TEJdata!$P:$P,$A38,TEJdata!$E:$E)=0,"",(SUMIF(TEJdata!$P:$P,$A38,TEJdata!$E:$E)/SUMIF(TEJdata!$P:$P,$A38,TEJdata!$F:$F)-1)*100) -> 23.69272995 | F38: =SUMIF(TEJdata!$P:$P,$A38,TEJdata!$B:$B)/1000 -> 2732.97 | G38: =SUMIF(TEJdata!$P:$P,$A38,TEJdata!$G:$G)/$B38 -> 0.33597 | H38: =SUMIF(TEJdata!$P:$P,$A38,TEJdata!$H:$H)/$B38 -> 1.02005 | I38: =IF(SUMIF(TEJdata!$P:$P,$A38,TEJdata!$I:$I)=0,0,IFERROR((SUMIF(TEJdata!$P:$P,$A38,TEJdata!$I:$I)/SUMIF(TEJdata!$P:$P,$A38,TEJdata!$J:$J)-1)*100,"-")) -> 0.1296936411 | J38: =IF(SUMIF(TEJdata!$P:$P,$A38,TEJdata!$K:$K)=0,0,IFERROR((SUMIF(TEJdata!$P:$P,$A38,TEJdata!$K:$K)/SUMIF(TEJdata!$P:$P,$A38,TEJdata!$L:$L)-1)*100,"-")) -> 1.062215478 | K38: =IF(SUMIF(TEJdata!$P:$P,$A38,TEJdata!$M:$M)=0,0,IFERROR((SUMIF(TEJdata!$P:$P,$A38,TEJdata!$M:$M)/SUMIF(TEJdata!$P:$P,$A38,TEJdata!$N:$N)-1)*100,"-")) -> 0.8078515156
A39: M23G5F 傳輸介面IC | B39: =COUNTIF(TEJdata!$P:$P,$A39) -> 10 | C39: =IF(SUMIF(TEJdata!$P:$P,$A39,TEJdata!$B:$B)=0,"",IF(AND(SUMIF(TEJdata!$P:$P,$A39,TEJdata!$B:$B)>0,SUMIF(TEJdata!$P:$P,$A39,TEJdata!$D:$D)<0),(SUMIF(TEJdata!$P:$P,$A39,TEJdata!$B:$B)/ABS(SUMIF(TEJdata!$P:$P,$A39,TEJdata!$D:$D)-1))*100,(SUMIF(TEJdata!$P:$P,$A39,TEJdata!$B:$B)/SUMIF(TEJdata!$P:$P,$A39,TEJdata!$D:$D)-1)*100)) -> 21.92946519 | D39: =IF(SUMIF(TEJdata!$P:$P,$A39,TEJdata!$B:$B)=0,"",(SUMIF(TEJdata!$P:$P,$A39,TEJdata!$B:$B)/SUMIF(TEJdata!$P:$P,$A39,TEJdata!$C:$C)-1)*100) -> 31.77945268 | E39: =IF(SUMIF(TEJdata!$P:$P,$A39,TEJdata!$E:$E)=0,"",(SUMIF(TEJdata!$P:$P,$A39,TEJdata!$E:$E)/SUMIF(TEJdata!$P:$P,$A39,TEJdata!$F:$F)-1)*100) -> 20.26589977 | F39: =SUMIF(TEJdata!$P:$P,$A39,TEJdata!$B:$B)/1000 -> 4446.414 | G39: =SUMIF(TEJdata!$P:$P,$A39,TEJdata!$G:$G)/$B39 -> 3.11079 | H39: =SUMIF(TEJdata!$P:$P,$A39,TEJdata!$H:$H)/$B39 -> -0.98089 | I39: =IF(SUMIF(TEJdata!$P:$P,$A39,TEJdata!$I:$I)=0,0,IFERROR((SUMIF(TEJdata!$P:$P,$A39,TEJdata!$I:$I)/SUMIF(TEJdata!$P:$P,$A39,TEJdata!$J:$J)-1)*100,"-")) -> 1.131126094 | J39: =IF(SUMIF(TEJdata!$P:$P,$A39,TEJdata!$K:$K)=0,0,IFERROR((SUMIF(TEJdata!$P:$P,$A39,TEJdata!$K:$K)/SUMIF(TEJdata!$P:$P,$A39,TEJdata!$L:$L)-1)*100,"-")) -> -0.4364751681 | K39: =IF(SUMIF(TEJdata!$P:$P,$A39,TEJdata!$M:$M)=0,0,IFERROR((SUMIF(TEJdata!$P:$P,$A39,TEJdata!$M:$M)/SUMIF(TEJdata!$P:$P,$A39,TEJdata!$N:$N)-1)*100,"-")) -> -0.6327186601
A40: M17B 染料及顏料 | B40: =COUNTIF(TEJdata!$P:$P,$A40) -> 6 | C40: =IF(SUMIF(TEJdata!$P:$P,$A40,TEJdata!$B:$B)=0,"",IF(AND(SUMIF(TEJdata!$P:$P,$A40,TEJdata!$B:$B)>0,SUMIF(TEJdata!$P:$P,$A40,TEJdata!$D:$D)<0),(SUMIF(TEJdata!$P:$P,$A40,TEJdata!$B:$B)/ABS(SUMIF(TEJdata!$P:$P,$A40,TEJdata!$D:$D)-1))*100,(SUMIF(TEJdata!$P:$P,$A40,TEJdata!$B:$B)/SUMIF(TEJdata!$P:$P,$A40,TEJdata!$D:$D)-1)*100)) -> 19.91662984 | D40: =IF(SUMIF(TEJdata!$P:$P,$A40,TEJdata!$B:$B)=0,"",(SUMIF(TEJdata!$P:$P,$A40,TEJdata!$B:$B)/SUMIF(TEJdata!$P:$P,$A40,TEJdata!$C:$C)-1)*100) -> 66.21172076 | E40: =IF(SUMIF(TEJdata!$P:$P,$A40,TEJdata!$E:$E)=0,"",(SUMIF(TEJdata!$P:$P,$A40,TEJdata!$E:$E)/SUMIF(TEJdata!$P:$P,$A40,TEJdata!$F:$F)-1)*100) -> 5.078580946 | F40: =SUMIF(TEJdata!$P:$P,$A40,TEJdata!$B:$B)/1000 -> 2105.477 | G40: =SUMIF(TEJdata!$P:$P,$A40,TEJdata!$G:$G)/$B40 -> 5.569766667 | H40: =SUMIF(TEJdata!$P:$P,$A40,TEJdata!$H:$H)/$B40 -> 31.20835 | I40: =IF(SUMIF(TEJdata!$P:$P,$A40,TEJdata!$I:$I)=0,0,IFERROR((SUMIF(TEJdata!$P:$P,$A40,TEJdata!$I:$I)/SUMIF(TEJdata!$P:$P,$A40,TEJdata!$J:$J)-1)*100,"-")) -> -9.132303601 | J40: =IF(SUMIF(TEJdata!$P:$P,$A40,TEJdata!$K:$K)=0,0,IFERROR((SUMIF(TEJdata!$P:$P,$A40,TEJdata!$K:$K)/SUMIF(TEJdata!$P:$P,$A40,TEJdata!$L:$L)-1)*100,"-")) -> 28050 | K40: =IF(SUMIF(TEJdata!$P:$P,$A40,TEJdata!$M:$M)=0,0,IFERROR((SUMIF(TEJdata!$P:$P,$A40,TEJdata!$M:$M)/SUMIF(TEJdata!$P:$P,$A40,TEJdata!$N:$N)-1)*100,"-")) -> 5.548443501
A41: M17C1C 小分子新藥 | B41: =COUNTIF(TEJdata!$P:$P,$A41) -> 17 | C41: =IF(SUMIF(TEJdata!$P:$P,$A41,TEJdata!$B:$B)=0,"",IF(AND(SUMIF(TEJdata!$P:$P,$A41,TEJdata!$B:$B)>0,SUMIF(TEJdata!$P:$P,$A41,TEJdata!$D:$D)<0),(SUMIF(TEJdata!$P:$P,$A41,TEJdata!$B:$B)/ABS(SUMIF(TEJdata!$P:$P,$A41,TEJdata!$D:$D)-1))*100,(SUMIF(TEJdata!$P:$P,$A41,TEJdata!$B:$B)/SUMIF(TEJdata!$P:$P,$A41,TEJdata!$D:$D)-1)*100)) -> 18.91243291 | D41: =IF(SUMIF(TEJdata!$P:$P,$A41,TEJdata!$B:$B)=0,"",(SUMIF(TEJdata!$P:$P,$A41,TEJdata!$B:$B)/SUMIF(TEJdata!$P:$P,$A41,TEJdata!$C:$C)-1)*100) -> 33.25308032 | E41: =IF(SUMIF(TEJdata!$P:$P,$A41,TEJdata!$E:$E)=0,"",(SUMIF(TEJdata!$P:$P,$A41,TEJdata!$E:$E)/SUMIF(TEJdata!$P:$P,$A41,TEJdata!$F:$F)-1)*100) -> 10.43406617 | F41: =SUMIF(TEJdata!$P:$P,$A41,TEJdata!$B:$B)/1000 -> 785.375 | G41: =SUMIF(TEJdata!$P:$P,$A41,TEJdata!$G:$G)/$B41 -> 4.830505882 | H41: =SUMIF(TEJdata!$P:$P,$A41,TEJdata!$H:$H)/$B41 -> 1.285241176 | I41: =IF(SUMIF(TEJdata!$P:$P,$A41,TEJdata!$I:$I)=0,0,IFERROR((SUMIF(TEJdata!$P:$P,$A41,TEJdata!$I:$I)/SUMIF(TEJdata!$P:$P,$A41,TEJdata!$J:$J)-1)*100,"-")) -> -3.416308462 | J41: =IF(SUMIF(TEJdata!$P:$P,$A41,TEJdata!$K:$K)=0,0,IFERROR((SUMIF(TEJdata!$P:$P,$A41,TEJdata!$K:$K)/SUMIF(TEJdata!$P:$P,$A41,TEJdata!$L:$L)-1)*100,"-")) -> 0 | K41: =IF(SUMIF(TEJdata!$P:$P,$A41,TEJdata!$M:$M)=0,0,IFERROR((SUMIF(TEJdata!$P:$P,$A41,TEJdata!$M:$M)/SUMIF(TEJdata!$P:$P,$A41,TEJdata!$N:$N)-1)*100,"-")) -> 4.988964738
A42: M15A2 模具零件 | B42: =COUNTIF(TEJdata!$P:$P,$A42) -> 16 | C42: =IF(SUMIF(TEJdata!$P:$P,$A42,TEJdata!$B:$B)=0,"",IF(AND(SUMIF(TEJdata!$P:$P,$A42,TEJdata!$B:$B)>0,SUMIF(TEJdata!$P:$P,$A42,TEJdata!$D:$D)<0),(SUMIF(TEJdata!$P:$P,$A42,TEJdata!$B:$B)/ABS(SUMIF(TEJdata!$P:$P,$A42,TEJdata!$D:$D)-1))*100,(SUMIF(TEJdata!$P:$P,$A42,TEJdata!$B:$B)/SUMIF(TEJdata!$P:$P,$A42,TEJdata!$D:$D)-1)*100)) -> 18.52867721 | D42: =IF(SUMIF(TEJdata!$P:$P,$A42,TEJdata!$B:$B)=0,"",(SUMIF(TEJdata!$P:$P,$A42,TEJdata!$B:$B)/SUMIF(TEJdata!$P:$P,$A42,TEJdata!$C:$C)-1)*100) -> 48.95008065 | E42: =IF(SUMIF(TEJdata!$P:$P,$A42,TEJdata!$E:$E)=0,"",(SUMIF(TEJdata!$P:$P,$A42,TEJdata!$E:$E)/SUMIF(TEJdata!$P:$P,$A42,TEJdata!$F:$F)-1)*100) -> 18.56235364 | F42: =SUMIF(TEJdata!$P:$P,$A42,TEJdata!$B:$B)/1000 -> 10777.508 | G42: =SUMIF(TEJdata!$P:$P,$A42,TEJdata!$G:$G)/$B42 -> 6.99950625 | H42: =SUMIF(TEJdata!$P:$P,$A42,TEJdata!$H:$H)/$B42 -> 8.99844375 | I42: =IF(SUMIF(TEJdata!$P:$P,$A42,TEJdata!$I:$I)=0,0,IFERROR((SUMIF(TEJdata!$P:$P,$A42,TEJdata!$I:$I)/SUMIF(TEJdata!$P:$P,$A42,TEJdata!$J:$J)-1)*100,"-")) -> 1.859243486 | J42: =IF(SUMIF(TEJdata!$P:$P,$A42,TEJdata!$K:$K)=0,0,IFERROR((SUMIF(TEJdata!$P:$P,$A42,TEJdata!$K:$K)/SUMIF(TEJdata!$P:$P,$A42,TEJdata!$L:$L)-1)*100,"-")) -> -1.555352242 | K42: =IF(SUMIF(TEJdata!$P:$P,$A42,TEJdata!$M:$M)=0,0,IFERROR((SUMIF(TEJdata!$P:$P,$A42,TEJdata!$M:$M)/SUMIF(TEJdata!$P:$P,$A42,TEJdata!$N:$N)-1)*100,"-")) -> 4.591961023
A43: M23A5B 工業電腦 | B43: =COUNTIF(TEJdata!$P:$P,$A43) -> 28 | C43: =IF(SUMIF(TEJdata!$P:$P,$A43,TEJdata!$B:$B)=0,"",IF(AND(SUMIF(TEJdata!$P:$P,$A43,TEJdata!$B:$B)>0,SUMIF(TEJdata!$P:$P,$A43,TEJdata!$D:$D)<0),(SUMIF(TEJdata!$P:$P,$A43,TEJdata!$B:$B)/ABS(SUMIF(TEJdata!$P:$P,$A43,TEJdata!$D:$D)-1))*100,(SUMIF(TEJdata!$P:$P,$A43,TEJdata!$B:$B)/SUMIF(TEJdata!$P:$P,$A43,TEJdata!$D:$D)-1)*100)) -> 17.97072181 | D43: =IF(SUMIF(TEJdata!$P:$P,$A43,TEJdata!$B:$B)=0,"",(SUMIF(TEJdata!$P:$P,$A43,TEJdata!$B:$B)/SUMIF(TEJdata!$P:$P,$A43,TEJdata!$C:$C)-1)*100) -> 41.9514 | E43: =IF(SUMIF(TEJdata!$P:$P,$A43,TEJdata!$E:$E)=0,"",(SUMIF(TEJdata!$P:$P,$A43,TEJdata!$E:$E)/SUMIF(TEJdata!$P:$P,$A43,TEJdata!$F:$F)-1)*100) -> 10.15429049 | F43: =SUMIF(TEJdata!$P:$P,$A43,TEJdata!$B:$B)/1000 -> 34383.664 | G43: =SUMIF(TEJdata!$P:$P,$A43,TEJdata!$G:$G)/$B43 -> 3.223328571 | H43: =SUMIF(TEJdata!$P:$P,$A43,TEJdata!$H:$H)/$B43 -> 2.761632143 | I43: =IF(SUMIF(TEJdata!$P:$P,$A43,TEJdata!$I:$I)=0,0,IFERROR((SUMIF(TEJdata!$P:$P,$A43,TEJdata!$I:$I)/SUMIF(TEJdata!$P:$P,$A43,TEJdata!$J:$J)-1)*100,"-")) -> 1.727962565 | J43: =IF(SUMIF(TEJdata!$P:$P,$A43,TEJdata!$K:$K)=0,0,IFERROR((SUMIF(TEJdata!$P:$P,$A43,TEJdata!$K:$K)/SUMIF(TEJdata!$P:$P,$A43,TEJdata!$L:$L)-1)*100,"-")) -> -2.399464306 | K43: =IF(SUMIF(TEJdata!$P:$P,$A43,TEJdata!$M:$M)=0,0,IFERROR((SUMIF(TEJdata!$P:$P,$A43,TEJdata!$M:$M)/SUMIF(TEJdata!$P:$P,$A43,TEJdata!$N:$N)-1)*100,"-")) -> 0.1316486586
A44: M23G5K MOSFET | B44: =COUNTIF(TEJdata!$P:$P,$A44) -> 8 | C44: =IF(SUMIF(TEJdata!$P:$P,$A44,TEJdata!$B:$B)=0,"",IF(AND(SUMIF(TEJdata!$P:$P,$A44,TEJdata!$B:$B)>0,SUMIF(TEJdata!$P:$P,$A44,TEJdata!$D:$D)<0),(SUMIF(TEJdata!$P:$P,$A44,TEJdata!$B:$B)/ABS(SUMIF(TEJdata!$P:$P,$A44,TEJdata!$D:$D)-1))*100,(SUMIF(TEJdata!$P:$P,$A44,TEJdata!$B:$B)/SUMIF(TEJdata!$P:$P,$A44,TEJdata!$D:$D)-1)*100)) -> 17.68693264 | D44: =IF(SUMIF(TEJdata!$P:$P,$A44,TEJdata!$B:$B)=0,"",(SUMIF(TEJdata!$P:$P,$A44,TEJdata!$B:$B)/SUMIF(TEJdata!$P:$P,$A44,TEJdata!$C:$C)-1)*100) -> 19.72504766 | E44: =IF(SUMIF(TEJdata!$P:$P,$A44,TEJdata!$E:$E)=0,"",(SUMIF(TEJdata!$P:$P,$A44,TEJdata!$E:$E)/SUMIF(TEJdata!$P:$P,$A44,TEJdata!$F:$F)-1)*100) -> 11.49253681 | F44: =SUMIF(TEJdata!$P:$P,$A44,TEJdata!$B:$B)/1000 -> 1514.632 | G44: =SUMIF(TEJdata!$P:$P,$A44,TEJdata!$G:$G)/$B44 -> 6.3279125 | H44: =SUMIF(TEJdata!$P:$P,$A44,TEJdata!$H:$H)/$B44 -> 15.3195375 | I44: =IF(SUMIF(TEJdata!$P:$P,$A44,TEJdata!$I:$I)=0,0,IFERROR((SUMIF(TEJdata!$P:$P,$A44,TEJdata!$I:$I)/SUMIF(TEJdata!$P:$P,$A44,TEJdata!$J:$J)-1)*100,"-")) -> 11.94174421 | J44: =IF(SUMIF(TEJdata!$P:$P,$A44,TEJdata!$K:$K)=0,0,IFERROR((SUMIF(TEJdata!$P:$P,$A44,TEJdata!$K:$K)/SUMIF(TEJdata!$P:$P,$A44,TEJdata!$L:$L)-1)*100,"-")) -> -2.43902439 | K44: =IF(SUMIF(TEJdata!$P:$P,$A44,TEJdata!$M:$M)=0,0,IFERROR((SUMIF(TEJdata!$P:$P,$A44,TEJdata!$M:$M)/SUMIF(TEJdata!$P:$P,$A44,TEJdata!$N:$N)-1)*100,"-")) -> -1.446444919
A45: M23X9 應用軟體 | B45: =COUNTIF(TEJdata!$P:$P,$A45) -> 18 | C45: =IF(SUMIF(TEJdata!$P:$P,$A45,TEJdata!$B:$B)=0,"",IF(AND(SUMIF(TEJdata!$P:$P,$A45,TEJdata!$B:$B)>0,SUMIF(TEJdata!$P:$P,$A45,TEJdata!$D:$D)<0),(SUMIF(TEJdata!$P:$P,$A45,TEJdata!$B:$B)/ABS(SUMIF(TEJdata!$P:$P,$A45,TEJdata!$D:$D)-1))*100,(SUMIF(TEJdata!$P:$P,$A45,TEJdata!$B:$B)/SUMIF(TEJdata!$P:$P,$A45,TEJdata!$D:$D)-1)*100)) -> 17.41026657 | D45: =IF(SUMIF(TEJdata!$P:$P,$A45,TEJdata!$B:$B)=0,"",(SUMIF(TEJdata!$P:$P,$A45,TEJdata!$B:$B)/SUMIF(TEJdata!$P:$P,$A45,TEJdata!$C:$C)-1)*100) -> 23.53114429 | E45: =IF(SUMIF(TEJdata!$P:$P,$A45,TEJdata!$E:$E)=0,"",(SUMIF(TEJdata!$P:$P,$A45,TEJdata!$E:$E)/SUMIF(TEJdata!$P:$P,$A45,TEJdata!$F:$F)-1)*100) -> 6.881349096 | F45: =SUMIF(TEJdata!$P:$P,$A45,TEJdata!$B:$B)/1000 -> 4370.333 | G45: =SUMIF(TEJdata!$P:$P,$A45,TEJdata!$G:$G)/$B45 -> 0.8754333333 | H45: =SUMIF(TEJdata!$P:$P,$A45,TEJdata!$H:$H)/$B45 -> 1.335944444 | I45: =IF(SUMIF(TEJdata!$P:$P,$A45,TEJdata!$I:$I)=0,0,IFERROR((SUMIF(TEJdata!$P:$P,$A45,TEJdata!$I:$I)/SUMIF(TEJdata!$P:$P,$A45,TEJdata!$J:$J)-1)*100,"-")) -> -0.1630789302 | J45: =IF(SUMIF(TEJdata!$P:$P,$A45,TEJdata!$K:$K)=0,0,IFERROR((SUMIF(TEJdata!$P:$P,$A45,TEJdata!$K:$K)/SUMIF(TEJdata!$P:$P,$A45,TEJdata!$L:$L)-1)*100,"-")) -> 0.1199040767 | K45: =IF(SUMIF(TEJdata!$P:$P,$A45,TEJdata!$M:$M)=0,0,IFERROR((SUMIF(TEJdata!$P:$P,$A45,TEJdata!$M:$M)/SUMIF(TEJdata!$P:$P,$A45,TEJdata!$N:$N)-1)*100,"-")) -> -1.164501103
A46: M23X2 遊戲軟體 | B46: =COUNTIF(TEJdata!$P:$P,$A46) -> 14 | C46: =IF(SUMIF(TEJdata!$P:$P,$A46,TEJdata!$B:$B)=0,"",IF(AND(SUMIF(TEJdata!$P:$P,$A46,TEJdata!$B:$B)>0,SUMIF(TEJdata!$P:$P,$A46,TEJdata!$D:$D)<0),(SUMIF(TEJdata!$P:$P,$A46,TEJdata!$B:$B)/ABS(SUMIF(TEJdata!$P:$P,$A46,TEJdata!$D:$D)-1))*100,(SUMIF(TEJdata!$P:$P,$A46,TEJdata!$B:$B)/SUMIF(TEJdata!$P:$P,$A46,TEJdata!$D:$D)-1)*100)) -> 17.11181727 | D46: =IF(SUMIF(TEJdata!$P:$P,$A46,TEJdata!$B:$B)=0,"",(SUMIF(TEJdata!$P:$P,$A46,TEJdata!$B:$B)/SUMIF(TEJdata!$P:$P,$A46,TEJdata!$C:$C)-1)*100) -> -2.13464693 | E46: =IF(SUMIF(TEJdata!$P:$P,$A46,TEJdata!$E:$E)=0,"",(SUMIF(TEJdata!$P:$P,$A46,TEJdata!$E:$E)/SUMIF(TEJdata!$P:$P,$A46,TEJdata!$F:$F)-1)*100) -> 20.94346683 | F46: =SUMIF(TEJdata!$P:$P,$A46,TEJdata!$B:$B)/1000 -> 5013.277 | G46: =SUMIF(TEJdata!$P:$P,$A46,TEJdata!$G:$G)/$B46 -> 0.3581785714 | H46: =SUMIF(TEJdata!$P:$P,$A46,TEJdata!$H:$H)/$B46 -> 1.65015 | I46: =IF(SUMIF(TEJdata!$P:$P,$A46,TEJdata!$I:$I)=0,0,IFERROR((SUMIF(TEJdata!$P:$P,$A46,TEJdata!$I:$I)/SUMIF(TEJdata!$P:$P,$A46,TEJdata!$J:$J)-1)*100,"-")) -> 0.2081246464 | J46: =IF(SUMIF(TEJdata!$P:$P,$A46,TEJdata!$K:$K)=0,0,IFERROR((SUMIF(TEJdata!$P:$P,$A46,TEJdata!$K:$K)/SUMIF(TEJdata!$P:$P,$A46,TEJdata!$L:$L)-1)*100,"-")) -> 1.076861717 | K46: =IF(SUMIF(TEJdata!$P:$P,$A46,TEJdata!$M:$M)=0,0,IFERROR((SUMIF(TEJdata!$P:$P,$A46,TEJdata!$M:$M)/SUMIF(TEJdata!$P:$P,$A46,TEJdata!$N:$N)-1)*100,"-")) -> 0.7789807235
A47: M23G2 IC封測 | B47: =COUNTIF(TEJdata!$P:$P,$A47) -> 20 | C47: =IF(SUMIF(TEJdata!$P:$P,$A47,TEJdata!$B:$B)=0,"",IF(AND(SUMIF(TEJdata!$P:$P,$A47,TEJdata!$B:$B)>0,SUMIF(TEJdata!$P:$P,$A47,TEJdata!$D:$D)<0),(SUMIF(TEJdata!$P:$P,$A47,TEJdata!$B:$B)/ABS(SUMIF(TEJdata!$P:$P,$A47,TEJdata!$D:$D)-1))*100,(SUMIF(TEJdata!$P:$P,$A47,TEJdata!$B:$B)/SUMIF(TEJdata!$P:$P,$A47,TEJdata!$D:$D)-1)*100)) -> 16.94563616 | D47: =IF(SUMIF(TEJdata!$P:$P,$A47,TEJdata!$B:$B)=0,"",(SUMIF(TEJdata!$P:$P,$A47,TEJdata!$B:$B)/SUMIF(TEJdata!$P:$P,$A47,TEJdata!$C:$C)-1)*100) -> 17.15762512 | E47: =IF(SUMIF(TEJdata!$P:$P,$A47,TEJdata!$E:$E)=0,"",(SUMIF(TEJdata!$P:$P,$A47,TEJdata!$E:$E)/SUMIF(TEJdata!$P:$P,$A47,TEJdata!$F:$F)-1)*100) -> 19.55873155 | F47: =SUMIF(TEJdata!$P:$P,$A47,TEJdata!$B:$B)/1000 -> 88854.795 | G47: =SUMIF(TEJdata!$P:$P,$A47,TEJdata!$G:$G)/$B47 -> 10.5666 | H47: =SUMIF(TEJdata!$P:$P,$A47,TEJdata!$H:$H)/$B47 -> 21.094625 | I47: =IF(SUMIF(TEJdata!$P:$P,$A47,TEJdata!$I:$I)=0,0,IFERROR((SUMIF(TEJdata!$P:$P,$A47,TEJdata!$I:$I)/SUMIF(TEJdata!$P:$P,$A47,TEJdata!$J:$J)-1)*100,"-")) -> -0.3957463815 | J47: =IF(SUMIF(TEJdata!$P:$P,$A47,TEJdata!$K:$K)=0,0,IFERROR((SUMIF(TEJdata!$P:$P,$A47,TEJdata!$K:$K)/SUMIF(TEJdata!$P:$P,$A47,TEJdata!$L:$L)-1)*100,"-")) -> -0.5296878419 | K47: =IF(SUMIF(TEJdata!$P:$P,$A47,TEJdata!$M:$M)=0,0,IFERROR((SUMIF(TEJdata!$P:$P,$A47,TEJdata!$M:$M)/SUMIF(TEJdata!$P:$P,$A47,TEJdata!$N:$N)-1)*100,"-")) -> 14.90826743
A48: M17Z 其他化學 | B48: =COUNTIF(TEJdata!$P:$P,$A48) -> 18 | C48: =IF(SUMIF(TEJdata!$P:$P,$A48,TEJdata!$B:$B)=0,"",IF(AND(SUMIF(TEJdata!$P:$P,$A48,TEJdata!$B:$B)>0,SUMIF(TEJdata!$P:$P,$A48,TEJdata!$D:$D)<0),(SUMIF(TEJdata!$P:$P,$A48,TEJdata!$B:$B)/ABS(SUMIF(TEJdata!$P:$P,$A48,TEJdata!$D:$D)-1))*100,(SUMIF(TEJdata!$P:$P,$A48,TEJdata!$B:$B)/SUMIF(TEJdata!$P:$P,$A48,TEJdata!$D:$D)-1)*100)) -> 16.32896609 | D48: =IF(SUMIF(TEJdata!$P:$P,$A48,TEJdata!$B:$B)=0,"",(SUMIF(TEJdata!$P:$P,$A48,TEJdata!$B:$B)/SUMIF(TEJdata!$P:$P,$A48,TEJdata!$C:$C)-1)*100) -> 31.43094553 | E48: =IF(SUMIF(TEJdata!$P:$P,$A48,TEJdata!$E:$E)=0,"",(SUMIF(TEJdata!$P:$P,$A48,TEJdata!$E:$E)/SUMIF(TEJdata!$P:$P,$A48,TEJdata!$F:$F)-1)*100) -> 8.361546694 | F48: =SUMIF(TEJdata!$P:$P,$A48,TEJdata!$B:$B)/1000 -> 8035.136 | G48: =SUMIF(TEJdata!$P:$P,$A48,TEJdata!$G:$G)/$B48 -> 5.557055556 | H48: =SUMIF(TEJdata!$P:$P,$A48,TEJdata!$H:$H)/$B48 -> 7.774472222 | I48: =IF(SUMIF(TEJdata!$P:$P,$A48,TEJdata!$I:$I)=0,0,IFERROR((SUMIF(TEJdata!$P:$P,$A48,TEJdata!$I:$I)/SUMIF(TEJdata!$P:$P,$A48,TEJdata!$J:$J)-1)*100,"-")) -> 0.7828816433 | J48: =IF(SUMIF(TEJdata!$P:$P,$A48,TEJdata!$K:$K)=0,0,IFERROR((SUMIF(TEJdata!$P:$P,$A48,TEJdata!$K:$K)/SUMIF(TEJdata!$P:$P,$A48,TEJdata!$L:$L)-1)*100,"-")) -> -1.594342823 | K48: =IF(SUMIF(TEJdata!$P:$P,$A48,TEJdata!$M:$M)=0,0,IFERROR((SUMIF(TEJdata!$P:$P,$A48,TEJdata!$M:$M)/SUMIF(TEJdata!$P:$P,$A48,TEJdata!$N:$N)-1)*100,"-")) -> -0.575358121
A49: M23D5 被動元件 | B49: =COUNTIF(TEJdata!$P:$P,$A49) -> 33 | C49: =IF(SUMIF(TEJdata!$P:$P,$A49,TEJdata!$B:$B)=0,"",IF(AND(SUMIF(TEJdata!$P:$P,$A49,TEJdata!$B:$B)>0,SUMIF(TEJdata!$P:$P,$A49,TEJdata!$D:$D)<0),(SUMIF(TEJdata!$P:$P,$A49,TEJdata!$B:$B)/ABS(SUMIF(TEJdata!$P:$P,$A49,TEJdata!$D:$D)-1))*100,(SUMIF(TEJdata!$P:$P,$A49,TEJdata!$B:$B)/SUMIF(TEJdata!$P:$P,$A49,TEJdata!$D:$D)-1)*100)) -> 15.8714018 | D49: =IF(SUMIF(TEJdata!$P:$P,$A49,TEJdata!$B:$B)=0,"",(SUMIF(TEJdata!$P:$P,$A49,TEJdata!$B:$B)/SUMIF(TEJdata!$P:$P,$A49,TEJdata!$C:$C)-1)*100) -> 26.21196593 | E49: =IF(SUMIF(TEJdata!$P:$P,$A49,TEJdata!$E:$E)=0,"",(SUMIF(TEJdata!$P:$P,$A49,TEJdata!$E:$E)/SUMIF(TEJdata!$P:$P,$A49,TEJdata!$F:$F)-1)*100) -> 15.45930193 | F49: =SUMIF(TEJdata!$P:$P,$A49,TEJdata!$B:$B)/1000 -> 26871.512 | G49: =SUMIF(TEJdata!$P:$P,$A49,TEJdata!$G:$G)/$B49 -> 9.645315152 | H49: =SUMIF(TEJdata!$P:$P,$A49,TEJdata!$H:$H)/$B49 -> 12.00538182 | I49: =IF(SUMIF(TEJdata!$P:$P,$A49,TEJdata!$I:$I)=0,0,IFERROR((SUMIF(TEJdata!$P:$P,$A49,TEJdata!$I:$I)/SUMIF(TEJdata!$P:$P,$A49,TEJdata!$J:$J)-1)*100,"-")) -> 4.910356045 | J49: =IF(SUMIF(TEJdata!$P:$P,$A49,TEJdata!$K:$K)=0,0,IFERROR((SUMIF(TEJdata!$P:$P,$A49,TEJdata!$K:$K)/SUMIF(TEJdata!$P:$P,$A49,TEJdata!$L:$L)-1)*100,"-")) -> -3.630135598 | K49: =IF(SUMIF(TEJdata!$P:$P,$A49,TEJdata!$M:$M)=0,0,IFERROR((SUMIF(TEJdata!$P:$P,$A49,TEJdata!$M:$M)/SUMIF(TEJdata!$P:$P,$A49,TEJdata!$N:$N)-1)*100,"-")) -> 1.726841212
A50: M23E2 數位服務 | B50: =COUNTIF(TEJdata!$P:$P,$A50) -> 9 | C50: =IF(SUMIF(TEJdata!$P:$P,$A50,TEJdata!$B:$B)=0,"",IF(AND(SUMIF(TEJdata!$P:$P,$A50,TEJdata!$B:$B)>0,SUMIF(TEJdata!$P:$P,$A50,TEJdata!$D:$D)<0),(SUMIF(TEJdata!$P:$P,$A50,TEJdata!$B:$B)/ABS(SUMIF(TEJdata!$P:$P,$A50,TEJdata!$D:$D)-1))*100,(SUMIF(TEJdata!$P:$P,$A50,TEJdata!$B:$B)/SUMIF(TEJdata!$P:$P,$A50,TEJdata!$D:$D)-1)*100)) -> 14.68905786 | D50: =IF(SUMIF(TEJdata!$P:$P,$A50,TEJdata!$B:$B)=0,"",(SUMIF(TEJdata!$P:$P,$A50,TEJdata!$B:$B)/SUMIF(TEJdata!$P:$P,$A50,TEJdata!$C:$C)-1)*100) -> 15.55191852 | E50: =IF(SUMIF(TEJdata!$P:$P,$A50,TEJdata!$E:$E)=0,"",(SUMIF(TEJdata!$P:$P,$A50,TEJdata!$E:$E)/SUMIF(TEJdata!$P:$P,$A50,TEJdata!$F:$F)-1)*100) -> 14.51338027 | F50: =SUMIF(TEJdata!$P:$P,$A50,TEJdata!$B:$B)/1000 -> 2143.48 | G50: =SUMIF(TEJdata!$P:$P,$A50,TEJdata!$G:$G)/$B50 -> 0.1685111111 | H50: =SUMIF(TEJdata!$P:$P,$A50,TEJdata!$H:$H)/$B50 -> -0.7237555556 | I50: =IF(SUMIF(TEJdata!$P:$P,$A50,TEJdata!$I:$I)=0,0,IFERROR((SUMIF(TEJdata!$P:$P,$A50,TEJdata!$I:$I)/SUMIF(TEJdata!$P:$P,$A50,TEJdata!$J:$J)-1)*100,"-")) -> -0.4647886114 | J50: =IF(SUMIF(TEJdata!$P:$P,$A50,TEJdata!$K:$K)=0,0,IFERROR((SUMIF(TEJdata!$P:$P,$A50,TEJdata!$K:$K)/SUMIF(TEJdata!$P:$P,$A50,TEJdata!$L:$L)-1)*100,"-")) -> 0 | K50: =IF(SUMIF(TEJdata!$P:$P,$A50,TEJdata!$M:$M)=0,0,IFERROR((SUMIF(TEJdata!$P:$P,$A50,TEJdata!$M:$M)/SUMIF(TEJdata!$P:$P,$A50,TEJdata!$N:$N)-1)*100,"-")) -> 1.186500264
A51: M26A1 散裝輪 | B51: =COUNTIF(TEJdata!$P:$P,$A51) -> 8 | C51: =IF(SUMIF(TEJdata!$P:$P,$A51,TEJdata!$B:$B)=0,"",IF(AND(SUMIF(TEJdata!$P:$P,$A51,TEJdata!$B:$B)>0,SUMIF(TEJdata!$P:$P,$A51,TEJdata!$D:$D)<0),(SUMIF(TEJdata!$P:$P,$A51,TEJdata!$B:$B)/ABS(SUMIF(TEJdata!$P:$P,$A51,TEJdata!$D:$D)-1))*100,(SUMIF(TEJdata!$P:$P,$A51,TEJdata!$B:$B)/SUMIF(TEJdata!$P:$P,$A51,TEJdata!$D:$D)-1)*100)) -> 14.35256651 | D51: =IF(SUMIF(TEJdata!$P:$P,$A51,TEJdata!$B:$B)=0,"",(SUMIF(TEJdata!$P:$P,$A51,TEJdata!$B:$B)/SUMIF(TEJdata!$P:$P,$A51,TEJdata!$C:$C)-1)*100) -> 21.89142169 | E51: =IF(SUMIF(TEJdata!$P:$P,$A51,TEJdata!$E:$E)=0,"",(SUMIF(TEJdata!$P:$P,$A51,TEJdata!$E:$E)/SUMIF(TEJdata!$P:$P,$A51,TEJdata!$F:$F)-1)*100) -> 10.10209758 | F51: =SUMIF(TEJdata!$P:$P,$A51,TEJdata!$B:$B)/1000 -> 5195.116 | G51: =SUMIF(TEJdata!$P:$P,$A51,TEJdata!$G:$G)/$B51 -> 1.0223125 | H51: =SUMIF(TEJdata!$P:$P,$A51,TEJdata!$H:$H)/$B51 -> -0.5165375 | I51: =IF(SUMIF(TEJdata!$P:$P,$A51,TEJdata!$I:$I)=0,0,IFERROR((SUMIF(TEJdata!$P:$P,$A51,TEJdata!$I:$I)/SUMIF(TEJdata!$P:$P,$A51,TEJdata!$J:$J)-1)*100,"-")) -> 0.6805466943 | J51: =IF(SUMIF(TEJdata!$P:$P,$A51,TEJdata!$K:$K)=0,0,IFERROR((SUMIF(TEJdata!$P:$P,$A51,TEJdata!$K:$K)/SUMIF(TEJdata!$P:$P,$A51,TEJdata!$L:$L)-1)*100,"-")) -> -0.348211041 | K51: =IF(SUMIF(TEJdata!$P:$P,$A51,TEJdata!$M:$M)=0,0,IFERROR((SUMIF(TEJdata!$P:$P,$A51,TEJdata!$M:$M)/SUMIF(TEJdata!$P:$P,$A51,TEJdata!$N:$N)-1)*100,"-")) -> -1.586981825
A52: M23Z 其他電子 | B52: =COUNTIF(TEJdata!$P:$P,$A52) -> 13 | C52: =IF(SUMIF(TEJdata!$P:$P,$A52,TEJdata!$B:$B)=0,"",IF(AND(SUMIF(TEJdata!$P:$P,$A52,TEJdata!$B:$B)>0,SUMIF(TEJdata!$P:$P,$A52,TEJdata!$D:$D)<0),(SUMIF(TEJdata!$P:$P,$A52,TEJdata!$B:$B)/ABS(SUMIF(TEJdata!$P:$P,$A52,TEJdata!$D:$D)-1))*100,(SUMIF(TEJdata!$P:$P,$A52,TEJdata!$B:$B)/SUMIF(TEJdata!$P:$P,$A52,TEJdata!$D:$D)-1)*100)) -> 14.22634766 | D52: =IF(SUMIF(TEJdata!$P:$P,$A52,TEJdata!$B:$B)=0,"",(SUMIF(TEJdata!$P:$P,$A52,TEJdata!$B:$B)/SUMIF(TEJdata!$P:$P,$A52,TEJdata!$C:$C)-1)*100) -> 24.49327019 | E52: =IF(SUMIF(TEJdata!$P:$P,$A52,TEJdata!$E:$E)=0,"",(SUMIF(TEJdata!$P:$P,$A52,TEJdata!$E:$E)/SUMIF(TEJdata!$P:$P,$A52,TEJdata!$F:$F)-1)*100) -> 12.70323666 | F52: =SUMIF(TEJdata!$P:$P,$A52,TEJdata!$B:$B)/1000 -> 2481.243 | G52: =SUMIF(TEJdata!$P:$P,$A52,TEJdata!$G:$G)/$B52 -> 11.54706154 | H52: =SUMIF(TEJdata!$P:$P,$A52,TEJdata!$H:$H)/$B52 -> 17.67576923 | I52: =IF(SUMIF(TEJdata!$P:$P,$A52,TEJdata!$I:$I)=0,0,IFERROR((SUMIF(TEJdata!$P:$P,$A52,TEJdata!$I:$I)/SUMIF(TEJdata!$P:$P,$A52,TEJdata!$J:$J)-1)*100,"-")) -> 2.978087065 | J52: =IF(SUMIF(TEJdata!$P:$P,$A52,TEJdata!$K:$K)=0,0,IFERROR((SUMIF(TEJdata!$P:$P,$A52,TEJdata!$K:$K)/SUMIF(TEJdata!$P:$P,$A52,TEJdata!$L:$L)-1)*100,"-")) -> -13.49572087 | K52: =IF(SUMIF(TEJdata!$P:$P,$A52,TEJdata!$M:$M)=0,0,IFERROR((SUMIF(TEJdata!$P:$P,$A52,TEJdata!$M:$M)/SUMIF(TEJdata!$P:$P,$A52,TEJdata!$N:$N)-1)*100,"-")) -> 13.23988552
A53: M13A1 泛用塑膠 | B53: =COUNTIF(TEJdata!$P:$P,$A53) -> 9 | C53: =IF(SUMIF(TEJdata!$P:$P,$A53,TEJdata!$B:$B)=0,"",IF(AND(SUMIF(TEJdata!$P:$P,$A53,TEJdata!$B:$B)>0,SUMIF(TEJdata!$P:$P,$A53,TEJdata!$D:$D)<0),(SUMIF(TEJdata!$P:$P,$A53,TEJdata!$B:$B)/ABS(SUMIF(TEJdata!$P:$P,$A53,TEJdata!$D:$D)-1))*100,(SUMIF(TEJdata!$P:$P,$A53,TEJdata!$B:$B)/SUMIF(TEJdata!$P:$P,$A53,TEJdata!$D:$D)-1)*100)) -> 14.13075926 | D53: =IF(SUMIF(TEJdata!$P:$P,$A53,TEJdata!$B:$B)=0,"",(SUMIF(TEJdata!$P:$P,$A53,TEJdata!$B:$B)/SUMIF(TEJdata!$P:$P,$A53,TEJdata!$C:$C)-1)*100) -> 49.60777729 | E53: =IF(SUMIF(TEJdata!$P:$P,$A53,TEJdata!$E:$E)=0,"",(SUMIF(TEJdata!$P:$P,$A53,TEJdata!$E:$E)/SUMIF(TEJdata!$P:$P,$A53,TEJdata!$F:$F)-1)*100) -> 0.02251364314 | F53: =SUMIF(TEJdata!$P:$P,$A53,TEJdata!$B:$B)/1000 -> 89471.866 | G53: =SUMIF(TEJdata!$P:$P,$A53,TEJdata!$G:$G)/$B53 -> -4.829022222 | H53: =SUMIF(TEJdata!$P:$P,$A53,TEJdata!$H:$H)/$B53 -> 13.85711111 | I53: =IF(SUMIF(TEJdata!$P:$P,$A53,TEJdata!$I:$I)=0,0,IFERROR((SUMIF(TEJdata!$P:$P,$A53,TEJdata!$I:$I)/SUMIF(TEJdata!$P:$P,$A53,TEJdata!$J:$J)-1)*100,"-")) -> 0.7748753778 | J53: =IF(SUMIF(TEJdata!$P:$P,$A53,TEJdata!$K:$K)=0,0,IFERROR((SUMIF(TEJdata!$P:$P,$A53,TEJdata!$K:$K)/SUMIF(TEJdata!$P:$P,$A53,TEJdata!$L:$L)-1)*100,"-")) -> -1.063873289 | K53: =IF(SUMIF(TEJdata!$P:$P,$A53,TEJdata!$M:$M)=0,0,IFERROR((SUMIF(TEJdata!$P:$P,$A53,TEJdata!$M:$M)/SUMIF(TEJdata!$P:$P,$A53,TEJdata!$N:$N)-1)*100,"-")) -> -0.9089797416
A54: M20A6 不鏽鋼 | B54: =COUNTIF(TEJdata!$P:$P,$A54) -> 9 | C54: =IF(SUMIF(TEJdata!$P:$P,$A54,TEJdata!$B:$B)=0,"",IF(AND(SUMIF(TEJdata!$P:$P,$A54,TEJdata!$B:$B)>0,SUMIF(TEJdata!$P:$P,$A54,TEJdata!$D:$D)<0),(SUMIF(TEJdata!$P:$P,$A54,TEJdata!$B:$B)/ABS(SUMIF(TEJdata!$P:$P,$A54,TEJdata!$D:$D)-1))*100,(SUMIF(TEJdata!$P:$P,$A54,TEJdata!$B:$B)/SUMIF(TEJdata!$P:$P,$A54,TEJdata!$D:$D)-1)*100)) -> 13.6299642 | D54: =IF(SUMIF(TEJdata!$P:$P,$A54,TEJdata!$B:$B)=0,"",(SUMIF(TEJdata!$P:$P,$A54,TEJdata!$B:$B)/SUMIF(TEJdata!$P:$P,$A54,TEJdata!$C:$C)-1)*100) -> 23.90831485 | E54: =IF(SUMIF(TEJdata!$P:$P,$A54,TEJdata!$E:$E)=0,"",(SUMIF(TEJdata!$P:$P,$A54,TEJdata!$E:$E)/SUMIF(TEJdata!$P:$P,$A54,TEJdata!$F:$F)-1)*100) -> 11.7361847 | F54: =SUMIF(TEJdata!$P:$P,$A54,TEJdata!$B:$B)/1000 -> 16456.013 | G54: =SUMIF(TEJdata!$P:$P,$A54,TEJdata!$G:$G)/$B54 -> -0.6499888889 | H54: =SUMIF(TEJdata!$P:$P,$A54,TEJdata!$H:$H)/$B54 -> -0.2802666667 | I54: =IF(SUMIF(TEJdata!$P:$P,$A54,TEJdata!$I:$I)=0,0,IFERROR((SUMIF(TEJdata!$P:$P,$A54,TEJdata!$I:$I)/SUMIF(TEJdata!$P:$P,$A54,TEJdata!$J:$J)-1)*100,"-")) -> 2.536681955 | J54: =IF(SUMIF(TEJdata!$P:$P,$A54,TEJdata!$K:$K)=0,0,IFERROR((SUMIF(TEJdata!$P:$P,$A54,TEJdata!$K:$K)/SUMIF(TEJdata!$P:$P,$A54,TEJdata!$L:$L)-1)*100,"-")) -> 0.5093990039 | K54: =IF(SUMIF(TEJdata!$P:$P,$A54,TEJdata!$M:$M)=0,0,IFERROR((SUMIF(TEJdata!$P:$P,$A54,TEJdata!$M:$M)/SUMIF(TEJdata!$P:$P,$A54,TEJdata!$N:$N)-1)*100,"-")) -> 2.092143717
A55: M23A2 泛用電腦 | B55: =COUNTIF(TEJdata!$P:$P,$A55) -> 5 | C55: =IF(SUMIF(TEJdata!$P:$P,$A55,TEJdata!$B:$B)=0,"",IF(AND(SUMIF(TEJdata!$P:$P,$A55,TEJdata!$B:$B)>0,SUMIF(TEJdata!$P:$P,$A55,TEJdata!$D:$D)<0),(SUMIF(TEJdata!$P:$P,$A55,TEJdata!$B:$B)/ABS(SUMIF(TEJdata!$P:$P,$A55,TEJdata!$D:$D)-1))*100,(SUMIF(TEJdata!$P:$P,$A55,TEJdata!$B:$B)/SUMIF(TEJdata!$P:$P,$A55,TEJdata!$D:$D)-1)*100)) -> 13.44434397 | D55: =IF(SUMIF(TEJdata!$P:$P,$A55,TEJdata!$B:$B)=0,"",(SUMIF(TEJdata!$P:$P,$A55,TEJdata!$B:$B)/SUMIF(TEJdata!$P:$P,$A55,TEJdata!$C:$C)-1)*100) -> 4.838967173 | E55: =IF(SUMIF(TEJdata!$P:$P,$A55,TEJdata!$E:$E)=0,"",(SUMIF(TEJdata!$P:$P,$A55,TEJdata!$E:$E)/SUMIF(TEJdata!$P:$P,$A55,TEJdata!$F:$F)-1)*100) -> 59.53034408 | F55: =SUMIF(TEJdata!$P:$P,$A55,TEJdata!$B:$B)/1000 -> 101951.42 | G55: =SUMIF(TEJdata!$P:$P,$A55,TEJdata!$G:$G)/$B55 -> 8.55104 | H55: =SUMIF(TEJdata!$P:$P,$A55,TEJdata!$H:$H)/$B55 -> 8.48982 | I55: =IF(SUMIF(TEJdata!$P:$P,$A55,TEJdata!$I:$I)=0,0,IFERROR((SUMIF(TEJdata!$P:$P,$A55,TEJdata!$I:$I)/SUMIF(TEJdata!$P:$P,$A55,TEJdata!$J:$J)-1)*100,"-")) -> 0.4424351187 | J55: =IF(SUMIF(TEJdata!$P:$P,$A55,TEJdata!$K:$K)=0,0,IFERROR((SUMIF(TEJdata!$P:$P,$A55,TEJdata!$K:$K)/SUMIF(TEJdata!$P:$P,$A55,TEJdata!$L:$L)-1)*100,"-")) -> -0.6812227074 | K55: =IF(SUMIF(TEJdata!$P:$P,$A55,TEJdata!$M:$M)=0,0,IFERROR((SUMIF(TEJdata!$P:$P,$A55,TEJdata!$M:$M)/SUMIF(TEJdata!$P:$P,$A55,TEJdata!$N:$N)-1)*100,"-")) -> 1.750031029
A56: M17G4 輔助與彌補 | B56: =COUNTIF(TEJdata!$P:$P,$A56) -> 14 | C56: =IF(SUMIF(TEJdata!$P:$P,$A56,TEJdata!$B:$B)=0,"",IF(AND(SUMIF(TEJdata!$P:$P,$A56,TEJdata!$B:$B)>0,SUMIF(TEJdata!$P:$P,$A56,TEJdata!$D:$D)<0),(SUMIF(TEJdata!$P:$P,$A56,TEJdata!$B:$B)/ABS(SUMIF(TEJdata!$P:$P,$A56,TEJdata!$D:$D)-1))*100,(SUMIF(TEJdata!$P:$P,$A56,TEJdata!$B:$B)/SUMIF(TEJdata!$P:$P,$A56,TEJdata!$D:$D)-1)*100)) -> 13.1228019 | D56: =IF(SUMIF(TEJdata!$P:$P,$A56,TEJdata!$B:$B)=0,"",(SUMIF(TEJdata!$P:$P,$A56,TEJdata!$B:$B)/SUMIF(TEJdata!$P:$P,$A56,TEJdata!$C:$C)-1)*100) -> 23.19181532 | E56: =IF(SUMIF(TEJdata!$P:$P,$A56,TEJdata!$E:$E)=0,"",(SUMIF(TEJdata!$P:$P,$A56,TEJdata!$E:$E)/SUMIF(TEJdata!$P:$P,$A56,TEJdata!$F:$F)-1)*100) -> 10.9316191 | F56: =SUMIF(TEJdata!$P:$P,$A56,TEJdata!$B:$B)/1000 -> 3025.113 | G56: =SUMIF(TEJdata!$P:$P,$A56,TEJdata!$G:$G)/$B56 -> 0.3137928571 | H56: =SUMIF(TEJdata!$P:$P,$A56,TEJdata!$H:$H)/$B56 -> -1.515778571 | I56: =IF(SUMIF(TEJdata!$P:$P,$A56,TEJdata!$I:$I)=0,0,IFERROR((SUMIF(TEJdata!$P:$P,$A56,TEJdata!$I:$I)/SUMIF(TEJdata!$P:$P,$A56,TEJdata!$J:$J)-1)*100,"-")) -> 1.063054988 | J56: =IF(SUMIF(TEJdata!$P:$P,$A56,TEJdata!$K:$K)=0,0,IFERROR((SUMIF(TEJdata!$P:$P,$A56,TEJdata!$K:$K)/SUMIF(TEJdata!$P:$P,$A56,TEJdata!$L:$L)-1)*100,"-")) -> -0.1492537313 | K56: =IF(SUMIF(TEJdata!$P:$P,$A56,TEJdata!$M:$M)=0,0,IFERROR((SUMIF(TEJdata!$P:$P,$A56,TEJdata!$M:$M)/SUMIF(TEJdata!$P:$P,$A56,TEJdata!$N:$N)-1)*100,"-")) -> -0.4128271286
A57: M23C8A LCD面板 | B57: =COUNTIF(TEJdata!$P:$P,$A57) -> 6 | C57: =IF(SUMIF(TEJdata!$P:$P,$A57,TEJdata!$B:$B)=0,"",IF(AND(SUMIF(TEJdata!$P:$P,$A57,TEJdata!$B:$B)>0,SUMIF(TEJdata!$P:$P,$A57,TEJdata!$D:$D)<0),(SUMIF(TEJdata!$P:$P,$A57,TEJdata!$B:$B)/ABS(SUMIF(TEJdata!$P:$P,$A57,TEJdata!$D:$D)-1))*100,(SUMIF(TEJdata!$P:$P,$A57,TEJdata!$B:$B)/SUMIF(TEJdata!$P:$P,$A57,TEJdata!$D:$D)-1)*100)) -> 12.91128917 | D57: =IF(SUMIF(TEJdata!$P:$P,$A57,TEJdata!$B:$B)=0,"",(SUMIF(TEJdata!$P:$P,$A57,TEJdata!$B:$B)/SUMIF(TEJdata!$P:$P,$A57,TEJdata!$C:$C)-1)*100) -> 27.50844828 | E57: =IF(SUMIF(TEJdata!$P:$P,$A57,TEJdata!$E:$E)=0,"",(SUMIF(TEJdata!$P:$P,$A57,TEJdata!$E:$E)/SUMIF(TEJdata!$P:$P,$A57,TEJdata!$F:$F)-1)*100) -> 5.713679404 | F57: =SUMIF(TEJdata!$P:$P,$A57,TEJdata!$B:$B)/1000 -> 55650.63 | G57: =SUMIF(TEJdata!$P:$P,$A57,TEJdata!$G:$G)/$B57 -> 2.103666667 | H57: =SUMIF(TEJdata!$P:$P,$A57,TEJdata!$H:$H)/$B57 -> -3.152283333 | I57: =IF(SUMIF(TEJdata!$P:$P,$A57,TEJdata!$I:$I)=0,0,IFERROR((SUMIF(TEJdata!$P:$P,$A57,TEJdata!$I:$I)/SUMIF(TEJdata!$P:$P,$A57,TEJdata!$J:$J)-1)*100,"-")) -> 0.08746408935 | J57: =IF(SUMIF(TEJdata!$P:$P,$A57,TEJdata!$K:$K)=0,0,IFERROR((SUMIF(TEJdata!$P:$P,$A57,TEJdata!$K:$K)/SUMIF(TEJdata!$P:$P,$A57,TEJdata!$L:$L)-1)*100,"-")) -> -1.843688737 | K57: =IF(SUMIF(TEJdata!$P:$P,$A57,TEJdata!$M:$M)=0,0,IFERROR((SUMIF(TEJdata!$P:$P,$A57,TEJdata!$M:$M)/SUMIF(TEJdata!$P:$P,$A57,TEJdata!$N:$N)-1)*100,"-")) -> 4.368296753
A58: M23D7 二次電池 | B58: =COUNTIF(TEJdata!$P:$P,$A58) -> 13 | C58: =IF(SUMIF(TEJdata!$P:$P,$A58,TEJdata!$B:$B)=0,"",IF(AND(SUMIF(TEJdata!$P:$P,$A58,TEJdata!$B:$B)>0,SUMIF(TEJdata!$P:$P,$A58,TEJdata!$D:$D)<0),(SUMIF(TEJdata!$P:$P,$A58,TEJdata!$B:$B)/ABS(SUMIF(TEJdata!$P:$P,$A58,TEJdata!$D:$D)-1))*100,(SUMIF(TEJdata!$P:$P,$A58,TEJdata!$B:$B)/SUMIF(TEJdata!$P:$P,$A58,TEJdata!$D:$D)-1)*100)) -> 12.87298398 | D58: =IF(SUMIF(TEJdata!$P:$P,$A58,TEJdata!$B:$B)=0,"",(SUMIF(TEJdata!$P:$P,$A58,TEJdata!$B:$B)/SUMIF(TEJdata!$P:$P,$A58,TEJdata!$C:$C)-1)*100) -> 20.59865124 | E58: =IF(SUMIF(TEJdata!$P:$P,$A58,TEJdata!$E:$E)=0,"",(SUMIF(TEJdata!$P:$P,$A58,TEJdata!$E:$E)/SUMIF(TEJdata!$P:$P,$A58,TEJdata!$F:$F)-1)*100) -> 7.461002114 | F58: =SUMIF(TEJdata!$P:$P,$A58,TEJdata!$B:$B)/1000 -> 11549.324 | G58: =SUMIF(TEJdata!$P:$P,$A58,TEJdata!$G:$G)/$B58 -> 1.238507692 | H58: =SUMIF(TEJdata!$P:$P,$A58,TEJdata!$H:$H)/$B58 -> -0.3761692308 | I58: =IF(SUMIF(TEJdata!$P:$P,$A58,TEJdata!$I:$I)=0,0,IFERROR((SUMIF(TEJdata!$P:$P,$A58,TEJdata!$I:$I)/SUMIF(TEJdata!$P:$P,$A58,TEJdata!$J:$J)-1)*100,"-")) -> 1.369551285 | J58: =IF(SUMIF(TEJdata!$P:$P,$A58,TEJdata!$K:$K)=0,0,IFERROR((SUMIF(TEJdata!$P:$P,$A58,TEJdata!$K:$K)/SUMIF(TEJdata!$P:$P,$A58,TEJdata!$L:$L)-1)*100,"-")) -> -1.215800244 | K58: =IF(SUMIF(TEJdata!$P:$P,$A58,TEJdata!$M:$M)=0,0,IFERROR((SUMIF(TEJdata!$P:$P,$A58,TEJdata!$M:$M)/SUMIF(TEJdata!$P:$P,$A58,TEJdata!$N:$N)-1)*100,"-")) -> -1.428609222
A59: M17G1 診斷與監測 | B59: =COUNTIF(TEJdata!$P:$P,$A59) -> 11 | C59: =IF(SUMIF(TEJdata!$P:$P,$A59,TEJdata!$B:$B)=0,"",IF(AND(SUMIF(TEJdata!$P:$P,$A59,TEJdata!$B:$B)>0,SUMIF(TEJdata!$P:$P,$A59,TEJdata!$D:$D)<0),(SUMIF(TEJdata!$P:$P,$A59,TEJdata!$B:$B)/ABS(SUMIF(TEJdata!$P:$P,$A59,TEJdata!$D:$D)-1))*100,(SUMIF(TEJdata!$P:$P,$A59,TEJdata!$B:$B)/SUMIF(TEJdata!$P:$P,$A59,TEJdata!$D:$D)-1)*100)) -> 12.72208527 | D59: =IF(SUMIF(TEJdata!$P:$P,$A59,TEJdata!$B:$B)=0,"",(SUMIF(TEJdata!$P:$P,$A59,TEJdata!$B:$B)/SUMIF(TEJdata!$P:$P,$A59,TEJdata!$C:$C)-1)*100) -> 14.13322814 | E59: =IF(SUMIF(TEJdata!$P:$P,$A59,TEJdata!$E:$E)=0,"",(SUMIF(TEJdata!$P:$P,$A59,TEJdata!$E:$E)/SUMIF(TEJdata!$P:$P,$A59,TEJdata!$F:$F)-1)*100) -> 18.00803106 | F59: =SUMIF(TEJdata!$P:$P,$A59,TEJdata!$B:$B)/1000 -> 679.943 | G59: =SUMIF(TEJdata!$P:$P,$A59,TEJdata!$G:$G)/$B59 -> 0.8307636364 | H59: =SUMIF(TEJdata!$P:$P,$A59,TEJdata!$H:$H)/$B59 -> -2.460345455 | I59: =IF(SUMIF(TEJdata!$P:$P,$A59,TEJdata!$I:$I)=0,0,IFERROR((SUMIF(TEJdata!$P:$P,$A59,TEJdata!$I:$I)/SUMIF(TEJdata!$P:$P,$A59,TEJdata!$J:$J)-1)*100,"-")) -> -2.862666369 | J59: =IF(SUMIF(TEJdata!$P:$P,$A59,TEJdata!$K:$K)=0,0,IFERROR((SUMIF(TEJdata!$P:$P,$A59,TEJdata!$K:$K)/SUMIF(TEJdata!$P:$P,$A59,TEJdata!$L:$L)-1)*100,"-")) -> 0 | K59: =IF(SUMIF(TEJdata!$P:$P,$A59,TEJdata!$M:$M)=0,0,IFERROR((SUMIF(TEJdata!$P:$P,$A59,TEJdata!$M:$M)/SUMIF(TEJdata!$P:$P,$A59,TEJdata!$N:$N)-1)*100,"-")) -> 3.080268165
A60: M23U1 光學鏡頭 | B60: =COUNTIF(TEJdata!$P:$P,$A60) -> 13 | C60: =IF(SUMIF(TEJdata!$P:$P,$A60,TEJdata!$B:$B)=0,"",IF(AND(SUMIF(TEJdata!$P:$P,$A60,TEJdata!$B:$B)>0,SUMIF(TEJdata!$P:$P,$A60,TEJdata!$D:$D)<0),(SUMIF(TEJdata!$P:$P,$A60,TEJdata!$B:$B)/ABS(SUMIF(TEJdata!$P:$P,$A60,TEJdata!$D:$D)-1))*100,(SUMIF(TEJdata!$P:$P,$A60,TEJdata!$B:$B)/SUMIF(TEJdata!$P:$P,$A60,TEJdata!$D:$D)-1)*100)) -> 12.67646819 | D60: =IF(SUMIF(TEJdata!$P:$P,$A60,TEJdata!$B:$B)=0,"",(SUMIF(TEJdata!$P:$P,$A60,TEJdata!$B:$B)/SUMIF(TEJdata!$P:$P,$A60,TEJdata!$C:$C)-1)*100) -> 28.49654683 | E60: =IF(SUMIF(TEJdata!$P:$P,$A60,TEJdata!$E:$E)=0,"",(SUMIF(TEJdata!$P:$P,$A60,TEJdata!$E:$E)/SUMIF(TEJdata!$P:$P,$A60,TEJdata!$F:$F)-1)*100) -> 10.76794483 | F60: =SUMIF(TEJdata!$P:$P,$A60,TEJdata!$B:$B)/1000 -> 11359.628 | G60: =SUMIF(TEJdata!$P:$P,$A60,TEJdata!$G:$G)/$B60 -> 3.088846154 | H60: =SUMIF(TEJdata!$P:$P,$A60,TEJdata!$H:$H)/$B60 -> -0.4200846154 | I60: =IF(SUMIF(TEJdata!$P:$P,$A60,TEJdata!$I:$I)=0,0,IFERROR((SUMIF(TEJdata!$P:$P,$A60,TEJdata!$I:$I)/SUMIF(TEJdata!$P:$P,$A60,TEJdata!$J:$J)-1)*100,"-")) -> 1.052404363 | J60: =IF(SUMIF(TEJdata!$P:$P,$A60,TEJdata!$K:$K)=0,0,IFERROR((SUMIF(TEJdata!$P:$P,$A60,TEJdata!$K:$K)/SUMIF(TEJdata!$P:$P,$A60,TEJdata!$L:$L)-1)*100,"-")) -> -0.3612903226 | K60: =IF(SUMIF(TEJdata!$P:$P,$A60,TEJdata!$M:$M)=0,0,IFERROR((SUMIF(TEJdata!$P:$P,$A60,TEJdata!$M:$M)/SUMIF(TEJdata!$P:$P,$A60,TEJdata!$N:$N)-1)*100,"-")) -> 0.3606216804
A61: M25B 營造 | B61: =COUNTIF(TEJdata!$P:$P,$A61) -> 17 | C61: =IF(SUMIF(TEJdata!$P:$P,$A61,TEJdata!$B:$B)=0,"",IF(AND(SUMIF(TEJdata!$P:$P,$A61,TEJdata!$B:$B)>0,SUMIF(TEJdata!$P:$P,$A61,TEJdata!$D:$D)<0),(SUMIF(TEJdata!$P:$P,$A61,TEJdata!$B:$B)/ABS(SUMIF(TEJdata!$P:$P,$A61,TEJdata!$D:$D)-1))*100,(SUMIF(TEJdata!$P:$P,$A61,TEJdata!$B:$B)/SUMIF(TEJdata!$P:$P,$A61,TEJdata!$D:$D)-1)*100)) -> 11.26760573 | D61: =IF(SUMIF(TEJdata!$P:$P,$A61,TEJdata!$B:$B)=0,"",(SUMIF(TEJdata!$P:$P,$A61,TEJdata!$B:$B)/SUMIF(TEJdata!$P:$P,$A61,TEJdata!$C:$C)-1)*100) -> 42.69837223 | E61: =IF(SUMIF(TEJdata!$P:$P,$A61,TEJdata!$E:$E)=0,"",(SUMIF(TEJdata!$P:$P,$A61,TEJdata!$E:$E)/SUMIF(TEJdata!$P:$P,$A61,TEJdata!$F:$F)-1)*100) -> 15.48718065 | F61: =SUMIF(TEJdata!$P:$P,$A61,TEJdata!$B:$B)/1000 -> 16946.833 | G61: =SUMIF(TEJdata!$P:$P,$A61,TEJdata!$G:$G)/$B61 -> 2.347170588 | H61: =SUMIF(TEJdata!$P:$P,$A61,TEJdata!$H:$H)/$B61 -> -1.989182353 | I61: =IF(SUMIF(TEJdata!$P:$P,$A61,TEJdata!$I:$I)=0,0,IFERROR((SUMIF(TEJdata!$P:$P,$A61,TEJdata!$I:$I)/SUMIF(TEJdata!$P:$P,$A61,TEJdata!$J:$J)-1)*100,"-")) -> 0.7201949921 | J61: =IF(SUMIF(TEJdata!$P:$P,$A61,TEJdata!$K:$K)=0,0,IFERROR((SUMIF(TEJdata!$P:$P,$A61,TEJdata!$K:$K)/SUMIF(TEJdata!$P:$P,$A61,TEJdata!$L:$L)-1)*100,"-")) -> -0.7227891156 | K61: =IF(SUMIF(TEJdata!$P:$P,$A61,TEJdata!$M:$M)=0,0,IFERROR((SUMIF(TEJdata!$P:$P,$A61,TEJdata!$M:$M)/SUMIF(TEJdata!$P:$P,$A61,TEJdata!$N:$N)-1)*100,"-")) -> -0.09025143486
A62: M23K6 光元件模組 | B62: =COUNTIF(TEJdata!$P:$P,$A62) -> 13 | C62: =IF(SUMIF(TEJdata!$P:$P,$A62,TEJdata!$B:$B)=0,"",IF(AND(SUMIF(TEJdata!$P:$P,$A62,TEJdata!$B:$B)>0,SUMIF(TEJdata!$P:$P,$A62,TEJdata!$D:$D)<0),(SUMIF(TEJdata!$P:$P,$A62,TEJdata!$B:$B)/ABS(SUMIF(TEJdata!$P:$P,$A62,TEJdata!$D:$D)-1))*100,(SUMIF(TEJdata!$P:$P,$A62,TEJdata!$B:$B)/SUMIF(TEJdata!$P:$P,$A62,TEJdata!$D:$D)-1)*100)) -> 11.04245265 | D62: =IF(SUMIF(TEJdata!$P:$P,$A62,TEJdata!$B:$B)=0,"",(SUMIF(TEJdata!$P:$P,$A62,TEJdata!$B:$B)/SUMIF(TEJdata!$P:$P,$A62,TEJdata!$C:$C)-1)*100) -> 28.34993458 | E62: =IF(SUMIF(TEJdata!$P:$P,$A62,TEJdata!$E:$E)=0,"",(SUMIF(TEJdata!$P:$P,$A62,TEJdata!$E:$E)/SUMIF(TEJdata!$P:$P,$A62,TEJdata!$F:$F)-1)*100) -> 3.358014279 | F62: =SUMIF(TEJdata!$P:$P,$A62,TEJdata!$B:$B)/1000 -> 3039.836 | G62: =SUMIF(TEJdata!$P:$P,$A62,TEJdata!$G:$G)/$B62 -> 21.39072308 | H62: =SUMIF(TEJdata!$P:$P,$A62,TEJdata!$H:$H)/$B62 -> 45.85146154 | I62: =IF(SUMIF(TEJdata!$P:$P,$A62,TEJdata!$I:$I)=0,0,IFERROR((SUMIF(TEJdata!$P:$P,$A62,TEJdata!$I:$I)/SUMIF(TEJdata!$P:$P,$A62,TEJdata!$J:$J)-1)*100,"-")) -> 13.74007393 | J62: =IF(SUMIF(TEJdata!$P:$P,$A62,TEJdata!$K:$K)=0,0,IFERROR((SUMIF(TEJdata!$P:$P,$A62,TEJdata!$K:$K)/SUMIF(TEJdata!$P:$P,$A62,TEJdata!$L:$L)-1)*100,"-")) -> 7.551823668 | K62: =IF(SUMIF(TEJdata!$P:$P,$A62,TEJdata!$M:$M)=0,0,IFERROR((SUMIF(TEJdata!$P:$P,$A62,TEJdata!$M:$M)/SUMIF(TEJdata!$P:$P,$A62,TEJdata!$N:$N)-1)*100,"-")) -> 6.4455053
A63: M29A9 其他零售 | B63: =COUNTIF(TEJdata!$P:$P,$A63) -> 11 | C63: =IF(SUMIF(TEJdata!$P:$P,$A63,TEJdata!$B:$B)=0,"",IF(AND(SUMIF(TEJdata!$P:$P,$A63,TEJdata!$B:$B)>0,SUMIF(TEJdata!$P:$P,$A63,TEJdata!$D:$D)<0),(SUMIF(TEJdata!$P:$P,$A63,TEJdata!$B:$B)/ABS(SUMIF(TEJdata!$P:$P,$A63,TEJdata!$D:$D)-1))*100,(SUMIF(TEJdata!$P:$P,$A63,TEJdata!$B:$B)/SUMIF(TEJdata!$P:$P,$A63,TEJdata!$D:$D)-1)*100)) -> 10.80640367 | D63: =IF(SUMIF(TEJdata!$P:$P,$A63,TEJdata!$B:$B)=0,"",(SUMIF(TEJdata!$P:$P,$A63,TEJdata!$B:$B)/SUMIF(TEJdata!$P:$P,$A63,TEJdata!$C:$C)-1)*100) -> -73.71041792 | E63: =IF(SUMIF(TEJdata!$P:$P,$A63,TEJdata!$E:$E)=0,"",(SUMIF(TEJdata!$P:$P,$A63,TEJdata!$E:$E)/SUMIF(TEJdata!$P:$P,$A63,TEJdata!$F:$F)-1)*100) -> 6.805666126 | F63: =SUMIF(TEJdata!$P:$P,$A63,TEJdata!$B:$B)/1000 -> 3697.982 | G63: =SUMIF(TEJdata!$P:$P,$A63,TEJdata!$G:$G)/$B63 -> 1.470345455 | H63: =SUMIF(TEJdata!$P:$P,$A63,TEJdata!$H:$H)/$B63 -> 0.05407272727 | I63: =IF(SUMIF(TEJdata!$P:$P,$A63,TEJdata!$I:$I)=0,0,IFERROR((SUMIF(TEJdata!$P:$P,$A63,TEJdata!$I:$I)/SUMIF(TEJdata!$P:$P,$A63,TEJdata!$J:$J)-1)*100,"-")) -> -0.2757720973 | J63: =IF(SUMIF(TEJdata!$P:$P,$A63,TEJdata!$K:$K)=0,0,IFERROR((SUMIF(TEJdata!$P:$P,$A63,TEJdata!$K:$K)/SUMIF(TEJdata!$P:$P,$A63,TEJdata!$L:$L)-1)*100,"-")) -> -5.581395349 | K63: =IF(SUMIF(TEJdata!$P:$P,$A63,TEJdata!$M:$M)=0,0,IFERROR((SUMIF(TEJdata!$P:$P,$A63,TEJdata!$M:$M)/SUMIF(TEJdata!$P:$P,$A63,TEJdata!$N:$N)-1)*100,"-")) -> -0.8080688923
A64: M14A2 加工絲 | B64: =COUNTIF(TEJdata!$P:$P,$A64) -> 7 | C64: =IF(SUMIF(TEJdata!$P:$P,$A64,TEJdata!$B:$B)=0,"",IF(AND(SUMIF(TEJdata!$P:$P,$A64,TEJdata!$B:$B)>0,SUMIF(TEJdata!$P:$P,$A64,TEJdata!$D:$D)<0),(SUMIF(TEJdata!$P:$P,$A64,TEJdata!$B:$B)/ABS(SUMIF(TEJdata!$P:$P,$A64,TEJdata!$D:$D)-1))*100,(SUMIF(TEJdata!$P:$P,$A64,TEJdata!$B:$B)/SUMIF(TEJdata!$P:$P,$A64,TEJdata!$D:$D)-1)*100)) -> 10.73629176 | D64: =IF(SUMIF(TEJdata!$P:$P,$A64,TEJdata!$B:$B)=0,"",(SUMIF(TEJdata!$P:$P,$A64,TEJdata!$B:$B)/SUMIF(TEJdata!$P:$P,$A64,TEJdata!$C:$C)-1)*100) -> 58.5015627 | E64: =IF(SUMIF(TEJdata!$P:$P,$A64,TEJdata!$E:$E)=0,"",(SUMIF(TEJdata!$P:$P,$A64,TEJdata!$E:$E)/SUMIF(TEJdata!$P:$P,$A64,TEJdata!$F:$F)-1)*100) -> -6.583115827 | F64: =SUMIF(TEJdata!$P:$P,$A64,TEJdata!$B:$B)/1000 -> 1807.956 | G64: =SUMIF(TEJdata!$P:$P,$A64,TEJdata!$G:$G)/$B64 -> -0.02044285714 | H64: =SUMIF(TEJdata!$P:$P,$A64,TEJdata!$H:$H)/$B64 -> 2.000871429 | I64: =IF(SUMIF(TEJdata!$P:$P,$A64,TEJdata!$I:$I)=0,0,IFERROR((SUMIF(TEJdata!$P:$P,$A64,TEJdata!$I:$I)/SUMIF(TEJdata!$P:$P,$A64,TEJdata!$J:$J)-1)*100,"-")) -> 1.047351651 | J64: =IF(SUMIF(TEJdata!$P:$P,$A64,TEJdata!$K:$K)=0,0,IFERROR((SUMIF(TEJdata!$P:$P,$A64,TEJdata!$K:$K)/SUMIF(TEJdata!$P:$P,$A64,TEJdata!$L:$L)-1)*100,"-")) -> 0 | K64: =IF(SUMIF(TEJdata!$P:$P,$A64,TEJdata!$M:$M)=0,0,IFERROR((SUMIF(TEJdata!$P:$P,$A64,TEJdata!$M:$M)/SUMIF(TEJdata!$P:$P,$A64,TEJdata!$N:$N)-1)*100,"-")) -> -2.247191011
A65: M23C6C 封裝及模組 | B65: =COUNTIF(TEJdata!$P:$P,$A65) -> 16 | C65: =IF(SUMIF(TEJdata!$P:$P,$A65,TEJdata!$B:$B)=0,"",IF(AND(SUMIF(TEJdata!$P:$P,$A65,TEJdata!$B:$B)>0,SUMIF(TEJdata!$P:$P,$A65,TEJdata!$D:$D)<0),(SUMIF(TEJdata!$P:$P,$A65,TEJdata!$B:$B)/ABS(SUMIF(TEJdata!$P:$P,$A65,TEJdata!$D:$D)-1))*100,(SUMIF(TEJdata!$P:$P,$A65,TEJdata!$B:$B)/SUMIF(TEJdata!$P:$P,$A65,TEJdata!$D:$D)-1)*100)) -> 10.58989696 | D65: =IF(SUMIF(TEJdata!$P:$P,$A65,TEJdata!$B:$B)=0,"",(SUMIF(TEJdata!$P:$P,$A65,TEJdata!$B:$B)/SUMIF(TEJdata!$P:$P,$A65,TEJdata!$C:$C)-1)*100) -> 22.94523023 | E65: =IF(SUMIF(TEJdata!$P:$P,$A65,TEJdata!$E:$E)=0,"",(SUMIF(TEJdata!$P:$P,$A65,TEJdata!$E:$E)/SUMIF(TEJdata!$P:$P,$A65,TEJdata!$F:$F)-1)*100) -> 13.71276243 | F65: =SUMIF(TEJdata!$P:$P,$A65,TEJdata!$B:$B)/1000 -> 4134.16 | G65: =SUMIF(TEJdata!$P:$P,$A65,TEJdata!$G:$G)/$B65 -> 5.6079875 | H65: =SUMIF(TEJdata!$P:$P,$A65,TEJdata!$H:$H)/$B65 -> 21.43311875 | I65: =IF(SUMIF(TEJdata!$P:$P,$A65,TEJdata!$I:$I)=0,0,IFERROR((SUMIF(TEJdata!$P:$P,$A65,TEJdata!$I:$I)/SUMIF(TEJdata!$P:$P,$A65,TEJdata!$J:$J)-1)*100,"-")) -> 1.376365191 | J65: =IF(SUMIF(TEJdata!$P:$P,$A65,TEJdata!$K:$K)=0,0,IFERROR((SUMIF(TEJdata!$P:$P,$A65,TEJdata!$K:$K)/SUMIF(TEJdata!$P:$P,$A65,TEJdata!$L:$L)-1)*100,"-")) -> -0.6246629516 | K65: =IF(SUMIF(TEJdata!$P:$P,$A65,TEJdata!$M:$M)=0,0,IFERROR((SUMIF(TEJdata!$P:$P,$A65,TEJdata!$M:$M)/SUMIF(TEJdata!$P:$P,$A65,TEJdata!$N:$N)-1)*100,"-")) -> 2.991367482
A66: M23C1 顯示器 | B66: =COUNTIF(TEJdata!$P:$P,$A66) -> 6 | C66: =IF(SUMIF(TEJdata!$P:$P,$A66,TEJdata!$B:$B)=0,"",IF(AND(SUMIF(TEJdata!$P:$P,$A66,TEJdata!$B:$B)>0,SUMIF(TEJdata!$P:$P,$A66,TEJdata!$D:$D)<0),(SUMIF(TEJdata!$P:$P,$A66,TEJdata!$B:$B)/ABS(SUMIF(TEJdata!$P:$P,$A66,TEJdata!$D:$D)-1))*100,(SUMIF(TEJdata!$P:$P,$A66,TEJdata!$B:$B)/SUMIF(TEJdata!$P:$P,$A66,TEJdata!$D:$D)-1)*100)) -> 10.31998834 | D66: =IF(SUMIF(TEJdata!$P:$P,$A66,TEJdata!$B:$B)=0,"",(SUMIF(TEJdata!$P:$P,$A66,TEJdata!$B:$B)/SUMIF(TEJdata!$P:$P,$A66,TEJdata!$C:$C)-1)*100) -> 36.52251544 | E66: =IF(SUMIF(TEJdata!$P:$P,$A66,TEJdata!$E:$E)=0,"",(SUMIF(TEJdata!$P:$P,$A66,TEJdata!$E:$E)/SUMIF(TEJdata!$P:$P,$A66,TEJdata!$F:$F)-1)*100) -> 3.983573795 | F66: =SUMIF(TEJdata!$P:$P,$A66,TEJdata!$B:$B)/1000 -> 22181.366 | G66: =SUMIF(TEJdata!$P:$P,$A66,TEJdata!$G:$G)/$B66 -> 7.1191 | H66: =SUMIF(TEJdata!$P:$P,$A66,TEJdata!$H:$H)/$B66 -> 5.440566667 | I66: =IF(SUMIF(TEJdata!$P:$P,$A66,TEJdata!$I:$I)=0,0,IFERROR((SUMIF(TEJdata!$P:$P,$A66,TEJdata!$I:$I)/SUMIF(TEJdata!$P:$P,$A66,TEJdata!$J:$J)-1)*100,"-")) -> 10.51202542 | J66: =IF(SUMIF(TEJdata!$P:$P,$A66,TEJdata!$K:$K)=0,0,IFERROR((SUMIF(TEJdata!$P:$P,$A66,TEJdata!$K:$K)/SUMIF(TEJdata!$P:$P,$A66,TEJdata!$L:$L)-1)*100,"-")) -> 208.0260304 | K66: =IF(SUMIF(TEJdata!$P:$P,$A66,TEJdata!$M:$M)=0,0,IFERROR((SUMIF(TEJdata!$P:$P,$A66,TEJdata!$M:$M)/SUMIF(TEJdata!$P:$P,$A66,TEJdata!$N:$N)-1)*100,"-")) -> 10.45006335
A67: M23X1 系統整合 | B67: =COUNTIF(TEJdata!$P:$P,$A67) -> 40 | C67: =IF(SUMIF(TEJdata!$P:$P,$A67,TEJdata!$B:$B)=0,"",IF(AND(SUMIF(TEJdata!$P:$P,$A67,TEJdata!$B:$B)>0,SUMIF(TEJdata!$P:$P,$A67,TEJdata!$D:$D)<0),(SUMIF(TEJdata!$P:$P,$A67,TEJdata!$B:$B)/ABS(SUMIF(TEJdata!$P:$P,$A67,TEJdata!$D:$D)-1))*100,(SUMIF(TEJdata!$P:$P,$A67,TEJdata!$B:$B)/SUMIF(TEJdata!$P:$P,$A67,TEJdata!$D:$D)-1)*100)) -> 10.28422266 | D67: =IF(SUMIF(TEJdata!$P:$P,$A67,TEJdata!$B:$B)=0,"",(SUMIF(TEJdata!$P:$P,$A67,TEJdata!$B:$B)/SUMIF(TEJdata!$P:$P,$A67,TEJdata!$C:$C)-1)*100) -> 32.2543726 | E67: =IF(SUMIF(TEJdata!$P:$P,$A67,TEJdata!$E:$E)=0,"",(SUMIF(TEJdata!$P:$P,$A67,TEJdata!$E:$E)/SUMIF(TEJdata!$P:$P,$A67,TEJdata!$F:$F)-1)*100) -> 13.51982328 | F67: =SUMIF(TEJdata!$P:$P,$A67,TEJdata!$B:$B)/1000 -> 17256.126 | G67: =SUMIF(TEJdata!$P:$P,$A67,TEJdata!$G:$G)/$B67 -> 2.61277 | H67: =SUMIF(TEJdata!$P:$P,$A67,TEJdata!$H:$H)/$B67 -> 4.6008 | I67: =IF(SUMIF(TEJdata!$P:$P,$A67,TEJdata!$I:$I)=0,0,IFERROR((SUMIF(TEJdata!$P:$P,$A67,TEJdata!$I:$I)/SUMIF(TEJdata!$P:$P,$A67,TEJdata!$J:$J)-1)*100,"-")) -> 0.6358926048 | J67: =IF(SUMIF(TEJdata!$P:$P,$A67,TEJdata!$K:$K)=0,0,IFERROR((SUMIF(TEJdata!$P:$P,$A67,TEJdata!$K:$K)/SUMIF(TEJdata!$P:$P,$A67,TEJdata!$L:$L)-1)*100,"-")) -> -1.007194245 | K67: =IF(SUMIF(TEJdata!$P:$P,$A67,TEJdata!$M:$M)=0,0,IFERROR((SUMIF(TEJdata!$P:$P,$A67,TEJdata!$M:$M)/SUMIF(TEJdata!$P:$P,$A67,TEJdata!$N:$N)-1)*100,"-")) -> 4.463240569
A68: M15B1 電機 | B68: =COUNTIF(TEJdata!$P:$P,$A68) -> 9 | C68: =IF(SUMIF(TEJdata!$P:$P,$A68,TEJdata!$B:$B)=0,"",IF(AND(SUMIF(TEJdata!$P:$P,$A68,TEJdata!$B:$B)>0,SUMIF(TEJdata!$P:$P,$A68,TEJdata!$D:$D)<0),(SUMIF(TEJdata!$P:$P,$A68,TEJdata!$B:$B)/ABS(SUMIF(TEJdata!$P:$P,$A68,TEJdata!$D:$D)-1))*100,(SUMIF(TEJdata!$P:$P,$A68,TEJdata!$B:$B)/SUMIF(TEJdata!$P:$P,$A68,TEJdata!$D:$D)-1)*100)) -> 9.64297447 | D68: =IF(SUMIF(TEJdata!$P:$P,$A68,TEJdata!$B:$B)=0,"",(SUMIF(TEJdata!$P:$P,$A68,TEJdata!$B:$B)/SUMIF(TEJdata!$P:$P,$A68,TEJdata!$C:$C)-1)*100) -> 32.82354584 | E68: =IF(SUMIF(TEJdata!$P:$P,$A68,TEJdata!$E:$E)=0,"",(SUMIF(TEJdata!$P:$P,$A68,TEJdata!$E:$E)/SUMIF(TEJdata!$P:$P,$A68,TEJdata!$F:$F)-1)*100) -> 7.075519788 | F68: =SUMIF(TEJdata!$P:$P,$A68,TEJdata!$B:$B)/1000 -> 19190.755 | G68: =SUMIF(TEJdata!$P:$P,$A68,TEJdata!$G:$G)/$B68 -> 2.058177778 | H68: =SUMIF(TEJdata!$P:$P,$A68,TEJdata!$H:$H)/$B68 -> -8.732255556 | I68: =IF(SUMIF(TEJdata!$P:$P,$A68,TEJdata!$I:$I)=0,0,IFERROR((SUMIF(TEJdata!$P:$P,$A68,TEJdata!$I:$I)/SUMIF(TEJdata!$P:$P,$A68,TEJdata!$J:$J)-1)*100,"-")) -> -0.8276853611 | J68: =IF(SUMIF(TEJdata!$P:$P,$A68,TEJdata!$K:$K)=0,0,IFERROR((SUMIF(TEJdata!$P:$P,$A68,TEJdata!$K:$K)/SUMIF(TEJdata!$P:$P,$A68,TEJdata!$L:$L)-1)*100,"-")) -> -2.285082174 | K68: =IF(SUMIF(TEJdata!$P:$P,$A68,TEJdata!$M:$M)=0,0,IFERROR((SUMIF(TEJdata!$P:$P,$A68,TEJdata!$M:$M)/SUMIF(TEJdata!$P:$P,$A68,TEJdata!$N:$N)-1)*100,"-")) -> 0.02362450536
A69: M15A1 工具機 | B69: =COUNTIF(TEJdata!$P:$P,$A69) -> 25 | C69: =IF(SUMIF(TEJdata!$P:$P,$A69,TEJdata!$B:$B)=0,"",IF(AND(SUMIF(TEJdata!$P:$P,$A69,TEJdata!$B:$B)>0,SUMIF(TEJdata!$P:$P,$A69,TEJdata!$D:$D)<0),(SUMIF(TEJdata!$P:$P,$A69,TEJdata!$B:$B)/ABS(SUMIF(TEJdata!$P:$P,$A69,TEJdata!$D:$D)-1))*100,(SUMIF(TEJdata!$P:$P,$A69,TEJdata!$B:$B)/SUMIF(TEJdata!$P:$P,$A69,TEJdata!$D:$D)-1)*100)) -> 9.425631147 | D69: =IF(SUMIF(TEJdata!$P:$P,$A69,TEJdata!$B:$B)=0,"",(SUMIF(TEJdata!$P:$P,$A69,TEJdata!$B:$B)/SUMIF(TEJdata!$P:$P,$A69,TEJdata!$C:$C)-1)*100) -> 56.52446826 | E69: =IF(SUMIF(TEJdata!$P:$P,$A69,TEJdata!$E:$E)=0,"",(SUMIF(TEJdata!$P:$P,$A69,TEJdata!$E:$E)/SUMIF(TEJdata!$P:$P,$A69,TEJdata!$F:$F)-1)*100) -> 3.477854561 | F69: =SUMIF(TEJdata!$P:$P,$A69,TEJdata!$B:$B)/1000 -> 6258.994 | G69: =SUMIF(TEJdata!$P:$P,$A69,TEJdata!$G:$G)/$B69 -> 2.172744 | H69: =SUMIF(TEJdata!$P:$P,$A69,TEJdata!$H:$H)/$B69 -> 4.036948 | I69: =IF(SUMIF(TEJdata!$P:$P,$A69,TEJdata!$I:$I)=0,0,IFERROR((SUMIF(TEJdata!$P:$P,$A69,TEJdata!$I:$I)/SUMIF(TEJdata!$P:$P,$A69,TEJdata!$J:$J)-1)*100,"-")) -> -1.698801526 | J69: =IF(SUMIF(TEJdata!$P:$P,$A69,TEJdata!$K:$K)=0,0,IFERROR((SUMIF(TEJdata!$P:$P,$A69,TEJdata!$K:$K)/SUMIF(TEJdata!$P:$P,$A69,TEJdata!$L:$L)-1)*100,"-")) -> -1.054852321 | K69: =IF(SUMIF(TEJdata!$P:$P,$A69,TEJdata!$M:$M)=0,0,IFERROR((SUMIF(TEJdata!$P:$P,$A69,TEJdata!$M:$M)/SUMIF(TEJdata!$P:$P,$A69,TEJdata!$N:$N)-1)*100,"-")) -> -0.4927429357
A70: M17F 樹脂 | B70: =COUNTIF(TEJdata!$P:$P,$A70) -> 15 | C70: =IF(SUMIF(TEJdata!$P:$P,$A70,TEJdata!$B:$B)=0,"",IF(AND(SUMIF(TEJdata!$P:$P,$A70,TEJdata!$B:$B)>0,SUMIF(TEJdata!$P:$P,$A70,TEJdata!$D:$D)<0),(SUMIF(TEJdata!$P:$P,$A70,TEJdata!$B:$B)/ABS(SUMIF(TEJdata!$P:$P,$A70,TEJdata!$D:$D)-1))*100,(SUMIF(TEJdata!$P:$P,$A70,TEJdata!$B:$B)/SUMIF(TEJdata!$P:$P,$A70,TEJdata!$D:$D)-1)*100)) -> 9.397100377 | D70: =IF(SUMIF(TEJdata!$P:$P,$A70,TEJdata!$B:$B)=0,"",(SUMIF(TEJdata!$P:$P,$A70,TEJdata!$B:$B)/SUMIF(TEJdata!$P:$P,$A70,TEJdata!$C:$C)-1)*100) -> 65.95279948 | E70: =IF(SUMIF(TEJdata!$P:$P,$A70,TEJdata!$E:$E)=0,"",(SUMIF(TEJdata!$P:$P,$A70,TEJdata!$E:$E)/SUMIF(TEJdata!$P:$P,$A70,TEJdata!$F:$F)-1)*100) -> 2.072955585 | F70: =SUMIF(TEJdata!$P:$P,$A70,TEJdata!$B:$B)/1000 -> 9064.088 | G70: =SUMIF(TEJdata!$P:$P,$A70,TEJdata!$G:$G)/$B70 -> 6.786506667 | H70: =SUMIF(TEJdata!$P:$P,$A70,TEJdata!$H:$H)/$B70 -> 9.814126667 | I70: =IF(SUMIF(TEJdata!$P:$P,$A70,TEJdata!$I:$I)=0,0,IFERROR((SUMIF(TEJdata!$P:$P,$A70,TEJdata!$I:$I)/SUMIF(TEJdata!$P:$P,$A70,TEJdata!$J:$J)-1)*100,"-")) -> 8.399016331 | J70: =IF(SUMIF(TEJdata!$P:$P,$A70,TEJdata!$K:$K)=0,0,IFERROR((SUMIF(TEJdata!$P:$P,$A70,TEJdata!$K:$K)/SUMIF(TEJdata!$P:$P,$A70,TEJdata!$L:$L)-1)*100,"-")) -> -15.50872093 | K70: =IF(SUMIF(TEJdata!$P:$P,$A70,TEJdata!$M:$M)=0,0,IFERROR((SUMIF(TEJdata!$P:$P,$A70,TEJdata!$M:$M)/SUMIF(TEJdata!$P:$P,$A70,TEJdata!$N:$N)-1)*100,"-")) -> 13.79226778
A71: M23U2 聲學產品 | B71: =COUNTIF(TEJdata!$P:$P,$A71) -> 10 | C71: =IF(SUMIF(TEJdata!$P:$P,$A71,TEJdata!$B:$B)=0,"",IF(AND(SUMIF(TEJdata!$P:$P,$A71,TEJdata!$B:$B)>0,SUMIF(TEJdata!$P:$P,$A71,TEJdata!$D:$D)<0),(SUMIF(TEJdata!$P:$P,$A71,TEJdata!$B:$B)/ABS(SUMIF(TEJdata!$P:$P,$A71,TEJdata!$D:$D)-1))*100,(SUMIF(TEJdata!$P:$P,$A71,TEJdata!$B:$B)/SUMIF(TEJdata!$P:$P,$A71,TEJdata!$D:$D)-1)*100)) -> 9.265300389 | D71: =IF(SUMIF(TEJdata!$P:$P,$A71,TEJdata!$B:$B)=0,"",(SUMIF(TEJdata!$P:$P,$A71,TEJdata!$B:$B)/SUMIF(TEJdata!$P:$P,$A71,TEJdata!$C:$C)-1)*100) -> 35.93065751 | E71: =IF(SUMIF(TEJdata!$P:$P,$A71,TEJdata!$E:$E)=0,"",(SUMIF(TEJdata!$P:$P,$A71,TEJdata!$E:$E)/SUMIF(TEJdata!$P:$P,$A71,TEJdata!$F:$F)-1)*100) -> 8.813414642 | F71: =SUMIF(TEJdata!$P:$P,$A71,TEJdata!$B:$B)/1000 -> 6557.84 | G71: =SUMIF(TEJdata!$P:$P,$A71,TEJdata!$G:$G)/$B71 -> 1.40288 | H71: =SUMIF(TEJdata!$P:$P,$A71,TEJdata!$H:$H)/$B71 -> 1.90315 | I71: =IF(SUMIF(TEJdata!$P:$P,$A71,TEJdata!$I:$I)=0,0,IFERROR((SUMIF(TEJdata!$P:$P,$A71,TEJdata!$I:$I)/SUMIF(TEJdata!$P:$P,$A71,TEJdata!$J:$J)-1)*100,"-")) -> -0.4205610865 | J71: =IF(SUMIF(TEJdata!$P:$P,$A71,TEJdata!$K:$K)=0,0,IFERROR((SUMIF(TEJdata!$P:$P,$A71,TEJdata!$K:$K)/SUMIF(TEJdata!$P:$P,$A71,TEJdata!$L:$L)-1)*100,"-")) -> -3.02406307 | K71: =IF(SUMIF(TEJdata!$P:$P,$A71,TEJdata!$M:$M)=0,0,IFERROR((SUMIF(TEJdata!$P:$P,$A71,TEJdata!$M:$M)/SUMIF(TEJdata!$P:$P,$A71,TEJdata!$N:$N)-1)*100,"-")) -> 1.581169706
A72: M18 玻璃陶瓷 | B72: =COUNTIF(TEJdata!$P:$P,$A72) -> 6 | C72: =IF(SUMIF(TEJdata!$P:$P,$A72,TEJdata!$B:$B)=0,"",IF(AND(SUMIF(TEJdata!$P:$P,$A72,TEJdata!$B:$B)>0,SUMIF(TEJdata!$P:$P,$A72,TEJdata!$D:$D)<0),(SUMIF(TEJdata!$P:$P,$A72,TEJdata!$B:$B)/ABS(SUMIF(TEJdata!$P:$P,$A72,TEJdata!$D:$D)-1))*100,(SUMIF(TEJdata!$P:$P,$A72,TEJdata!$B:$B)/SUMIF(TEJdata!$P:$P,$A72,TEJdata!$D:$D)-1)*100)) -> 8.716312597 | D72: =IF(SUMIF(TEJdata!$P:$P,$A72,TEJdata!$B:$B)=0,"",(SUMIF(TEJdata!$P:$P,$A72,TEJdata!$B:$B)/SUMIF(TEJdata!$P:$P,$A72,TEJdata!$C:$C)-1)*100) -> 64.64714721 | E72: =IF(SUMIF(TEJdata!$P:$P,$A72,TEJdata!$E:$E)=0,"",(SUMIF(TEJdata!$P:$P,$A72,TEJdata!$E:$E)/SUMIF(TEJdata!$P:$P,$A72,TEJdata!$F:$F)-1)*100) -> 2.603542151 | F72: =SUMIF(TEJdata!$P:$P,$A72,TEJdata!$B:$B)/1000 -> 5184.956 | G72: =SUMIF(TEJdata!$P:$P,$A72,TEJdata!$G:$G)/$B72 -> 2.710783333 | H72: =SUMIF(TEJdata!$P:$P,$A72,TEJdata!$H:$H)/$B72 -> 4.9537 | I72: =IF(SUMIF(TEJdata!$P:$P,$A72,TEJdata!$I:$I)=0,0,IFERROR((SUMIF(TEJdata!$P:$P,$A72,TEJdata!$I:$I)/SUMIF(TEJdata!$P:$P,$A72,TEJdata!$J:$J)-1)*100,"-")) -> 0.4633117372 | J72: =IF(SUMIF(TEJdata!$P:$P,$A72,TEJdata!$K:$K)=0,0,IFERROR((SUMIF(TEJdata!$P:$P,$A72,TEJdata!$K:$K)/SUMIF(TEJdata!$P:$P,$A72,TEJdata!$L:$L)-1)*100,"-")) -> 0.2320185615 | K72: =IF(SUMIF(TEJdata!$P:$P,$A72,TEJdata!$M:$M)=0,0,IFERROR((SUMIF(TEJdata!$P:$P,$A72,TEJdata!$M:$M)/SUMIF(TEJdata!$P:$P,$A72,TEJdata!$N:$N)-1)*100,"-")) -> 6.637837117
A73: M28A 本國銀行 | B73: =COUNTIF(TEJdata!$P:$P,$A73) -> 9 | C73: =IF(SUMIF(TEJdata!$P:$P,$A73,TEJdata!$B:$B)=0,"",IF(AND(SUMIF(TEJdata!$P:$P,$A73,TEJdata!$B:$B)>0,SUMIF(TEJdata!$P:$P,$A73,TEJdata!$D:$D)<0),(SUMIF(TEJdata!$P:$P,$A73,TEJdata!$B:$B)/ABS(SUMIF(TEJdata!$P:$P,$A73,TEJdata!$D:$D)-1))*100,(SUMIF(TEJdata!$P:$P,$A73,TEJdata!$B:$B)/SUMIF(TEJdata!$P:$P,$A73,TEJdata!$D:$D)-1)*100)) -> 8.683437671 | D73: =IF(SUMIF(TEJdata!$P:$P,$A73,TEJdata!$B:$B)=0,"",(SUMIF(TEJdata!$P:$P,$A73,TEJdata!$B:$B)/SUMIF(TEJdata!$P:$P,$A73,TEJdata!$C:$C)-1)*100) -> 6.6793888 | E73: =IF(SUMIF(TEJdata!$P:$P,$A73,TEJdata!$E:$E)=0,"",(SUMIF(TEJdata!$P:$P,$A73,TEJdata!$E:$E)/SUMIF(TEJdata!$P:$P,$A73,TEJdata!$F:$F)-1)*100) -> 8.623944162 | F73: =SUMIF(TEJdata!$P:$P,$A73,TEJdata!$B:$B)/1000 -> 18256.558 | G73: =SUMIF(TEJdata!$P:$P,$A73,TEJdata!$G:$G)/$B73 -> 1.288755556 | H73: =SUMIF(TEJdata!$P:$P,$A73,TEJdata!$H:$H)/$B73 -> 2.9418 | I73: =IF(SUMIF(TEJdata!$P:$P,$A73,TEJdata!$I:$I)=0,0,IFERROR((SUMIF(TEJdata!$P:$P,$A73,TEJdata!$I:$I)/SUMIF(TEJdata!$P:$P,$A73,TEJdata!$J:$J)-1)*100,"-")) -> 0.3302599954 | J73: =IF(SUMIF(TEJdata!$P:$P,$A73,TEJdata!$K:$K)=0,0,IFERROR((SUMIF(TEJdata!$P:$P,$A73,TEJdata!$K:$K)/SUMIF(TEJdata!$P:$P,$A73,TEJdata!$L:$L)-1)*100,"-")) -> -0.06361216385 | K73: =IF(SUMIF(TEJdata!$P:$P,$A73,TEJdata!$M:$M)=0,0,IFERROR((SUMIF(TEJdata!$P:$P,$A73,TEJdata!$M:$M)/SUMIF(TEJdata!$P:$P,$A73,TEJdata!$N:$N)-1)*100,"-")) -> 0.5673430399
A74: M23D2 連接器 | B74: =COUNTIF(TEJdata!$P:$P,$A74) -> 47 | C74: =IF(SUMIF(TEJdata!$P:$P,$A74,TEJdata!$B:$B)=0,"",IF(AND(SUMIF(TEJdata!$P:$P,$A74,TEJdata!$B:$B)>0,SUMIF(TEJdata!$P:$P,$A74,TEJdata!$D:$D)<0),(SUMIF(TEJdata!$P:$P,$A74,TEJdata!$B:$B)/ABS(SUMIF(TEJdata!$P:$P,$A74,TEJdata!$D:$D)-1))*100,(SUMIF(TEJdata!$P:$P,$A74,TEJdata!$B:$B)/SUMIF(TEJdata!$P:$P,$A74,TEJdata!$D:$D)-1)*100)) -> 7.988941617 | D74: =IF(SUMIF(TEJdata!$P:$P,$A74,TEJdata!$B:$B)=0,"",(SUMIF(TEJdata!$P:$P,$A74,TEJdata!$B:$B)/SUMIF(TEJdata!$P:$P,$A74,TEJdata!$C:$C)-1)*100) -> 28.2285074 | E74: =IF(SUMIF(TEJdata!$P:$P,$A74,TEJdata!$E:$E)=0,"",(SUMIF(TEJdata!$P:$P,$A74,TEJdata!$E:$E)/SUMIF(TEJdata!$P:$P,$A74,TEJdata!$F:$F)-1)*100) -> 5.038649036 | F74: =SUMIF(TEJdata!$P:$P,$A74,TEJdata!$B:$B)/1000 -> 36886.056 | G74: =SUMIF(TEJdata!$P:$P,$A74,TEJdata!$G:$G)/$B74 -> 6.365006383 | H74: =SUMIF(TEJdata!$P:$P,$A74,TEJdata!$H:$H)/$B74 -> 7.19813617 | I74: =IF(SUMIF(TEJdata!$P:$P,$A74,TEJdata!$I:$I)=0,0,IFERROR((SUMIF(TEJdata!$P:$P,$A74,TEJdata!$I:$I)/SUMIF(TEJdata!$P:$P,$A74,TEJdata!$J:$J)-1)*100,"-")) -> 2.349083632 | J74: =IF(SUMIF(TEJdata!$P:$P,$A74,TEJdata!$K:$K)=0,0,IFERROR((SUMIF(TEJdata!$P:$P,$A74,TEJdata!$K:$K)/SUMIF(TEJdata!$P:$P,$A74,TEJdata!$L:$L)-1)*100,"-")) -> 2.171502342 | K74: =IF(SUMIF(TEJdata!$P:$P,$A74,TEJdata!$M:$M)=0,0,IFERROR((SUMIF(TEJdata!$P:$P,$A74,TEJdata!$M:$M)/SUMIF(TEJdata!$P:$P,$A74,TEJdata!$N:$N)-1)*100,"-")) -> 2.519574822
A75: M23G3C 晶圓材料 | B75: =COUNTIF(TEJdata!$P:$P,$A75) -> 8 | C75: =IF(SUMIF(TEJdata!$P:$P,$A75,TEJdata!$B:$B)=0,"",IF(AND(SUMIF(TEJdata!$P:$P,$A75,TEJdata!$B:$B)>0,SUMIF(TEJdata!$P:$P,$A75,TEJdata!$D:$D)<0),(SUMIF(TEJdata!$P:$P,$A75,TEJdata!$B:$B)/ABS(SUMIF(TEJdata!$P:$P,$A75,TEJdata!$D:$D)-1))*100,(SUMIF(TEJdata!$P:$P,$A75,TEJdata!$B:$B)/SUMIF(TEJdata!$P:$P,$A75,TEJdata!$D:$D)-1)*100)) -> 7.914758886 | D75: =IF(SUMIF(TEJdata!$P:$P,$A75,TEJdata!$B:$B)=0,"",(SUMIF(TEJdata!$P:$P,$A75,TEJdata!$B:$B)/SUMIF(TEJdata!$P:$P,$A75,TEJdata!$C:$C)-1)*100) -> 20.31977924 | E75: =IF(SUMIF(TEJdata!$P:$P,$A75,TEJdata!$E:$E)=0,"",(SUMIF(TEJdata!$P:$P,$A75,TEJdata!$E:$E)/SUMIF(TEJdata!$P:$P,$A75,TEJdata!$F:$F)-1)*100) -> -0.3734169382 | F75: =SUMIF(TEJdata!$P:$P,$A75,TEJdata!$B:$B)/1000 -> 16604.831 | G75: =SUMIF(TEJdata!$P:$P,$A75,TEJdata!$G:$G)/$B75 -> 14.5329625 | H75: =SUMIF(TEJdata!$P:$P,$A75,TEJdata!$H:$H)/$B75 -> 13.123725 | I75: =IF(SUMIF(TEJdata!$P:$P,$A75,TEJdata!$I:$I)=0,0,IFERROR((SUMIF(TEJdata!$P:$P,$A75,TEJdata!$I:$I)/SUMIF(TEJdata!$P:$P,$A75,TEJdata!$J:$J)-1)*100,"-")) -> 4.163249491 | J75: =IF(SUMIF(TEJdata!$P:$P,$A75,TEJdata!$K:$K)=0,0,IFERROR((SUMIF(TEJdata!$P:$P,$A75,TEJdata!$K:$K)/SUMIF(TEJdata!$P:$P,$A75,TEJdata!$L:$L)-1)*100,"-")) -> 4.17069547 | K75: =IF(SUMIF(TEJdata!$P:$P,$A75,TEJdata!$M:$M)=0,0,IFERROR((SUMIF(TEJdata!$P:$P,$A75,TEJdata!$M:$M)/SUMIF(TEJdata!$P:$P,$A75,TEJdata!$N:$N)-1)*100,"-")) -> 0.4144092767
A76: M23G5D 電源管理IC | B76: =COUNTIF(TEJdata!$P:$P,$A76) -> 11 | C76: =IF(SUMIF(TEJdata!$P:$P,$A76,TEJdata!$B:$B)=0,"",IF(AND(SUMIF(TEJdata!$P:$P,$A76,TEJdata!$B:$B)>0,SUMIF(TEJdata!$P:$P,$A76,TEJdata!$D:$D)<0),(SUMIF(TEJdata!$P:$P,$A76,TEJdata!$B:$B)/ABS(SUMIF(TEJdata!$P:$P,$A76,TEJdata!$D:$D)-1))*100,(SUMIF(TEJdata!$P:$P,$A76,TEJdata!$B:$B)/SUMIF(TEJdata!$P:$P,$A76,TEJdata!$D:$D)-1)*100)) -> 7.625423938 | D76: =IF(SUMIF(TEJdata!$P:$P,$A76,TEJdata!$B:$B)=0,"",(SUMIF(TEJdata!$P:$P,$A76,TEJdata!$B:$B)/SUMIF(TEJdata!$P:$P,$A76,TEJdata!$C:$C)-1)*100) -> 25.42337272 | E76: =IF(SUMIF(TEJdata!$P:$P,$A76,TEJdata!$E:$E)=0,"",(SUMIF(TEJdata!$P:$P,$A76,TEJdata!$E:$E)/SUMIF(TEJdata!$P:$P,$A76,TEJdata!$F:$F)-1)*100) -> 10.07302785 | F76: =SUMIF(TEJdata!$P:$P,$A76,TEJdata!$B:$B)/1000 -> 4262.492 | G76: =SUMIF(TEJdata!$P:$P,$A76,TEJdata!$G:$G)/$B76 -> 2.130218182 | H76: =SUMIF(TEJdata!$P:$P,$A76,TEJdata!$H:$H)/$B76 -> 1.175445455 | I76: =IF(SUMIF(TEJdata!$P:$P,$A76,TEJdata!$I:$I)=0,0,IFERROR((SUMIF(TEJdata!$P:$P,$A76,TEJdata!$I:$I)/SUMIF(TEJdata!$P:$P,$A76,TEJdata!$J:$J)-1)*100,"-")) -> 0.08071858062 | J76: =IF(SUMIF(TEJdata!$P:$P,$A76,TEJdata!$K:$K)=0,0,IFERROR((SUMIF(TEJdata!$P:$P,$A76,TEJdata!$K:$K)/SUMIF(TEJdata!$P:$P,$A76,TEJdata!$L:$L)-1)*100,"-")) -> -7.255185721 | K76: =IF(SUMIF(TEJdata!$P:$P,$A76,TEJdata!$M:$M)=0,0,IFERROR((SUMIF(TEJdata!$P:$P,$A76,TEJdata!$M:$M)/SUMIF(TEJdata!$P:$P,$A76,TEJdata!$N:$N)-1)*100,"-")) -> 0.5303720892
A77: M23B2C 軟板 | B77: =COUNTIF(TEJdata!$P:$P,$A77) -> 10 | C77: =IF(SUMIF(TEJdata!$P:$P,$A77,TEJdata!$B:$B)=0,"",IF(AND(SUMIF(TEJdata!$P:$P,$A77,TEJdata!$B:$B)>0,SUMIF(TEJdata!$P:$P,$A77,TEJdata!$D:$D)<0),(SUMIF(TEJdata!$P:$P,$A77,TEJdata!$B:$B)/ABS(SUMIF(TEJdata!$P:$P,$A77,TEJdata!$D:$D)-1))*100,(SUMIF(TEJdata!$P:$P,$A77,TEJdata!$B:$B)/SUMIF(TEJdata!$P:$P,$A77,TEJdata!$D:$D)-1)*100)) -> 7.426950807 | D77: =IF(SUMIF(TEJdata!$P:$P,$A77,TEJdata!$B:$B)=0,"",(SUMIF(TEJdata!$P:$P,$A77,TEJdata!$B:$B)/SUMIF(TEJdata!$P:$P,$A77,TEJdata!$C:$C)-1)*100) -> 34.33193772 | E77: =IF(SUMIF(TEJdata!$P:$P,$A77,TEJdata!$E:$E)=0,"",(SUMIF(TEJdata!$P:$P,$A77,TEJdata!$E:$E)/SUMIF(TEJdata!$P:$P,$A77,TEJdata!$F:$F)-1)*100) -> 2.14424247 | F77: =SUMIF(TEJdata!$P:$P,$A77,TEJdata!$B:$B)/1000 -> 19705.563 | G77: =SUMIF(TEJdata!$P:$P,$A77,TEJdata!$G:$G)/$B77 -> 8.08345 | H77: =SUMIF(TEJdata!$P:$P,$A77,TEJdata!$H:$H)/$B77 -> 11.40286 | I77: =IF(SUMIF(TEJdata!$P:$P,$A77,TEJdata!$I:$I)=0,0,IFERROR((SUMIF(TEJdata!$P:$P,$A77,TEJdata!$I:$I)/SUMIF(TEJdata!$P:$P,$A77,TEJdata!$J:$J)-1)*100,"-")) -> 1.546797637 | J77: =IF(SUMIF(TEJdata!$P:$P,$A77,TEJdata!$K:$K)=0,0,IFERROR((SUMIF(TEJdata!$P:$P,$A77,TEJdata!$K:$K)/SUMIF(TEJdata!$P:$P,$A77,TEJdata!$L:$L)-1)*100,"-")) -> 2.655322166 | K77: =IF(SUMIF(TEJdata!$P:$P,$A77,TEJdata!$M:$M)=0,0,IFERROR((SUMIF(TEJdata!$P:$P,$A77,TEJdata!$M:$M)/SUMIF(TEJdata!$P:$P,$A77,TEJdata!$N:$N)-1)*100,"-")) -> 19.81387961
A78: M23C8D 其他LCD | B78: =COUNTIF(TEJdata!$P:$P,$A78) -> 8 | C78: =IF(SUMIF(TEJdata!$P:$P,$A78,TEJdata!$B:$B)=0,"",IF(AND(SUMIF(TEJdata!$P:$P,$A78,TEJdata!$B:$B)>0,SUMIF(TEJdata!$P:$P,$A78,TEJdata!$D:$D)<0),(SUMIF(TEJdata!$P:$P,$A78,TEJdata!$B:$B)/ABS(SUMIF(TEJdata!$P:$P,$A78,TEJdata!$D:$D)-1))*100,(SUMIF(TEJdata!$P:$P,$A78,TEJdata!$B:$B)/SUMIF(TEJdata!$P:$P,$A78,TEJdata!$D:$D)-1)*100)) -> 6.972260208 | D78: =IF(SUMIF(TEJdata!$P:$P,$A78,TEJdata!$B:$B)=0,"",(SUMIF(TEJdata!$P:$P,$A78,TEJdata!$B:$B)/SUMIF(TEJdata!$P:$P,$A78,TEJdata!$C:$C)-1)*100) -> 25.08732475 | E78: =IF(SUMIF(TEJdata!$P:$P,$A78,TEJdata!$E:$E)=0,"",(SUMIF(TEJdata!$P:$P,$A78,TEJdata!$E:$E)/SUMIF(TEJdata!$P:$P,$A78,TEJdata!$F:$F)-1)*100) -> 2.671190738 | F78: =SUMIF(TEJdata!$P:$P,$A78,TEJdata!$B:$B)/1000 -> 1976.765 | G78: =SUMIF(TEJdata!$P:$P,$A78,TEJdata!$G:$G)/$B78 -> 2.963575 | H78: =SUMIF(TEJdata!$P:$P,$A78,TEJdata!$H:$H)/$B78 -> 3.89745 | I78: =IF(SUMIF(TEJdata!$P:$P,$A78,TEJdata!$I:$I)=0,0,IFERROR((SUMIF(TEJdata!$P:$P,$A78,TEJdata!$I:$I)/SUMIF(TEJdata!$P:$P,$A78,TEJdata!$J:$J)-1)*100,"-")) -> 0.5454766605 | J78: =IF(SUMIF(TEJdata!$P:$P,$A78,TEJdata!$K:$K)=0,0,IFERROR((SUMIF(TEJdata!$P:$P,$A78,TEJdata!$K:$K)/SUMIF(TEJdata!$P:$P,$A78,TEJdata!$L:$L)-1)*100,"-")) -> -0.0761614623 | K78: =IF(SUMIF(TEJdata!$P:$P,$A78,TEJdata!$M:$M)=0,0,IFERROR((SUMIF(TEJdata!$P:$P,$A78,TEJdata!$M:$M)/SUMIF(TEJdata!$P:$P,$A78,TEJdata!$N:$N)-1)*100,"-")) -> -0.07065322114
A79: M14F 不織布 | B79: =COUNTIF(TEJdata!$P:$P,$A79) -> 5 | C79: =IF(SUMIF(TEJdata!$P:$P,$A79,TEJdata!$B:$B)=0,"",IF(AND(SUMIF(TEJdata!$P:$P,$A79,TEJdata!$B:$B)>0,SUMIF(TEJdata!$P:$P,$A79,TEJdata!$D:$D)<0),(SUMIF(TEJdata!$P:$P,$A79,TEJdata!$B:$B)/ABS(SUMIF(TEJdata!$P:$P,$A79,TEJdata!$D:$D)-1))*100,(SUMIF(TEJdata!$P:$P,$A79,TEJdata!$B:$B)/SUMIF(TEJdata!$P:$P,$A79,TEJdata!$D:$D)-1)*100)) -> 6.714424457 | D79: =IF(SUMIF(TEJdata!$P:$P,$A79,TEJdata!$B:$B)=0,"",(SUMIF(TEJdata!$P:$P,$A79,TEJdata!$B:$B)/SUMIF(TEJdata!$P:$P,$A79,TEJdata!$C:$C)-1)*100) -> 47.19771709 | E79: =IF(SUMIF(TEJdata!$P:$P,$A79,TEJdata!$E:$E)=0,"",(SUMIF(TEJdata!$P:$P,$A79,TEJdata!$E:$E)/SUMIF(TEJdata!$P:$P,$A79,TEJdata!$F:$F)-1)*100) -> -0.4832370697 | F79: =SUMIF(TEJdata!$P:$P,$A79,TEJdata!$B:$B)/1000 -> 1224.055 | G79: =SUMIF(TEJdata!$P:$P,$A79,TEJdata!$G:$G)/$B79 -> -1.51156 | H79: =SUMIF(TEJdata!$P:$P,$A79,TEJdata!$H:$H)/$B79 -> -0.12272 | I79: =IF(SUMIF(TEJdata!$P:$P,$A79,TEJdata!$I:$I)=0,0,IFERROR((SUMIF(TEJdata!$P:$P,$A79,TEJdata!$I:$I)/SUMIF(TEJdata!$P:$P,$A79,TEJdata!$J:$J)-1)*100,"-")) -> -1.835740386 | J79: =IF(SUMIF(TEJdata!$P:$P,$A79,TEJdata!$K:$K)=0,0,IFERROR((SUMIF(TEJdata!$P:$P,$A79,TEJdata!$K:$K)/SUMIF(TEJdata!$P:$P,$A79,TEJdata!$L:$L)-1)*100,"-")) -> 0 | K79: =IF(SUMIF(TEJdata!$P:$P,$A79,TEJdata!$M:$M)=0,0,IFERROR((SUMIF(TEJdata!$P:$P,$A79,TEJdata!$M:$M)/SUMIF(TEJdata!$P:$P,$A79,TEJdata!$N:$N)-1)*100,"-")) -> -0.5582655827
A80: M23G5H 微控制器IC | B80: =COUNTIF(TEJdata!$P:$P,$A80) -> 15 | C80: =IF(SUMIF(TEJdata!$P:$P,$A80,TEJdata!$B:$B)=0,"",IF(AND(SUMIF(TEJdata!$P:$P,$A80,TEJdata!$B:$B)>0,SUMIF(TEJdata!$P:$P,$A80,TEJdata!$D:$D)<0),(SUMIF(TEJdata!$P:$P,$A80,TEJdata!$B:$B)/ABS(SUMIF(TEJdata!$P:$P,$A80,TEJdata!$D:$D)-1))*100,(SUMIF(TEJdata!$P:$P,$A80,TEJdata!$B:$B)/SUMIF(TEJdata!$P:$P,$A80,TEJdata!$D:$D)-1)*100)) -> 6.57231456 | D80: =IF(SUMIF(TEJdata!$P:$P,$A80,TEJdata!$B:$B)=0,"",(SUMIF(TEJdata!$P:$P,$A80,TEJdata!$B:$B)/SUMIF(TEJdata!$P:$P,$A80,TEJdata!$C:$C)-1)*100) -> 48.94998104 | E80: =IF(SUMIF(TEJdata!$P:$P,$A80,TEJdata!$E:$E)=0,"",(SUMIF(TEJdata!$P:$P,$A80,TEJdata!$E:$E)/SUMIF(TEJdata!$P:$P,$A80,TEJdata!$F:$F)-1)*100) -> 4.295611463 | F80: =SUMIF(TEJdata!$P:$P,$A80,TEJdata!$B:$B)/1000 -> 5535.236 | G80: =SUMIF(TEJdata!$P:$P,$A80,TEJdata!$G:$G)/$B80 -> 5.72724 | H80: =SUMIF(TEJdata!$P:$P,$A80,TEJdata!$H:$H)/$B80 -> 0.6861333333 | I80: =IF(SUMIF(TEJdata!$P:$P,$A80,TEJdata!$I:$I)=0,0,IFERROR((SUMIF(TEJdata!$P:$P,$A80,TEJdata!$I:$I)/SUMIF(TEJdata!$P:$P,$A80,TEJdata!$J:$J)-1)*100,"-")) -> -0.1674535623 | J80: =IF(SUMIF(TEJdata!$P:$P,$A80,TEJdata!$K:$K)=0,0,IFERROR((SUMIF(TEJdata!$P:$P,$A80,TEJdata!$K:$K)/SUMIF(TEJdata!$P:$P,$A80,TEJdata!$L:$L)-1)*100,"-")) -> -3.181189488 | K80: =IF(SUMIF(TEJdata!$P:$P,$A80,TEJdata!$M:$M)=0,0,IFERROR((SUMIF(TEJdata!$P:$P,$A80,TEJdata!$M:$M)/SUMIF(TEJdata!$P:$P,$A80,TEJdata!$N:$N)-1)*100,"-")) -> 0.8135545258
A81: M19A 造紙 | B81: =COUNTIF(TEJdata!$P:$P,$A81) -> 6 | C81: =IF(SUMIF(TEJdata!$P:$P,$A81,TEJdata!$B:$B)=0,"",IF(AND(SUMIF(TEJdata!$P:$P,$A81,TEJdata!$B:$B)>0,SUMIF(TEJdata!$P:$P,$A81,TEJdata!$D:$D)<0),(SUMIF(TEJdata!$P:$P,$A81,TEJdata!$B:$B)/ABS(SUMIF(TEJdata!$P:$P,$A81,TEJdata!$D:$D)-1))*100,(SUMIF(TEJdata!$P:$P,$A81,TEJdata!$B:$B)/SUMIF(TEJdata!$P:$P,$A81,TEJdata!$D:$D)-1)*100)) -> 5.822226022 | D81: =IF(SUMIF(TEJdata!$P:$P,$A81,TEJdata!$B:$B)=0,"",(SUMIF(TEJdata!$P:$P,$A81,TEJdata!$B:$B)/SUMIF(TEJdata!$P:$P,$A81,TEJdata!$C:$C)-1)*100) -> 59.79242757 | E81: =IF(SUMIF(TEJdata!$P:$P,$A81,TEJdata!$E:$E)=0,"",(SUMIF(TEJdata!$P:$P,$A81,TEJdata!$E:$E)/SUMIF(TEJdata!$P:$P,$A81,TEJdata!$F:$F)-1)*100) -> 1.194655026 | F81: =SUMIF(TEJdata!$P:$P,$A81,TEJdata!$B:$B)/1000 -> 16648.487 | G81: =SUMIF(TEJdata!$P:$P,$A81,TEJdata!$G:$G)/$B81 -> 0.06745 | H81: =SUMIF(TEJdata!$P:$P,$A81,TEJdata!$H:$H)/$B81 -> 4.378283333 | I81: =IF(SUMIF(TEJdata!$P:$P,$A81,TEJdata!$I:$I)=0,0,IFERROR((SUMIF(TEJdata!$P:$P,$A81,TEJdata!$I:$I)/SUMIF(TEJdata!$P:$P,$A81,TEJdata!$J:$J)-1)*100,"-")) -> 0.4311858716 | J81: =IF(SUMIF(TEJdata!$P:$P,$A81,TEJdata!$K:$K)=0,0,IFERROR((SUMIF(TEJdata!$P:$P,$A81,TEJdata!$K:$K)/SUMIF(TEJdata!$P:$P,$A81,TEJdata!$L:$L)-1)*100,"-")) -> 0.3913894325 | K81: =IF(SUMIF(TEJdata!$P:$P,$A81,TEJdata!$M:$M)=0,0,IFERROR((SUMIF(TEJdata!$P:$P,$A81,TEJdata!$M:$M)/SUMIF(TEJdata!$P:$P,$A81,TEJdata!$N:$N)-1)*100,"-")) -> -5.356009906
A82: M17G3 體外診斷 | B82: =COUNTIF(TEJdata!$P:$P,$A82) -> 12 | C82: =IF(SUMIF(TEJdata!$P:$P,$A82,TEJdata!$B:$B)=0,"",IF(AND(SUMIF(TEJdata!$P:$P,$A82,TEJdata!$B:$B)>0,SUMIF(TEJdata!$P:$P,$A82,TEJdata!$D:$D)<0),(SUMIF(TEJdata!$P:$P,$A82,TEJdata!$B:$B)/ABS(SUMIF(TEJdata!$P:$P,$A82,TEJdata!$D:$D)-1))*100,(SUMIF(TEJdata!$P:$P,$A82,TEJdata!$B:$B)/SUMIF(TEJdata!$P:$P,$A82,TEJdata!$D:$D)-1)*100)) -> 5.608178684 | D82: =IF(SUMIF(TEJdata!$P:$P,$A82,TEJdata!$B:$B)=0,"",(SUMIF(TEJdata!$P:$P,$A82,TEJdata!$B:$B)/SUMIF(TEJdata!$P:$P,$A82,TEJdata!$C:$C)-1)*100) -> 35.34420999 | E82: =IF(SUMIF(TEJdata!$P:$P,$A82,TEJdata!$E:$E)=0,"",(SUMIF(TEJdata!$P:$P,$A82,TEJdata!$E:$E)/SUMIF(TEJdata!$P:$P,$A82,TEJdata!$F:$F)-1)*100) -> -1.365399406 | F82: =SUMIF(TEJdata!$P:$P,$A82,TEJdata!$B:$B)/1000 -> 1566.145 | G82: =SUMIF(TEJdata!$P:$P,$A82,TEJdata!$G:$G)/$B82 -> -0.6500583333 | H82: =SUMIF(TEJdata!$P:$P,$A82,TEJdata!$H:$H)/$B82 -> -0.3154833333 | I82: =IF(SUMIF(TEJdata!$P:$P,$A82,TEJdata!$I:$I)=0,0,IFERROR((SUMIF(TEJdata!$P:$P,$A82,TEJdata!$I:$I)/SUMIF(TEJdata!$P:$P,$A82,TEJdata!$J:$J)-1)*100,"-")) -> -0.161175634 | J82: =IF(SUMIF(TEJdata!$P:$P,$A82,TEJdata!$K:$K)=0,0,IFERROR((SUMIF(TEJdata!$P:$P,$A82,TEJdata!$K:$K)/SUMIF(TEJdata!$P:$P,$A82,TEJdata!$L:$L)-1)*100,"-")) -> 0 | K82: =IF(SUMIF(TEJdata!$P:$P,$A82,TEJdata!$M:$M)=0,0,IFERROR((SUMIF(TEJdata!$P:$P,$A82,TEJdata!$M:$M)/SUMIF(TEJdata!$P:$P,$A82,TEJdata!$N:$N)-1)*100,"-")) -> 0.3284431793
A83: M23D1 分離式元件 | B83: =COUNTIF(TEJdata!$P:$P,$A83) -> 7 | C83: =IF(SUMIF(TEJdata!$P:$P,$A83,TEJdata!$B:$B)=0,"",IF(AND(SUMIF(TEJdata!$P:$P,$A83,TEJdata!$B:$B)>0,SUMIF(TEJdata!$P:$P,$A83,TEJdata!$D:$D)<0),(SUMIF(TEJdata!$P:$P,$A83,TEJdata!$B:$B)/ABS(SUMIF(TEJdata!$P:$P,$A83,TEJdata!$D:$D)-1))*100,(SUMIF(TEJdata!$P:$P,$A83,TEJdata!$B:$B)/SUMIF(TEJdata!$P:$P,$A83,TEJdata!$D:$D)-1)*100)) -> 5.385441114 | D83: =IF(SUMIF(TEJdata!$P:$P,$A83,TEJdata!$B:$B)=0,"",(SUMIF(TEJdata!$P:$P,$A83,TEJdata!$B:$B)/SUMIF(TEJdata!$P:$P,$A83,TEJdata!$C:$C)-1)*100) -> 21.39631096 | E83: =IF(SUMIF(TEJdata!$P:$P,$A83,TEJdata!$E:$E)=0,"",(SUMIF(TEJdata!$P:$P,$A83,TEJdata!$E:$E)/SUMIF(TEJdata!$P:$P,$A83,TEJdata!$F:$F)-1)*100) -> 1.647810938 | F83: =SUMIF(TEJdata!$P:$P,$A83,TEJdata!$B:$B)/1000 -> 3955.456 | G83: =SUMIF(TEJdata!$P:$P,$A83,TEJdata!$G:$G)/$B83 -> 3.889728571 | H83: =SUMIF(TEJdata!$P:$P,$A83,TEJdata!$H:$H)/$B83 -> 4.557857143 | I83: =IF(SUMIF(TEJdata!$P:$P,$A83,TEJdata!$I:$I)=0,0,IFERROR((SUMIF(TEJdata!$P:$P,$A83,TEJdata!$I:$I)/SUMIF(TEJdata!$P:$P,$A83,TEJdata!$J:$J)-1)*100,"-")) -> -0.8892734505 | J83: =IF(SUMIF(TEJdata!$P:$P,$A83,TEJdata!$K:$K)=0,0,IFERROR((SUMIF(TEJdata!$P:$P,$A83,TEJdata!$K:$K)/SUMIF(TEJdata!$P:$P,$A83,TEJdata!$L:$L)-1)*100,"-")) -> -15.40379307 | K83: =IF(SUMIF(TEJdata!$P:$P,$A83,TEJdata!$M:$M)=0,0,IFERROR((SUMIF(TEJdata!$P:$P,$A83,TEJdata!$M:$M)/SUMIF(TEJdata!$P:$P,$A83,TEJdata!$N:$N)-1)*100,"-")) -> 4.699888919
A84: M23KX 其他網通 | B84: =COUNTIF(TEJdata!$P:$P,$A84) -> 5 | C84: =IF(SUMIF(TEJdata!$P:$P,$A84,TEJdata!$B:$B)=0,"",IF(AND(SUMIF(TEJdata!$P:$P,$A84,TEJdata!$B:$B)>0,SUMIF(TEJdata!$P:$P,$A84,TEJdata!$D:$D)<0),(SUMIF(TEJdata!$P:$P,$A84,TEJdata!$B:$B)/ABS(SUMIF(TEJdata!$P:$P,$A84,TEJdata!$D:$D)-1))*100,(SUMIF(TEJdata!$P:$P,$A84,TEJdata!$B:$B)/SUMIF(TEJdata!$P:$P,$A84,TEJdata!$D:$D)-1)*100)) -> 5.215905175 | D84: =IF(SUMIF(TEJdata!$P:$P,$A84,TEJdata!$B:$B)=0,"",(SUMIF(TEJdata!$P:$P,$A84,TEJdata!$B:$B)/SUMIF(TEJdata!$P:$P,$A84,TEJdata!$C:$C)-1)*100) -> 33.29782887 | E84: =IF(SUMIF(TEJdata!$P:$P,$A84,TEJdata!$E:$E)=0,"",(SUMIF(TEJdata!$P:$P,$A84,TEJdata!$E:$E)/SUMIF(TEJdata!$P:$P,$A84,TEJdata!$F:$F)-1)*100) -> -0.2385212849 | F84: =SUMIF(TEJdata!$P:$P,$A84,TEJdata!$B:$B)/1000 -> 763.394 | G84: =SUMIF(TEJdata!$P:$P,$A84,TEJdata!$G:$G)/$B84 -> 0.45602 | H84: =SUMIF(TEJdata!$P:$P,$A84,TEJdata!$H:$H)/$B84 -> -5.52324 | I84: =IF(SUMIF(TEJdata!$P:$P,$A84,TEJdata!$I:$I)=0,0,IFERROR((SUMIF(TEJdata!$P:$P,$A84,TEJdata!$I:$I)/SUMIF(TEJdata!$P:$P,$A84,TEJdata!$J:$J)-1)*100,"-")) -> 0.1482618479 | J84: =IF(SUMIF(TEJdata!$P:$P,$A84,TEJdata!$K:$K)=0,0,IFERROR((SUMIF(TEJdata!$P:$P,$A84,TEJdata!$K:$K)/SUMIF(TEJdata!$P:$P,$A84,TEJdata!$L:$L)-1)*100,"-")) -> 0 | K84: =IF(SUMIF(TEJdata!$P:$P,$A84,TEJdata!$M:$M)=0,0,IFERROR((SUMIF(TEJdata!$P:$P,$A84,TEJdata!$M:$M)/SUMIF(TEJdata!$P:$P,$A84,TEJdata!$N:$N)-1)*100,"-")) -> -4.435710275
A85: M23G5B 網通射頻IC | B85: =COUNTIF(TEJdata!$P:$P,$A85) -> 11 | C85: =IF(SUMIF(TEJdata!$P:$P,$A85,TEJdata!$B:$B)=0,"",IF(AND(SUMIF(TEJdata!$P:$P,$A85,TEJdata!$B:$B)>0,SUMIF(TEJdata!$P:$P,$A85,TEJdata!$D:$D)<0),(SUMIF(TEJdata!$P:$P,$A85,TEJdata!$B:$B)/ABS(SUMIF(TEJdata!$P:$P,$A85,TEJdata!$D:$D)-1))*100,(SUMIF(TEJdata!$P:$P,$A85,TEJdata!$B:$B)/SUMIF(TEJdata!$P:$P,$A85,TEJdata!$D:$D)-1)*100)) -> 5.047271373 | D85: =IF(SUMIF(TEJdata!$P:$P,$A85,TEJdata!$B:$B)=0,"",(SUMIF(TEJdata!$P:$P,$A85,TEJdata!$B:$B)/SUMIF(TEJdata!$P:$P,$A85,TEJdata!$C:$C)-1)*100) -> 15.93696903 | E85: =IF(SUMIF(TEJdata!$P:$P,$A85,TEJdata!$E:$E)=0,"",(SUMIF(TEJdata!$P:$P,$A85,TEJdata!$E:$E)/SUMIF(TEJdata!$P:$P,$A85,TEJdata!$F:$F)-1)*100) -> 4.320840244 | F85: =SUMIF(TEJdata!$P:$P,$A85,TEJdata!$B:$B)/1000 -> 15019.079 | G85: =SUMIF(TEJdata!$P:$P,$A85,TEJdata!$G:$G)/$B85 -> 0.5212818182 | H85: =SUMIF(TEJdata!$P:$P,$A85,TEJdata!$H:$H)/$B85 -> 3.675518182 | I85: =IF(SUMIF(TEJdata!$P:$P,$A85,TEJdata!$I:$I)=0,0,IFERROR((SUMIF(TEJdata!$P:$P,$A85,TEJdata!$I:$I)/SUMIF(TEJdata!$P:$P,$A85,TEJdata!$J:$J)-1)*100,"-")) -> -0.08535642719 | J85: =IF(SUMIF(TEJdata!$P:$P,$A85,TEJdata!$K:$K)=0,0,IFERROR((SUMIF(TEJdata!$P:$P,$A85,TEJdata!$K:$K)/SUMIF(TEJdata!$P:$P,$A85,TEJdata!$L:$L)-1)*100,"-")) -> 0.7785863315 | K85: =IF(SUMIF(TEJdata!$P:$P,$A85,TEJdata!$M:$M)=0,0,IFERROR((SUMIF(TEJdata!$P:$P,$A85,TEJdata!$M:$M)/SUMIF(TEJdata!$P:$P,$A85,TEJdata!$N:$N)-1)*100,"-")) -> -0.9750812568
A86: M12B 油脂飼料 | B86: =COUNTIF(TEJdata!$P:$P,$A86) -> 12 | C86: =IF(SUMIF(TEJdata!$P:$P,$A86,TEJdata!$B:$B)=0,"",IF(AND(SUMIF(TEJdata!$P:$P,$A86,TEJdata!$B:$B)>0,SUMIF(TEJdata!$P:$P,$A86,TEJdata!$D:$D)<0),(SUMIF(TEJdata!$P:$P,$A86,TEJdata!$B:$B)/ABS(SUMIF(TEJdata!$P:$P,$A86,TEJdata!$D:$D)-1))*100,(SUMIF(TEJdata!$P:$P,$A86,TEJdata!$B:$B)/SUMIF(TEJdata!$P:$P,$A86,TEJdata!$D:$D)-1)*100)) -> 4.95180119 | D86: =IF(SUMIF(TEJdata!$P:$P,$A86,TEJdata!$B:$B)=0,"",(SUMIF(TEJdata!$P:$P,$A86,TEJdata!$B:$B)/SUMIF(TEJdata!$P:$P,$A86,TEJdata!$C:$C)-1)*100) -> 22.05269569 | E86: =IF(SUMIF(TEJdata!$P:$P,$A86,TEJdata!$E:$E)=0,"",(SUMIF(TEJdata!$P:$P,$A86,TEJdata!$E:$E)/SUMIF(TEJdata!$P:$P,$A86,TEJdata!$F:$F)-1)*100) -> 4.218034422 | F86: =SUMIF(TEJdata!$P:$P,$A86,TEJdata!$B:$B)/1000 -> 20583.799 | G86: =SUMIF(TEJdata!$P:$P,$A86,TEJdata!$G:$G)/$B86 -> 1.860916667 | H86: =SUMIF(TEJdata!$P:$P,$A86,TEJdata!$H:$H)/$B86 -> 1.8362 | I86: =IF(SUMIF(TEJdata!$P:$P,$A86,TEJdata!$I:$I)=0,0,IFERROR((SUMIF(TEJdata!$P:$P,$A86,TEJdata!$I:$I)/SUMIF(TEJdata!$P:$P,$A86,TEJdata!$J:$J)-1)*100,"-")) -> 0.3703834865 | J86: =IF(SUMIF(TEJdata!$P:$P,$A86,TEJdata!$K:$K)=0,0,IFERROR((SUMIF(TEJdata!$P:$P,$A86,TEJdata!$K:$K)/SUMIF(TEJdata!$P:$P,$A86,TEJdata!$L:$L)-1)*100,"-")) -> -1.703077718 | K86: =IF(SUMIF(TEJdata!$P:$P,$A86,TEJdata!$M:$M)=0,0,IFERROR((SUMIF(TEJdata!$P:$P,$A86,TEJdata!$M:$M)/SUMIF(TEJdata!$P:$P,$A86,TEJdata!$N:$N)-1)*100,"-")) -> 0.2594306549
A87: M16 電纜 | B87: =COUNTIF(TEJdata!$P:$P,$A87) -> 11 | C87: =IF(SUMIF(TEJdata!$P:$P,$A87,TEJdata!$B:$B)=0,"",IF(AND(SUMIF(TEJdata!$P:$P,$A87,TEJdata!$B:$B)>0,SUMIF(TEJdata!$P:$P,$A87,TEJdata!$D:$D)<0),(SUMIF(TEJdata!$P:$P,$A87,TEJdata!$B:$B)/ABS(SUMIF(TEJdata!$P:$P,$A87,TEJdata!$D:$D)-1))*100,(SUMIF(TEJdata!$P:$P,$A87,TEJdata!$B:$B)/SUMIF(TEJdata!$P:$P,$A87,TEJdata!$D:$D)-1)*100)) -> 4.877927333 | D87: =IF(SUMIF(TEJdata!$P:$P,$A87,TEJdata!$B:$B)=0,"",(SUMIF(TEJdata!$P:$P,$A87,TEJdata!$B:$B)/SUMIF(TEJdata!$P:$P,$A87,TEJdata!$C:$C)-1)*100) -> 37.48457689 | E87: =IF(SUMIF(TEJdata!$P:$P,$A87,TEJdata!$E:$E)=0,"",(SUMIF(TEJdata!$P:$P,$A87,TEJdata!$E:$E)/SUMIF(TEJdata!$P:$P,$A87,TEJdata!$F:$F)-1)*100) -> -2.43627824 | F87: =SUMIF(TEJdata!$P:$P,$A87,TEJdata!$B:$B)/1000 -> 23969.156 | G87: =SUMIF(TEJdata!$P:$P,$A87,TEJdata!$G:$G)/$B87 -> 1.690136364 | H87: =SUMIF(TEJdata!$P:$P,$A87,TEJdata!$H:$H)/$B87 -> -3.913509091 | I87: =IF(SUMIF(TEJdata!$P:$P,$A87,TEJdata!$I:$I)=0,0,IFERROR((SUMIF(TEJdata!$P:$P,$A87,TEJdata!$I:$I)/SUMIF(TEJdata!$P:$P,$A87,TEJdata!$J:$J)-1)*100,"-")) -> 1.780774984 | J87: =IF(SUMIF(TEJdata!$P:$P,$A87,TEJdata!$K:$K)=0,0,IFERROR((SUMIF(TEJdata!$P:$P,$A87,TEJdata!$K:$K)/SUMIF(TEJdata!$P:$P,$A87,TEJdata!$L:$L)-1)*100,"-")) -> -1.183229015 | K87: =IF(SUMIF(TEJdata!$P:$P,$A87,TEJdata!$M:$M)=0,0,IFERROR((SUMIF(TEJdata!$P:$P,$A87,TEJdata!$M:$M)/SUMIF(TEJdata!$P:$P,$A87,TEJdata!$N:$N)-1)*100,"-")) -> -3.724992098
A88: M17G2 手術與治療 | B88: =COUNTIF(TEJdata!$P:$P,$A88) -> 15 | C88: =IF(SUMIF(TEJdata!$P:$P,$A88,TEJdata!$B:$B)=0,"",IF(AND(SUMIF(TEJdata!$P:$P,$A88,TEJdata!$B:$B)>0,SUMIF(TEJdata!$P:$P,$A88,TEJdata!$D:$D)<0),(SUMIF(TEJdata!$P:$P,$A88,TEJdata!$B:$B)/ABS(SUMIF(TEJdata!$P:$P,$A88,TEJdata!$D:$D)-1))*100,(SUMIF(TEJdata!$P:$P,$A88,TEJdata!$B:$B)/SUMIF(TEJdata!$P:$P,$A88,TEJdata!$D:$D)-1)*100)) -> 4.742443378 | D88: =IF(SUMIF(TEJdata!$P:$P,$A88,TEJdata!$B:$B)=0,"",(SUMIF(TEJdata!$P:$P,$A88,TEJdata!$B:$B)/SUMIF(TEJdata!$P:$P,$A88,TEJdata!$C:$C)-1)*100) -> 33.80803899 | E88: =IF(SUMIF(TEJdata!$P:$P,$A88,TEJdata!$E:$E)=0,"",(SUMIF(TEJdata!$P:$P,$A88,TEJdata!$E:$E)/SUMIF(TEJdata!$P:$P,$A88,TEJdata!$F:$F)-1)*100) -> 6.625046372 | F88: =SUMIF(TEJdata!$P:$P,$A88,TEJdata!$B:$B)/1000 -> 3275.115 | G88: =SUMIF(TEJdata!$P:$P,$A88,TEJdata!$G:$G)/$B88 -> 0.7672733333 | H88: =SUMIF(TEJdata!$P:$P,$A88,TEJdata!$H:$H)/$B88 -> 0.5288733333 | I88: =IF(SUMIF(TEJdata!$P:$P,$A88,TEJdata!$I:$I)=0,0,IFERROR((SUMIF(TEJdata!$P:$P,$A88,TEJdata!$I:$I)/SUMIF(TEJdata!$P:$P,$A88,TEJdata!$J:$J)-1)*100,"-")) -> -0.3012105797 | J88: =IF(SUMIF(TEJdata!$P:$P,$A88,TEJdata!$K:$K)=0,0,IFERROR((SUMIF(TEJdata!$P:$P,$A88,TEJdata!$K:$K)/SUMIF(TEJdata!$P:$P,$A88,TEJdata!$L:$L)-1)*100,"-")) -> 0 | K88: =IF(SUMIF(TEJdata!$P:$P,$A88,TEJdata!$M:$M)=0,0,IFERROR((SUMIF(TEJdata!$P:$P,$A88,TEJdata!$M:$M)/SUMIF(TEJdata!$P:$P,$A88,TEJdata!$N:$N)-1)*100,"-")) -> 1.472279733
A89: M27C 旅行社 | B89: =COUNTIF(TEJdata!$P:$P,$A89) -> 7 | C89: =IF(SUMIF(TEJdata!$P:$P,$A89,TEJdata!$B:$B)=0,"",IF(AND(SUMIF(TEJdata!$P:$P,$A89,TEJdata!$B:$B)>0,SUMIF(TEJdata!$P:$P,$A89,TEJdata!$D:$D)<0),(SUMIF(TEJdata!$P:$P,$A89,TEJdata!$B:$B)/ABS(SUMIF(TEJdata!$P:$P,$A89,TEJdata!$D:$D)-1))*100,(SUMIF(TEJdata!$P:$P,$A89,TEJdata!$B:$B)/SUMIF(TEJdata!$P:$P,$A89,TEJdata!$D:$D)-1)*100)) -> 4.555890998 | D89: =IF(SUMIF(TEJdata!$P:$P,$A89,TEJdata!$B:$B)=0,"",(SUMIF(TEJdata!$P:$P,$A89,TEJdata!$B:$B)/SUMIF(TEJdata!$P:$P,$A89,TEJdata!$C:$C)-1)*100) -> -19.85907 | E89: =IF(SUMIF(TEJdata!$P:$P,$A89,TEJdata!$E:$E)=0,"",(SUMIF(TEJdata!$P:$P,$A89,TEJdata!$E:$E)/SUMIF(TEJdata!$P:$P,$A89,TEJdata!$F:$F)-1)*100) -> 10.48194572 | F89: =SUMIF(TEJdata!$P:$P,$A89,TEJdata!$B:$B)/1000 -> 5032.848 | G89: =SUMIF(TEJdata!$P:$P,$A89,TEJdata!$G:$G)/$B89 -> -0.03574285714 | H89: =SUMIF(TEJdata!$P:$P,$A89,TEJdata!$H:$H)/$B89 -> -1.336828571 | I89: =IF(SUMIF(TEJdata!$P:$P,$A89,TEJdata!$I:$I)=0,0,IFERROR((SUMIF(TEJdata!$P:$P,$A89,TEJdata!$I:$I)/SUMIF(TEJdata!$P:$P,$A89,TEJdata!$J:$J)-1)*100,"-")) -> -3.455472305 | J89: =IF(SUMIF(TEJdata!$P:$P,$A89,TEJdata!$K:$K)=0,0,IFERROR((SUMIF(TEJdata!$P:$P,$A89,TEJdata!$K:$K)/SUMIF(TEJdata!$P:$P,$A89,TEJdata!$L:$L)-1)*100,"-")) -> 0 | K89: =IF(SUMIF(TEJdata!$P:$P,$A89,TEJdata!$M:$M)=0,0,IFERROR((SUMIF(TEJdata!$P:$P,$A89,TEJdata!$M:$M)/SUMIF(TEJdata!$P:$P,$A89,TEJdata!$N:$N)-1)*100,"-")) -> 1.733333333
A90: M23E1 電子商務 | B90: =COUNTIF(TEJdata!$P:$P,$A90) -> 10 | C90: =IF(SUMIF(TEJdata!$P:$P,$A90,TEJdata!$B:$B)=0,"",IF(AND(SUMIF(TEJdata!$P:$P,$A90,TEJdata!$B:$B)>0,SUMIF(TEJdata!$P:$P,$A90,TEJdata!$D:$D)<0),(SUMIF(TEJdata!$P:$P,$A90,TEJdata!$B:$B)/ABS(SUMIF(TEJdata!$P:$P,$A90,TEJdata!$D:$D)-1))*100,(SUMIF(TEJdata!$P:$P,$A90,TEJdata!$B:$B)/SUMIF(TEJdata!$P:$P,$A90,TEJdata!$D:$D)-1)*100)) -> 3.630229183 | D90: =IF(SUMIF(TEJdata!$P:$P,$A90,TEJdata!$B:$B)=0,"",(SUMIF(TEJdata!$P:$P,$A90,TEJdata!$B:$B)/SUMIF(TEJdata!$P:$P,$A90,TEJdata!$C:$C)-1)*100) -> 11.45324135 | E90: =IF(SUMIF(TEJdata!$P:$P,$A90,TEJdata!$E:$E)=0,"",(SUMIF(TEJdata!$P:$P,$A90,TEJdata!$E:$E)/SUMIF(TEJdata!$P:$P,$A90,TEJdata!$F:$F)-1)*100) -> 2.222420427 | F90: =SUMIF(TEJdata!$P:$P,$A90,TEJdata!$B:$B)/1000 -> 13419.61 | G90: =SUMIF(TEJdata!$P:$P,$A90,TEJdata!$G:$G)/$B90 -> 0.28117 | H90: =SUMIF(TEJdata!$P:$P,$A90,TEJdata!$H:$H)/$B90 -> 4.65252 | I90: =IF(SUMIF(TEJdata!$P:$P,$A90,TEJdata!$I:$I)=0,0,IFERROR((SUMIF(TEJdata!$P:$P,$A90,TEJdata!$I:$I)/SUMIF(TEJdata!$P:$P,$A90,TEJdata!$J:$J)-1)*100,"-")) -> 0.2214839424 | J90: =IF(SUMIF(TEJdata!$P:$P,$A90,TEJdata!$K:$K)=0,0,IFERROR((SUMIF(TEJdata!$P:$P,$A90,TEJdata!$K:$K)/SUMIF(TEJdata!$P:$P,$A90,TEJdata!$L:$L)-1)*100,"-")) -> 0.1083423619 | K90: =IF(SUMIF(TEJdata!$P:$P,$A90,TEJdata!$M:$M)=0,0,IFERROR((SUMIF(TEJdata!$P:$P,$A90,TEJdata!$M:$M)/SUMIF(TEJdata!$P:$P,$A90,TEJdata!$N:$N)-1)*100,"-")) -> 2.052011377
A91: M15D 汽車組件 | B91: =COUNTIF(TEJdata!$P:$P,$A91) -> 53 | C91: =IF(SUMIF(TEJdata!$P:$P,$A91,TEJdata!$B:$B)=0,"",IF(AND(SUMIF(TEJdata!$P:$P,$A91,TEJdata!$B:$B)>0,SUMIF(TEJdata!$P:$P,$A91,TEJdata!$D:$D)<0),(SUMIF(TEJdata!$P:$P,$A91,TEJdata!$B:$B)/ABS(SUMIF(TEJdata!$P:$P,$A91,TEJdata!$D:$D)-1))*100,(SUMIF(TEJdata!$P:$P,$A91,TEJdata!$B:$B)/SUMIF(TEJdata!$P:$P,$A91,TEJdata!$D:$D)-1)*100)) -> 3.552807706 | D91: =IF(SUMIF(TEJdata!$P:$P,$A91,TEJdata!$B:$B)=0,"",(SUMIF(TEJdata!$P:$P,$A91,TEJdata!$B:$B)/SUMIF(TEJdata!$P:$P,$A91,TEJdata!$C:$C)-1)*100) -> 22.04884193 | E91: =IF(SUMIF(TEJdata!$P:$P,$A91,TEJdata!$E:$E)=0,"",(SUMIF(TEJdata!$P:$P,$A91,TEJdata!$E:$E)/SUMIF(TEJdata!$P:$P,$A91,TEJdata!$F:$F)-1)*100) -> 0.6975257633 | F91: =SUMIF(TEJdata!$P:$P,$A91,TEJdata!$B:$B)/1000 -> 22071.874 | G91: =SUMIF(TEJdata!$P:$P,$A91,TEJdata!$G:$G)/$B91 -> 1.049349057 | H91: =SUMIF(TEJdata!$P:$P,$A91,TEJdata!$H:$H)/$B91 -> 1.027432075 | I91: =IF(SUMIF(TEJdata!$P:$P,$A91,TEJdata!$I:$I)=0,0,IFERROR((SUMIF(TEJdata!$P:$P,$A91,TEJdata!$I:$I)/SUMIF(TEJdata!$P:$P,$A91,TEJdata!$J:$J)-1)*100,"-")) -> 0.850563797 | J91: =IF(SUMIF(TEJdata!$P:$P,$A91,TEJdata!$K:$K)=0,0,IFERROR((SUMIF(TEJdata!$P:$P,$A91,TEJdata!$K:$K)/SUMIF(TEJdata!$P:$P,$A91,TEJdata!$L:$L)-1)*100,"-")) -> -3.420468599 | K91: =IF(SUMIF(TEJdata!$P:$P,$A91,TEJdata!$M:$M)=0,0,IFERROR((SUMIF(TEJdata!$P:$P,$A91,TEJdata!$M:$M)/SUMIF(TEJdata!$P:$P,$A91,TEJdata!$N:$N)-1)*100,"-")) -> 0.947190003
A92: M27A2 餐飲 | B92: =COUNTIF(TEJdata!$P:$P,$A92) -> 23 | C92: =IF(SUMIF(TEJdata!$P:$P,$A92,TEJdata!$B:$B)=0,"",IF(AND(SUMIF(TEJdata!$P:$P,$A92,TEJdata!$B:$B)>0,SUMIF(TEJdata!$P:$P,$A92,TEJdata!$D:$D)<0),(SUMIF(TEJdata!$P:$P,$A92,TEJdata!$B:$B)/ABS(SUMIF(TEJdata!$P:$P,$A92,TEJdata!$D:$D)-1))*100,(SUMIF(TEJdata!$P:$P,$A92,TEJdata!$B:$B)/SUMIF(TEJdata!$P:$P,$A92,TEJdata!$D:$D)-1)*100)) -> 3.471933829 | D92: =IF(SUMIF(TEJdata!$P:$P,$A92,TEJdata!$B:$B)=0,"",(SUMIF(TEJdata!$P:$P,$A92,TEJdata!$B:$B)/SUMIF(TEJdata!$P:$P,$A92,TEJdata!$C:$C)-1)*100) -> -8.481180492 | E92: =IF(SUMIF(TEJdata!$P:$P,$A92,TEJdata!$E:$E)=0,"",(SUMIF(TEJdata!$P:$P,$A92,TEJdata!$E:$E)/SUMIF(TEJdata!$P:$P,$A92,TEJdata!$F:$F)-1)*100) -> 4.49197669 | F92: =SUMIF(TEJdata!$P:$P,$A92,TEJdata!$B:$B)/1000 -> 9403.221 | G92: =SUMIF(TEJdata!$P:$P,$A92,TEJdata!$G:$G)/$B92 -> -2.7593 | H92: =SUMIF(TEJdata!$P:$P,$A92,TEJdata!$H:$H)/$B92 -> -2.876926087 | I92: =IF(SUMIF(TEJdata!$P:$P,$A92,TEJdata!$I:$I)=0,0,IFERROR((SUMIF(TEJdata!$P:$P,$A92,TEJdata!$I:$I)/SUMIF(TEJdata!$P:$P,$A92,TEJdata!$J:$J)-1)*100,"-")) -> -0.1866361864 | J92: =IF(SUMIF(TEJdata!$P:$P,$A92,TEJdata!$K:$K)=0,0,IFERROR((SUMIF(TEJdata!$P:$P,$A92,TEJdata!$K:$K)/SUMIF(TEJdata!$P:$P,$A92,TEJdata!$L:$L)-1)*100,"-")) -> 0 | K92: =IF(SUMIF(TEJdata!$P:$P,$A92,TEJdata!$M:$M)=0,0,IFERROR((SUMIF(TEJdata!$P:$P,$A92,TEJdata!$M:$M)/SUMIF(TEJdata!$P:$P,$A92,TEJdata!$N:$N)-1)*100,"-")) -> 1.836237587
A93: M20A1 線材 | B93: =COUNTIF(TEJdata!$P:$P,$A93) -> 20 | C93: =IF(SUMIF(TEJdata!$P:$P,$A93,TEJdata!$B:$B)=0,"",IF(AND(SUMIF(TEJdata!$P:$P,$A93,TEJdata!$B:$B)>0,SUMIF(TEJdata!$P:$P,$A93,TEJdata!$D:$D)<0),(SUMIF(TEJdata!$P:$P,$A93,TEJdata!$B:$B)/ABS(SUMIF(TEJdata!$P:$P,$A93,TEJdata!$D:$D)-1))*100,(SUMIF(TEJdata!$P:$P,$A93,TEJdata!$B:$B)/SUMIF(TEJdata!$P:$P,$A93,TEJdata!$D:$D)-1)*100)) -> 3.401123748 | D93: =IF(SUMIF(TEJdata!$P:$P,$A93,TEJdata!$B:$B)=0,"",(SUMIF(TEJdata!$P:$P,$A93,TEJdata!$B:$B)/SUMIF(TEJdata!$P:$P,$A93,TEJdata!$C:$C)-1)*100) -> 31.15221458 | E93: =IF(SUMIF(TEJdata!$P:$P,$A93,TEJdata!$E:$E)=0,"",(SUMIF(TEJdata!$P:$P,$A93,TEJdata!$E:$E)/SUMIF(TEJdata!$P:$P,$A93,TEJdata!$F:$F)-1)*100) -> 2.270237008 | F93: =SUMIF(TEJdata!$P:$P,$A93,TEJdata!$B:$B)/1000 -> 10111.66 | G93: =SUMIF(TEJdata!$P:$P,$A93,TEJdata!$G:$G)/$B93 -> 1.128795 | H93: =SUMIF(TEJdata!$P:$P,$A93,TEJdata!$H:$H)/$B93 -> 2.297185 | I93: =IF(SUMIF(TEJdata!$P:$P,$A93,TEJdata!$I:$I)=0,0,IFERROR((SUMIF(TEJdata!$P:$P,$A93,TEJdata!$I:$I)/SUMIF(TEJdata!$P:$P,$A93,TEJdata!$J:$J)-1)*100,"-")) -> 0.7510012779 | J93: =IF(SUMIF(TEJdata!$P:$P,$A93,TEJdata!$K:$K)=0,0,IFERROR((SUMIF(TEJdata!$P:$P,$A93,TEJdata!$K:$K)/SUMIF(TEJdata!$P:$P,$A93,TEJdata!$L:$L)-1)*100,"-")) -> 112.5 | K93: =IF(SUMIF(TEJdata!$P:$P,$A93,TEJdata!$M:$M)=0,0,IFERROR((SUMIF(TEJdata!$P:$P,$A93,TEJdata!$M:$M)/SUMIF(TEJdata!$P:$P,$A93,TEJdata!$N:$N)-1)*100,"-")) -> -1.397087761
A94: M20B 金屬製品 | B94: =COUNTIF(TEJdata!$P:$P,$A94) -> 11 | C94: =IF(SUMIF(TEJdata!$P:$P,$A94,TEJdata!$B:$B)=0,"",IF(AND(SUMIF(TEJdata!$P:$P,$A94,TEJdata!$B:$B)>0,SUMIF(TEJdata!$P:$P,$A94,TEJdata!$D:$D)<0),(SUMIF(TEJdata!$P:$P,$A94,TEJdata!$B:$B)/ABS(SUMIF(TEJdata!$P:$P,$A94,TEJdata!$D:$D)-1))*100,(SUMIF(TEJdata!$P:$P,$A94,TEJdata!$B:$B)/SUMIF(TEJdata!$P:$P,$A94,TEJdata!$D:$D)-1)*100)) -> 3.004340629 | D94: =IF(SUMIF(TEJdata!$P:$P,$A94,TEJdata!$B:$B)=0,"",(SUMIF(TEJdata!$P:$P,$A94,TEJdata!$B:$B)/SUMIF(TEJdata!$P:$P,$A94,TEJdata!$C:$C)-1)*100) -> 38.63433746 | E94: =IF(SUMIF(TEJdata!$P:$P,$A94,TEJdata!$E:$E)=0,"",(SUMIF(TEJdata!$P:$P,$A94,TEJdata!$E:$E)/SUMIF(TEJdata!$P:$P,$A94,TEJdata!$F:$F)-1)*100) -> 10.53594739 | F94: =SUMIF(TEJdata!$P:$P,$A94,TEJdata!$B:$B)/1000 -> 8880.82 | G94: =SUMIF(TEJdata!$P:$P,$A94,TEJdata!$G:$G)/$B94 -> 3.702518182 | H94: =SUMIF(TEJdata!$P:$P,$A94,TEJdata!$H:$H)/$B94 -> 11.82087273 | I94: =IF(SUMIF(TEJdata!$P:$P,$A94,TEJdata!$I:$I)=0,0,IFERROR((SUMIF(TEJdata!$P:$P,$A94,TEJdata!$I:$I)/SUMIF(TEJdata!$P:$P,$A94,TEJdata!$J:$J)-1)*100,"-")) -> -0.3345500489 | J94: =IF(SUMIF(TEJdata!$P:$P,$A94,TEJdata!$K:$K)=0,0,IFERROR((SUMIF(TEJdata!$P:$P,$A94,TEJdata!$K:$K)/SUMIF(TEJdata!$P:$P,$A94,TEJdata!$L:$L)-1)*100,"-")) -> -0.4360347205 | K94: =IF(SUMIF(TEJdata!$P:$P,$A94,TEJdata!$M:$M)=0,0,IFERROR((SUMIF(TEJdata!$P:$P,$A94,TEJdata!$M:$M)/SUMIF(TEJdata!$P:$P,$A94,TEJdata!$N:$N)-1)*100,"-")) -> 1.61833287
A95: M12C 飲料乳品 | B95: =COUNTIF(TEJdata!$P:$P,$A95) -> 7 | C95: =IF(SUMIF(TEJdata!$P:$P,$A95,TEJdata!$B:$B)=0,"",IF(AND(SUMIF(TEJdata!$P:$P,$A95,TEJdata!$B:$B)>0,SUMIF(TEJdata!$P:$P,$A95,TEJdata!$D:$D)<0),(SUMIF(TEJdata!$P:$P,$A95,TEJdata!$B:$B)/ABS(SUMIF(TEJdata!$P:$P,$A95,TEJdata!$D:$D)-1))*100,(SUMIF(TEJdata!$P:$P,$A95,TEJdata!$B:$B)/SUMIF(TEJdata!$P:$P,$A95,TEJdata!$D:$D)-1)*100)) -> 2.781067074 | D95: =IF(SUMIF(TEJdata!$P:$P,$A95,TEJdata!$B:$B)=0,"",(SUMIF(TEJdata!$P:$P,$A95,TEJdata!$B:$B)/SUMIF(TEJdata!$P:$P,$A95,TEJdata!$C:$C)-1)*100) -> 10.77027509 | E95: =IF(SUMIF(TEJdata!$P:$P,$A95,TEJdata!$E:$E)=0,"",(SUMIF(TEJdata!$P:$P,$A95,TEJdata!$E:$E)/SUMIF(TEJdata!$P:$P,$A95,TEJdata!$F:$F)-1)*100) -> 3.449926164 | F95: =SUMIF(TEJdata!$P:$P,$A95,TEJdata!$B:$B)/1000 -> 60293.076 | G95: =SUMIF(TEJdata!$P:$P,$A95,TEJdata!$G:$G)/$B95 -> 0.3755142857 | H95: =SUMIF(TEJdata!$P:$P,$A95,TEJdata!$H:$H)/$B95 -> 0.03874285714 | I95: =IF(SUMIF(TEJdata!$P:$P,$A95,TEJdata!$I:$I)=0,0,IFERROR((SUMIF(TEJdata!$P:$P,$A95,TEJdata!$I:$I)/SUMIF(TEJdata!$P:$P,$A95,TEJdata!$J:$J)-1)*100,"-")) -> -0.08447469031 | J95: =IF(SUMIF(TEJdata!$P:$P,$A95,TEJdata!$K:$K)=0,0,IFERROR((SUMIF(TEJdata!$P:$P,$A95,TEJdata!$K:$K)/SUMIF(TEJdata!$P:$P,$A95,TEJdata!$L:$L)-1)*100,"-")) -> -0.3190046932 | K95: =IF(SUMIF(TEJdata!$P:$P,$A95,TEJdata!$M:$M)=0,0,IFERROR((SUMIF(TEJdata!$P:$P,$A95,TEJdata!$M:$M)/SUMIF(TEJdata!$P:$P,$A95,TEJdata!$N:$N)-1)*100,"-")) -> -7.962184874
A96: M99L2 廢棄物處理 | B96: =COUNTIF(TEJdata!$P:$P,$A96) -> 17 | C96: =IF(SUMIF(TEJdata!$P:$P,$A96,TEJdata!$B:$B)=0,"",IF(AND(SUMIF(TEJdata!$P:$P,$A96,TEJdata!$B:$B)>0,SUMIF(TEJdata!$P:$P,$A96,TEJdata!$D:$D)<0),(SUMIF(TEJdata!$P:$P,$A96,TEJdata!$B:$B)/ABS(SUMIF(TEJdata!$P:$P,$A96,TEJdata!$D:$D)-1))*100,(SUMIF(TEJdata!$P:$P,$A96,TEJdata!$B:$B)/SUMIF(TEJdata!$P:$P,$A96,TEJdata!$D:$D)-1)*100)) -> 2.759119809 | D96: =IF(SUMIF(TEJdata!$P:$P,$A96,TEJdata!$B:$B)=0,"",(SUMIF(TEJdata!$P:$P,$A96,TEJdata!$B:$B)/SUMIF(TEJdata!$P:$P,$A96,TEJdata!$C:$C)-1)*100) -> 14.75433418 | E96: =IF(SUMIF(TEJdata!$P:$P,$A96,TEJdata!$E:$E)=0,"",(SUMIF(TEJdata!$P:$P,$A96,TEJdata!$E:$E)/SUMIF(TEJdata!$P:$P,$A96,TEJdata!$F:$F)-1)*100) -> 10.03731979 | F96: =SUMIF(TEJdata!$P:$P,$A96,TEJdata!$B:$B)/1000 -> 5624.095 | G96: =SUMIF(TEJdata!$P:$P,$A96,TEJdata!$G:$G)/$B96 -> 4.058317647 | H96: =SUMIF(TEJdata!$P:$P,$A96,TEJdata!$H:$H)/$B96 -> 4.486347059 | I96: =IF(SUMIF(TEJdata!$P:$P,$A96,TEJdata!$I:$I)=0,0,IFERROR((SUMIF(TEJdata!$P:$P,$A96,TEJdata!$I:$I)/SUMIF(TEJdata!$P:$P,$A96,TEJdata!$J:$J)-1)*100,"-")) -> 2.033563672 | J96: =IF(SUMIF(TEJdata!$P:$P,$A96,TEJdata!$K:$K)=0,0,IFERROR((SUMIF(TEJdata!$P:$P,$A96,TEJdata!$K:$K)/SUMIF(TEJdata!$P:$P,$A96,TEJdata!$L:$L)-1)*100,"-")) -> -0.3693324896 | K96: =IF(SUMIF(TEJdata!$P:$P,$A96,TEJdata!$M:$M)=0,0,IFERROR((SUMIF(TEJdata!$P:$P,$A96,TEJdata!$M:$M)/SUMIF(TEJdata!$P:$P,$A96,TEJdata!$N:$N)-1)*100,"-")) -> 5.738121693
A97: M21C 橡膠原料 | B97: =COUNTIF(TEJdata!$P:$P,$A97) -> 5 | C97: =IF(SUMIF(TEJdata!$P:$P,$A97,TEJdata!$B:$B)=0,"",IF(AND(SUMIF(TEJdata!$P:$P,$A97,TEJdata!$B:$B)>0,SUMIF(TEJdata!$P:$P,$A97,TEJdata!$D:$D)<0),(SUMIF(TEJdata!$P:$P,$A97,TEJdata!$B:$B)/ABS(SUMIF(TEJdata!$P:$P,$A97,TEJdata!$D:$D)-1))*100,(SUMIF(TEJdata!$P:$P,$A97,TEJdata!$B:$B)/SUMIF(TEJdata!$P:$P,$A97,TEJdata!$D:$D)-1)*100)) -> 2.411837584 | D97: =IF(SUMIF(TEJdata!$P:$P,$A97,TEJdata!$B:$B)=0,"",(SUMIF(TEJdata!$P:$P,$A97,TEJdata!$B:$B)/SUMIF(TEJdata!$P:$P,$A97,TEJdata!$C:$C)-1)*100) -> 23.91571312 | E97: =IF(SUMIF(TEJdata!$P:$P,$A97,TEJdata!$E:$E)=0,"",(SUMIF(TEJdata!$P:$P,$A97,TEJdata!$E:$E)/SUMIF(TEJdata!$P:$P,$A97,TEJdata!$F:$F)-1)*100) -> -3.429862622 | F97: =SUMIF(TEJdata!$P:$P,$A97,TEJdata!$B:$B)/1000 -> 5874.725 | G97: =SUMIF(TEJdata!$P:$P,$A97,TEJdata!$G:$G)/$B97 -> -1.03234 | H97: =SUMIF(TEJdata!$P:$P,$A97,TEJdata!$H:$H)/$B97 -> 0.88422 | I97: =IF(SUMIF(TEJdata!$P:$P,$A97,TEJdata!$I:$I)=0,0,IFERROR((SUMIF(TEJdata!$P:$P,$A97,TEJdata!$I:$I)/SUMIF(TEJdata!$P:$P,$A97,TEJdata!$J:$J)-1)*100,"-")) -> -0.5267486134 | J97: =IF(SUMIF(TEJdata!$P:$P,$A97,TEJdata!$K:$K)=0,0,IFERROR((SUMIF(TEJdata!$P:$P,$A97,TEJdata!$K:$K)/SUMIF(TEJdata!$P:$P,$A97,TEJdata!$L:$L)-1)*100,"-")) -> 0 | K97: =IF(SUMIF(TEJdata!$P:$P,$A97,TEJdata!$M:$M)=0,0,IFERROR((SUMIF(TEJdata!$P:$P,$A97,TEJdata!$M:$M)/SUMIF(TEJdata!$P:$P,$A97,TEJdata!$N:$N)-1)*100,"-")) -> -0.2491337591
A98: M23C8B 背光模組 | B98: =COUNTIF(TEJdata!$P:$P,$A98) -> 6 | C98: =IF(SUMIF(TEJdata!$P:$P,$A98,TEJdata!$B:$B)=0,"",IF(AND(SUMIF(TEJdata!$P:$P,$A98,TEJdata!$B:$B)>0,SUMIF(TEJdata!$P:$P,$A98,TEJdata!$D:$D)<0),(SUMIF(TEJdata!$P:$P,$A98,TEJdata!$B:$B)/ABS(SUMIF(TEJdata!$P:$P,$A98,TEJdata!$D:$D)-1))*100,(SUMIF(TEJdata!$P:$P,$A98,TEJdata!$B:$B)/SUMIF(TEJdata!$P:$P,$A98,TEJdata!$D:$D)-1)*100)) -> 1.791630756 | D98: =IF(SUMIF(TEJdata!$P:$P,$A98,TEJdata!$B:$B)=0,"",(SUMIF(TEJdata!$P:$P,$A98,TEJdata!$B:$B)/SUMIF(TEJdata!$P:$P,$A98,TEJdata!$C:$C)-1)*100) -> 20.70512459 | E98: =IF(SUMIF(TEJdata!$P:$P,$A98,TEJdata!$E:$E)=0,"",(SUMIF(TEJdata!$P:$P,$A98,TEJdata!$E:$E)/SUMIF(TEJdata!$P:$P,$A98,TEJdata!$F:$F)-1)*100) -> 1.984083779 | F98: =SUMIF(TEJdata!$P:$P,$A98,TEJdata!$B:$B)/1000 -> 9205.178 | G98: =SUMIF(TEJdata!$P:$P,$A98,TEJdata!$G:$G)/$B98 -> 0.4185666667 | H98: =SUMIF(TEJdata!$P:$P,$A98,TEJdata!$H:$H)/$B98 -> 3.14965 | I98: =IF(SUMIF(TEJdata!$P:$P,$A98,TEJdata!$I:$I)=0,0,IFERROR((SUMIF(TEJdata!$P:$P,$A98,TEJdata!$I:$I)/SUMIF(TEJdata!$P:$P,$A98,TEJdata!$J:$J)-1)*100,"-")) -> 0.5091155561 | J98: =IF(SUMIF(TEJdata!$P:$P,$A98,TEJdata!$K:$K)=0,0,IFERROR((SUMIF(TEJdata!$P:$P,$A98,TEJdata!$K:$K)/SUMIF(TEJdata!$P:$P,$A98,TEJdata!$L:$L)-1)*100,"-")) -> -0.1687830828 | K98: =IF(SUMIF(TEJdata!$P:$P,$A98,TEJdata!$M:$M)=0,0,IFERROR((SUMIF(TEJdata!$P:$P,$A98,TEJdata!$M:$M)/SUMIF(TEJdata!$P:$P,$A98,TEJdata!$N:$N)-1)*100,"-")) -> -3.741011143
A99: M23C8E 觸控面板 | B99: =COUNTIF(TEJdata!$P:$P,$A99) -> 10 | C99: =IF(SUMIF(TEJdata!$P:$P,$A99,TEJdata!$B:$B)=0,"",IF(AND(SUMIF(TEJdata!$P:$P,$A99,TEJdata!$B:$B)>0,SUMIF(TEJdata!$P:$P,$A99,TEJdata!$D:$D)<0),(SUMIF(TEJdata!$P:$P,$A99,TEJdata!$B:$B)/ABS(SUMIF(TEJdata!$P:$P,$A99,TEJdata!$D:$D)-1))*100,(SUMIF(TEJdata!$P:$P,$A99,TEJdata!$B:$B)/SUMIF(TEJdata!$P:$P,$A99,TEJdata!$D:$D)-1)*100)) -> 1.489426875 | D99: =IF(SUMIF(TEJdata!$P:$P,$A99,TEJdata!$B:$B)=0,"",(SUMIF(TEJdata!$P:$P,$A99,TEJdata!$B:$B)/SUMIF(TEJdata!$P:$P,$A99,TEJdata!$C:$C)-1)*100) -> 18.90758561 | E99: =IF(SUMIF(TEJdata!$P:$P,$A99,TEJdata!$E:$E)=0,"",(SUMIF(TEJdata!$P:$P,$A99,TEJdata!$E:$E)/SUMIF(TEJdata!$P:$P,$A99,TEJdata!$F:$F)-1)*100) -> 16.30079995 | F99: =SUMIF(TEJdata!$P:$P,$A99,TEJdata!$B:$B)/1000 -> 11901.182 | G99: =SUMIF(TEJdata!$P:$P,$A99,TEJdata!$G:$G)/$B99 -> 1.85171 | H99: =SUMIF(TEJdata!$P:$P,$A99,TEJdata!$H:$H)/$B99 -> -0.10172 | I99: =IF(SUMIF(TEJdata!$P:$P,$A99,TEJdata!$I:$I)=0,0,IFERROR((SUMIF(TEJdata!$P:$P,$A99,TEJdata!$I:$I)/SUMIF(TEJdata!$P:$P,$A99,TEJdata!$J:$J)-1)*100,"-")) -> -0.9016288081 | J99: =IF(SUMIF(TEJdata!$P:$P,$A99,TEJdata!$K:$K)=0,0,IFERROR((SUMIF(TEJdata!$P:$P,$A99,TEJdata!$K:$K)/SUMIF(TEJdata!$P:$P,$A99,TEJdata!$L:$L)-1)*100,"-")) -> -2 | K99: =IF(SUMIF(TEJdata!$P:$P,$A99,TEJdata!$M:$M)=0,0,IFERROR((SUMIF(TEJdata!$P:$P,$A99,TEJdata!$M:$M)/SUMIF(TEJdata!$P:$P,$A99,TEJdata!$N:$N)-1)*100,"-")) -> 4.071529783
A100: M22B3 航空器製造 | B100: =COUNTIF(TEJdata!$P:$P,$A100) -> 7 | C100: =IF(SUMIF(TEJdata!$P:$P,$A100,TEJdata!$B:$B)=0,"",IF(AND(SUMIF(TEJdata!$P:$P,$A100,TEJdata!$B:$B)>0,SUMIF(TEJdata!$P:$P,$A100,TEJdata!$D:$D)<0),(SUMIF(TEJdata!$P:$P,$A100,TEJdata!$B:$B)/ABS(SUMIF(TEJdata!$P:$P,$A100,TEJdata!$D:$D)-1))*100,(SUMIF(TEJdata!$P:$P,$A100,TEJdata!$B:$B)/SUMIF(TEJdata!$P:$P,$A100,TEJdata!$D:$D)-1)*100)) -> 1.482315681 | D100: =IF(SUMIF(TEJdata!$P:$P,$A100,TEJdata!$B:$B)=0,"",(SUMIF(TEJdata!$P:$P,$A100,TEJdata!$B:$B)/SUMIF(TEJdata!$P:$P,$A100,TEJdata!$C:$C)-1)*100) -> 27.1539419 | E100: =IF(SUMIF(TEJdata!$P:$P,$A100,TEJdata!$E:$E)=0,"",(SUMIF(TEJdata!$P:$P,$A100,TEJdata!$E:$E)/SUMIF(TEJdata!$P:$P,$A100,TEJdata!$F:$F)-1)*100) -> 5.467401305 | F100: =SUMIF(TEJdata!$P:$P,$A100,TEJdata!$B:$B)/1000 -> 5679.814 | G100: =SUMIF(TEJdata!$P:$P,$A100,TEJdata!$G:$G)/$B100 -> 3.579485714 | H100: =SUMIF(TEJdata!$P:$P,$A100,TEJdata!$H:$H)/$B100 -> -0.1726714286 | I100: =IF(SUMIF(TEJdata!$P:$P,$A100,TEJdata!$I:$I)=0,0,IFERROR((SUMIF(TEJdata!$P:$P,$A100,TEJdata!$I:$I)/SUMIF(TEJdata!$P:$P,$A100,TEJdata!$J:$J)-1)*100,"-")) -> 0.6422723778 | J100: =IF(SUMIF(TEJdata!$P:$P,$A100,TEJdata!$K:$K)=0,0,IFERROR((SUMIF(TEJdata!$P:$P,$A100,TEJdata!$K:$K)/SUMIF(TEJdata!$P:$P,$A100,TEJdata!$L:$L)-1)*100,"-")) -> -1.340776008 | K100: =IF(SUMIF(TEJdata!$P:$P,$A100,TEJdata!$M:$M)=0,0,IFERROR((SUMIF(TEJdata!$P:$P,$A100,TEJdata!$M:$M)/SUMIF(TEJdata!$P:$P,$A100,TEJdata!$N:$N)-1)*100,"-")) -> -0.3314995063
A101: M99C 印刷 | B101: =COUNTIF(TEJdata!$P:$P,$A101) -> 6 | C101: =IF(SUMIF(TEJdata!$P:$P,$A101,TEJdata!$B:$B)=0,"",IF(AND(SUMIF(TEJdata!$P:$P,$A101,TEJdata!$B:$B)>0,SUMIF(TEJdata!$P:$P,$A101,TEJdata!$D:$D)<0),(SUMIF(TEJdata!$P:$P,$A101,TEJdata!$B:$B)/ABS(SUMIF(TEJdata!$P:$P,$A101,TEJdata!$D:$D)-1))*100,(SUMIF(TEJdata!$P:$P,$A101,TEJdata!$B:$B)/SUMIF(TEJdata!$P:$P,$A101,TEJdata!$D:$D)-1)*100)) -> 1.45727706 | D101: =IF(SUMIF(TEJdata!$P:$P,$A101,TEJdata!$B:$B)=0,"",(SUMIF(TEJdata!$P:$P,$A101,TEJdata!$B:$B)/SUMIF(TEJdata!$P:$P,$A101,TEJdata!$C:$C)-1)*100) -> 39.60998463 | E101: =IF(SUMIF(TEJdata!$P:$P,$A101,TEJdata!$E:$E)=0,"",(SUMIF(TEJdata!$P:$P,$A101,TEJdata!$E:$E)/SUMIF(TEJdata!$P:$P,$A101,TEJdata!$F:$F)-1)*100) -> -1.10644313 | F101: =SUMIF(TEJdata!$P:$P,$A101,TEJdata!$B:$B)/1000 -> 467.854 | G101: =SUMIF(TEJdata!$P:$P,$A101,TEJdata!$G:$G)/$B101 -> -0.6951833333 | H101: =SUMIF(TEJdata!$P:$P,$A101,TEJdata!$H:$H)/$B101 -> 2.47575 | I101: =IF(SUMIF(TEJdata!$P:$P,$A101,TEJdata!$I:$I)=0,0,IFERROR((SUMIF(TEJdata!$P:$P,$A101,TEJdata!$I:$I)/SUMIF(TEJdata!$P:$P,$A101,TEJdata!$J:$J)-1)*100,"-")) -> 1.061320755 | J101: =IF(SUMIF(TEJdata!$P:$P,$A101,TEJdata!$K:$K)=0,0,IFERROR((SUMIF(TEJdata!$P:$P,$A101,TEJdata!$K:$K)/SUMIF(TEJdata!$P:$P,$A101,TEJdata!$L:$L)-1)*100,"-")) -> 0 | K101: =IF(SUMIF(TEJdata!$P:$P,$A101,TEJdata!$M:$M)=0,0,IFERROR((SUMIF(TEJdata!$P:$P,$A101,TEJdata!$M:$M)/SUMIF(TEJdata!$P:$P,$A101,TEJdata!$N:$N)-1)*100,"-")) -> -0.06784260516
A102: M23D6 石英元件 | B102: =COUNTIF(TEJdata!$P:$P,$A102) -> 6 | C102: =IF(SUMIF(TEJdata!$P:$P,$A102,TEJdata!$B:$B)=0,"",IF(AND(SUMIF(TEJdata!$P:$P,$A102,TEJdata!$B:$B)>0,SUMIF(TEJdata!$P:$P,$A102,TEJdata!$D:$D)<0),(SUMIF(TEJdata!$P:$P,$A102,TEJdata!$B:$B)/ABS(SUMIF(TEJdata!$P:$P,$A102,TEJdata!$D:$D)-1))*100,(SUMIF(TEJdata!$P:$P,$A102,TEJdata!$B:$B)/SUMIF(TEJdata!$P:$P,$A102,TEJdata!$D:$D)-1)*100)) -> 1.136616767 | D102: =IF(SUMIF(TEJdata!$P:$P,$A102,TEJdata!$B:$B)=0,"",(SUMIF(TEJdata!$P:$P,$A102,TEJdata!$B:$B)/SUMIF(TEJdata!$P:$P,$A102,TEJdata!$C:$C)-1)*100) -> 17.69495613 | E102: =IF(SUMIF(TEJdata!$P:$P,$A102,TEJdata!$E:$E)=0,"",(SUMIF(TEJdata!$P:$P,$A102,TEJdata!$E:$E)/SUMIF(TEJdata!$P:$P,$A102,TEJdata!$F:$F)-1)*100) -> 2.517734285 | F102: =SUMIF(TEJdata!$P:$P,$A102,TEJdata!$B:$B)/1000 -> 1965.933 | G102: =SUMIF(TEJdata!$P:$P,$A102,TEJdata!$G:$G)/$B102 -> 8.54985 | H102: =SUMIF(TEJdata!$P:$P,$A102,TEJdata!$H:$H)/$B102 -> 19.28566667 | I102: =IF(SUMIF(TEJdata!$P:$P,$A102,TEJdata!$I:$I)=0,0,IFERROR((SUMIF(TEJdata!$P:$P,$A102,TEJdata!$I:$I)/SUMIF(TEJdata!$P:$P,$A102,TEJdata!$J:$J)-1)*100,"-")) -> 4.818277414 | J102: =IF(SUMIF(TEJdata!$P:$P,$A102,TEJdata!$K:$K)=0,0,IFERROR((SUMIF(TEJdata!$P:$P,$A102,TEJdata!$K:$K)/SUMIF(TEJdata!$P:$P,$A102,TEJdata!$L:$L)-1)*100,"-")) -> -0.009933445912 | K102: =IF(SUMIF(TEJdata!$P:$P,$A102,TEJdata!$M:$M)=0,0,IFERROR((SUMIF(TEJdata!$P:$P,$A102,TEJdata!$M:$M)/SUMIF(TEJdata!$P:$P,$A102,TEJdata!$N:$N)-1)*100,"-")) -> 47.11804682
A103: M99ZC 其他製造 | B103: =COUNTIF(TEJdata!$P:$P,$A103) -> 8 | C103: =IF(SUMIF(TEJdata!$P:$P,$A103,TEJdata!$B:$B)=0,"",IF(AND(SUMIF(TEJdata!$P:$P,$A103,TEJdata!$B:$B)>0,SUMIF(TEJdata!$P:$P,$A103,TEJdata!$D:$D)<0),(SUMIF(TEJdata!$P:$P,$A103,TEJdata!$B:$B)/ABS(SUMIF(TEJdata!$P:$P,$A103,TEJdata!$D:$D)-1))*100,(SUMIF(TEJdata!$P:$P,$A103,TEJdata!$B:$B)/SUMIF(TEJdata!$P:$P,$A103,TEJdata!$D:$D)-1)*100)) -> 0.6010418278 | D103: =IF(SUMIF(TEJdata!$P:$P,$A103,TEJdata!$B:$B)=0,"",(SUMIF(TEJdata!$P:$P,$A103,TEJdata!$B:$B)/SUMIF(TEJdata!$P:$P,$A103,TEJdata!$C:$C)-1)*100) -> 54.8700279 | E103: =IF(SUMIF(TEJdata!$P:$P,$A103,TEJdata!$E:$E)=0,"",(SUMIF(TEJdata!$P:$P,$A103,TEJdata!$E:$E)/SUMIF(TEJdata!$P:$P,$A103,TEJdata!$F:$F)-1)*100) -> 0.8092651325 | F103: =SUMIF(TEJdata!$P:$P,$A103,TEJdata!$B:$B)/1000 -> 1834.293 | G103: =SUMIF(TEJdata!$P:$P,$A103,TEJdata!$G:$G)/$B103 -> 0.0552625 | H103: =SUMIF(TEJdata!$P:$P,$A103,TEJdata!$H:$H)/$B103 -> -9.0233 | I103: =IF(SUMIF(TEJdata!$P:$P,$A103,TEJdata!$I:$I)=0,0,IFERROR((SUMIF(TEJdata!$P:$P,$A103,TEJdata!$I:$I)/SUMIF(TEJdata!$P:$P,$A103,TEJdata!$J:$J)-1)*100,"-")) -> -0.1254215558 | J103: =IF(SUMIF(TEJdata!$P:$P,$A103,TEJdata!$K:$K)=0,0,IFERROR((SUMIF(TEJdata!$P:$P,$A103,TEJdata!$K:$K)/SUMIF(TEJdata!$P:$P,$A103,TEJdata!$L:$L)-1)*100,"-")) -> -22.5433526 | K103: =IF(SUMIF(TEJdata!$P:$P,$A103,TEJdata!$M:$M)=0,0,IFERROR((SUMIF(TEJdata!$P:$P,$A103,TEJdata!$M:$M)/SUMIF(TEJdata!$P:$P,$A103,TEJdata!$N:$N)-1)*100,"-")) -> -1.28765792
A104: M27A1 飯店 | B104: =COUNTIF(TEJdata!$P:$P,$A104) -> 17 | C104: =IF(SUMIF(TEJdata!$P:$P,$A104,TEJdata!$B:$B)=0,"",IF(AND(SUMIF(TEJdata!$P:$P,$A104,TEJdata!$B:$B)>0,SUMIF(TEJdata!$P:$P,$A104,TEJdata!$D:$D)<0),(SUMIF(TEJdata!$P:$P,$A104,TEJdata!$B:$B)/ABS(SUMIF(TEJdata!$P:$P,$A104,TEJdata!$D:$D)-1))*100,(SUMIF(TEJdata!$P:$P,$A104,TEJdata!$B:$B)/SUMIF(TEJdata!$P:$P,$A104,TEJdata!$D:$D)-1)*100)) -> 0.4981688631 | D104: =IF(SUMIF(TEJdata!$P:$P,$A104,TEJdata!$B:$B)=0,"",(SUMIF(TEJdata!$P:$P,$A104,TEJdata!$B:$B)/SUMIF(TEJdata!$P:$P,$A104,TEJdata!$C:$C)-1)*100) -> -10.94554072 | E104: =IF(SUMIF(TEJdata!$P:$P,$A104,TEJdata!$E:$E)=0,"",(SUMIF(TEJdata!$P:$P,$A104,TEJdata!$E:$E)/SUMIF(TEJdata!$P:$P,$A104,TEJdata!$F:$F)-1)*100) -> 3.190580088 | F104: =SUMIF(TEJdata!$P:$P,$A104,TEJdata!$B:$B)/1000 -> 2098.449 | G104: =SUMIF(TEJdata!$P:$P,$A104,TEJdata!$G:$G)/$B104 -> 1.358694118 | H104: =SUMIF(TEJdata!$P:$P,$A104,TEJdata!$H:$H)/$B104 -> 1.221770588 | I104: =IF(SUMIF(TEJdata!$P:$P,$A104,TEJdata!$I:$I)=0,0,IFERROR((SUMIF(TEJdata!$P:$P,$A104,TEJdata!$I:$I)/SUMIF(TEJdata!$P:$P,$A104,TEJdata!$J:$J)-1)*100,"-")) -> 0.3270967786 | J104: =IF(SUMIF(TEJdata!$P:$P,$A104,TEJdata!$K:$K)=0,0,IFERROR((SUMIF(TEJdata!$P:$P,$A104,TEJdata!$K:$K)/SUMIF(TEJdata!$P:$P,$A104,TEJdata!$L:$L)-1)*100,"-")) -> 0 | K104: =IF(SUMIF(TEJdata!$P:$P,$A104,TEJdata!$M:$M)=0,0,IFERROR((SUMIF(TEJdata!$P:$P,$A104,TEJdata!$M:$M)/SUMIF(TEJdata!$P:$P,$A104,TEJdata!$N:$N)-1)*100,"-")) -> 1.704026778
A105: M12Z 其他食品 | B105: =COUNTIF(TEJdata!$P:$P,$A105) -> 11 | C105: =IF(SUMIF(TEJdata!$P:$P,$A105,TEJdata!$B:$B)=0,"",IF(AND(SUMIF(TEJdata!$P:$P,$A105,TEJdata!$B:$B)>0,SUMIF(TEJdata!$P:$P,$A105,TEJdata!$D:$D)<0),(SUMIF(TEJdata!$P:$P,$A105,TEJdata!$B:$B)/ABS(SUMIF(TEJdata!$P:$P,$A105,TEJdata!$D:$D)-1))*100,(SUMIF(TEJdata!$P:$P,$A105,TEJdata!$B:$B)/SUMIF(TEJdata!$P:$P,$A105,TEJdata!$D:$D)-1)*100)) -> 0.3806812352 | D105: =IF(SUMIF(TEJdata!$P:$P,$A105,TEJdata!$B:$B)=0,"",(SUMIF(TEJdata!$P:$P,$A105,TEJdata!$B:$B)/SUMIF(TEJdata!$P:$P,$A105,TEJdata!$C:$C)-1)*100) -> 7.457812426 | E105: =IF(SUMIF(TEJdata!$P:$P,$A105,TEJdata!$E:$E)=0,"",(SUMIF(TEJdata!$P:$P,$A105,TEJdata!$E:$E)/SUMIF(TEJdata!$P:$P,$A105,TEJdata!$F:$F)-1)*100) -> 5.747676197 | F105: =SUMIF(TEJdata!$P:$P,$A105,TEJdata!$B:$B)/1000 -> 5498.137 | G105: =SUMIF(TEJdata!$P:$P,$A105,TEJdata!$G:$G)/$B105 -> -0.1117454545 | H105: =SUMIF(TEJdata!$P:$P,$A105,TEJdata!$H:$H)/$B105 -> 0.1106181818 | I105: =IF(SUMIF(TEJdata!$P:$P,$A105,TEJdata!$I:$I)=0,0,IFERROR((SUMIF(TEJdata!$P:$P,$A105,TEJdata!$I:$I)/SUMIF(TEJdata!$P:$P,$A105,TEJdata!$J:$J)-1)*100,"-")) -> -1.836666768 | J105: =IF(SUMIF(TEJdata!$P:$P,$A105,TEJdata!$K:$K)=0,0,IFERROR((SUMIF(TEJdata!$P:$P,$A105,TEJdata!$K:$K)/SUMIF(TEJdata!$P:$P,$A105,TEJdata!$L:$L)-1)*100,"-")) -> 52.74725275 | K105: =IF(SUMIF(TEJdata!$P:$P,$A105,TEJdata!$M:$M)=0,0,IFERROR((SUMIF(TEJdata!$P:$P,$A105,TEJdata!$M:$M)/SUMIF(TEJdata!$P:$P,$A105,TEJdata!$N:$N)-1)*100,"-")) -> -3.322259136
A106: M17C2 機能性食品 | B106: =COUNTIF(TEJdata!$P:$P,$A106) -> 13 | C106: =IF(SUMIF(TEJdata!$P:$P,$A106,TEJdata!$B:$B)=0,"",IF(AND(SUMIF(TEJdata!$P:$P,$A106,TEJdata!$B:$B)>0,SUMIF(TEJdata!$P:$P,$A106,TEJdata!$D:$D)<0),(SUMIF(TEJdata!$P:$P,$A106,TEJdata!$B:$B)/ABS(SUMIF(TEJdata!$P:$P,$A106,TEJdata!$D:$D)-1))*100,(SUMIF(TEJdata!$P:$P,$A106,TEJdata!$B:$B)/SUMIF(TEJdata!$P:$P,$A106,TEJdata!$D:$D)-1)*100)) -> 0.1343434807 | D106: =IF(SUMIF(TEJdata!$P:$P,$A106,TEJdata!$B:$B)=0,"",(SUMIF(TEJdata!$P:$P,$A106,TEJdata!$B:$B)/SUMIF(TEJdata!$P:$P,$A106,TEJdata!$C:$C)-1)*100) -> 37.66901565 | E106: =IF(SUMIF(TEJdata!$P:$P,$A106,TEJdata!$E:$E)=0,"",(SUMIF(TEJdata!$P:$P,$A106,TEJdata!$E:$E)/SUMIF(TEJdata!$P:$P,$A106,TEJdata!$F:$F)-1)*100) -> 5.097640374 | F106: =SUMIF(TEJdata!$P:$P,$A106,TEJdata!$B:$B)/1000 -> 2401.552 | G106: =SUMIF(TEJdata!$P:$P,$A106,TEJdata!$G:$G)/$B106 -> -0.3523769231 | H106: =SUMIF(TEJdata!$P:$P,$A106,TEJdata!$H:$H)/$B106 -> 1.720861538 | I106: =IF(SUMIF(TEJdata!$P:$P,$A106,TEJdata!$I:$I)=0,0,IFERROR((SUMIF(TEJdata!$P:$P,$A106,TEJdata!$I:$I)/SUMIF(TEJdata!$P:$P,$A106,TEJdata!$J:$J)-1)*100,"-")) -> -0.6554740123 | J106: =IF(SUMIF(TEJdata!$P:$P,$A106,TEJdata!$K:$K)=0,0,IFERROR((SUMIF(TEJdata!$P:$P,$A106,TEJdata!$K:$K)/SUMIF(TEJdata!$P:$P,$A106,TEJdata!$L:$L)-1)*100,"-")) -> -1.203783319 | K106: =IF(SUMIF(TEJdata!$P:$P,$A106,TEJdata!$M:$M)=0,0,IFERROR((SUMIF(TEJdata!$P:$P,$A106,TEJdata!$M:$M)/SUMIF(TEJdata!$P:$P,$A106,TEJdata!$N:$N)-1)*100,"-")) -> -0.8667104399
A107: M14C1 成衣製造 | B107: =COUNTIF(TEJdata!$P:$P,$A107) -> 11 | C107: =IF(SUMIF(TEJdata!$P:$P,$A107,TEJdata!$B:$B)=0,"",IF(AND(SUMIF(TEJdata!$P:$P,$A107,TEJdata!$B:$B)>0,SUMIF(TEJdata!$P:$P,$A107,TEJdata!$D:$D)<0),(SUMIF(TEJdata!$P:$P,$A107,TEJdata!$B:$B)/ABS(SUMIF(TEJdata!$P:$P,$A107,TEJdata!$D:$D)-1))*100,(SUMIF(TEJdata!$P:$P,$A107,TEJdata!$B:$B)/SUMIF(TEJdata!$P:$P,$A107,TEJdata!$D:$D)-1)*100)) -> 0.03731843447 | D107: =IF(SUMIF(TEJdata!$P:$P,$A107,TEJdata!$B:$B)=0,"",(SUMIF(TEJdata!$P:$P,$A107,TEJdata!$B:$B)/SUMIF(TEJdata!$P:$P,$A107,TEJdata!$C:$C)-1)*100) -> 17.16643328 | E107: =IF(SUMIF(TEJdata!$P:$P,$A107,TEJdata!$E:$E)=0,"",(SUMIF(TEJdata!$P:$P,$A107,TEJdata!$E:$E)/SUMIF(TEJdata!$P:$P,$A107,TEJdata!$F:$F)-1)*100) -> -2.983685041 | F107: =SUMIF(TEJdata!$P:$P,$A107,TEJdata!$B:$B)/1000 -> 11507.991 | G107: =SUMIF(TEJdata!$P:$P,$A107,TEJdata!$G:$G)/$B107 -> 0.09527272727 | H107: =SUMIF(TEJdata!$P:$P,$A107,TEJdata!$H:$H)/$B107 -> -3.027881818 | I107: =IF(SUMIF(TEJdata!$P:$P,$A107,TEJdata!$I:$I)=0,0,IFERROR((SUMIF(TEJdata!$P:$P,$A107,TEJdata!$I:$I)/SUMIF(TEJdata!$P:$P,$A107,TEJdata!$J:$J)-1)*100,"-")) -> -0.06086786509 | J107: =IF(SUMIF(TEJdata!$P:$P,$A107,TEJdata!$K:$K)=0,0,IFERROR((SUMIF(TEJdata!$P:$P,$A107,TEJdata!$K:$K)/SUMIF(TEJdata!$P:$P,$A107,TEJdata!$L:$L)-1)*100,"-")) -> 0.2702915475 | K107: =IF(SUMIF(TEJdata!$P:$P,$A107,TEJdata!$M:$M)=0,0,IFERROR((SUMIF(TEJdata!$P:$P,$A107,TEJdata!$M:$M)/SUMIF(TEJdata!$P:$P,$A107,TEJdata!$N:$N)-1)*100,"-")) -> 0.9996041172
A108: M17C1A 原料藥 | B108: =COUNTIF(TEJdata!$P:$P,$A108) -> 7 | C108: =IF(SUMIF(TEJdata!$P:$P,$A108,TEJdata!$B:$B)=0,"",IF(AND(SUMIF(TEJdata!$P:$P,$A108,TEJdata!$B:$B)>0,SUMIF(TEJdata!$P:$P,$A108,TEJdata!$D:$D)<0),(SUMIF(TEJdata!$P:$P,$A108,TEJdata!$B:$B)/ABS(SUMIF(TEJdata!$P:$P,$A108,TEJdata!$D:$D)-1))*100,(SUMIF(TEJdata!$P:$P,$A108,TEJdata!$B:$B)/SUMIF(TEJdata!$P:$P,$A108,TEJdata!$D:$D)-1)*100)) -> -0.0617251586 | D108: =IF(SUMIF(TEJdata!$P:$P,$A108,TEJdata!$B:$B)=0,"",(SUMIF(TEJdata!$P:$P,$A108,TEJdata!$B:$B)/SUMIF(TEJdata!$P:$P,$A108,TEJdata!$C:$C)-1)*100) -> 47.4436463 | E108: =IF(SUMIF(TEJdata!$P:$P,$A108,TEJdata!$E:$E)=0,"",(SUMIF(TEJdata!$P:$P,$A108,TEJdata!$E:$E)/SUMIF(TEJdata!$P:$P,$A108,TEJdata!$F:$F)-1)*100) -> 0.0377116957 | F108: =SUMIF(TEJdata!$P:$P,$A108,TEJdata!$B:$B)/1000 -> 1258.029 | G108: =SUMIF(TEJdata!$P:$P,$A108,TEJdata!$G:$G)/$B108 -> -3.308628571 | H108: =SUMIF(TEJdata!$P:$P,$A108,TEJdata!$H:$H)/$B108 -> -2.143685714 | I108: =IF(SUMIF(TEJdata!$P:$P,$A108,TEJdata!$I:$I)=0,0,IFERROR((SUMIF(TEJdata!$P:$P,$A108,TEJdata!$I:$I)/SUMIF(TEJdata!$P:$P,$A108,TEJdata!$J:$J)-1)*100,"-")) -> -2.453317569 | J108: =IF(SUMIF(TEJdata!$P:$P,$A108,TEJdata!$K:$K)=0,0,IFERROR((SUMIF(TEJdata!$P:$P,$A108,TEJdata!$K:$K)/SUMIF(TEJdata!$P:$P,$A108,TEJdata!$L:$L)-1)*100,"-")) -> 0 | K108: =IF(SUMIF(TEJdata!$P:$P,$A108,TEJdata!$M:$M)=0,0,IFERROR((SUMIF(TEJdata!$P:$P,$A108,TEJdata!$M:$M)/SUMIF(TEJdata!$P:$P,$A108,TEJdata!$N:$N)-1)*100,"-")) -> 0.4817117571
A109: M15C4 照明 | B109: =COUNTIF(TEJdata!$P:$P,$A109) -> 5 | C109: =IF(SUMIF(TEJdata!$P:$P,$A109,TEJdata!$B:$B)=0,"",IF(AND(SUMIF(TEJdata!$P:$P,$A109,TEJdata!$B:$B)>0,SUMIF(TEJdata!$P:$P,$A109,TEJdata!$D:$D)<0),(SUMIF(TEJdata!$P:$P,$A109,TEJdata!$B:$B)/ABS(SUMIF(TEJdata!$P:$P,$A109,TEJdata!$D:$D)-1))*100,(SUMIF(TEJdata!$P:$P,$A109,TEJdata!$B:$B)/SUMIF(TEJdata!$P:$P,$A109,TEJdata!$D:$D)-1)*100)) -> -0.4547904595 | D109: =IF(SUMIF(TEJdata!$P:$P,$A109,TEJdata!$B:$B)=0,"",(SUMIF(TEJdata!$P:$P,$A109,TEJdata!$B:$B)/SUMIF(TEJdata!$P:$P,$A109,TEJdata!$C:$C)-1)*100) -> 25.59772514 | E109: =IF(SUMIF(TEJdata!$P:$P,$A109,TEJdata!$E:$E)=0,"",(SUMIF(TEJdata!$P:$P,$A109,TEJdata!$E:$E)/SUMIF(TEJdata!$P:$P,$A109,TEJdata!$F:$F)-1)*100) -> -3.62471433 | F109: =SUMIF(TEJdata!$P:$P,$A109,TEJdata!$B:$B)/1000 -> 295.49 | G109: =SUMIF(TEJdata!$P:$P,$A109,TEJdata!$G:$G)/$B109 -> 1.19426 | H109: =SUMIF(TEJdata!$P:$P,$A109,TEJdata!$H:$H)/$B109 -> -3.42538 | I109: =IF(SUMIF(TEJdata!$P:$P,$A109,TEJdata!$I:$I)=0,0,IFERROR((SUMIF(TEJdata!$P:$P,$A109,TEJdata!$I:$I)/SUMIF(TEJdata!$P:$P,$A109,TEJdata!$J:$J)-1)*100,"-")) -> -0.2561891859 | J109: =IF(SUMIF(TEJdata!$P:$P,$A109,TEJdata!$K:$K)=0,0,IFERROR((SUMIF(TEJdata!$P:$P,$A109,TEJdata!$K:$K)/SUMIF(TEJdata!$P:$P,$A109,TEJdata!$L:$L)-1)*100,"-")) -> 0 | K109: =IF(SUMIF(TEJdata!$P:$P,$A109,TEJdata!$M:$M)=0,0,IFERROR((SUMIF(TEJdata!$P:$P,$A109,TEJdata!$M:$M)/SUMIF(TEJdata!$P:$P,$A109,TEJdata!$N:$N)-1)*100,"-")) -> 0.1581027668
A110: M26C 貨運倉儲 | B110: =COUNTIF(TEJdata!$P:$P,$A110) -> 15 | C110: =IF(SUMIF(TEJdata!$P:$P,$A110,TEJdata!$B:$B)=0,"",IF(AND(SUMIF(TEJdata!$P:$P,$A110,TEJdata!$B:$B)>0,SUMIF(TEJdata!$P:$P,$A110,TEJdata!$D:$D)<0),(SUMIF(TEJdata!$P:$P,$A110,TEJdata!$B:$B)/ABS(SUMIF(TEJdata!$P:$P,$A110,TEJdata!$D:$D)-1))*100,(SUMIF(TEJdata!$P:$P,$A110,TEJdata!$B:$B)/SUMIF(TEJdata!$P:$P,$A110,TEJdata!$D:$D)-1)*100)) -> -1.177329651 | D110: =IF(SUMIF(TEJdata!$P:$P,$A110,TEJdata!$B:$B)=0,"",(SUMIF(TEJdata!$P:$P,$A110,TEJdata!$B:$B)/SUMIF(TEJdata!$P:$P,$A110,TEJdata!$C:$C)-1)*100) -> 24.77487714 | E110: =IF(SUMIF(TEJdata!$P:$P,$A110,TEJdata!$E:$E)=0,"",(SUMIF(TEJdata!$P:$P,$A110,TEJdata!$E:$E)/SUMIF(TEJdata!$P:$P,$A110,TEJdata!$F:$F)-1)*100) -> -5.253364056 | F110: =SUMIF(TEJdata!$P:$P,$A110,TEJdata!$B:$B)/1000 -> 9163.593 | G110: =SUMIF(TEJdata!$P:$P,$A110,TEJdata!$G:$G)/$B110 -> 0.9042466667 | H110: =SUMIF(TEJdata!$P:$P,$A110,TEJdata!$H:$H)/$B110 -> -1.55062 | I110: =IF(SUMIF(TEJdata!$P:$P,$A110,TEJdata!$I:$I)=0,0,IFERROR((SUMIF(TEJdata!$P:$P,$A110,TEJdata!$I:$I)/SUMIF(TEJdata!$P:$P,$A110,TEJdata!$J:$J)-1)*100,"-")) -> -0.03076230492 | J110: =IF(SUMIF(TEJdata!$P:$P,$A110,TEJdata!$K:$K)=0,0,IFERROR((SUMIF(TEJdata!$P:$P,$A110,TEJdata!$K:$K)/SUMIF(TEJdata!$P:$P,$A110,TEJdata!$L:$L)-1)*100,"-")) -> -0.0182326486 | K110: =IF(SUMIF(TEJdata!$P:$P,$A110,TEJdata!$M:$M)=0,0,IFERROR((SUMIF(TEJdata!$P:$P,$A110,TEJdata!$M:$M)/SUMIF(TEJdata!$P:$P,$A110,TEJdata!$N:$N)-1)*100,"-")) -> 3.369686801
A111: M20A2 鋼筋 | B111: =COUNTIF(TEJdata!$P:$P,$A111) -> 8 | C111: =IF(SUMIF(TEJdata!$P:$P,$A111,TEJdata!$B:$B)=0,"",IF(AND(SUMIF(TEJdata!$P:$P,$A111,TEJdata!$B:$B)>0,SUMIF(TEJdata!$P:$P,$A111,TEJdata!$D:$D)<0),(SUMIF(TEJdata!$P:$P,$A111,TEJdata!$B:$B)/ABS(SUMIF(TEJdata!$P:$P,$A111,TEJdata!$D:$D)-1))*100,(SUMIF(TEJdata!$P:$P,$A111,TEJdata!$B:$B)/SUMIF(TEJdata!$P:$P,$A111,TEJdata!$D:$D)-1)*100)) -> -1.305101916 | D111: =IF(SUMIF(TEJdata!$P:$P,$A111,TEJdata!$B:$B)=0,"",(SUMIF(TEJdata!$P:$P,$A111,TEJdata!$B:$B)/SUMIF(TEJdata!$P:$P,$A111,TEJdata!$C:$C)-1)*100) -> 49.34146389 | E111: =IF(SUMIF(TEJdata!$P:$P,$A111,TEJdata!$E:$E)=0,"",(SUMIF(TEJdata!$P:$P,$A111,TEJdata!$E:$E)/SUMIF(TEJdata!$P:$P,$A111,TEJdata!$F:$F)-1)*100) -> -7.84213982 | F111: =SUMIF(TEJdata!$P:$P,$A111,TEJdata!$B:$B)/1000 -> 14713.693 | G111: =SUMIF(TEJdata!$P:$P,$A111,TEJdata!$G:$G)/$B111 -> 1.4219875 | H111: =SUMIF(TEJdata!$P:$P,$A111,TEJdata!$H:$H)/$B111 -> -2.5263 | I111: =IF(SUMIF(TEJdata!$P:$P,$A111,TEJdata!$I:$I)=0,0,IFERROR((SUMIF(TEJdata!$P:$P,$A111,TEJdata!$I:$I)/SUMIF(TEJdata!$P:$P,$A111,TEJdata!$J:$J)-1)*100,"-")) -> 0.3652743478 | J111: =IF(SUMIF(TEJdata!$P:$P,$A111,TEJdata!$K:$K)=0,0,IFERROR((SUMIF(TEJdata!$P:$P,$A111,TEJdata!$K:$K)/SUMIF(TEJdata!$P:$P,$A111,TEJdata!$L:$L)-1)*100,"-")) -> -0.601664226 | K111: =IF(SUMIF(TEJdata!$P:$P,$A111,TEJdata!$M:$M)=0,0,IFERROR((SUMIF(TEJdata!$P:$P,$A111,TEJdata!$M:$M)/SUMIF(TEJdata!$P:$P,$A111,TEJdata!$N:$N)-1)*100,"-")) -> -3.157840511
A112: M23C3 3C週邊 | B112: =COUNTIF(TEJdata!$P:$P,$A112) -> 18 | C112: =IF(SUMIF(TEJdata!$P:$P,$A112,TEJdata!$B:$B)=0,"",IF(AND(SUMIF(TEJdata!$P:$P,$A112,TEJdata!$B:$B)>0,SUMIF(TEJdata!$P:$P,$A112,TEJdata!$D:$D)<0),(SUMIF(TEJdata!$P:$P,$A112,TEJdata!$B:$B)/ABS(SUMIF(TEJdata!$P:$P,$A112,TEJdata!$D:$D)-1))*100,(SUMIF(TEJdata!$P:$P,$A112,TEJdata!$B:$B)/SUMIF(TEJdata!$P:$P,$A112,TEJdata!$D:$D)-1)*100)) -> -1.389648838 | D112: =IF(SUMIF(TEJdata!$P:$P,$A112,TEJdata!$B:$B)=0,"",(SUMIF(TEJdata!$P:$P,$A112,TEJdata!$B:$B)/SUMIF(TEJdata!$P:$P,$A112,TEJdata!$C:$C)-1)*100) -> 27.65902724 | E112: =IF(SUMIF(TEJdata!$P:$P,$A112,TEJdata!$E:$E)=0,"",(SUMIF(TEJdata!$P:$P,$A112,TEJdata!$E:$E)/SUMIF(TEJdata!$P:$P,$A112,TEJdata!$F:$F)-1)*100) -> -3.949991998 | F112: =SUMIF(TEJdata!$P:$P,$A112,TEJdata!$B:$B)/1000 -> 31165.623 | G112: =SUMIF(TEJdata!$P:$P,$A112,TEJdata!$G:$G)/$B112 -> 0.8006166667 | H112: =SUMIF(TEJdata!$P:$P,$A112,TEJdata!$H:$H)/$B112 -> -0.1558833333 | I112: =IF(SUMIF(TEJdata!$P:$P,$A112,TEJdata!$I:$I)=0,0,IFERROR((SUMIF(TEJdata!$P:$P,$A112,TEJdata!$I:$I)/SUMIF(TEJdata!$P:$P,$A112,TEJdata!$J:$J)-1)*100,"-")) -> 1.268948331 | J112: =IF(SUMIF(TEJdata!$P:$P,$A112,TEJdata!$K:$K)=0,0,IFERROR((SUMIF(TEJdata!$P:$P,$A112,TEJdata!$K:$K)/SUMIF(TEJdata!$P:$P,$A112,TEJdata!$L:$L)-1)*100,"-")) -> -0.837872977 | K112: =IF(SUMIF(TEJdata!$P:$P,$A112,TEJdata!$M:$M)=0,0,IFERROR((SUMIF(TEJdata!$P:$P,$A112,TEJdata!$M:$M)/SUMIF(TEJdata!$P:$P,$A112,TEJdata!$N:$N)-1)*100,"-")) -> -1.027923658
A113: M22A 汽車製造 | B113: =COUNTIF(TEJdata!$P:$P,$A113) -> 5 | C113: =IF(SUMIF(TEJdata!$P:$P,$A113,TEJdata!$B:$B)=0,"",IF(AND(SUMIF(TEJdata!$P:$P,$A113,TEJdata!$B:$B)>0,SUMIF(TEJdata!$P:$P,$A113,TEJdata!$D:$D)<0),(SUMIF(TEJdata!$P:$P,$A113,TEJdata!$B:$B)/ABS(SUMIF(TEJdata!$P:$P,$A113,TEJdata!$D:$D)-1))*100,(SUMIF(TEJdata!$P:$P,$A113,TEJdata!$B:$B)/SUMIF(TEJdata!$P:$P,$A113,TEJdata!$D:$D)-1)*100)) -> -1.739022108 | D113: =IF(SUMIF(TEJdata!$P:$P,$A113,TEJdata!$B:$B)=0,"",(SUMIF(TEJdata!$P:$P,$A113,TEJdata!$B:$B)/SUMIF(TEJdata!$P:$P,$A113,TEJdata!$C:$C)-1)*100) -> 20.8488494 | E113: =IF(SUMIF(TEJdata!$P:$P,$A113,TEJdata!$E:$E)=0,"",(SUMIF(TEJdata!$P:$P,$A113,TEJdata!$E:$E)/SUMIF(TEJdata!$P:$P,$A113,TEJdata!$F:$F)-1)*100) -> 3.553787232 | F113: =SUMIF(TEJdata!$P:$P,$A113,TEJdata!$B:$B)/1000 -> 9488.816 | G113: =SUMIF(TEJdata!$P:$P,$A113,TEJdata!$G:$G)/$B113 -> -1.32412 | H113: =SUMIF(TEJdata!$P:$P,$A113,TEJdata!$H:$H)/$B113 -> -4.71208 | I113: =IF(SUMIF(TEJdata!$P:$P,$A113,TEJdata!$I:$I)=0,0,IFERROR((SUMIF(TEJdata!$P:$P,$A113,TEJdata!$I:$I)/SUMIF(TEJdata!$P:$P,$A113,TEJdata!$J:$J)-1)*100,"-")) -> 10.12848589 | J113: =IF(SUMIF(TEJdata!$P:$P,$A113,TEJdata!$K:$K)=0,0,IFERROR((SUMIF(TEJdata!$P:$P,$A113,TEJdata!$K:$K)/SUMIF(TEJdata!$P:$P,$A113,TEJdata!$L:$L)-1)*100,"-")) -> -1.785714286 | K113: =IF(SUMIF(TEJdata!$P:$P,$A113,TEJdata!$M:$M)=0,0,IFERROR((SUMIF(TEJdata!$P:$P,$A113,TEJdata!$M:$M)/SUMIF(TEJdata!$P:$P,$A113,TEJdata!$N:$N)-1)*100,"-")) -> 3.482066407
A114: M17Y 化妝美容 | B114: =COUNTIF(TEJdata!$P:$P,$A114) -> 8 | C114: =IF(SUMIF(TEJdata!$P:$P,$A114,TEJdata!$B:$B)=0,"",IF(AND(SUMIF(TEJdata!$P:$P,$A114,TEJdata!$B:$B)>0,SUMIF(TEJdata!$P:$P,$A114,TEJdata!$D:$D)<0),(SUMIF(TEJdata!$P:$P,$A114,TEJdata!$B:$B)/ABS(SUMIF(TEJdata!$P:$P,$A114,TEJdata!$D:$D)-1))*100,(SUMIF(TEJdata!$P:$P,$A114,TEJdata!$B:$B)/SUMIF(TEJdata!$P:$P,$A114,TEJdata!$D:$D)-1)*100)) -> -3.282564292 | D114: =IF(SUMIF(TEJdata!$P:$P,$A114,TEJdata!$B:$B)=0,"",(SUMIF(TEJdata!$P:$P,$A114,TEJdata!$B:$B)/SUMIF(TEJdata!$P:$P,$A114,TEJdata!$C:$C)-1)*100) -> 43.99677082 | E114: =IF(SUMIF(TEJdata!$P:$P,$A114,TEJdata!$E:$E)=0,"",(SUMIF(TEJdata!$P:$P,$A114,TEJdata!$E:$E)/SUMIF(TEJdata!$P:$P,$A114,TEJdata!$F:$F)-1)*100) -> 1.784283864 | F114: =SUMIF(TEJdata!$P:$P,$A114,TEJdata!$B:$B)/1000 -> 1262.856 | G114: =SUMIF(TEJdata!$P:$P,$A114,TEJdata!$G:$G)/$B114 -> 0.703875 | H114: =SUMIF(TEJdata!$P:$P,$A114,TEJdata!$H:$H)/$B114 -> 3.6328625 | I114: =IF(SUMIF(TEJdata!$P:$P,$A114,TEJdata!$I:$I)=0,0,IFERROR((SUMIF(TEJdata!$P:$P,$A114,TEJdata!$I:$I)/SUMIF(TEJdata!$P:$P,$A114,TEJdata!$J:$J)-1)*100,"-")) -> 0.03975616221 | J114: =IF(SUMIF(TEJdata!$P:$P,$A114,TEJdata!$K:$K)=0,0,IFERROR((SUMIF(TEJdata!$P:$P,$A114,TEJdata!$K:$K)/SUMIF(TEJdata!$P:$P,$A114,TEJdata!$L:$L)-1)*100,"-")) -> 0 | K114: =IF(SUMIF(TEJdata!$P:$P,$A114,TEJdata!$M:$M)=0,0,IFERROR((SUMIF(TEJdata!$P:$P,$A114,TEJdata!$M:$M)/SUMIF(TEJdata!$P:$P,$A114,TEJdata!$N:$N)-1)*100,"-")) -> -1.119820829
A115: M23G5G 顯示驅動IC | B115: =COUNTIF(TEJdata!$P:$P,$A115) -> 9 | C115: =IF(SUMIF(TEJdata!$P:$P,$A115,TEJdata!$B:$B)=0,"",IF(AND(SUMIF(TEJdata!$P:$P,$A115,TEJdata!$B:$B)>0,SUMIF(TEJdata!$P:$P,$A115,TEJdata!$D:$D)<0),(SUMIF(TEJdata!$P:$P,$A115,TEJdata!$B:$B)/ABS(SUMIF(TEJdata!$P:$P,$A115,TEJdata!$D:$D)-1))*100,(SUMIF(TEJdata!$P:$P,$A115,TEJdata!$B:$B)/SUMIF(TEJdata!$P:$P,$A115,TEJdata!$D:$D)-1)*100)) -> -3.393344341 | D115: =IF(SUMIF(TEJdata!$P:$P,$A115,TEJdata!$B:$B)=0,"",(SUMIF(TEJdata!$P:$P,$A115,TEJdata!$B:$B)/SUMIF(TEJdata!$P:$P,$A115,TEJdata!$C:$C)-1)*100) -> 27.13834772 | E115: =IF(SUMIF(TEJdata!$P:$P,$A115,TEJdata!$E:$E)=0,"",(SUMIF(TEJdata!$P:$P,$A115,TEJdata!$E:$E)/SUMIF(TEJdata!$P:$P,$A115,TEJdata!$F:$F)-1)*100) -> -8.787725607 | F115: =SUMIF(TEJdata!$P:$P,$A115,TEJdata!$B:$B)/1000 -> 17299.776 | G115: =SUMIF(TEJdata!$P:$P,$A115,TEJdata!$G:$G)/$B115 -> 3.4989 | H115: =SUMIF(TEJdata!$P:$P,$A115,TEJdata!$H:$H)/$B115 -> 4.974022222 | I115: =IF(SUMIF(TEJdata!$P:$P,$A115,TEJdata!$I:$I)=0,0,IFERROR((SUMIF(TEJdata!$P:$P,$A115,TEJdata!$I:$I)/SUMIF(TEJdata!$P:$P,$A115,TEJdata!$J:$J)-1)*100,"-")) -> 0.2468368762 | J115: =IF(SUMIF(TEJdata!$P:$P,$A115,TEJdata!$K:$K)=0,0,IFERROR((SUMIF(TEJdata!$P:$P,$A115,TEJdata!$K:$K)/SUMIF(TEJdata!$P:$P,$A115,TEJdata!$L:$L)-1)*100,"-")) -> -0.1740199294 | K115: =IF(SUMIF(TEJdata!$P:$P,$A115,TEJdata!$M:$M)=0,0,IFERROR((SUMIF(TEJdata!$P:$P,$A115,TEJdata!$M:$M)/SUMIF(TEJdata!$P:$P,$A115,TEJdata!$N:$N)-1)*100,"-")) -> -0.0854214123
A116: M29B 貿易 | B116: =COUNTIF(TEJdata!$P:$P,$A116) -> 8 | C116: =IF(SUMIF(TEJdata!$P:$P,$A116,TEJdata!$B:$B)=0,"",IF(AND(SUMIF(TEJdata!$P:$P,$A116,TEJdata!$B:$B)>0,SUMIF(TEJdata!$P:$P,$A116,TEJdata!$D:$D)<0),(SUMIF(TEJdata!$P:$P,$A116,TEJdata!$B:$B)/ABS(SUMIF(TEJdata!$P:$P,$A116,TEJdata!$D:$D)-1))*100,(SUMIF(TEJdata!$P:$P,$A116,TEJdata!$B:$B)/SUMIF(TEJdata!$P:$P,$A116,TEJdata!$D:$D)-1)*100)) -> -3.415939655 | D116: =IF(SUMIF(TEJdata!$P:$P,$A116,TEJdata!$B:$B)=0,"",(SUMIF(TEJdata!$P:$P,$A116,TEJdata!$B:$B)/SUMIF(TEJdata!$P:$P,$A116,TEJdata!$C:$C)-1)*100) -> 0.993268969 | E116: =IF(SUMIF(TEJdata!$P:$P,$A116,TEJdata!$E:$E)=0,"",(SUMIF(TEJdata!$P:$P,$A116,TEJdata!$E:$E)/SUMIF(TEJdata!$P:$P,$A116,TEJdata!$F:$F)-1)*100) -> 6.849952244 | F116: =SUMIF(TEJdata!$P:$P,$A116,TEJdata!$B:$B)/1000 -> 4148.042 | G116: =SUMIF(TEJdata!$P:$P,$A116,TEJdata!$G:$G)/$B116 -> -1.40745 | H116: =SUMIF(TEJdata!$P:$P,$A116,TEJdata!$H:$H)/$B116 -> 0.9641625 | I116: =IF(SUMIF(TEJdata!$P:$P,$A116,TEJdata!$I:$I)=0,0,IFERROR((SUMIF(TEJdata!$P:$P,$A116,TEJdata!$I:$I)/SUMIF(TEJdata!$P:$P,$A116,TEJdata!$J:$J)-1)*100,"-")) -> -2.44963194 | J116: =IF(SUMIF(TEJdata!$P:$P,$A116,TEJdata!$K:$K)=0,0,IFERROR((SUMIF(TEJdata!$P:$P,$A116,TEJdata!$K:$K)/SUMIF(TEJdata!$P:$P,$A116,TEJdata!$L:$L)-1)*100,"-")) -> 0 | K116: =IF(SUMIF(TEJdata!$P:$P,$A116,TEJdata!$M:$M)=0,0,IFERROR((SUMIF(TEJdata!$P:$P,$A116,TEJdata!$M:$M)/SUMIF(TEJdata!$P:$P,$A116,TEJdata!$N:$N)-1)*100,"-")) -> 1.009789563
A117: M20A3 鋼板 | B117: =COUNTIF(TEJdata!$P:$P,$A117) -> 6 | C117: =IF(SUMIF(TEJdata!$P:$P,$A117,TEJdata!$B:$B)=0,"",IF(AND(SUMIF(TEJdata!$P:$P,$A117,TEJdata!$B:$B)>0,SUMIF(TEJdata!$P:$P,$A117,TEJdata!$D:$D)<0),(SUMIF(TEJdata!$P:$P,$A117,TEJdata!$B:$B)/ABS(SUMIF(TEJdata!$P:$P,$A117,TEJdata!$D:$D)-1))*100,(SUMIF(TEJdata!$P:$P,$A117,TEJdata!$B:$B)/SUMIF(TEJdata!$P:$P,$A117,TEJdata!$D:$D)-1)*100)) -> -3.60415054 | D117: =IF(SUMIF(TEJdata!$P:$P,$A117,TEJdata!$B:$B)=0,"",(SUMIF(TEJdata!$P:$P,$A117,TEJdata!$B:$B)/SUMIF(TEJdata!$P:$P,$A117,TEJdata!$C:$C)-1)*100) -> 22.20331553 | E117: =IF(SUMIF(TEJdata!$P:$P,$A117,TEJdata!$E:$E)=0,"",(SUMIF(TEJdata!$P:$P,$A117,TEJdata!$E:$E)/SUMIF(TEJdata!$P:$P,$A117,TEJdata!$F:$F)-1)*100) -> -6.389426129 | F117: =SUMIF(TEJdata!$P:$P,$A117,TEJdata!$B:$B)/1000 -> 41892.785 | G117: =SUMIF(TEJdata!$P:$P,$A117,TEJdata!$G:$G)/$B117 -> 0.8600333333 | H117: =SUMIF(TEJdata!$P:$P,$A117,TEJdata!$H:$H)/$B117 -> 4.497816667 | I117: =IF(SUMIF(TEJdata!$P:$P,$A117,TEJdata!$I:$I)=0,0,IFERROR((SUMIF(TEJdata!$P:$P,$A117,TEJdata!$I:$I)/SUMIF(TEJdata!$P:$P,$A117,TEJdata!$J:$J)-1)*100,"-")) -> 2.815807229 | J117: =IF(SUMIF(TEJdata!$P:$P,$A117,TEJdata!$K:$K)=0,0,IFERROR((SUMIF(TEJdata!$P:$P,$A117,TEJdata!$K:$K)/SUMIF(TEJdata!$P:$P,$A117,TEJdata!$L:$L)-1)*100,"-")) -> -0.125316799 | K117: =IF(SUMIF(TEJdata!$P:$P,$A117,TEJdata!$M:$M)=0,0,IFERROR((SUMIF(TEJdata!$P:$P,$A117,TEJdata!$M:$M)/SUMIF(TEJdata!$P:$P,$A117,TEJdata!$N:$N)-1)*100,"-")) -> -4.22253352
A118: M29A1 百貨及Mall | B118: =COUNTIF(TEJdata!$P:$P,$A118) -> 7 | C118: =IF(SUMIF(TEJdata!$P:$P,$A118,TEJdata!$B:$B)=0,"",IF(AND(SUMIF(TEJdata!$P:$P,$A118,TEJdata!$B:$B)>0,SUMIF(TEJdata!$P:$P,$A118,TEJdata!$D:$D)<0),(SUMIF(TEJdata!$P:$P,$A118,TEJdata!$B:$B)/ABS(SUMIF(TEJdata!$P:$P,$A118,TEJdata!$D:$D)-1))*100,(SUMIF(TEJdata!$P:$P,$A118,TEJdata!$B:$B)/SUMIF(TEJdata!$P:$P,$A118,TEJdata!$D:$D)-1)*100)) -> -3.772329275 | D118: =IF(SUMIF(TEJdata!$P:$P,$A118,TEJdata!$B:$B)=0,"",(SUMIF(TEJdata!$P:$P,$A118,TEJdata!$B:$B)/SUMIF(TEJdata!$P:$P,$A118,TEJdata!$C:$C)-1)*100) -> 7.238074092 | E118: =IF(SUMIF(TEJdata!$P:$P,$A118,TEJdata!$E:$E)=0,"",(SUMIF(TEJdata!$P:$P,$A118,TEJdata!$E:$E)/SUMIF(TEJdata!$P:$P,$A118,TEJdata!$F:$F)-1)*100) -> -1.747802165 | F118: =SUMIF(TEJdata!$P:$P,$A118,TEJdata!$B:$B)/1000 -> 4018.379 | G118: =SUMIF(TEJdata!$P:$P,$A118,TEJdata!$G:$G)/$B118 -> 0.5444714286 | H118: =SUMIF(TEJdata!$P:$P,$A118,TEJdata!$H:$H)/$B118 -> -0.3025571429 | I118: =IF(SUMIF(TEJdata!$P:$P,$A118,TEJdata!$I:$I)=0,0,IFERROR((SUMIF(TEJdata!$P:$P,$A118,TEJdata!$I:$I)/SUMIF(TEJdata!$P:$P,$A118,TEJdata!$J:$J)-1)*100,"-")) -> -0.8284640496 | J118: =IF(SUMIF(TEJdata!$P:$P,$A118,TEJdata!$K:$K)=0,0,IFERROR((SUMIF(TEJdata!$P:$P,$A118,TEJdata!$K:$K)/SUMIF(TEJdata!$P:$P,$A118,TEJdata!$L:$L)-1)*100,"-")) -> -2.184810761 | K118: =IF(SUMIF(TEJdata!$P:$P,$A118,TEJdata!$M:$M)=0,0,IFERROR((SUMIF(TEJdata!$P:$P,$A118,TEJdata!$M:$M)/SUMIF(TEJdata!$P:$P,$A118,TEJdata!$N:$N)-1)*100,"-")) -> 1.436845623
A119: M14C2 織布 | B119: =COUNTIF(TEJdata!$P:$P,$A119) -> 17 | C119: =IF(SUMIF(TEJdata!$P:$P,$A119,TEJdata!$B:$B)=0,"",IF(AND(SUMIF(TEJdata!$P:$P,$A119,TEJdata!$B:$B)>0,SUMIF(TEJdata!$P:$P,$A119,TEJdata!$D:$D)<0),(SUMIF(TEJdata!$P:$P,$A119,TEJdata!$B:$B)/ABS(SUMIF(TEJdata!$P:$P,$A119,TEJdata!$D:$D)-1))*100,(SUMIF(TEJdata!$P:$P,$A119,TEJdata!$B:$B)/SUMIF(TEJdata!$P:$P,$A119,TEJdata!$D:$D)-1)*100)) -> -4.227848662 | D119: =IF(SUMIF(TEJdata!$P:$P,$A119,TEJdata!$B:$B)=0,"",(SUMIF(TEJdata!$P:$P,$A119,TEJdata!$B:$B)/SUMIF(TEJdata!$P:$P,$A119,TEJdata!$C:$C)-1)*100) -> 45.94591 | E119: =IF(SUMIF(TEJdata!$P:$P,$A119,TEJdata!$E:$E)=0,"",(SUMIF(TEJdata!$P:$P,$A119,TEJdata!$E:$E)/SUMIF(TEJdata!$P:$P,$A119,TEJdata!$F:$F)-1)*100) -> -7.637641839 | F119: =SUMIF(TEJdata!$P:$P,$A119,TEJdata!$B:$B)/1000 -> 7353.041 | G119: =SUMIF(TEJdata!$P:$P,$A119,TEJdata!$G:$G)/$B119 -> 2.284247059 | H119: =SUMIF(TEJdata!$P:$P,$A119,TEJdata!$H:$H)/$B119 -> 2.819952941 | I119: =IF(SUMIF(TEJdata!$P:$P,$A119,TEJdata!$I:$I)=0,0,IFERROR((SUMIF(TEJdata!$P:$P,$A119,TEJdata!$I:$I)/SUMIF(TEJdata!$P:$P,$A119,TEJdata!$J:$J)-1)*100,"-")) -> 1.496480899 | J119: =IF(SUMIF(TEJdata!$P:$P,$A119,TEJdata!$K:$K)=0,0,IFERROR((SUMIF(TEJdata!$P:$P,$A119,TEJdata!$K:$K)/SUMIF(TEJdata!$P:$P,$A119,TEJdata!$L:$L)-1)*100,"-")) -> 34.36293436 | K119: =IF(SUMIF(TEJdata!$P:$P,$A119,TEJdata!$M:$M)=0,0,IFERROR((SUMIF(TEJdata!$P:$P,$A119,TEJdata!$M:$M)/SUMIF(TEJdata!$P:$P,$A119,TEJdata!$N:$N)-1)*100,"-")) -> -3.246045924
A120: M99B 五金及家具 | B120: =COUNTIF(TEJdata!$P:$P,$A120) -> 17 | C120: =IF(SUMIF(TEJdata!$P:$P,$A120,TEJdata!$B:$B)=0,"",IF(AND(SUMIF(TEJdata!$P:$P,$A120,TEJdata!$B:$B)>0,SUMIF(TEJdata!$P:$P,$A120,TEJdata!$D:$D)<0),(SUMIF(TEJdata!$P:$P,$A120,TEJdata!$B:$B)/ABS(SUMIF(TEJdata!$P:$P,$A120,TEJdata!$D:$D)-1))*100,(SUMIF(TEJdata!$P:$P,$A120,TEJdata!$B:$B)/SUMIF(TEJdata!$P:$P,$A120,TEJdata!$D:$D)-1)*100)) -> -4.684590862 | D120: =IF(SUMIF(TEJdata!$P:$P,$A120,TEJdata!$B:$B)=0,"",(SUMIF(TEJdata!$P:$P,$A120,TEJdata!$B:$B)/SUMIF(TEJdata!$P:$P,$A120,TEJdata!$C:$C)-1)*100) -> 24.69449699 | E120: =IF(SUMIF(TEJdata!$P:$P,$A120,TEJdata!$E:$E)=0,"",(SUMIF(TEJdata!$P:$P,$A120,TEJdata!$E:$E)/SUMIF(TEJdata!$P:$P,$A120,TEJdata!$F:$F)-1)*100) -> -3.942866804 | F120: =SUMIF(TEJdata!$P:$P,$A120,TEJdata!$B:$B)/1000 -> 9617.3 | G120: =SUMIF(TEJdata!$P:$P,$A120,TEJdata!$G:$G)/$B120 -> 0.4176529412 | H120: =SUMIF(TEJdata!$P:$P,$A120,TEJdata!$H:$H)/$B120 -> -0.6382647059 | I120: =IF(SUMIF(TEJdata!$P:$P,$A120,TEJdata!$I:$I)=0,0,IFERROR((SUMIF(TEJdata!$P:$P,$A120,TEJdata!$I:$I)/SUMIF(TEJdata!$P:$P,$A120,TEJdata!$J:$J)-1)*100,"-")) -> 0.2160436905 | J120: =IF(SUMIF(TEJdata!$P:$P,$A120,TEJdata!$K:$K)=0,0,IFERROR((SUMIF(TEJdata!$P:$P,$A120,TEJdata!$K:$K)/SUMIF(TEJdata!$P:$P,$A120,TEJdata!$L:$L)-1)*100,"-")) -> 0.386199794 | K120: =IF(SUMIF(TEJdata!$P:$P,$A120,TEJdata!$M:$M)=0,0,IFERROR((SUMIF(TEJdata!$P:$P,$A120,TEJdata!$M:$M)/SUMIF(TEJdata!$P:$P,$A120,TEJdata!$N:$N)-1)*100,"-")) -> -0.7469791285
A121: M99D2 天然氣 | B121: =COUNTIF(TEJdata!$P:$P,$A121) -> 6 | C121: =IF(SUMIF(TEJdata!$P:$P,$A121,TEJdata!$B:$B)=0,"",IF(AND(SUMIF(TEJdata!$P:$P,$A121,TEJdata!$B:$B)>0,SUMIF(TEJdata!$P:$P,$A121,TEJdata!$D:$D)<0),(SUMIF(TEJdata!$P:$P,$A121,TEJdata!$B:$B)/ABS(SUMIF(TEJdata!$P:$P,$A121,TEJdata!$D:$D)-1))*100,(SUMIF(TEJdata!$P:$P,$A121,TEJdata!$B:$B)/SUMIF(TEJdata!$P:$P,$A121,TEJdata!$D:$D)-1)*100)) -> -5.34949851 | D121: =IF(SUMIF(TEJdata!$P:$P,$A121,TEJdata!$B:$B)=0,"",(SUMIF(TEJdata!$P:$P,$A121,TEJdata!$B:$B)/SUMIF(TEJdata!$P:$P,$A121,TEJdata!$C:$C)-1)*100) -> 30.40390995 | E121: =IF(SUMIF(TEJdata!$P:$P,$A121,TEJdata!$E:$E)=0,"",(SUMIF(TEJdata!$P:$P,$A121,TEJdata!$E:$E)/SUMIF(TEJdata!$P:$P,$A121,TEJdata!$F:$F)-1)*100) -> -5.498348978 | F121: =SUMIF(TEJdata!$P:$P,$A121,TEJdata!$B:$B)/1000 -> 2175.874 | G121: =SUMIF(TEJdata!$P:$P,$A121,TEJdata!$G:$G)/$B121 -> -1.99865 | H121: =SUMIF(TEJdata!$P:$P,$A121,TEJdata!$H:$H)/$B121 -> -12.07783333 | I121: =IF(SUMIF(TEJdata!$P:$P,$A121,TEJdata!$I:$I)=0,0,IFERROR((SUMIF(TEJdata!$P:$P,$A121,TEJdata!$I:$I)/SUMIF(TEJdata!$P:$P,$A121,TEJdata!$J:$J)-1)*100,"-")) -> -0.2998296422 | J121: =IF(SUMIF(TEJdata!$P:$P,$A121,TEJdata!$K:$K)=0,0,IFERROR((SUMIF(TEJdata!$P:$P,$A121,TEJdata!$K:$K)/SUMIF(TEJdata!$P:$P,$A121,TEJdata!$L:$L)-1)*100,"-")) -> 0 | K121: =IF(SUMIF(TEJdata!$P:$P,$A121,TEJdata!$M:$M)=0,0,IFERROR((SUMIF(TEJdata!$P:$P,$A121,TEJdata!$M:$M)/SUMIF(TEJdata!$P:$P,$A121,TEJdata!$N:$N)-1)*100,"-")) -> -14.3777888
A122: M13B 塑膠製品 | B122: =COUNTIF(TEJdata!$P:$P,$A122) -> 8 | C122: =IF(SUMIF(TEJdata!$P:$P,$A122,TEJdata!$B:$B)=0,"",IF(AND(SUMIF(TEJdata!$P:$P,$A122,TEJdata!$B:$B)>0,SUMIF(TEJdata!$P:$P,$A122,TEJdata!$D:$D)<0),(SUMIF(TEJdata!$P:$P,$A122,TEJdata!$B:$B)/ABS(SUMIF(TEJdata!$P:$P,$A122,TEJdata!$D:$D)-1))*100,(SUMIF(TEJdata!$P:$P,$A122,TEJdata!$B:$B)/SUMIF(TEJdata!$P:$P,$A122,TEJdata!$D:$D)-1)*100)) -> -5.473609135 | D122: =IF(SUMIF(TEJdata!$P:$P,$A122,TEJdata!$B:$B)=0,"",(SUMIF(TEJdata!$P:$P,$A122,TEJdata!$B:$B)/SUMIF(TEJdata!$P:$P,$A122,TEJdata!$C:$C)-1)*100) -> 26.99616077 | E122: =IF(SUMIF(TEJdata!$P:$P,$A122,TEJdata!$E:$E)=0,"",(SUMIF(TEJdata!$P:$P,$A122,TEJdata!$E:$E)/SUMIF(TEJdata!$P:$P,$A122,TEJdata!$F:$F)-1)*100) -> -6.664240589 | F122: =SUMIF(TEJdata!$P:$P,$A122,TEJdata!$B:$B)/1000 -> 3581.086 | G122: =SUMIF(TEJdata!$P:$P,$A122,TEJdata!$G:$G)/$B122 -> -0.3666875 | H122: =SUMIF(TEJdata!$P:$P,$A122,TEJdata!$H:$H)/$B122 -> -2.4280875 | I122: =IF(SUMIF(TEJdata!$P:$P,$A122,TEJdata!$I:$I)=0,0,IFERROR((SUMIF(TEJdata!$P:$P,$A122,TEJdata!$I:$I)/SUMIF(TEJdata!$P:$P,$A122,TEJdata!$J:$J)-1)*100,"-")) -> -0.03998865438 | J122: =IF(SUMIF(TEJdata!$P:$P,$A122,TEJdata!$K:$K)=0,0,IFERROR((SUMIF(TEJdata!$P:$P,$A122,TEJdata!$K:$K)/SUMIF(TEJdata!$P:$P,$A122,TEJdata!$L:$L)-1)*100,"-")) -> -0.1830384381 | K122: =IF(SUMIF(TEJdata!$P:$P,$A122,TEJdata!$M:$M)=0,0,IFERROR((SUMIF(TEJdata!$P:$P,$A122,TEJdata!$M:$M)/SUMIF(TEJdata!$P:$P,$A122,TEJdata!$N:$N)-1)*100,"-")) -> -0.5344594372
A123: M20A7 鋼管 | B123: =COUNTIF(TEJdata!$P:$P,$A123) -> 5 | C123: =IF(SUMIF(TEJdata!$P:$P,$A123,TEJdata!$B:$B)=0,"",IF(AND(SUMIF(TEJdata!$P:$P,$A123,TEJdata!$B:$B)>0,SUMIF(TEJdata!$P:$P,$A123,TEJdata!$D:$D)<0),(SUMIF(TEJdata!$P:$P,$A123,TEJdata!$B:$B)/ABS(SUMIF(TEJdata!$P:$P,$A123,TEJdata!$D:$D)-1))*100,(SUMIF(TEJdata!$P:$P,$A123,TEJdata!$B:$B)/SUMIF(TEJdata!$P:$P,$A123,TEJdata!$D:$D)-1)*100)) -> -5.637402102 | D123: =IF(SUMIF(TEJdata!$P:$P,$A123,TEJdata!$B:$B)=0,"",(SUMIF(TEJdata!$P:$P,$A123,TEJdata!$B:$B)/SUMIF(TEJdata!$P:$P,$A123,TEJdata!$C:$C)-1)*100) -> 38.08694562 | E123: =IF(SUMIF(TEJdata!$P:$P,$A123,TEJdata!$E:$E)=0,"",(SUMIF(TEJdata!$P:$P,$A123,TEJdata!$E:$E)/SUMIF(TEJdata!$P:$P,$A123,TEJdata!$F:$F)-1)*100) -> -11.8303626 | F123: =SUMIF(TEJdata!$P:$P,$A123,TEJdata!$B:$B)/1000 -> 2710.325 | G123: =SUMIF(TEJdata!$P:$P,$A123,TEJdata!$G:$G)/$B123 -> 2.45904 | H123: =SUMIF(TEJdata!$P:$P,$A123,TEJdata!$H:$H)/$B123 -> 3.6299 | I123: =IF(SUMIF(TEJdata!$P:$P,$A123,TEJdata!$I:$I)=0,0,IFERROR((SUMIF(TEJdata!$P:$P,$A123,TEJdata!$I:$I)/SUMIF(TEJdata!$P:$P,$A123,TEJdata!$J:$J)-1)*100,"-")) -> 3.12336644 | J123: =IF(SUMIF(TEJdata!$P:$P,$A123,TEJdata!$K:$K)=0,0,IFERROR((SUMIF(TEJdata!$P:$P,$A123,TEJdata!$K:$K)/SUMIF(TEJdata!$P:$P,$A123,TEJdata!$L:$L)-1)*100,"-")) -> 0 | K123: =IF(SUMIF(TEJdata!$P:$P,$A123,TEJdata!$M:$M)=0,0,IFERROR((SUMIF(TEJdata!$P:$P,$A123,TEJdata!$M:$M)/SUMIF(TEJdata!$P:$P,$A123,TEJdata!$N:$N)-1)*100,"-")) -> -3.457540007
A124: M23C6B 磊晶及晶粒 | B124: =COUNTIF(TEJdata!$P:$P,$A124) -> 5 | C124: =IF(SUMIF(TEJdata!$P:$P,$A124,TEJdata!$B:$B)=0,"",IF(AND(SUMIF(TEJdata!$P:$P,$A124,TEJdata!$B:$B)>0,SUMIF(TEJdata!$P:$P,$A124,TEJdata!$D:$D)<0),(SUMIF(TEJdata!$P:$P,$A124,TEJdata!$B:$B)/ABS(SUMIF(TEJdata!$P:$P,$A124,TEJdata!$D:$D)-1))*100,(SUMIF(TEJdata!$P:$P,$A124,TEJdata!$B:$B)/SUMIF(TEJdata!$P:$P,$A124,TEJdata!$D:$D)-1)*100)) -> -5.73407595 | D124: =IF(SUMIF(TEJdata!$P:$P,$A124,TEJdata!$B:$B)=0,"",(SUMIF(TEJdata!$P:$P,$A124,TEJdata!$B:$B)/SUMIF(TEJdata!$P:$P,$A124,TEJdata!$C:$C)-1)*100) -> 27.43923963 | E124: =IF(SUMIF(TEJdata!$P:$P,$A124,TEJdata!$E:$E)=0,"",(SUMIF(TEJdata!$P:$P,$A124,TEJdata!$E:$E)/SUMIF(TEJdata!$P:$P,$A124,TEJdata!$F:$F)-1)*100) -> -4.451490488 | F124: =SUMIF(TEJdata!$P:$P,$A124,TEJdata!$B:$B)/1000 -> 2639.115 | G124: =SUMIF(TEJdata!$P:$P,$A124,TEJdata!$G:$G)/$B124 -> 11.357 | H124: =SUMIF(TEJdata!$P:$P,$A124,TEJdata!$H:$H)/$B124 -> 52.62344 | I124: =IF(SUMIF(TEJdata!$P:$P,$A124,TEJdata!$I:$I)=0,0,IFERROR((SUMIF(TEJdata!$P:$P,$A124,TEJdata!$I:$I)/SUMIF(TEJdata!$P:$P,$A124,TEJdata!$J:$J)-1)*100,"-")) -> -4.266303504 | J124: =IF(SUMIF(TEJdata!$P:$P,$A124,TEJdata!$K:$K)=0,0,IFERROR((SUMIF(TEJdata!$P:$P,$A124,TEJdata!$K:$K)/SUMIF(TEJdata!$P:$P,$A124,TEJdata!$L:$L)-1)*100,"-")) -> 55.55555556 | K124: =IF(SUMIF(TEJdata!$P:$P,$A124,TEJdata!$M:$M)=0,0,IFERROR((SUMIF(TEJdata!$P:$P,$A124,TEJdata!$M:$M)/SUMIF(TEJdata!$P:$P,$A124,TEJdata!$N:$N)-1)*100,"-")) -> 21.27634638
A125: M23C2 影像掃描 | B125: =COUNTIF(TEJdata!$P:$P,$A125) -> 7 | C125: =IF(SUMIF(TEJdata!$P:$P,$A125,TEJdata!$B:$B)=0,"",IF(AND(SUMIF(TEJdata!$P:$P,$A125,TEJdata!$B:$B)>0,SUMIF(TEJdata!$P:$P,$A125,TEJdata!$D:$D)<0),(SUMIF(TEJdata!$P:$P,$A125,TEJdata!$B:$B)/ABS(SUMIF(TEJdata!$P:$P,$A125,TEJdata!$D:$D)-1))*100,(SUMIF(TEJdata!$P:$P,$A125,TEJdata!$B:$B)/SUMIF(TEJdata!$P:$P,$A125,TEJdata!$D:$D)-1)*100)) -> -7.098839243 | D125: =IF(SUMIF(TEJdata!$P:$P,$A125,TEJdata!$B:$B)=0,"",(SUMIF(TEJdata!$P:$P,$A125,TEJdata!$B:$B)/SUMIF(TEJdata!$P:$P,$A125,TEJdata!$C:$C)-1)*100) -> 31.86884698 | E125: =IF(SUMIF(TEJdata!$P:$P,$A125,TEJdata!$E:$E)=0,"",(SUMIF(TEJdata!$P:$P,$A125,TEJdata!$E:$E)/SUMIF(TEJdata!$P:$P,$A125,TEJdata!$F:$F)-1)*100) -> -33.15643913 | F125: =SUMIF(TEJdata!$P:$P,$A125,TEJdata!$B:$B)/1000 -> 2668.767 | G125: =SUMIF(TEJdata!$P:$P,$A125,TEJdata!$G:$G)/$B125 -> 0.2321285714 | H125: =SUMIF(TEJdata!$P:$P,$A125,TEJdata!$H:$H)/$B125 -> -0.7532714286 | I125: =IF(SUMIF(TEJdata!$P:$P,$A125,TEJdata!$I:$I)=0,0,IFERROR((SUMIF(TEJdata!$P:$P,$A125,TEJdata!$I:$I)/SUMIF(TEJdata!$P:$P,$A125,TEJdata!$J:$J)-1)*100,"-")) -> 16.22843745 | J125: =IF(SUMIF(TEJdata!$P:$P,$A125,TEJdata!$K:$K)=0,0,IFERROR((SUMIF(TEJdata!$P:$P,$A125,TEJdata!$K:$K)/SUMIF(TEJdata!$P:$P,$A125,TEJdata!$L:$L)-1)*100,"-")) -> 0 | K125: =IF(SUMIF(TEJdata!$P:$P,$A125,TEJdata!$M:$M)=0,0,IFERROR((SUMIF(TEJdata!$P:$P,$A125,TEJdata!$M:$M)/SUMIF(TEJdata!$P:$P,$A125,TEJdata!$N:$N)-1)*100,"-")) -> 1.58003544
A126: M23K5 導航定位 | B126: =COUNTIF(TEJdata!$P:$P,$A126) -> 7 | C126: =IF(SUMIF(TEJdata!$P:$P,$A126,TEJdata!$B:$B)=0,"",IF(AND(SUMIF(TEJdata!$P:$P,$A126,TEJdata!$B:$B)>0,SUMIF(TEJdata!$P:$P,$A126,TEJdata!$D:$D)<0),(SUMIF(TEJdata!$P:$P,$A126,TEJdata!$B:$B)/ABS(SUMIF(TEJdata!$P:$P,$A126,TEJdata!$D:$D)-1))*100,(SUMIF(TEJdata!$P:$P,$A126,TEJdata!$B:$B)/SUMIF(TEJdata!$P:$P,$A126,TEJdata!$D:$D)-1)*100)) -> -7.771996639 | D126: =IF(SUMIF(TEJdata!$P:$P,$A126,TEJdata!$B:$B)=0,"",(SUMIF(TEJdata!$P:$P,$A126,TEJdata!$B:$B)/SUMIF(TEJdata!$P:$P,$A126,TEJdata!$C:$C)-1)*100) -> 30.50921217 | E126: =IF(SUMIF(TEJdata!$P:$P,$A126,TEJdata!$E:$E)=0,"",(SUMIF(TEJdata!$P:$P,$A126,TEJdata!$E:$E)/SUMIF(TEJdata!$P:$P,$A126,TEJdata!$F:$F)-1)*100) -> 8.871636281 | F126: =SUMIF(TEJdata!$P:$P,$A126,TEJdata!$B:$B)/1000 -> 257.911 | G126: =SUMIF(TEJdata!$P:$P,$A126,TEJdata!$G:$G)/$B126 -> -0.9373428571 | H126: =SUMIF(TEJdata!$P:$P,$A126,TEJdata!$H:$H)/$B126 -> -0.2755142857 | I126: =IF(SUMIF(TEJdata!$P:$P,$A126,TEJdata!$I:$I)=0,0,IFERROR((SUMIF(TEJdata!$P:$P,$A126,TEJdata!$I:$I)/SUMIF(TEJdata!$P:$P,$A126,TEJdata!$J:$J)-1)*100,"-")) -> 4.757224297 | J126: =IF(SUMIF(TEJdata!$P:$P,$A126,TEJdata!$K:$K)=0,0,IFERROR((SUMIF(TEJdata!$P:$P,$A126,TEJdata!$K:$K)/SUMIF(TEJdata!$P:$P,$A126,TEJdata!$L:$L)-1)*100,"-")) -> 0 | K126: =IF(SUMIF(TEJdata!$P:$P,$A126,TEJdata!$M:$M)=0,0,IFERROR((SUMIF(TEJdata!$P:$P,$A126,TEJdata!$M:$M)/SUMIF(TEJdata!$P:$P,$A126,TEJdata!$N:$N)-1)*100,"-")) -> 4.276146316
A127: M14Z 其他紡織 | B127: =COUNTIF(TEJdata!$P:$P,$A127) -> 5 | C127: =IF(SUMIF(TEJdata!$P:$P,$A127,TEJdata!$B:$B)=0,"",IF(AND(SUMIF(TEJdata!$P:$P,$A127,TEJdata!$B:$B)>0,SUMIF(TEJdata!$P:$P,$A127,TEJdata!$D:$D)<0),(SUMIF(TEJdata!$P:$P,$A127,TEJdata!$B:$B)/ABS(SUMIF(TEJdata!$P:$P,$A127,TEJdata!$D:$D)-1))*100,(SUMIF(TEJdata!$P:$P,$A127,TEJdata!$B:$B)/SUMIF(TEJdata!$P:$P,$A127,TEJdata!$D:$D)-1)*100)) -> -8.070853906 | D127: =IF(SUMIF(TEJdata!$P:$P,$A127,TEJdata!$B:$B)=0,"",(SUMIF(TEJdata!$P:$P,$A127,TEJdata!$B:$B)/SUMIF(TEJdata!$P:$P,$A127,TEJdata!$C:$C)-1)*100) -> 54.00465797 | E127: =IF(SUMIF(TEJdata!$P:$P,$A127,TEJdata!$E:$E)=0,"",(SUMIF(TEJdata!$P:$P,$A127,TEJdata!$E:$E)/SUMIF(TEJdata!$P:$P,$A127,TEJdata!$F:$F)-1)*100) -> -3.23695177 | F127: =SUMIF(TEJdata!$P:$P,$A127,TEJdata!$B:$B)/1000 -> 2869.173 | G127: =SUMIF(TEJdata!$P:$P,$A127,TEJdata!$G:$G)/$B127 -> -0.24666 | H127: =SUMIF(TEJdata!$P:$P,$A127,TEJdata!$H:$H)/$B127 -> -8.25784 | I127: =IF(SUMIF(TEJdata!$P:$P,$A127,TEJdata!$I:$I)=0,0,IFERROR((SUMIF(TEJdata!$P:$P,$A127,TEJdata!$I:$I)/SUMIF(TEJdata!$P:$P,$A127,TEJdata!$J:$J)-1)*100,"-")) -> -0.6827655214 | J127: =IF(SUMIF(TEJdata!$P:$P,$A127,TEJdata!$K:$K)=0,0,IFERROR((SUMIF(TEJdata!$P:$P,$A127,TEJdata!$K:$K)/SUMIF(TEJdata!$P:$P,$A127,TEJdata!$L:$L)-1)*100,"-")) -> 0 | K127: =IF(SUMIF(TEJdata!$P:$P,$A127,TEJdata!$M:$M)=0,0,IFERROR((SUMIF(TEJdata!$P:$P,$A127,TEJdata!$M:$M)/SUMIF(TEJdata!$P:$P,$A127,TEJdata!$N:$N)-1)*100,"-")) -> 3.722404662
A128: M23C8C LCD原料 | B128: =COUNTIF(TEJdata!$P:$P,$A128) -> 12 | C128: =IF(SUMIF(TEJdata!$P:$P,$A128,TEJdata!$B:$B)=0,"",IF(AND(SUMIF(TEJdata!$P:$P,$A128,TEJdata!$B:$B)>0,SUMIF(TEJdata!$P:$P,$A128,TEJdata!$D:$D)<0),(SUMIF(TEJdata!$P:$P,$A128,TEJdata!$B:$B)/ABS(SUMIF(TEJdata!$P:$P,$A128,TEJdata!$D:$D)-1))*100,(SUMIF(TEJdata!$P:$P,$A128,TEJdata!$B:$B)/SUMIF(TEJdata!$P:$P,$A128,TEJdata!$D:$D)-1)*100)) -> -10.14948526 | D128: =IF(SUMIF(TEJdata!$P:$P,$A128,TEJdata!$B:$B)=0,"",(SUMIF(TEJdata!$P:$P,$A128,TEJdata!$B:$B)/SUMIF(TEJdata!$P:$P,$A128,TEJdata!$C:$C)-1)*100) -> 27.48226864 | E128: =IF(SUMIF(TEJdata!$P:$P,$A128,TEJdata!$E:$E)=0,"",(SUMIF(TEJdata!$P:$P,$A128,TEJdata!$E:$E)/SUMIF(TEJdata!$P:$P,$A128,TEJdata!$F:$F)-1)*100) -> -7.4554524 | F128: =SUMIF(TEJdata!$P:$P,$A128,TEJdata!$B:$B)/1000 -> 4201.632 | G128: =SUMIF(TEJdata!$P:$P,$A128,TEJdata!$G:$G)/$B128 -> 3.054916667 | H128: =SUMIF(TEJdata!$P:$P,$A128,TEJdata!$H:$H)/$B128 -> 11.27423333 | I128: =IF(SUMIF(TEJdata!$P:$P,$A128,TEJdata!$I:$I)=0,0,IFERROR((SUMIF(TEJdata!$P:$P,$A128,TEJdata!$I:$I)/SUMIF(TEJdata!$P:$P,$A128,TEJdata!$J:$J)-1)*100,"-")) -> -2.390049545 | J128: =IF(SUMIF(TEJdata!$P:$P,$A128,TEJdata!$K:$K)=0,0,IFERROR((SUMIF(TEJdata!$P:$P,$A128,TEJdata!$K:$K)/SUMIF(TEJdata!$P:$P,$A128,TEJdata!$L:$L)-1)*100,"-")) -> -5.023923445 | K128: =IF(SUMIF(TEJdata!$P:$P,$A128,TEJdata!$M:$M)=0,0,IFERROR((SUMIF(TEJdata!$P:$P,$A128,TEJdata!$M:$M)/SUMIF(TEJdata!$P:$P,$A128,TEJdata!$N:$N)-1)*100,"-")) -> 13.93222015
A129: M13A8 塑膠加工 | B129: =COUNTIF(TEJdata!$P:$P,$A129) -> 10 | C129: =IF(SUMIF(TEJdata!$P:$P,$A129,TEJdata!$B:$B)=0,"",IF(AND(SUMIF(TEJdata!$P:$P,$A129,TEJdata!$B:$B)>0,SUMIF(TEJdata!$P:$P,$A129,TEJdata!$D:$D)<0),(SUMIF(TEJdata!$P:$P,$A129,TEJdata!$B:$B)/ABS(SUMIF(TEJdata!$P:$P,$A129,TEJdata!$D:$D)-1))*100,(SUMIF(TEJdata!$P:$P,$A129,TEJdata!$B:$B)/SUMIF(TEJdata!$P:$P,$A129,TEJdata!$D:$D)-1)*100)) -> -10.46902843 | D129: =IF(SUMIF(TEJdata!$P:$P,$A129,TEJdata!$B:$B)=0,"",(SUMIF(TEJdata!$P:$P,$A129,TEJdata!$B:$B)/SUMIF(TEJdata!$P:$P,$A129,TEJdata!$C:$C)-1)*100) -> 46.10200099 | E129: =IF(SUMIF(TEJdata!$P:$P,$A129,TEJdata!$E:$E)=0,"",(SUMIF(TEJdata!$P:$P,$A129,TEJdata!$E:$E)/SUMIF(TEJdata!$P:$P,$A129,TEJdata!$F:$F)-1)*100) -> -16.32143829 | F129: =SUMIF(TEJdata!$P:$P,$A129,TEJdata!$B:$B)/1000 -> 2069.529 | G129: =SUMIF(TEJdata!$P:$P,$A129,TEJdata!$G:$G)/$B129 -> 0.56175 | H129: =SUMIF(TEJdata!$P:$P,$A129,TEJdata!$H:$H)/$B129 -> 6.68774 | I129: =IF(SUMIF(TEJdata!$P:$P,$A129,TEJdata!$I:$I)=0,0,IFERROR((SUMIF(TEJdata!$P:$P,$A129,TEJdata!$I:$I)/SUMIF(TEJdata!$P:$P,$A129,TEJdata!$J:$J)-1)*100,"-")) -> -0.1599164001 | J129: =IF(SUMIF(TEJdata!$P:$P,$A129,TEJdata!$K:$K)=0,0,IFERROR((SUMIF(TEJdata!$P:$P,$A129,TEJdata!$K:$K)/SUMIF(TEJdata!$P:$P,$A129,TEJdata!$L:$L)-1)*100,"-")) -> 0 | K129: =IF(SUMIF(TEJdata!$P:$P,$A129,TEJdata!$M:$M)=0,0,IFERROR((SUMIF(TEJdata!$P:$P,$A129,TEJdata!$M:$M)/SUMIF(TEJdata!$P:$P,$A129,TEJdata!$N:$N)-1)*100,"-")) -> 1.626273492
A130: M17X2 醫藥零售 | B130: =COUNTIF(TEJdata!$P:$P,$A130) -> 7 | C130: =IF(SUMIF(TEJdata!$P:$P,$A130,TEJdata!$B:$B)=0,"",IF(AND(SUMIF(TEJdata!$P:$P,$A130,TEJdata!$B:$B)>0,SUMIF(TEJdata!$P:$P,$A130,TEJdata!$D:$D)<0),(SUMIF(TEJdata!$P:$P,$A130,TEJdata!$B:$B)/ABS(SUMIF(TEJdata!$P:$P,$A130,TEJdata!$D:$D)-1))*100,(SUMIF(TEJdata!$P:$P,$A130,TEJdata!$B:$B)/SUMIF(TEJdata!$P:$P,$A130,TEJdata!$D:$D)-1)*100)) -> 5.204935105 | D130: =IF(SUMIF(TEJdata!$P:$P,$A130,TEJdata!$B:$B)=0,"",(SUMIF(TEJdata!$P:$P,$A130,TEJdata!$B:$B)/SUMIF(TEJdata!$P:$P,$A130,TEJdata!$C:$C)-1)*100) -> 12.87424131 | E130: =IF(SUMIF(TEJdata!$P:$P,$A130,TEJdata!$E:$E)=0,"",(SUMIF(TEJdata!$P:$P,$A130,TEJdata!$E:$E)/SUMIF(TEJdata!$P:$P,$A130,TEJdata!$F:$F)-1)*100) -> 2.502186592 | F130: =SUMIF(TEJdata!$P:$P,$A130,TEJdata!$B:$B)/1000 -> 4045.923 | G130: =SUMIF(TEJdata!$P:$P,$A130,TEJdata!$G:$G)/$B130 -> -0.1401285714 | H130: =SUMIF(TEJdata!$P:$P,$A130,TEJdata!$H:$H)/$B130 -> -3.961214286 | I130: =IF(SUMIF(TEJdata!$P:$P,$A130,TEJdata!$I:$I)=0,0,IFERROR((SUMIF(TEJdata!$P:$P,$A130,TEJdata!$I:$I)/SUMIF(TEJdata!$P:$P,$A130,TEJdata!$J:$J)-1)*100,"-")) -> -1.364362309 | J130: =IF(SUMIF(TEJdata!$P:$P,$A130,TEJdata!$K:$K)=0,0,IFERROR((SUMIF(TEJdata!$P:$P,$A130,TEJdata!$K:$K)/SUMIF(TEJdata!$P:$P,$A130,TEJdata!$L:$L)-1)*100,"-")) -> 0 | K130: =IF(SUMIF(TEJdata!$P:$P,$A130,TEJdata!$M:$M)=0,0,IFERROR((SUMIF(TEJdata!$P:$P,$A130,TEJdata!$M:$M)/SUMIF(TEJdata!$P:$P,$A130,TEJdata!$N:$N)-1)*100,"-")) -> -0.404040404
A131: M99K 鞋及旅行箱 | B131: =COUNTIF(TEJdata!$P:$P,$A131) -> 11 | C131: =IF(SUMIF(TEJdata!$P:$P,$A131,TEJdata!$B:$B)=0,"",IF(AND(SUMIF(TEJdata!$P:$P,$A131,TEJdata!$B:$B)>0,SUMIF(TEJdata!$P:$P,$A131,TEJdata!$D:$D)<0),(SUMIF(TEJdata!$P:$P,$A131,TEJdata!$B:$B)/ABS(SUMIF(TEJdata!$P:$P,$A131,TEJdata!$D:$D)-1))*100,(SUMIF(TEJdata!$P:$P,$A131,TEJdata!$B:$B)/SUMIF(TEJdata!$P:$P,$A131,TEJdata!$D:$D)-1)*100)) -> -10.80898225 | D131: =IF(SUMIF(TEJdata!$P:$P,$A131,TEJdata!$B:$B)=0,"",(SUMIF(TEJdata!$P:$P,$A131,TEJdata!$B:$B)/SUMIF(TEJdata!$P:$P,$A131,TEJdata!$C:$C)-1)*100) -> 4.373665921 | E131: =IF(SUMIF(TEJdata!$P:$P,$A131,TEJdata!$E:$E)=0,"",(SUMIF(TEJdata!$P:$P,$A131,TEJdata!$E:$E)/SUMIF(TEJdata!$P:$P,$A131,TEJdata!$F:$F)-1)*100) -> -8.623749418 | F131: =SUMIF(TEJdata!$P:$P,$A131,TEJdata!$B:$B)/1000 -> 35468.518 | G131: =SUMIF(TEJdata!$P:$P,$A131,TEJdata!$G:$G)/$B131 -> -1.928236364 | H131: =SUMIF(TEJdata!$P:$P,$A131,TEJdata!$H:$H)/$B131 -> -6.593609091 | I131: =IF(SUMIF(TEJdata!$P:$P,$A131,TEJdata!$I:$I)=0,0,IFERROR((SUMIF(TEJdata!$P:$P,$A131,TEJdata!$I:$I)/SUMIF(TEJdata!$P:$P,$A131,TEJdata!$J:$J)-1)*100,"-")) -> -0.371737007 | J131: =IF(SUMIF(TEJdata!$P:$P,$A131,TEJdata!$K:$K)=0,0,IFERROR((SUMIF(TEJdata!$P:$P,$A131,TEJdata!$K:$K)/SUMIF(TEJdata!$P:$P,$A131,TEJdata!$L:$L)-1)*100,"-")) -> -0.02774204064 | K131: =IF(SUMIF(TEJdata!$P:$P,$A131,TEJdata!$M:$M)=0,0,IFERROR((SUMIF(TEJdata!$P:$P,$A131,TEJdata!$M:$M)/SUMIF(TEJdata!$P:$P,$A131,TEJdata!$N:$N)-1)*100,"-")) -> -0.2475408768
A132: M11A 水泥製造 | B132: =COUNTIF(TEJdata!$P:$P,$A132) -> 8 | C132: =IF(SUMIF(TEJdata!$P:$P,$A132,TEJdata!$B:$B)=0,"",IF(AND(SUMIF(TEJdata!$P:$P,$A132,TEJdata!$B:$B)>0,SUMIF(TEJdata!$P:$P,$A132,TEJdata!$D:$D)<0),(SUMIF(TEJdata!$P:$P,$A132,TEJdata!$B:$B)/ABS(SUMIF(TEJdata!$P:$P,$A132,TEJdata!$D:$D)-1))*100,(SUMIF(TEJdata!$P:$P,$A132,TEJdata!$B:$B)/SUMIF(TEJdata!$P:$P,$A132,TEJdata!$D:$D)-1)*100)) -> -12.16680366 | D132: =IF(SUMIF(TEJdata!$P:$P,$A132,TEJdata!$B:$B)=0,"",(SUMIF(TEJdata!$P:$P,$A132,TEJdata!$B:$B)/SUMIF(TEJdata!$P:$P,$A132,TEJdata!$C:$C)-1)*100) -> 45.47238712 | E132: =IF(SUMIF(TEJdata!$P:$P,$A132,TEJdata!$E:$E)=0,"",(SUMIF(TEJdata!$P:$P,$A132,TEJdata!$E:$E)/SUMIF(TEJdata!$P:$P,$A132,TEJdata!$F:$F)-1)*100) -> -7.17936786 | F132: =SUMIF(TEJdata!$P:$P,$A132,TEJdata!$B:$B)/1000 -> 20066.56 | G132: =SUMIF(TEJdata!$P:$P,$A132,TEJdata!$G:$G)/$B132 -> 2.2396125 | H132: =SUMIF(TEJdata!$P:$P,$A132,TEJdata!$H:$H)/$B132 -> -0.369 | I132: =IF(SUMIF(TEJdata!$P:$P,$A132,TEJdata!$I:$I)=0,0,IFERROR((SUMIF(TEJdata!$P:$P,$A132,TEJdata!$I:$I)/SUMIF(TEJdata!$P:$P,$A132,TEJdata!$J:$J)-1)*100,"-")) -> -0.8432668035 | J132: =IF(SUMIF(TEJdata!$P:$P,$A132,TEJdata!$K:$K)=0,0,IFERROR((SUMIF(TEJdata!$P:$P,$A132,TEJdata!$K:$K)/SUMIF(TEJdata!$P:$P,$A132,TEJdata!$L:$L)-1)*100,"-")) -> -0.1465031135 | K132: =IF(SUMIF(TEJdata!$P:$P,$A132,TEJdata!$M:$M)=0,0,IFERROR((SUMIF(TEJdata!$P:$P,$A132,TEJdata!$M:$M)/SUMIF(TEJdata!$P:$P,$A132,TEJdata!$N:$N)-1)*100,"-")) -> 4.106656286
A133: M15C1 家電 | B133: =COUNTIF(TEJdata!$P:$P,$A133) -> 9 | C133: =IF(SUMIF(TEJdata!$P:$P,$A133,TEJdata!$B:$B)=0,"",IF(AND(SUMIF(TEJdata!$P:$P,$A133,TEJdata!$B:$B)>0,SUMIF(TEJdata!$P:$P,$A133,TEJdata!$D:$D)<0),(SUMIF(TEJdata!$P:$P,$A133,TEJdata!$B:$B)/ABS(SUMIF(TEJdata!$P:$P,$A133,TEJdata!$D:$D)-1))*100,(SUMIF(TEJdata!$P:$P,$A133,TEJdata!$B:$B)/SUMIF(TEJdata!$P:$P,$A133,TEJdata!$D:$D)-1)*100)) -> -12.74976594 | D133: =IF(SUMIF(TEJdata!$P:$P,$A133,TEJdata!$B:$B)=0,"",(SUMIF(TEJdata!$P:$P,$A133,TEJdata!$B:$B)/SUMIF(TEJdata!$P:$P,$A133,TEJdata!$C:$C)-1)*100) -> 48.74883084 | E133: =IF(SUMIF(TEJdata!$P:$P,$A133,TEJdata!$E:$E)=0,"",(SUMIF(TEJdata!$P:$P,$A133,TEJdata!$E:$E)/SUMIF(TEJdata!$P:$P,$A133,TEJdata!$F:$F)-1)*100) -> -10.99921818 | F133: =SUMIF(TEJdata!$P:$P,$A133,TEJdata!$B:$B)/1000 -> 3576.682 | G133: =SUMIF(TEJdata!$P:$P,$A133,TEJdata!$G:$G)/$B133 -> -0.0678 | H133: =SUMIF(TEJdata!$P:$P,$A133,TEJdata!$H:$H)/$B133 -> -2.078288889 | I133: =IF(SUMIF(TEJdata!$P:$P,$A133,TEJdata!$I:$I)=0,0,IFERROR((SUMIF(TEJdata!$P:$P,$A133,TEJdata!$I:$I)/SUMIF(TEJdata!$P:$P,$A133,TEJdata!$J:$J)-1)*100,"-")) -> -0.3740233585 | J133: =IF(SUMIF(TEJdata!$P:$P,$A133,TEJdata!$K:$K)=0,0,IFERROR((SUMIF(TEJdata!$P:$P,$A133,TEJdata!$K:$K)/SUMIF(TEJdata!$P:$P,$A133,TEJdata!$L:$L)-1)*100,"-")) -> 0 | K133: =IF(SUMIF(TEJdata!$P:$P,$A133,TEJdata!$M:$M)=0,0,IFERROR((SUMIF(TEJdata!$P:$P,$A133,TEJdata!$M:$M)/SUMIF(TEJdata!$P:$P,$A133,TEJdata!$N:$N)-1)*100,"-")) -> -1.436747347
A134: M15H 儀器設備 | B134: =COUNTIF(TEJdata!$P:$P,$A134) -> 5 | C134: =IF(SUMIF(TEJdata!$P:$P,$A134,TEJdata!$B:$B)=0,"",IF(AND(SUMIF(TEJdata!$P:$P,$A134,TEJdata!$B:$B)>0,SUMIF(TEJdata!$P:$P,$A134,TEJdata!$D:$D)<0),(SUMIF(TEJdata!$P:$P,$A134,TEJdata!$B:$B)/ABS(SUMIF(TEJdata!$P:$P,$A134,TEJdata!$D:$D)-1))*100,(SUMIF(TEJdata!$P:$P,$A134,TEJdata!$B:$B)/SUMIF(TEJdata!$P:$P,$A134,TEJdata!$D:$D)-1)*100)) -> -18.63609561 | D134: =IF(SUMIF(TEJdata!$P:$P,$A134,TEJdata!$B:$B)=0,"",(SUMIF(TEJdata!$P:$P,$A134,TEJdata!$B:$B)/SUMIF(TEJdata!$P:$P,$A134,TEJdata!$C:$C)-1)*100) -> 41.10091166 | E134: =IF(SUMIF(TEJdata!$P:$P,$A134,TEJdata!$E:$E)=0,"",(SUMIF(TEJdata!$P:$P,$A134,TEJdata!$E:$E)/SUMIF(TEJdata!$P:$P,$A134,TEJdata!$F:$F)-1)*100) -> -6.511171177 | F134: =SUMIF(TEJdata!$P:$P,$A134,TEJdata!$B:$B)/1000 -> 717.532 | G134: =SUMIF(TEJdata!$P:$P,$A134,TEJdata!$G:$G)/$B134 -> -1.98116 | H134: =SUMIF(TEJdata!$P:$P,$A134,TEJdata!$H:$H)/$B134 -> 2.81966 | I134: =IF(SUMIF(TEJdata!$P:$P,$A134,TEJdata!$I:$I)=0,0,IFERROR((SUMIF(TEJdata!$P:$P,$A134,TEJdata!$I:$I)/SUMIF(TEJdata!$P:$P,$A134,TEJdata!$J:$J)-1)*100,"-")) -> -6.017992838 | J134: =IF(SUMIF(TEJdata!$P:$P,$A134,TEJdata!$K:$K)=0,0,IFERROR((SUMIF(TEJdata!$P:$P,$A134,TEJdata!$K:$K)/SUMIF(TEJdata!$P:$P,$A134,TEJdata!$L:$L)-1)*100,"-")) -> 0 | K134: =IF(SUMIF(TEJdata!$P:$P,$A134,TEJdata!$M:$M)=0,0,IFERROR((SUMIF(TEJdata!$P:$P,$A134,TEJdata!$M:$M)/SUMIF(TEJdata!$P:$P,$A134,TEJdata!$N:$N)-1)*100,"-")) -> -11.33402081
A135: M25C 工程承攬 | B135: =COUNTIF(TEJdata!$P:$P,$A135) -> 6 | C135: =IF(SUMIF(TEJdata!$P:$P,$A135,TEJdata!$B:$B)=0,"",IF(AND(SUMIF(TEJdata!$P:$P,$A135,TEJdata!$B:$B)>0,SUMIF(TEJdata!$P:$P,$A135,TEJdata!$D:$D)<0),(SUMIF(TEJdata!$P:$P,$A135,TEJdata!$B:$B)/ABS(SUMIF(TEJdata!$P:$P,$A135,TEJdata!$D:$D)-1))*100,(SUMIF(TEJdata!$P:$P,$A135,TEJdata!$B:$B)/SUMIF(TEJdata!$P:$P,$A135,TEJdata!$D:$D)-1)*100)) -> -18.69250403 | D135: =IF(SUMIF(TEJdata!$P:$P,$A135,TEJdata!$B:$B)=0,"",(SUMIF(TEJdata!$P:$P,$A135,TEJdata!$B:$B)/SUMIF(TEJdata!$P:$P,$A135,TEJdata!$C:$C)-1)*100) -> 33.53025402 | E135: =IF(SUMIF(TEJdata!$P:$P,$A135,TEJdata!$E:$E)=0,"",(SUMIF(TEJdata!$P:$P,$A135,TEJdata!$E:$E)/SUMIF(TEJdata!$P:$P,$A135,TEJdata!$F:$F)-1)*100) -> -18.67754546 | F135: =SUMIF(TEJdata!$P:$P,$A135,TEJdata!$B:$B)/1000 -> 8421.219 | G135: =SUMIF(TEJdata!$P:$P,$A135,TEJdata!$G:$G)/$B135 -> 2.358 | H135: =SUMIF(TEJdata!$P:$P,$A135,TEJdata!$H:$H)/$B135 -> 4.344716667 | I135: =IF(SUMIF(TEJdata!$P:$P,$A135,TEJdata!$I:$I)=0,0,IFERROR((SUMIF(TEJdata!$P:$P,$A135,TEJdata!$I:$I)/SUMIF(TEJdata!$P:$P,$A135,TEJdata!$J:$J)-1)*100,"-")) -> 1.873292655 | J135: =IF(SUMIF(TEJdata!$P:$P,$A135,TEJdata!$K:$K)=0,0,IFERROR((SUMIF(TEJdata!$P:$P,$A135,TEJdata!$K:$K)/SUMIF(TEJdata!$P:$P,$A135,TEJdata!$L:$L)-1)*100,"-")) -> -2.44510978 | K135: =IF(SUMIF(TEJdata!$P:$P,$A135,TEJdata!$M:$M)=0,0,IFERROR((SUMIF(TEJdata!$P:$P,$A135,TEJdata!$M:$M)/SUMIF(TEJdata!$P:$P,$A135,TEJdata!$N:$N)-1)*100,"-")) -> -7.151545657
A136: M23A5A POS | B136: =COUNTIF(TEJdata!$P:$P,$A136) -> 9 | C136: =IF(SUMIF(TEJdata!$P:$P,$A136,TEJdata!$B:$B)=0,"",IF(AND(SUMIF(TEJdata!$P:$P,$A136,TEJdata!$B:$B)>0,SUMIF(TEJdata!$P:$P,$A136,TEJdata!$D:$D)<0),(SUMIF(TEJdata!$P:$P,$A136,TEJdata!$B:$B)/ABS(SUMIF(TEJdata!$P:$P,$A136,TEJdata!$D:$D)-1))*100,(SUMIF(TEJdata!$P:$P,$A136,TEJdata!$B:$B)/SUMIF(TEJdata!$P:$P,$A136,TEJdata!$D:$D)-1)*100)) -> -19.18654931 | D136: =IF(SUMIF(TEJdata!$P:$P,$A136,TEJdata!$B:$B)=0,"",(SUMIF(TEJdata!$P:$P,$A136,TEJdata!$B:$B)/SUMIF(TEJdata!$P:$P,$A136,TEJdata!$C:$C)-1)*100) -> 19.97386306 | E136: =IF(SUMIF(TEJdata!$P:$P,$A136,TEJdata!$E:$E)=0,"",(SUMIF(TEJdata!$P:$P,$A136,TEJdata!$E:$E)/SUMIF(TEJdata!$P:$P,$A136,TEJdata!$F:$F)-1)*100) -> -14.29941147 | F136: =SUMIF(TEJdata!$P:$P,$A136,TEJdata!$B:$B)/1000 -> 4334.069 | G136: =SUMIF(TEJdata!$P:$P,$A136,TEJdata!$G:$G)/$B136 -> 1.218144444 | H136: =SUMIF(TEJdata!$P:$P,$A136,TEJdata!$H:$H)/$B136 -> 1.3189 | I136: =IF(SUMIF(TEJdata!$P:$P,$A136,TEJdata!$I:$I)=0,0,IFERROR((SUMIF(TEJdata!$P:$P,$A136,TEJdata!$I:$I)/SUMIF(TEJdata!$P:$P,$A136,TEJdata!$J:$J)-1)*100,"-")) -> -0.4488222182 | J136: =IF(SUMIF(TEJdata!$P:$P,$A136,TEJdata!$K:$K)=0,0,IFERROR((SUMIF(TEJdata!$P:$P,$A136,TEJdata!$K:$K)/SUMIF(TEJdata!$P:$P,$A136,TEJdata!$L:$L)-1)*100,"-")) -> -3.399122807 | K136: =IF(SUMIF(TEJdata!$P:$P,$A136,TEJdata!$M:$M)=0,0,IFERROR((SUMIF(TEJdata!$P:$P,$A136,TEJdata!$M:$M)/SUMIF(TEJdata!$P:$P,$A136,TEJdata!$N:$N)-1)*100,"-")) -> 1.314295695
A137: M23G5L 矽智財 | B137: =COUNTIF(TEJdata!$P:$P,$A137) -> 10 | C137: =IF(SUMIF(TEJdata!$P:$P,$A137,TEJdata!$B:$B)=0,"",IF(AND(SUMIF(TEJdata!$P:$P,$A137,TEJdata!$B:$B)>0,SUMIF(TEJdata!$P:$P,$A137,TEJdata!$D:$D)<0),(SUMIF(TEJdata!$P:$P,$A137,TEJdata!$B:$B)/ABS(SUMIF(TEJdata!$P:$P,$A137,TEJdata!$D:$D)-1))*100,(SUMIF(TEJdata!$P:$P,$A137,TEJdata!$B:$B)/SUMIF(TEJdata!$P:$P,$A137,TEJdata!$D:$D)-1)*100)) -> -28.01596272 | D137: =IF(SUMIF(TEJdata!$P:$P,$A137,TEJdata!$B:$B)=0,"",(SUMIF(TEJdata!$P:$P,$A137,TEJdata!$B:$B)/SUMIF(TEJdata!$P:$P,$A137,TEJdata!$C:$C)-1)*100) -> 31.76894587 | E137: =IF(SUMIF(TEJdata!$P:$P,$A137,TEJdata!$E:$E)=0,"",(SUMIF(TEJdata!$P:$P,$A137,TEJdata!$E:$E)/SUMIF(TEJdata!$P:$P,$A137,TEJdata!$F:$F)-1)*100) -> -22.54290231 | F137: =SUMIF(TEJdata!$P:$P,$A137,TEJdata!$B:$B)/1000 -> 7601.23 | G137: =SUMIF(TEJdata!$P:$P,$A137,TEJdata!$G:$G)/$B137 -> 4.8754 | H137: =SUMIF(TEJdata!$P:$P,$A137,TEJdata!$H:$H)/$B137 -> 2.90006 | I137: =IF(SUMIF(TEJdata!$P:$P,$A137,TEJdata!$I:$I)=0,0,IFERROR((SUMIF(TEJdata!$P:$P,$A137,TEJdata!$I:$I)/SUMIF(TEJdata!$P:$P,$A137,TEJdata!$J:$J)-1)*100,"-")) -> 0.9289144766 | J137: =IF(SUMIF(TEJdata!$P:$P,$A137,TEJdata!$K:$K)=0,0,IFERROR((SUMIF(TEJdata!$P:$P,$A137,TEJdata!$K:$K)/SUMIF(TEJdata!$P:$P,$A137,TEJdata!$L:$L)-1)*100,"-")) -> -1.69206412 | K137: =IF(SUMIF(TEJdata!$P:$P,$A137,TEJdata!$M:$M)=0,0,IFERROR((SUMIF(TEJdata!$P:$P,$A137,TEJdata!$M:$M)/SUMIF(TEJdata!$P:$P,$A137,TEJdata!$N:$N)-1)*100,"-")) -> 0.3758285985
A138: M23D4 機殼 | B138: =COUNTIF(TEJdata!$P:$P,$A138) -> 21 | C138: =IF(SUMIF(TEJdata!$P:$P,$A138,TEJdata!$B:$B)=0,"",IF(AND(SUMIF(TEJdata!$P:$P,$A138,TEJdata!$B:$B)>0,SUMIF(TEJdata!$P:$P,$A138,TEJdata!$D:$D)<0),(SUMIF(TEJdata!$P:$P,$A138,TEJdata!$B:$B)/ABS(SUMIF(TEJdata!$P:$P,$A138,TEJdata!$D:$D)-1))*100,(SUMIF(TEJdata!$P:$P,$A138,TEJdata!$B:$B)/SUMIF(TEJdata!$P:$P,$A138,TEJdata!$D:$D)-1)*100)) -> -29.38945432 | D138: =IF(SUMIF(TEJdata!$P:$P,$A138,TEJdata!$B:$B)=0,"",(SUMIF(TEJdata!$P:$P,$A138,TEJdata!$B:$B)/SUMIF(TEJdata!$P:$P,$A138,TEJdata!$C:$C)-1)*100) -> 6.476225217 | E138: =IF(SUMIF(TEJdata!$P:$P,$A138,TEJdata!$E:$E)=0,"",(SUMIF(TEJdata!$P:$P,$A138,TEJdata!$E:$E)/SUMIF(TEJdata!$P:$P,$A138,TEJdata!$F:$F)-1)*100) -> -4.416713212 | F138: =SUMIF(TEJdata!$P:$P,$A138,TEJdata!$B:$B)/1000 -> 17869.874 | G138: =SUMIF(TEJdata!$P:$P,$A138,TEJdata!$G:$G)/$B138 -> 2.752014286 | H138: =SUMIF(TEJdata!$P:$P,$A138,TEJdata!$H:$H)/$B138 -> 1.141290476 | I138: =IF(SUMIF(TEJdata!$P:$P,$A138,TEJdata!$I:$I)=0,0,IFERROR((SUMIF(TEJdata!$P:$P,$A138,TEJdata!$I:$I)/SUMIF(TEJdata!$P:$P,$A138,TEJdata!$J:$J)-1)*100,"-")) -> 0.6353150487 | J138: =IF(SUMIF(TEJdata!$P:$P,$A138,TEJdata!$K:$K)=0,0,IFERROR((SUMIF(TEJdata!$P:$P,$A138,TEJdata!$K:$K)/SUMIF(TEJdata!$P:$P,$A138,TEJdata!$L:$L)-1)*100,"-")) -> -1.246665472 | K138: =IF(SUMIF(TEJdata!$P:$P,$A138,TEJdata!$M:$M)=0,0,IFERROR((SUMIF(TEJdata!$P:$P,$A138,TEJdata!$M:$M)/SUMIF(TEJdata!$P:$P,$A138,TEJdata!$N:$N)-1)*100,"-")) -> 1.49657221

Sheet TEJdata
B1: 單月營收 | C1: 單月營收 | D1: 去年單月營收 | E1: 累計營收 | F1: 去年累計營收 | G1: 週報酬率 % | H1: 月報酬率 % | I1: 外資持股數 | J1: 外資持股數-1w | K1: 投信持股數(千股) | L1: 投信持股數-1w | M1: 融資餘額(張) | N1: 融資餘額-1w | O1: 上市別 | P1: TEJ子產業 | Q1: =$AD$2 -> 統一編號 | AI1: 大於等於5，總表才統計
A2: 公司 | B2: 2026-03-31 | C2: 2026-02-26 | D2: 2026-03-31 | E2: 2026-03-31 | F2: 2026-03-31 | G2: 2026-04-10 | H2: 2026-04-10 | I2: 2026-04-10 | J2: 2026-04-02 | K2: 2026-04-10 | L2: 2026-04-02 | M2: 2026-04-10 | N2: 2026-04-02 | O2: 1900-01-02 | P2: 1900-01-03 | Q2: 1900-01-04 | AA2: 公司簡稱 | AB2: 上市別 | AC2: TEJ子產業名 | AD2: 統一編號 | AH2: TEJ子產業名 | AI2: 產業家數
A3: 1101 台泥 | B3: 12412837 | C3: 8593689 | D3: 13635386 | E3: 33259418 | F3: 34972226 | G3: 7.1729 | H3: 4.7423 | I3: 1314967 | J3: 1328156 | K3: 12888 | L3: 13060 | M3: 32058 | N3: 30319 | O3: =IF(ISERROR(VLOOKUP($A3,XX_TEJ01,O$2,FALSE))=TRUE,"",VLOOKUP($A3,XX_TEJ01,O$2,FALSE)) -> TSE | P3: M11A 水泥製造 | Q3: =RIGHT(IF(ISERROR(VLOOKUP($A3,XX_TEJ01,Q$2,FALSE))=TRUE,"",VLOOKUP($A3,XX_TEJ01,Q$2,FALSE)),8) -> 11913502 | AA3: 1101 台泥 | AB3: TSE | AC3: M11A 水泥製造 | AD3: ID 11913502 | AH3: =_xlfn.UNIQUE($AC$3:$AC$5000,FALSE,FALSE) -> M11A 水泥製造 | AI3: =COUNTIF($AC$3:$AC$5000,AH3) -> 8
A4: 1102 亞泥 | B4: 5349407 | C4: 3493115 | D4: 6532662 | E4: 14829486 | F4: 16594707 | G4: 1.1347 | H4: 4.3926 | I4: 560023 | J4: 565536 | K4: 343438 | L4: 343790 | M4: 1453 | N4: 1421 | O4: TSE | P4: M11A 水泥製造 | Q4: 03244509 | AA4: 1102 亞泥 | AB4: TSE | AC4: M11A 水泥製造 | AD4: ID 03244509 | AH4: M12C 飲料乳品 | AI4: =COUNTIF($AC$3:$AC$5000,AH4) -> 7
A5: 1103 嘉泥 | B5: 242715 | C5: 188835 | D5: 266282 | E5: 688369 | F5: 752454 | G5: 1.095 | H5: 3.7455 | I5: 35490 | J5: 35169 | K5: 0 | L5: 0 | M5: 3783 | N5: 3770 | O5: TSE | P5: M11A 水泥製造 | Q5: 11892801 | AA5: 1103 嘉泥 | AB5: TSE | AC5: M11A 水泥製造 | AD5: ID 11892801 | AH5: M12Z 其他食品 | AI5: 11
A6: 1104 環泥 | B6: 580759 | C6: 460060 | D6: 702215 | E6: 1759047 | F6: 1928654 | G6: 0.5112 | H6: 2.6088 | I6: 111135 | J6: 110887 | K6: 140 | L6: 139 | M6: 961 | N6: 956 | O6: TSE | P6: M11A 水泥製造 | Q6: 07568009 | AA6: 1104 環泥 | AB6: TSE | AC6: M11A 水泥製造 | AD6: ID 07568009 | AH6: M12B 油脂飼料 | AI6: 12
A7: 1108 幸福 | B7: 346885 | C7: 259157 | D7: 408312 | E7: 980706 | F7: 1212710 | G7: 0.3378 | H7: -0.3356 | I7: 5161 | J7: 4952 | K7: 0 | L7: 0 | M7: 1065 | N7: 1060 | O7: TSE | P7: M11A 水泥製造 | Q7: 40601248 | AA7: 1108 幸福 | AB7: TSE | AC7: M11A 水泥製造 | AD7: ID 40601248 | AH7: M12A 罐頭加工 | AI7: 2
A8: 1109 信大 | B8: 314014 | C8: 167550 | D8: 446709 | E8: 855341 | F8: 989911 | G8: 0.9837 | H8: 0.6538 | I8: 7838 | J8: 7756 | K8: 0 | L8: 0 | M8: 487 | N8: 490 | O8: TSE | P8: M11A 水泥製造 | Q8: 03279507 | AA8: 1109 信大 | AB8: TSE | AC8: M11A 水泥製造 | AD8: ID 03279507 | AH8: M27A2 餐飲 | AI8: 23
A9: 1110 東泥 | B9: 224535 | C9: 159417 | D9: 274954 | E9: 582643 | F9: 740524 | G9: 5.5555 | H9: -3.7975 | I9: 34056 | J9: 33909 | K9: 0 | L9: 0 | M9: 2793 | N9: 2905 | O9: TSE | P9: M11A 水泥製造 | Q9: 83078600 | AA9: 1110 東泥 | AB9: TSE | AC9: M11A 水泥製造 | AD9: ID 83078600 | AH9: M17C2 機能性食品 | AI9: 13
A10: 1201 味全 | B10: 1684666 | C10: 1640170 | D10: 1773075 | E10: 5001067 | F10: 5215369 | G10: -0.3731 | H10: -4.6429 | I10: 26668 | J10: 26883 | K10: 0 | L10: 0 | M10: 1409 | N10: 1289 | O10: TSE | P10: M12C 飲料乳品 | Q10: 11347802 | AA10: 1201 味全 | AB10: TSE | AC10: M12C 飲料乳品 | AD10: ID 11347802 | AH10: M13A1 泛用塑膠 | AI10: 9
A11: 1203 味王 | B11: 464822 | C11: 386214 | D11: 521527 | E11: 1312851 | F11: 1532412 | G11: 2.6648 | H11: 4.3869 | I11: 3882 | J11: 3867 | K11: 0 | L11: 0 | M11: 13 | N11: 14 | O11: TSE | P11: M12Z 其他食品 | Q11: 07067309 | AA11: 1203 味王 | AB11: TSE | AC11: M12Z 其他食品 | AD11: ID 07067309 | AH11: M13A6 合成皮 | AI11: 3
A12: 1210 大成 | B12: 9209941 | C12: 7628102 | D12: 8770327 | E12: 26564977 | F12: 25542326 | G12: -0.7313 | H12: 5.642 | I12: 103506 | J12: 102329 | K12: 22754 | L12: 23705 | M12: 979 | N12: 1011 | O12: TSE | P12: M12B 油脂飼料 | Q12: 73008303 | AA12: 1210 大成 | AB12: TSE | AC12: M12B 油脂飼料 | AD12: ID 73008303 | AH12: M13A7 可塑劑 | AI12: 1
A13: 1213 大飲 | B13: 23319 | C13: 29013 | D13: 19695 | E13: 77083 | F13: 66141 | G13: 3.1487 | H13: -2.9623 | I13: 11 | J13: 11 | K13: 0 | L13: 0 | M13: 0 | N13: 0 | O13: TSE | P13: M12C 飲料乳品 | Q13: 35012903 | AA13: 1213 大飲 | AB13: TSE | AC13: M12C 飲料乳品 | AD13: ID 35012903 | AH13: M13A5 化纖 | AI13: 3
A14: 1215 卜蜂 | B14: 2511460 | C14: 2030010 | D14: 2335353 | E14: 7176319 | F14: 6697082 | G14: 3.2374 | H14: -8.307 | I14: 118052 | J14: 118742 | K14: 28411 | L14: 28357 | M14: 508 | N14: 416 | O14: TSE | P14: M12B 油脂飼料 | Q14: 36514783 | AA14: 1215 卜蜂 | AB14: TSE | AC14: M12B 油脂飼料 | AD14: ID 36514783 | AH14: M13A8 塑膠加工 | AI14: 10
A15: 1216 統一 | B15: 57379159 | C15: 51532816 | D15: 55935541 | E15: 175016437 | F15: 169266002 | G15: -0.8288 | H15: 2.279 | I15: 1825354 | J15: 1826942 | K15: 656509 | L15: 658610 | M15: 1185 | N15: 1384 | O15: TSE | P15: M12C 飲料乳品 | Q15: 73251209 | AA15: 1216 統一 | AB15: TSE | AC15: M12C 飲料乳品 | AD15: ID 73251209 | AH15: M25A 建設 | AI15: 74
A16: 1217 愛之味 | B16: 384534 | C16: 319659 | D16: 402634 | E16: 1166214 | F16: 1185670 | G16: -0.4854 | H16: -0.4854 | I16: 40021 | J16: 40073 | K16: 0 | L16: 0 | M16: 2130 | N16: 2149 | O16: TSE | P16: M12A 罐頭加工 | Q16: 65534366 | AA16: 1217 愛之味 | AB16: TSE | AC16: M12A 罐頭加工 | AD16: ID 65534366 | AH16: M15D 汽車組件 | AI16: 53
A17: 1218 泰山 | B17: 872329 | C17: 837121 | D17: 825493 | E17: 2653122 | F17: 2499326 | G17: -0.5141 | H17: 6.3187 | I17: 21673 | J17: 21805 | K17: 0 | L17: 0 | M17: 1643 | N17: 1678 | O17: TSE | P17: M12B 油脂飼料 | Q17: 59661701 | AA17: 1218 泰山 | AB17: TSE | AC17: M12B 油脂飼料 | AD17: ID 59661701 | AH17: M13A9 膠帶 | AI17: 4
A18: 1219 福壽 | B18: 1303877 | C18: 1059567 | D18: 1294322 | E18: 3635378 | F18: 3635481 | G18: 2.1583 | H18: 4.0293 | I18: 19946 | J18: 19252 | K18: 0 | L18: 0 | M18: 1232 | N18: 1249 | O18: TSE | P18: M12B 油脂飼料 | Q18: 56192402 | AA18: 1219 福壽 | AB18: TSE | AC18: M12B 油脂飼料 | AD18: ID 56192402 | AH18: M14F 不織布 | AI18: 5
A19: 1220 台榮 | B19: 260429 | C19: 183280 | D19: 269636 | E19: 732202 | F19: 758249 | G19: 0 | H19: -3.8462 | I19: 12584 | J19: 12598 | K19: 0 | L19: 0 | M19: 971 | N19: 1067 | O19: TSE | P19: M12B 油脂飼料 | Q19: 03543210 | AA19: 1220 台榮 | AB19: TSE | AC19: M12B 油脂飼料 | AD19: ID 03543210 | AH19: M23D9A 沖壓零組件 | AI19: 25
A20: 1225 福懋油 | B20: 1078686 | C20: 889099 | D20: 1061994 | E20: 3281183 | F20: 3220752 | G20: 2.351 | H20: 1.8722 | I20: 3176 | J20: 3069 | K20: 0 | L20: 0 | M20: 4479 | N20: 4515 | O20: TSE | P20: M12B 油脂飼料 | Q20: 22102298 | AA20: 1225 福懋油 | AB20: TSE | AC20: M12B 油脂飼料 | AD20: ID 22102298 | AH20: M13B 塑膠製品 | AI20: 8
A21: 1227 佳格 | B21: 2101944 | C21: 1872242 | D21: 2006555 | E21: 7770503 | F21: 6880311 | G21: -2.2764 | H21: 1.692 | I21: 56818 | J21: 57559 | K21: 139 | L21: 91 | M21: 1246 | N21: 1222 | O21: TSE | P21: M12Z 其他食品 | Q21: 22102473 | AA21: 1227 佳格 | AB21: TSE | AC21: M12Z 其他食品 | AD21: ID 22102473 | AH21: M14A1 聚酯絲棉 | AI21: 3
A22: 1229 聯華 | B22: 932321 | C22: 687463 | D22: 768711 | E22: 2616213 | F22: 2421955 | G22: -1.3348 | H22: 0.5668 | I22: 170108 | J22: 169737 | K22: 654 | L22: 659 | M22: 2462 | N22: 2277 | O22: TSE | P22: M12B 油脂飼料 | Q22: 11996904 | AA22: 1229 聯華 | AB22: TSE | AC22: M12B 油脂飼料 | AD22: ID 11996904 | AH22: M14E 染整 | AI22: 3
A23: 1231 聯華食 | B23: 973737 | C23: 1103687 | D23: 1001578 | E23: 3348538 | F23: 3125895 | G23: -1.8319 | H23: 9.1016 | I23: 8151 | J23: 8188 | K23: 0 | L23: 0 | M23: 261 | N23: 283 | O23: =IF(ISERROR(VLOOKUP($A23,XX_TEJ01,O$2,FALSE))=TRUE,"",VLOOKUP($A23,XX_TEJ01,O$2,FALSE)) -> TSE | P23: M12Z 其他食品 | Q23: 07569627 | AA23: 1231 聯華食 | AB23: TSE | AC23: M12Z 其他食品 | AD23: ID 07569627 | AH23: M14A2 加工絲 | AI23: 7
A24: 1232 大統益 | B24: 2019725 | C24: 1661070 | D24: 1935400 | E24: 5894059 | F24: 5397170 | G24: 0.6711 | H24: -0.3322 | I24: 4097 | J24: 4027 | K24: 18 | L24: 18 | M24: 7 | N24: 8 | O24: TSE | P24: M12B 油脂飼料 | Q24: 20927014 | AA24: 1232 大統益 | AB24: TSE | AC24: M12B 油脂飼料 | AD24: ID 20927014 | AH24: M14B1 聚酯紗棉紗 | AI24: 2
A25: 1233 天仁 | B25: 175658 | C25: 200044 | D25: 169134 | E25: 573804 | F25: 551138 | G25: 3.6971 | H25: -8.5405 | I25: 5014 | J25: 4989 | K25: 0 | L25: 0 | M25: 61 | N25: 61 | O25: TSE | P25: M12Z 其他食品 | Q25: 18559415 | AA25: 1233 天仁 | AB25: TSE | AC25: M12Z 其他食品 | AD25: ID 18559415 | AH25: M23X9 應用軟體 | AI25: 18
A26: 1234 黑松 | B26: 728461 | C26: 805443 | D26: 609760 | E26: 2328332 | F26: 2229771 | G26: -0.1396 | H26: -1.6506 | I26: 19137 | J26: 19094 | K26: 1 | L26: 1 | M26: 23 | N26: 38 | O26: TSE | P26: M12C 飲料乳品 | Q26: 20651901 | AA26: 1234 黑松 | AB26: TSE | AC26: M12C 飲料乳品 | AD26: ID 20651901 | AH26: M14C1 成衣製造 | AI26: 11
A27: 1235 興泰 | B27: 27060 | C27: 15848 | D27: 18067 | E27: 66770 | F27: 28420 | G27: 17.5999 | H27: 15.7479 | I27: 314 | J27: 279 | K27: 0 | L27: 0 | M27: 830 | N27: 861 | O27: TSE | P27: M12B 油脂飼料 | Q27: 85617982 | AA27: 1235 興泰 | AB27: TSE | AC27: M12B 油脂飼料 | AD27: ID 85617982 | AH27: M14B2 亞克力纖維 | AI27: 1
A28: 1236 宏亞 | B28: 103266 | C28: 138565 | D28: 133073 | E28: 545487 | F28: 515973 | G28: -1.5414 | H28: -8.7499 | I28: 402 | J28: 389 | K28: 0 | L28: 0 | M28: 146 | N28: 147 | O28: TSE | P28: M12Z 其他食品 | Q28: 34106066 | AA28: 1236 宏亞 | AB28: TSE | AC28: M12Z 其他食品 | AD28: ID 34106066 | AH28: M14C2 織布 | AI28: 17
A29: 1240 茂生農經 | B29: 268329 | C29: 205555 | D29: 249994 | E29: 689952 | F29: 683656 | G29: 0 | H29: 0.3391 | I29: 1618 | J29: 1619 | K29: 0 | L29: 0 | M29: 27 | N29: 27 | O29: OTC | P29: M12B 油脂飼料 | Q29: 18795706 | AA29: 1240 茂生農經 | AB29: OTC | AC29: M12B 油脂飼料 | AD29: ID 18795706 | AH29: M14D2 毛紡 | AI29: 1
A30: 1256 鮮活果汁-KY | B30: 356169 | C30: 336653 | D30: 226637 | E30: 1140959 | F30: 735498 | G30: 4.0957 | H30: -7.0121 | I30: 1500 | J30: 1490 | K30: 0 | L30: 0 | M30: 306 | N30: 311 | O30: TSE | P30: M12C 飲料乳品 | Q30: 37759808 | AA30: 1256 鮮活果汁-KY | AB30: TSE | AC30: M12C 飲料乳品 | AD30: ID 37759808 | AH30: M29A1 百貨及Mall | AI30: 7
A31: 1259 安心 | B31: 517804 | C31: 493761 | D31: 494052 | E31: 1522360 | F31: 1469652 | G31: -2.8053 | H31: -9.3846 | I31: 8459 | J31: 8458 | K31: 0 | L31: 0 | M31: 53 | N31: 53 | O31: OTC | P31: M27A2 餐飲 | Q31: 23928945 | AA31: 1259 安心 | AB31: OTC | AC31: M27A2 餐飲 | AD31: ID 23928945 | AH31: M25F 物業管理 | AI31: 4
A32: 1264 德麥 | B32: 562663 | C32: 451745 | D32: 554832 | E32: 1735229 | F32: 1648839 | G32: -0.3578 | H32: 0 | I32: 600 | J32: 606 | K32: 0 | L32: 0 | M32: 0 | N32: 0 | O32: OTC | P32: M12Z 其他食品 | Q32: 23420497 | AA32: 1264 德麥 | AB32: OTC | AC32: M12Z 其他食品 | AD32: ID 23420497 | AH32: M26C 貨運倉儲 | AI32: 15
A33: 1268 漢來美食 | B33: 583961 | C33: 753909 | D33: 487263 | E33: 1988327 | F33: 1735459 | G33: 0.9554 | H33: -0.0001 | I33: 673 | J33: 670 | K33: 0 | L33: 0 | M33: 53 | N33: 57 | O33: OTC | P33: M27A2 餐飲 | Q33: 80352343 | AA33: 1268 漢來美食 | AB33: OTC | AC33: M27A2 餐飲 | AD33: ID 80352343 | AH33: M14A7 尼龍絲 | AI33: 4
A34: 1294 漢田生技 | B34: 76113 | C34: 61511 | D34: 73692 | E34: 228051 | F34: 174677 | G34: 0 | H34: -9.4445 | I34: 232 | J34: 242 | K34: 0 | L34: 0 | M34: 157 | N34: 156 | O34: OTC | P34: M17C2 機能性食品 | Q34: 28814153 | AA34: 1294 漢田生技 | AB34: OTC | AC34: M17C2 機能性食品 | AD34: ID 28814153 | AH34: M23D3 電源供應器 | AI34: 28
A35: 1295 生合 | B35: 79388 | C35: 54071 | D35: 95889 | E35: 214544 | F35: 233724 | G35: -6.3863 | H35: -13.3466 | I35: 905 | J35: 992 | K35: 0 | L35: 0 | M35: 113 | N35: 99 | O35: OTC | P35: M17C2 機能性食品 | Q35: 70402724 | AA35: 1295 生合 | AB35: OTC | AC35: M17C2 機能性食品 | AD35: ID 70402724 | AH35: M25B 營造 | AI35: 17
A36: 1301 台塑 | B36: 17354391 | C36: 10739649 | D36: 17092363 | E36: 41985122 | F36: 47202204 | G36: 2.2875 | H36: 0.9676 | I36: 1837342 | J36: 1820411 | K36: 100563 | L36: 100699 | M36: 21648 | N36: 22046 | O36: TSE | P36: M13A1 泛用塑膠 | Q36: 75708007 | AA36: 1301 台塑 | AB36: TSE | AC36: M13A1 泛用塑膠 | AD36: ID 75708007 | AH36: M15B1 電機 | AI36: 9
A37: 1303 南亞 | B37: 27167406 | C37: 18556362 | D37: 23012738 | E37: 68596393 | F37: 65551631 | G37: 5.8366 | H37: 5.0193 | I37: 2457361 | J37: 2446356 | K37: 179523 | L37: 176230 | M37: 57703 | N37: 50801 | O37: TSE | P37: M13A1 泛用塑膠 | Q37: 75370905 | AA37: 1303 南亞 | AB37: TSE | AC37: M13A1 泛用塑膠 | AD37: ID 75370905 | AH37: M15C3 健身器材 | AI37: 4
A38: 1304 台聚 | B38: 4320562 | C38: 2843587 | D38: 4296504 | E38: 10747608 | F38: 12147296 | G38: -10.8939 | H38: 25.0978 | I38: 325125 | J38: 325591 | K38: 0 | L38: 0 | M38: 15197 | N38: 16680 | O38: TSE | P38: M13A1 泛用塑膠 | Q38: 11917107 | AA38: 1304 台聚 | AB38: TSE | AC38: M13A1 泛用塑膠 | AD38: ID 11917107 | AH38: M99ZC 其他製造 | AI38: 8
A39: 1305 華夏 | B39: 1082256 | C39: 785281 | D39: 836342 | E39: 2673712 | F39: 2462111 | G39: -6.9638 | H39: 29.961 | I39: 23998 | J39: 20895 | K39: 1200 | L39: 1200 | M39: 8742 | N39: 9515 | O39: TSE | P39: M13A1 泛用塑膠 | Q39: 11686106 | AA39: 1305 華夏 | AB39: TSE | AC39: M13A1 泛用塑膠 | AD39: ID 11686106 | AH39: M15E 自行車組件 | AI39: 3
A40: 1307 三芳 | B40: 1011105 | C40: 789802 | D40: 1022024 | E40: 2952810 | F40: 2931014 | G40: 0.9523 | H40: -5.7779 | I40: 24639 | J40: 25101 | K40: 122 | L40: 122 | M40: 2107 | N40: 2189 | O40: TSE | P40: M13A6 合成皮 | Q40: 83387850 | AA40: 1307 三芳 | AB40: TSE | AC40: M13A6 合成皮 | AD40: ID 83387850 | AH40: M15A1 工具機 | AI40: 25
A41: 1308 亞聚 | B41: 476656 | C41: 377128 | D41: 564425 | E41: 1301866 | F41: 1534396 | G41: -11.0215 | H41: 13.7456 | I41: 21840 | J41: 21689 | K41: 9 | L41: 9 | M41: 9170 | N41: 11021 | O41: TSE | P41: M13A1 泛用塑膠 | Q41: 20747385 | AA41: 1308 亞聚 | AB41: TSE | AC41: M13A1 泛用塑膠 | AD41: ID 20747385 | AH41: M15A3 紡織工具機 | AI41: 3
A42: 1309 台達化 | B42: 1376599 | C42: 824009 | D42: 1502160 | E42: 3335906 | F42: 4232841 | G42: -12.9093 | H42: 61.429 | I42: 10468 | J42: 13547 | K42: 0 | L42: 0 | M42: 10859 | N42: 12069 | O42: TSE | P42: M13A1 泛用塑膠 | Q42: 11893409 | AA42: 1309 台達化 | AB42: TSE | AC42: M13A1 泛用塑膠 | AD42: ID 11893409 | AH42: M15A2 模具零件 | AI42: 16
A43: 1310 台苯 | B43: 854539 | C43: 624367 | D43: 695651 | E43: 2184647 | F43: 2293712 | G43: -6.3637 | H43: -7.2072 | I43: 24418 | J43: 21042 | K43: 0 | L43: 0 | M43: 13014 | N43: 13537 | O43: =IF(ISERROR(VLOOKUP($A43,XX_TEJ01,O$2,FALSE))=TRUE,"",VLOOKUP($A43,XX_TEJ01,O$2,FALSE)) -> TSE | P43: M13A1 泛用塑膠 | Q43: 20844865 | AA43: 1310 台苯 | AB43: TSE | AC43: M13A1 泛用塑膠 | AD43: ID 20844865 | AH43: M15B2 機電工程 | AI43: 4
A44: 1312 國喬 | B44: 3110910 | C44: 2072655 | D44: 2647259 | E44: 7505498 | F44: 5697446 | G44: -4.5455 | H44: -7.0111 | I44: 51273 | J44: 50970 | K44: 0 | L44: 0 | M44: 15189 | N44: 15767 | O44: TSE | P44: M13A1 泛用塑膠 | Q44: 04212250 | AA44: 1312 國喬 | AB44: TSE | AC44: M13A1 泛用塑膠 | AD44: ID 04212250 | AH44: M23D7 二次電池 | AI44: 13
A45: 1313 聯成 | B45: 6489125 | C45: 2565385 | D45: 5864531 | E45: 14431139 | F45: 14552511 | G45: -7.1146 | H45: -5.6225 | I45: 71698 | J45: 72437 | K45: 0 | L45: 0 | M45: 12042 | N45: 12262 | O45: TSE | P45: M13A7 可塑劑 | Q45: 04748660 | AA45: 1313 聯成 | AB45: TSE | AC45: M13A7 可塑劑 | AD45: ID 04748660 | AH45: M23G3C 晶圓材料 | AI45: 8
A46: 1314 中石化 | B46: 1404411 | C46: 1098234 | D46: 2105503 | E46: 4092344 | F46: 6503269 | G46: -5.3988 | H46: -13.9509 | I46: 336644 | J46: 340308 | K46: 78 | L46: 78 | M46: 46610 | N46: 47779 | O46: TSE | P46: M13A5 化纖 | Q46: 03084741 | AA46: 1314 中石化 | AB46: TSE | AC46: M13A5 化纖 | AD46: ID 03084741 | AH46: M17G4 輔助與彌補 | AI46: 14
A47: 1315 達新 | B47: 127113 | C47: 144318 | D47: 154471 | E47: 397677 | F47: 541182 | G47: 3.0159 | H47: 0.6201 | I47: 1177 | J47: 1157 | K47: 18 | L47: 18 | M47: 136 | N47: 81 | O47: TSE | P47: M13A8 塑膠加工 | Q47: 51059101 | AA47: 1315 達新 | AB47: TSE | AC47: M13A8 塑膠加工 | AD47: ID 51059101 | AH47: M23D4 機殼 | AI47: 21
A48: 1316 上曜 | B48: 655761 | C48: 520392 | D48: 310506 | E48: 1894694 | F48: 775411 | G48: 0.8299 | H48: -5.4474 | I48: 13248 | J48: 13322 | K48: 0 | L48: 0 | M48: 10878 | N48: 10826 | O48: TSE | P48: M25A 建設 | Q48: 73654033 | AA48: 1316 上曜 | AB48: TSE | AC48: M25A 建設 | AD48: ID 73654033 | AH48: M15H 儀器設備 | AI48: 5
A49: 1319 東陽 | B49: 2045347 | C49: 1434755 | D49: 2551918 | E49: 5630744 | F49: 7290680 | G49: 0.4994 | H49: -8.1052 | I49: 59166 | J49: 60312 | K49: 47046 | L49: 48297 | M49: 5119 | N49: 5063 | O49: TSE | P49: M15D 汽車組件 | Q49: 68326665 | AA49: 1319 東陽 | AB49: TSE | AC49: M15D 汽車組件 | AD49: ID 68326665 | AH49: M20A6 不鏽鋼 | AI49: 9
A50: 1321 大洋 | B50: 372645 | C50: 194063 | D50: 367145 | E50: 896640 | F50: 998185 | G50: -1.1887 | H50: -1.3353 | I50: 15824 | J50: 15882 | K50: 0 | L50: 0 | M50: 7570 | N50: 7439 | O50: TSE | P50: M13A8 塑膠加工 | Q50: 15024509 | AA50: 1321 大洋 | AB50: TSE | AC50: M13A8 塑膠加工 | AD50: ID 15024509 | AH50: M20B 金屬製品 | AI50: 11
A51: 1323 永裕 | B51: 203039 | C51: 149301 | D51: 194938 | E51: 531593 | F51: 527053 | G51: -6.6523 | H51: 16.9356 | I51: 1495 | J51: 1645 | K51: 0 | L51: 0 | M51: 148 | N51: 291 | O51: TSE | P51: M13A8 塑膠加工 | Q51: 68192103 | AA51: 1323 永裕 | AB51: TSE | AC51: M13A8 塑膠加工 | AD51: ID 68192103 | AH51: M23H2 電機設備 | AI51: 60
A52: 1324 地球 | B52: 72918 | C52: 36917 | D52: 67682 | E52: 169793 | F52: 184764 | G52: -1.7242 | H52: 9.0907 | I52: 422 | J52: 406 | K52: 0 | L52: 0 | M52: 1819 | N52: 1871 | O52: TSE | P52: M13A9 膠帶 | Q52: 07147916 | AA52: 1324 地球 | AB52: TSE | AC52: M13A9 膠帶 | AD52: ID 07147916 | AH52: M22A 汽車製造 | AI52: 5
A53: 1325 恒大 | B53: 18082 | C53: 14835 | D53: 29830 | E53: 57239 | F53: 82236 | G53: -3.249 | H53: -1.4707 | I53: 732 | J53: 849 | K53: 0 | L53: 0 | M53: 2464 | N53: 2423 | O53: TSE | P53: M14F 不織布 | Q53: 11455800 | AA53: 1325 恒大 | AB53: TSE | AC53: M14F 不織布 | AD53: ID 11455800 | AH53: M16 電纜 | AI53: 11
A54: 1326 台化 | B54: 33728547 | C54: 22981250 | D54: 27746732 | E54: 81749811 | F54: 78909389 | G54: 1.1124 | H54: 2.712 | I54: 2046436 | J54: 2025487 | K54: 9039 | L54: 15318 | M54: 18648 | N54: 20295 | O54: TSE | P54: M13A1 泛用塑膠 | Q54: 58650902 | AA54: 1326 台化 | AB54: TSE | AC54: M13A1 泛用塑膠 | AD54: ID 58650902 | AH54: M15C1 家電 | AI54: 9
A55: 1336 台翰 | B55: 214212 | C55: 147511 | D55: 233570 | E55: 558637 | F55: 622572 | G55: -0.7118 | H55: -3.4603 | I55: 3263 | J55: 3241 | K55: 0 | L55: 0 | M55: 2700 | N55: 2752 | O55: OTC | P55: M23D9A 沖壓零組件 | Q55: 22589593 | AA55: 1336 台翰 | AB55: OTC | AC55: M23D9A 沖壓零組件 | AD55: ID 22589593 | AH55: M15C4 照明 | AI55: 5
A56: 1337 再生-KY | B56: 61900 | C56: 36192 | D56: 45670 | E56: 152451 | F56: 182332 | G56: -10.2272 | H56: -3.1522 | I56: 68615 | J56: 68342 | K56: 0 | L56: 0 | M56: 21246 | N56: 21255 | O56: TSE | P56: M13B 塑膠製品 | Q56: 26068617 | AA56: 1337 再生-KY | AB56: TSE | AC56: M13B 塑膠製品 | AD56: ID 26068617 | AH56: M17Z 其他化學 | AI56: 18
A57: 1338 廣華-KY | B57: 454244 | C57: 284407 | D57: 451648 | E57: 1160580 | F57: 1298134 | G57: 0.6135 | H57: 4.127 | I57: 5172 | J57: 5237 | K57: 0 | L57: 0 | M57: 2057 | N57: 2013 | O57: TSE | P57: M15D 汽車組件 | Q57: 26594386 | AA57: 1338 廣華-KY | AB57: TSE | AC57: M15D 汽車組件 | AD57: ID 26594386 | AH57: M17E1 清潔劑原料 | AI57: 3
A58: 1339 昭輝 | B58: 139986 | C58: 110249 | D58: 183034 | E58: 394274 | F58: 494804 | G58: 2.8465 | H58: 0.2414 | I58: 714 | J58: 683 | K58: 1 | L58: 1 | M58: 558 | N58: 559 | O58: TSE | P58: M15D 汽車組件 | Q58: 22078327 | AA58: 1339 昭輝 | AB58: TSE | AC58: M15D 汽車組件 | AD58: ID 22078327 | AH58: M17B 染料及顏料 | AI58: 6
A59: 1340 勝悅-KY | B59: 3601 | C59: 5030 | D59: 28561 | E59: 11597 | F59: 61054 | G59: -2.7027 | H59: -10.4972 | I59: 41058 | J59: 41291 | K59: 0 | L59: 0 | M59: 947 | N59: 788 | O59: TSE | P59: M13B 塑膠製品 | Q59: 37722768 | AA59: 1340 勝悅-KY | AB59: TSE | AC59: M13B 塑膠製品 | AD59: ID 37722768 | AH59: M17C3 農藥肥料 | AI59: 4
A60: 1341 富林-KY | B60: 308343 | C60: 123597 | D60: 268649 | E60: 680063 | F60: 690050 | G60: 0.6734 | H60: -0.3334 | I60: 42182 | J60: 42173 | K60: 0 | L60: 0 | O60: TSE | P60: M13A6 合成皮 | Q60: 82716171 | AA60: 1341 富林-KY | AB60: TSE | AC60: M13A6 合成皮 | AD60: ID 82716171 | AH60: M17F 樹脂 | AI60: 15
A61: 1342 八貫 | B61: 370828 | C61: 244978 | D61: 281475 | E61: 917285 | F61: 778890 | G61: 5.3828 | H61: -0.8856 | I61: 22098 | J61: 21992 | K61: 241 | L61: 241 | M61: 448 | N61: 460 | O61: TSE | P61: M13B 塑膠製品 | Q61: 12386676 | AA61: 1342 八貫 | AB61: TSE | AC61: M13B 塑膠製品 | AD61: ID 12386676 | AH61: M17C1B 學名藥 | AI61: 19
A62: 1402 遠東新 | B62: 21386882 | C62: 17896522 | D62: 22109493 | E62: 61276819 | F62: 63803549 | G62: -0.0001 | H62: -6.8184 | I62: 979168 | J62: 986547 | K62: 247654 | L62: 247812 | M62: 10776 | N62: 10454 | O62: TSE | P62: M14A1 聚酯絲棉 | Q62: 03522600 | AA62: 1402 遠東新 | AB62: TSE | AC62: M14A1 聚酯絲棉 | AD62: ID 03522600 | AH62: M17E2 清潔用品 | AI62: 2
A63: 1409 新纖 | B63: 3945363 | C63: 2768316 | D63: 3763379 | E63: 10047898 | F63: 10542162 | G63: 7.4675 | H63: 9.9667 | I63: 221417 | J63: 217193 | K63: 514 | L63: 513 | M63: 10889 | N63: 11262 | O63: =IF(ISERROR(VLOOKUP($A63,XX_TEJ01,O$2,FALSE))=TRUE,"",VLOOKUP($A63,XX_TEJ01,O$2,FALSE)) -> TSE | P63: M14A1 聚酯絲棉 | Q63: 07435515 | AA63: 1409 新纖 | AB63: TSE | AC63: M14A1 聚酯絲棉 | AD63: ID 07435515 | AH63: M17C1C 小分子新藥 | AI63: 17
A64: 1410 南染 | B64: 23195 | C64: 12885 | D64: 19090 | E64: 50290 | F64: 50765 | G64: 1.4515 | H64: -0.7888 | I64: 11588 | J64: 11570 | K64: 0 | L64: 0 | M64: 312 | N64: 312 | O64: TSE | P64: M14E 染整 | Q64: 35286207 | AA64: 1410 南染 | AB64: TSE | AC64: M14E 染整 | AD64: ID 35286207 | AH64: M17G3 體外診斷 | AI64: 12
A65: 1413 宏洲 | B65: 187414 | C65: 105547 | D65: 225392 | E65: 437912 | F65: 599962 | G65: 0.407 | H65: -0.2021 | I65: 433 | J65: 423 | K65: 0 | L65: 0 | M65: 0 | N65: 0 | O65: TSE | P65: M14A2 加工絲 | Q65: 07220710 | AA65: 1413 宏洲 | AB65: TSE | AC65: M14A2 加工絲 | AD65: ID 07220710 | AH65: M17C1A 原料藥 | AI65: 7
A66: 1414 東和 | B66: 39742 | C66: 32662 | D66: 52596 | E66: 113452 | F66: 133301 | G66: 0.6025 | H66: -17.592 | I66: 1890 | J66: 1943 | K66: 18 | L66: 18 | M66: 1028 | N66: 1038 | O66: TSE | P66: M14B1 聚酯紗棉紗 | Q66: 73141105 | AA66: 1414 東和 | AB66: TSE | AC66: M14B1 聚酯紗棉紗 | AD66: ID 73141105 | AH66: M17G1 診斷與監測 | AI66: 11
A67: 1416 廣豐 | B67: 35188 | C67: 33389 | D67: 26627 | E67: 106290 | F67: 82193 | G67: 1.3158 | H67: 1.3158 | I67: 11044 | J67: 10997 | K67: 0 | L67: 0 | M67: 3649 | N67: 3705 | O67: TSE | P67: M23X9 應用軟體 | Q67: =RIGHT(IF(ISERROR(VLOOKUP($A67,XX_TEJ01,Q$2,FALSE))=TRUE,"",VLOOKUP($A67,XX_TEJ01,Q$2,FALSE)),8) -> 43434316 | AA67: 1416 廣豐 | AB67: TSE | AC67: M23X9 應用軟體 | AD67: ID 43434316 | AH67: M17H1 細胞醫療 | AI67: 4
A68: 1417 嘉裕 | B68: 20338 | C68: 23236 | D68: 18799 | E68: 73809 | F68: 55141 | G68: -1.6393 | H68: 4.7732 | I68: 1748 | J68: 1724 | K68: 0 | L68: 0 | M68: 1365 | N68: 1283 | O68: TSE | P68: M14C1 成衣製造 | Q68: 11825825 | AA68: 1417 嘉裕 | AB68: TSE | AC68: M14C1 成衣製造 | AD68: ID 11825825 | AH68: M99L1 貴金屬回收 | AI68: =COUNTIF($AC$3:$AC$5000,AH68) -> 5
A69: 1418 東華 | B69: 17 | C69: 18 | D69: 849 | E69: 648 | F69: 2840 | G69: 0.2674 | H69: 0.5362 | I69: 496 | J69: 505 | K69: 0 | L69: 0 | M69: 728 | N69: 737 | O69: TSE | P69: M14B2 亞克力纖維 | Q69: 11083148 | AA69: 1418 東華 | AB69: TSE | AC69: M14B2 亞克力纖維 | AD69: ID 11083148 | AH69: M17G2 手術與治療 | AI69: 15
A70: 1419 新紡 | B70: 563421 | C70: 379790 | D70: 396037 | E70: 1453047 | F70: 1063760 | G70: 3.4711 | H70: -1.2618 | I70: 3615 | J70: 3552 | K70: 89 | L70: 89 | M70: 1287 | N70: 1286 | O70: TSE | P70: M14C2 織布 | Q70: 07435901 | AA70: 1419 新紡 | AB70: TSE | AC70: M14C2 織布 | AD70: ID 07435901 | AH70: M18 玻璃陶瓷 | AI70: 6
A71: 1423 利華 | B71: 7995 | C71: 17386 | D71: 10615 | E71: 31233 | F71: 28389 | G71: 0.7528 | H71: 3.4793 | I71: 1435 | J71: 1412 | K71: 0 | L71: 0 | M71: 114 | N71: 110 | O71: TSE | P71: M14D2 毛紡 | Q71: 11311608 | AA71: 1423 利華 | AB71: TSE | AC71: M14D2 毛紡 | AD71: ID 11311608 | AH71: M23B3B 玻纖紗布 | AI71: 3
A72: 1432 大魯閣 | B72: 60006 | C72: 72081 | D72: 104877 | E72: 198085 | F72: 335189 | G72: 0 | H72: 3.2738 | I72: 335 | J72: 324 | K72: 0 | L72: 0 | M72: 4 | N72: 0 | O72: TSE | P72: M29A1 百貨及Mall | Q72: 04690983 | AA72: 1432 大魯閣 | AB72: TSE | AC72: M29A1 百貨及Mall | AD72: ID 04690983 | AH72: M19A 造紙 | AI72: 6
A73: 1434 福懋 | B73: 2682740 | C73: 1869940 | D73: 2815178 | E73: 6979321 | F73: 7687773 | G73: -0.6061 | H73: -1.7966 | I73: 128627 | J73: 129144 | K73: 257 | L73: 168 | M73: 2815 | N73: 2854 | O73: TSE | P73: M14C2 織布 | Q73: 14001199 | AA73: 1434 福懋 | AB73: TSE | AC73: M14C2 織布 | AD73: ID 14001199 | AH73: M19B 紙漿 | AI73: 1
A74: 1435 中福 | B74: 498 | C74: 499 | D74: 498 | E74: 1495 | F74: 1495 | G74: -9.7859 | H74: -24.7448 | I74: 274 | J74: 274 | K74: 3 | L74: 3 | M74: 0 | N74: 0 | O74: TSE | P74: M25F 物業管理 | Q74: 03101946 | AA74: 1435 中福 | AB74: TSE | AC74: M25F 物業管理 | AD74: ID 03101946 | AH74: M20A3 鋼板 | AI74: 6
A75: 1436 華友聯 | B75: 36383 | C75: 12853 | D75: 89201 | E75: 72625 | F75: 311132 | G75: -2.0561 | H75: -1.5038 | I75: 7825 | J75: 7962 | K75: 0 | L75: 0 | M75: 934 | N75: 916 | O75: TSE | P75: M25A 建設 | Q75: 07510318 | AA75: 1436 華友聯 | AB75: TSE | AC75: M25A 建設 | AD75: ID 07510318 | AH75: M20A2 鋼筋 | AI75: 8
A76: 1437 勤益控 | B76: 53168 | C76: 54278 | D76: 67774 | E76: 173787 | F76: 191083 | G76: 0 | H76: -0.8103 | I76: 16249 | J76: 16253 | K76: 0 | L76: 0 | M76: 2080 | N76: 2097 | O76: TSE | P76: M25F 物業管理 | Q76: 35535607 | AA76: 1437 勤益控 | AB76: TSE | AC76: M25F 物業管理 | AD76: ID 35535607 | AH76: M20A1 線材 | AI76: 20
A77: 1438 三地開發 | B77: 197558 | C77: 1134 | D77: 241 | E77: 377477 | F77: 241 | G77: 2.5 | H77: -4.3333 | I77: 393 | J77: 360 | K77: 0 | L77: 0 | M77: 112 | N77: 115 | O77: TSE | P77: M25A 建設 | Q77: 03561011 | AA77: 1438 三地開發 | AB77: TSE | AC77: M25A 建設 | AD77: ID 03561011 | AH77: M20A7 鋼管 | AI77: 5
A78: 1439 雋揚 | B78: 66333 | C78: 4400 | D78: 127936 | E78: 75912 | F78: 136397 | G78: 1.089 | H78: 2.9575 | I78: 282 | J78: 258 | K78: 0 | L78: 0 | M78: 1186 | N78: 1187 | O78: TSE | P78: M25A 建設 | Q78: 11113403 | AA78: 1439 雋揚 | AB78: TSE | AC78: M25A 建設 | AD78: ID 11113403 | AH78: M20A4 銅 | AI78: 1
A79: 1440 南紡 | B79: 1404035 | C79: 865498 | D79: 1459502 | E79: 3372657 | F79: 4192369 | G79: 0.3937 | H79: -0.3907 | I79: 126663 | J79: 127311 | K79: 416 | L79: 414 | M79: 4019 | N79: 4022 | O79: TSE | P79: M14A1 聚酯絲棉 | Q79: 68919301 | AA79: 1440 南紡 | AB79: TSE | AC79: M14A1 聚酯絲棉 | AD79: ID 68919301 | AH79: M99B 五金及家具 | AI79: 17
A80: 1441 大東 | B80: 114577 | C80: 57056 | D80: 159859 | E80: 289133 | F80: 403126 | G80: -0.407 | H80: -2.1002 | I80: 872 | J80: 863 | K80: 0 | L80: 0 | M80: 0 | N80: 0 | O80: TSE | P80: M14B1 聚酯紗棉紗 | Q80: 51037304 | AA80: 1441 大東 | AB80: TSE | AC80: M14B1 聚酯紗棉紗 | AD80: ID 51037304 | AH80: M20A9 金屬加工 | AI80: 3
A81: 1442 名軒 | B81: 79389 | C81: 78263 | D81: 563864 | E81: 302076 | F81: 1376172 | G81: 0.1911 | H81: -1.3181 | I81: 37114 | J81: 38456 | K81: 454 | L81: 454 | M81: 2030 | N81: 1948 | O81: TSE | P81: M25A 建設 | Q81: 04615057 | AA81: 1442 名軒 | AB81: TSE | AC81: M25A 建設 | AD81: ID 04615057 | AH81: M21A 輪胎 | AI81: 5
A82: 1443 立益物流 | B82: 73698 | C82: 76166 | D82: 85178 | E82: 226750 | F82: 253254 | G82: 2.6906 | H82: -8.2164 | I82: 269 | J82: 240 | K82: 0 | L82: 0 | M82: 32 | N82: 32 | O82: TSE | P82: M26C 貨運倉儲 | Q82: 04287483 | AA82: 1443 立益物流 | AB82: TSE | AC82: M26C 貨運倉儲 | AD82: ID 04287483 | AH82: M21C 橡膠原料 | AI82: 5
A83: 1444 力麗 | B83: 950193 | C83: 665239 | D83: 717018 | E83: 2142663 | F83: 1932178 | G83: -0.0001 | H83: 3.6484 | I83: 50010 | J83: 49603 | K83: 0 | L83: 0 | M83: 1328 | N83: 1381 | O83: =IF(ISERROR(VLOOKUP($A83,XX_TEJ01,O$2,FALSE))=TRUE,"",VLOOKUP($A83,XX_TEJ01,O$2,FALSE)) -> TSE | P83: M14A2 加工絲 | Q83: 07663290 | AA83: 1444 力麗 | AB83: TSE | AC83: M14A2 加工絲 | AD83: ID 07663290 | AH83: M21B2 其他橡膠 | AI83: 1
A84: 1445 大宇 | B84: 52314 | C84: 45054 | D84: 70057 | E84: 171054 | F84: 200423 | G84: 1.2097 | H84: -1.8946 | I84: 3698 | J84: 3676 | K84: 0 | L84: 0 | M84: 1318 | N84: 1313 | O84: TSE | P84: M14C2 織布 | Q84: 07015014 | AA84: 1445 大宇 | AB84: TSE | AC84: M14C2 織布 | AD84: ID 07015014 | AH84: M21B1 工業橡膠 | AI84: 1
A85: 1446 宏和 | B85: 97846 | C85: 76133 | D85: 139973 | E85: 180694 | F85: 293912 | G85: 0 | H85: 9.3333 | I85: 8674 | J85: 8640 | K85: 0 | L85: 0 | M85: 2380 | N85: 2454 | O85: TSE | P85: M25A 建設 | Q85: 73641170 | AA85: 1446 宏和 | AB85: TSE | AC85: M25A 建設 | AD85: ID 73641170 | AH85: M22B2 機車製造 | AI85: 2
A86: 1447 力鵬 | B86: 3871493 | C86: 1723100 | D86: 2854108 | E86: 8071598 | F86: 6937551 | G86: -1.3672 | H86: -7.8465 | I86: 32662 | J86: 32931 | K86: 0 | L86: 0 | M86: 3327 | N86: 3619 | O86: TSE | P86: M14A7 尼龍絲 | Q86: 33955322 | AA86: 1447 力鵬 | AB86: TSE | AC86: M14A7 尼龍絲 | AD86: ID 33955322 | AH86: M22X 汽車買賣 | AI86: 3
A87: 1449 佳和 | B87: 280131 | C87: 283925 | D87: 209648 | E87: 792390 | F87: 649112 | G87: 27.0162 | H87: 49.2893 | I87: 10284 | J87: 7576 | K87: 2 | L87: 2 | M87: 3933 | N87: 4201 | O87: TSE | P87: M14C2 織布 | Q87: 72055019 | AA87: 1449 佳和 | AB87: TSE | AC87: M14C2 織布 | AD87: ID 72055019 | AH87: M22B1 船舶製造 | AI87: 3
A88: 1451 年興 | B88: 518409 | C88: 458977 | D88: 454137 | E88: 1528004 | F88: 1350745 | G88: 1.1019 | H88: 0.2729 | I88: 11153 | J88: 11086 | K88: 1 | L88: 1 | M88: 592 | N88: 586 | O88: TSE | P88: M14C1 成衣製造 | Q88: 22266307 | AA88: 1451 年興 | AB88: TSE | AC88: M14C1 成衣製造 | AD88: ID 22266307 | AH88: M23D1 分離式元件 | AI88: 7
A89: 1452 宏益 | B89: 161166 | C89: 75246 | D89: 114758 | E89: 328337 | F89: 350094 | G89: -0.8333 | H89: 7.2072 | I89: 2451 | J89: 2394 | K89: 0 | L89: 0 | M89: 111 | N89: 111 | O89: TSE | P89: M14A2 加工絲 | Q89: 43121481 | AA89: 1452 宏益 | AB89: TSE | AC89: M14A2 加工絲 | AD89: ID 43121481 | AH89: M23G1A 晶圓代工 | AI89: 6
A90: 1453 大將 | B90: 126 | C90: 125 | D90: 124 | E90: 377 | F90: 372 | G90: 0 | H90: -0.8198 | I90: 507 | J90: 588 | K90: 0 | L90: 0 | M90: 1317 | N90: 1291 | O90: TSE | P90: M25A 建設 | Q90: 07617901 | AA90: 1453 大將 | AB90: TSE | AC90: M25A 建設 | AD90: ID 07617901 | AH90: M23C2 影像掃描 | AI90: 7
A91: 1454 台富 | B91: 111197 | C91: 74526 | D91: 150716 | E91: 294179 | F91: 404599 | G91: -2.7132 | H91: -2.3346 | I91: 560 | J91: 573 | K91: 0 | L91: 0 | M91: 1694 | N91: 1700 | O91: TSE | P91: M14C2 織布 | Q91: 04301794 | AA91: 1454 台富 | AB91: TSE | AC91: M14C2 織布 | AD91: ID 04301794 | AH91: M23A1 EMS | AI91: 9
A92: 1455 集盛 | B92: 529750 | C92: 318242 | D92: 670533 | E92: 1265739 | F92: 1859817 | G92: -2.5492 | H92: -2.436 | I92: 12067 | J92: 12148 | K92: 24 | L92: 24 | M92: 3425 | N92: 3383 | O92: TSE | P92: M14A7 尼龍絲 | Q92: 43295237 | AA92: 1455 集盛 | AB92: TSE | AC92: M14A7 尼龍絲 | AD92: ID 43295237 | AH92: M23B2B 硬板 | AI92: 22
A93: 1456 怡華 | B93: 56035 | C93: 112471 | D93: 65177 | E93: 218947 | F93: 163832 | G93: 1.7483 | H93: 9.8114 | I93: 426 | J93: 398 | K93: 0 | L93: 0 | M93: 343 | N93: 358 | O93: TSE | P93: M25A 建設 | Q93: 33144175 | AA93: 1456 怡華 | AB93: TSE | AC93: M25A 建設 | AD93: ID 33144175 | AH93: M23K2 衛星微波 | AI93: 9
A94: 1457 宜進 | B94: 272585 | C94: 156605 | D94: 316845 | E94: 647285 | F94: 856262 | G94: 0.3379 | H94: 1.1516 | I94: 5192 | J94: 5117 | K94: 0 | L94: 0 | M94: 474 | N94: 474 | O94: TSE | P94: M14A2 加工絲 | Q94: 07669338 | AA94: 1457 宜進 | AB94: TSE | AC94: M14A2 加工絲 | AD94: ID 07669338 | AH94: M23KX 其他網通 | AI94: 5
A95: 1459 聯發 | B95: 99917 | C95: 47656 | D95: 142301 | E95: 231160 | F95: 362646 | G95: -0.4292 | H95: -2.1099 | I95: 5428 | J95: 5311 | K95: 0 | L95: 0 | M95: 418 | N95: 431 | O95: TSE | P95: M14A2 加工絲 | Q95: 33653494 | AA95: 1459 聯發 | AB95: TSE | AC95: M14A2 加工絲 | AD95: ID 33653494 | AH95: M23C4A 光碟 | AI95: 3
A96: 1460 宏遠 | B96: 585553 | C96: 450189 | D96: 758415 | E96: 1697865 | F96: 2172667 | G96: -1.4084 | H96: 2.4889 | I96: 12194 | J96: 12234 | K96: 0 | L96: 0 | M96: 0 | N96: 0 | O96: TSE | P96: M14C2 織布 | Q96: 22817999 | AA96: 1460 宏遠 | AB96: TSE | AC96: M14C2 織布 | AD96: ID 22817999 | AH96: M23D5 被動元件 | AI96: 33
A97: 1463 強盛新 | B97: 25235 | C97: 16307 | D97: 25315 | E97: 68559 | F97: 654241 | G97: 0.2786 | H97: -0.0001 | I97: 18148 | J97: 18000 | K97: 0 | L97: 0 | M97: 375 | N97: 378 | O97: TSE | P97: M14E 染整 | Q97: 07715023 | AA97: 1463 強盛新 | AB97: TSE | AC97: M14E 染整 | AD97: ID 07715023 | AH97: M23D2 連接器 | AI97: 47
A98: 1464 得力 | B98: 1131849 | C98: 792863 | D98: 1224006 | E98: 2986296 | F98: 3462317 | G98: 0 | H98: -4.6082 | I98: 7002 | J98: 6520 | K98: 0 | L98: 0 | M98: 1638 | N98: 1610 | O98: TSE | P98: M14C2 織布 | Q98: 73686632 | AA98: 1464 得力 | AB98: TSE | AC98: M14C2 織布 | AD98: ID 73686632 | AH98: M23G2 IC封測 | AI98: 20
A99: 1465 偉全 | B99: 34511 | C99: 20212 | D99: 25046 | E99: 98481 | F99: 83853 | G99: 0.8197 | H99: -0.8064 | I99: 398 | J99: 366 | K99: 0 | L99: 0 | M99: 3408 | N99: 3409 | O99: TSE | P99: M14C2 織布 | Q99: 33700601 | AA99: 1465 偉全 | AB99: TSE | AC99: M14C2 織布 | AD99: ID 33700601 | AH99: M23A3 品牌及主板 | AI99: 8
A100: 1466 聚隆 | B100: 193314 | C100: 159530 | D100: 230134 | E100: 547834 | F100: 686681 | G100: 1.8126 | H100: -0.0003 | I100: 672 | J100: 704 | K100: 0 | L100: 0 | M100: 4577 | N100: 4608 | O100: TSE | P100: M14A7 尼龍絲 | Q100: 22976047 | AA100: 1466 聚隆 | AB100: TSE | AC100: M14A7 尼龍絲 | AD100: ID 22976047 | AH100: M23K4 網通設備 | AI100: 28
A101: 1467 南緯 | B101: 462982 | C101: 373739 | D101: 401238 | E101: 1182633 | F101: 1243203 | G101: -0.1422 | H101: -0.9874 | I101: 44626 | J101: 44575 | K101: 0 | L101: 0 | M101: 4260 | N101: 4262 | O101: TSE | P101: M14C1 成衣製造 | Q101: 69559487 | AA101: 1467 南緯 | AB101: TSE | AC101: M14C1 成衣製造 | AD101: ID 69559487 | AH101: M23G1B 記憶體製造 | AI101: 3
A102: 1468 昶和 | B102: 25383 | C102: 27453 | D102: 121656 | E102: 127625 | F102: 246458 | G102: 6.8966 | H102: 0.405 | I102: 3125 | J102: 3099 | K102: 0 | L102: 0 | M102: 0 | N102: 0 | O102: TSE | P102: M14C2 織布 | Q102: 36123364 | AA102: 1468 昶和 | AB102: TSE | AC102: M14C2 織布 | AD102: ID 36123364 | AH102: M23G6 其他半導體 | AI102: 3
A103: 1470 大統新創 | B103: 69060 | C103: 48383 | D103: 90888 | E103: 191305 | F103: 213942 | G103: 2.7777 | H103: -3.4783 | I103: 164 | J103: 150 | K103: 0 | L103: 0 | M103: 6 | N103: 6 | O103: =IF(ISERROR(VLOOKUP($A103,XX_TEJ01,O$2,FALSE))=TRUE,"",VLOOKUP($A103,XX_TEJ01,O$2,FALSE)) -> TSE | P103: M14E 染整 | Q103: 22267777 | AA103: 1470 大統新創 | AB103: TSE | AC103: M14E 染整 | AD103: ID 22267777 | AH103: M23C6B 磊晶及晶粒 | AI103: 5
A104: 1471 首利 | B104: 7626 | C104: 4068 | D104: 18779 | E104: 22014 | F104: 47115 | G104: -2.0408 | H104: 1.2657 | I104: 1164 | J104: 1162 | K104: 0 | L104: 0 | M104: 0 | N104: 0 | O104: TSE | P104: M23D3 電源供應器 | Q104: 07699023 | AA104: 1471 首利 | AB104: TSE | AC104: M23D3 電源供應器 | AD104: ID 07699023 | AH104: M23T1 3C通路 | AI104: 17
A105: 1472 三洋實業 | B105: 226856 | C105: 350999 | D105: 302184 | E105: 914324 | F105: 911049 | G105: -0.9384 | H105: 4.2808 | I105: 428 | J105: 422 | K105: 0 | L105: 0 | M105: 4202 | N105: 4190 | O105: TSE | P105: M25B 營造 | Q105: 07029919 | AA105: 1472 三洋實業 | AB105: TSE | AC105: M25B 營造 | AD105: ID 07029919 | AH105: M23G4 IC導線架 | AI105: 3
A106: 1473 台南 | B106: 555361 | C106: 707190 | D106: 729893 | E106: 1959137 | F106: 2496138 | G106: -0.2097 | H106: 2.586 | I106: 7664 | J106: 7707 | K106: 0 | L106: 0 | M106: 923 | N106: 941 | O106: TSE | P106: M14C1 成衣製造 | Q106: 68919702 | AA106: 1473 台南 | AB106: TSE | AC106: M14C1 成衣製造 | AD106: ID 68919702 | AH106: M23C1 顯示器 | AI106: 6
A107: 1474 弘裕 | B107: 302809 | C107: 148784 | D107: 272895 | E107: 691030 | F107: 743410 | G107: 1.8145 | H107: 0.4975 | I107: 714 | J107: 676 | K107: 0 | L107: 0 | M107: 3364 | N107: 3381 | O107: TSE | P107: M14C2 織布 | Q107: 58003997 | AA107: 1474 弘裕 | AB107: TSE | AC107: M14C2 織布 | AD107: ID 58003997 | AH107: M23T2 零組件代理 | AI107: 35
A108: 1475 業旺 | B108: 130790 | C108: 87958 | D108: 109086 | E108: 347870 | F108: 390932 | G108: 4.506 | H108: 6.5372 | I108: 263 | J108: 253 | K108: 0 | L108: 0 | M108: 451 | N108: 453 | O108: TSE | P108: M14C2 織布 | Q108: 23912057 | AA108: 1475 業旺 | AB108: TSE | AC108: M14C2 織布 | AD108: ID 23912057 | AH108: M23A2 泛用電腦 | AI108: 5
A109: 1476 儒鴻 | B109: 3599533 | C109: 2439916 | D109: 3410647 | E109: 9621070 | F109: 9374606 | G109: 1.8605 | H109: -11.6933 | I109: 88318 | J109: 88488 | K109: 5061 | L109: 5063 | M109: 661 | N109: 626 | O109: TSE | P109: M14C1 成衣製造 | Q109: 35884479 | AA109: 1476 儒鴻 | AB109: TSE | AC109: M14C1 成衣製造 | AD109: ID 35884479 | AH109: M23G5A 觸控IC | AI109: 3
A110: 1477 聚陽 | B110: 3130764 | C110: 2937964 | D110: 3453770 | E110: 8896989 | F110: 9923923 | G110: 0.2284 | H110: -20.8589 | I110: 38289 | J110: 38268 | K110: 32977 | L110: 32872 | M110: 483 | N110: 452 | O110: TSE | P110: M14C1 成衣製造 | Q110: 23609668 | AA110: 1477 聚陽 | AB110: TSE | AC110: M14C1 成衣製造 | AD110: ID 23609668 | AH110: M23A5B 工業電腦 | AI110: 28
A111: 1503 士電 | B111: 4230241 | C111: 2844510 | D111: 3125640 | E111: 11558698 | F111: 10294698 | G111: 3.9105 | H111: -9.7088 | I111: 163037 | J111: 163152 | K111: 105 | L111: 105 | M111: 2624 | N111: 2616 | O111: TSE | P111: M15B1 電機 | Q111: 11039306 | AA111: 1503 士電 | AB111: TSE | AC111: M15B1 電機 | AD111: ID 11039306 | AH111: M23C3 3C週邊 | AI111: 18
A112: 1504 東元 | B112: 5126597 | C112: 4428182 | D112: 4962534 | E112: 14198478 | F112: 13701115 | G112: -1.6475 | H112: -14.7142 | I112: 287032 | J112: 288832 | K112: 10270 | L112: 10782 | M112: 23610 | N112: 23885 | O112: TSE | P112: M15B1 電機 | Q112: 11332202 | AA112: 1504 東元 | AB112: TSE | AC112: M15B1 電機 | AD112: ID 11332202 | AH112: M23UZ 消費性電子 | AI112: 4
A113: 1506 正道 | B113: 98012 | C113: 96478 | D113: 96330 | E113: 290125 | F113: 251614 | G113: -0.4505 | H113: -2.6433 | I113: 1603 | J113: 1537 | K113: 0 | L113: 0 | M113: 0 | N113: 0 | O113: TSE | P113: M15D 汽車組件 | Q113: 68193807 | AA113: 1506 正道 | AB113: TSE | AC113: M15D 汽車組件 | AD113: ID 68193807 | AH113: M23G5B 網通射頻IC | AI113: 11
A114: 1512 瑞利 | B114: 72853 | C114: 140262 | D114: 83375 | E114: 321252 | F114: 291313 | G114: -1.847 | H114: 5.3823 | I114: 5101 | J114: 5070 | K114: 0 | L114: 0 | M114: 0 | N114: 0 | O114: TSE | P114: M15D 汽車組件 | Q114: 85330636 | AA114: 1512 瑞利 | AB114: TSE | AC114: M15D 汽車組件 | AD114: ID 85330636 | AH114: M23B3A 銅箔基板 | AI114: 5
A115: 1513 中興電 | B115: 2477893 | C115: 1879058 | D115: 2363392 | E115: 6490639 | F115: 6447658 | G115: 4.5138 | H115: -0.331 | I115: 84790 | J115: 84157 | K115: 12045 | L115: 12042 | M115: 7619 | N115: 7778 | O115: TSE | P115: M15B1 電機 | Q115: 33029464 | AA115: 1513 中興電 | AB115: TSE | AC115: M15B1 電機 | AD115: ID 33029464 | AH115: M23G5C 單晶片系統 | AI115: 4
A116: 1514 亞力 | B116: 795495 | C116: 778370 | D116: 769323 | E116: 2539752 | F116: 2020928 | G116: 3.9801 | H116: -6.6965 | I116: 46780 | J116: 47003 | K116: 5 | L116: 5 | M116: 6453 | N116: 6450 | O116: TSE | P116: M15B1 電機 | Q116: 03213392 | AA116: 1514 亞力 | AB116: TSE | AC116: M15B1 電機 | AD116: ID 03213392 | AH116: M23C9 安全監控 | AI116: 10
A117: 1515 力山 | B117: 311608 | C117: 288446 | D117: 439032 | E117: 1050350 | F117: 1014493 | G117: -2.1187 | H117: -6.4778 | I117: 8372 | J117: 8404 | K117: 0 | L117: 0 | M117: 1667 | N117: 1694 | O117: TSE | P117: M15C3 健身器材 | Q117: 55759180 | AA117: 1515 力山 | AB117: TSE | AC117: M15C3 健身器材 | AD117: ID 55759180 | AH117: M23C6C 封裝及模組 | AI117: 16
A118: 1516 川飛 | B118: 9498 | C118: 11818 | D118: 9841 | E118: 26225 | F118: 21864 | G118: 0.7371 | H118: -17.9999 | I118: 2402 | J118: 2404 | K118: 2 | L118: 2 | M118: 18 | N118: 18 | O118: TSE | P118: M99ZC 其他製造 | Q118: 22071751 | AA118: 1516 川飛 | AB118: TSE | AC118: M99ZC 其他製造 | AD118: ID 22071751 | AH118: M23B2C 軟板 | AI118: 10
A119: 1517 利奇 | B119: 159825 | C119: 94467 | D119: 208301 | E119: 435444 | F119: 550262 | G119: -0.4485 | H119: -3.8961 | I119: 4975 | J119: 4876 | K119: 1 | L119: 1 | M119: 1424 | N119: 1457 | O119: TSE | P119: M15E 自行車組件 | Q119: 59008318 | AA119: 1517 利奇 | AB119: TSE | AC119: M15E 自行車組件 | AD119: ID 59008318 | AH119: M23H1 廠辦機電 | AI119: 15
A120: 1519 華城 | B120: 2036539 | C120: 1363202 | D120: 1969871 | E120: 4756515 | F120: 4421261 | G120: 2.1331 | H120: -10.7456 | I120: 68671 | J120: 69386 | K120: 2136 | L120: 2252 | M120: 2697 | N120: 2691 | O120: TSE | P120: M15B1 電機 | Q120: 33284077 | AA120: 1519 華城 | AB120: TSE | AC120: M15B1 電機 | AD120: ID 33284077 | AH120: M23C7B 太陽能晶圓 | AI120: 2
A121: 1521 大億 | B121: 349115 | C121: 284898 | D121: 314171 | E121: 1003760 | F121: 888287 | G121: 1.222 | H121: -0.996 | I121: 25103 | J121: 25093 | K121: 0 | L121: 0 | M121: 377 | N121: 367 | O121: TSE | P121: M15D 汽車組件 | Q121: 69408876 | AA121: 1521 大億 | AB121: TSE | AC121: M15D 汽車組件 | AD121: ID 69408876 | AH121: M23C8A LCD面板 | AI121: 6
A122: 1522 堤維西 | B122: 2494987 | C122: 1900928 | D122: 1700708 | E122: 6703655 | F122: 4913619 | G122: -0.9479 | H122: -22.8782 | I122: 12583 | J122: 12792 | K122: 1857 | L122: 1882 | M122: 4410 | N122: 4400 | O122: TSE | P122: M15D 汽車組件 | Q122: 22269487 | AA122: 1522 堤維西 | AB122: TSE | AC122: M15D 汽車組件 | AD122: ID 22269487 | AH122: M23K3 電信及IDC | AI122: 4
A123: 1524 耿鼎 | B123: 200268 | C123: 150333 | D123: 287723 | E123: 562184 | F123: 752356 | G123: -1.1628 | H123: 1.7094 | I123: 1476 | J123: 1332 | K123: 0 | L123: 0 | M123: 4683 | N123: 4826 | O123: =IF(ISERROR(VLOOKUP($A123,XX_TEJ01,O$2,FALSE))=TRUE,"",VLOOKUP($A123,XX_TEJ01,O$2,FALSE)) -> TSE | P123: M15D 汽車組件 | Q123: 22081250 | AA123: 1524 耿鼎 | AB123: TSE | AC123: M15D 汽車組件 | AD123: ID 22081250 | AH123: M23U2 聲學產品 | AI123: 10
A124: 1525 江申 | B124: 105783 | C124: 74479 | D124: 120629 | E124: 281735 | F124: 276927 | G124: -3.4484 | H124: -0.1622 | I124: 192 | J124: 166 | K124: 0 | L124: 0 | M124: 230 | N124: 227 | O124: TSE | P124: M15D 汽車組件 | Q124: 35129100 | AA124: 1525 江申 | AB124: TSE | AC124: M15D 汽車組件 | AD124: ID 35129100 | AH124: M23A4B 影音視訊 | AI124: 3
A125: 1526 日馳 | B125: 66644 | C125: 40240 | D125: 70882 | E125: 161967 | F125: 200582 | G125: -2.6865 | H125: -8.6834 | I125: 1318 | J125: 1295 | K125: 0 | L125: 0 | M125: 844 | N125: 834 | O125: TSE | P125: M15E 自行車組件 | Q125: 11099726 | AA125: 1526 日馳 | AB125: TSE | AC125: M15E 自行車組件 | AD125: ID 11099726 | AH125: M23D9B 散熱零組件 | AI125: 12
A126: 1527 鑽全 | B126: 243765 | C126: 145143 | D126: 254845 | E126: 629386 | F126: 816060 | G126: -0.7633 | H126: 0.154 | I126: 13784 | J126: 13838 | K126: 0 | L126: 0 | M126: 533 | N126: 534 | O126: TSE | P126: M15A1 工具機 | Q126: 20982120 | AA126: 1527 鑽全 | AB126: TSE | AC126: M15A1 工具機 | AD126: ID 20982120 | AH126: M23K5 導航定位 | AI126: 7
A127: 1528 恩德 | B127: 277042 | C127: 220658 | D127: 211641 | E127: 748194 | F127: 571401 | G127: 6.8761 | H127: 26.8067 | I127: 1999 | J127: 4636 | K127: 442 | L127: 458 | M127: 12333 | N127: 12947 | O127: TSE | P127: M15A1 工具機 | Q127: 11551634 | AA127: 1528 恩德 | AB127: TSE | AC127: M15A1 工具機 | AD127: ID 11551634 | AH127: M23A4A 繪圖運算 | AI127: 4
A128: 1529 樂事綠能 | B128: 33030 | C128: 58630 | D128: 106410 | E128: 248511 | F128: 266543 | G128: 4.1758 | H128: -13.9746 | I128: 2012 | J128: 2683 | K128: 2 | L128: 2 | M128: 3402 | N128: 3337 | O128: TSE | P128: M15B1 電機 | Q128: 34211074 | AA128: 1529 樂事綠能 | AB128: TSE | AC128: M15B1 電機 | AD128: ID 34211074 | AH128: M23X1 系統整合 | AI128: 40
A129: 1530 亞崴 | B129: 172667 | C129: 130895 | D129: 173725 | E129: 444813 | F129: 552359 | G129: 0.5649 | H129: 0.755 | I129: 510 | J129: 499 | K129: 0 | L129: 0 | M129: 130 | N129: 117 | O129: TSE | P129: M15A1 工具機 | Q129: 22224692 | AA129: 1530 亞崴 | AB129: TSE | AC129: M15A1 工具機 | AD129: ID 22224692 | AH129: M23CZ2 其他顯示 | AI129: 2
A130: 1531 高林股 | B130: 127592 | C130: 102687 | D130: 160176 | E130: 347486 | F130: 410520 | G130: 1.1494 | H130: 14.7825 | I130: 2388 | J130: 2328 | K130: 0 | L130: 0 | M130: 2168 | N130: 2178 | O130: TSE | P130: M15A3 紡織工具機 | Q130: 29538509 | AA130: 1531 高林股 | AB130: TSE | AC130: M15A3 紡織工具機 | AD130: ID 29538509 | AH130: M23G5D 電源管理IC | AI130: 11
A131: 1532 勤美 | B131: 1237316 | C131: 973567 | D131: 1084321 | E131: 3292951 | F131: 2990065 | G131: 0.6914 | H131: -5.8189 | I131: 31949 | J131: 32180 | K131: 2630 | L131: 2666 | M131: 2575 | N131: 2539 | O131: TSE | P131: M15A2 模具零件 | Q131: =RIGHT(IF(ISERROR(VLOOKUP($A131,XX_TEJ01,Q$2,FALSE))=TRUE,"",VLOOKUP($A131,XX_TEJ01,Q$2,FALSE)),8) -> 03474311 | AA131: 1532 勤美 | AB131: TSE | AC131: M15A2 模具零件 | AD131: ID 03474311 | AH131: M23C8C LCD原料 | AI131: 12
A132: 1533 車王電 | B132: 467055 | C132: 431087 | D132: 287582 | E132: 1288400 | F132: 791497 | G132: 4.0955 | H132: 2.1776 | I132: 5763 | J132: 5700 | K132: 0 | L132: 0 | M132: 660 | N132: 660 | O132: TSE | P132: M15D 汽車組件 | Q132: 04827138 | AA132: 1533 車王電 | AB132: TSE | AC132: M15D 汽車組件 | AD132: ID 04827138 | AH132: M23G3B 記憶體模組 | AI132: =COUNTIF($AC$3:$AC$5000,AH132) -> 9
A133: 1535 中宇 | B133: 799835 | C133: 772725 | D133: 855310 | E133: 2203311 | F133: 2469799 | G133: -0.9506 | H133: 3.9919 | I133: 1386 | J133: 1339 | K133: 1 | L133: 1 | M133: 47 | N133: 75 | O133: TSE | P133: M15B2 機電工程 | Q133: 84252401 | AA133: 1535 中宇 | AB133: TSE | AC133: M15B2 機電工程 | AD133: ID 84252401 | AH133: M23G3A 化合物SEMI | AI133: 6
A134: 1536 和大 | B134: 441360 | C134: 301194 | D134: 401748 | E134: 1140437 | F134: 1234196 | G134: 1.2513 | H134: -8.0493 | I134: 19007 | J134: 18565 | K134: 0 | L134: 0 | M134: 8401 | N134: 8423 | O134: TSE | P134: M15D 汽車組件 | Q134: 52264848 | AA134: 1536 和大 | AB134: TSE | AC134: M15D 汽車組件 | AD134: ID 52264848 | AH134: M23D6 石英元件 | AI134: 6
A135: 1537 廣隆 | B135: 548412 | C135: 546743 | D135: 598654 | E135: 1713831 | F135: 1750132 | G135: 0.4017 | H135: 1.6261 | I135: 12527 | J135: 12467 | K135: 27 | L135: 27 | M135: 41 | N135: 43 | O135: TSE | P135: M23D7 二次電池 | Q135: 23556563 | AA135: 1537 廣隆 | AB135: TSE | AC135: M23D7 二次電池 | AD135: ID 23556563 | AH135: M23D9C 光電導線架 | AI135: 1
A136: 1538 正峰 | B136: 3994 | C136: 2160 | D136: 10092 | E136: 10760 | F136: 30620 | G136: 0 | H136: -33.9427 | I136: 21 | J136: 17 | K136: 0 | L136: 0 | M136: 0 | N136: 0 | O136: TSE | P136: M15A1 工具機 | Q136: 44947686 | AA136: 1538 正峰 | AB136: TSE | AC136: M15A1 工具機 | AD136: ID 44947686 | AH136: M23C4B 硬碟磁碟 | AI136: 4
A137: 1539 巨庭 | B137: 65670 | C137: 84208 | D137: 116572 | E137: 241975 | F137: 356799 | G137: 0.9259 | H137: 1.2384 | I137: 455 | J137: 434 | K137: 0 | L137: 0 | M137: 1252 | N137: 1268 | O137: TSE | P137: M15A1 工具機 | Q137: 52646207 | AA137: 1539 巨庭 | AB137: TSE | AC137: M15A1 工具機 | AD137: ID 52646207 | AH137: M99ZX 其他服務 | AI137: 10
A138: 1540 喬福 | B138: 28359 | C138: 21574 | D138: 47758 | E138: 86231 | F138: 129829 | G138: -0.2283 | H138: -1.3543 | I138: 1637 | J138: 1494 | K138: 0 | L138: 0 | M138: 2038 | N138: 2095 | O138: TSE | P138: M15A1 工具機 | Q138: 52903090 | AA138: 1540 喬福 | AB138: TSE | AC138: M15A1 工具機 | AD138: ID 52903090 | AH138: M11B 預拌混凝土 | AI138: 3
A139: 1541 錩泰 | B139: 159545 | C139: 191159 | D139: 337239 | E139: 598810 | F139: 847635 | G139: 0.9708 | H139: 9.2435 | I139: 7692 | J139: 7678 | K139: 0 | L139: 0 | M139: 215 | N139: 213 | O139: TSE | P139: M15A1 工具機 | Q139: 23248433 | AA139: 1541 錩泰 | AB139: TSE | AC139: M15A1 工具機 | AD139: ID 23248433 | AH139: M26A1 散裝輪 | AI139: 8
A140: 1558 伸興 | B140: 699348 | C140: 506940 | D140: 659913 | E140: 1926175 | F140: 2044322 | G140: 0.7608 | H140: -0.8556 | I140: 4208 | J140: 4168 | K140: 77 | L140: 78 | M140: 312 | N140: 312 | O140: TSE | P140: M15A3 紡織工具機 | Q140: 55754185 | AA140: 1558 伸興 | AB140: TSE | AC140: M15A3 紡織工具機 | AD140: ID 55754185 | AH140: M26A2 貨櫃輪 | AI140: 3
A141: 1560 中砂 | B141: 789165 | C141: 751193 | D141: 601745 | E141: 2293276 | F141: 1771630 | G141: 16.4785 | H141: 9.7871 | I141: 50627 | J141: 48161 | K141: 428 | L141: 272 | M141: 1803 | N141: 2057 | O141: TSE | P141: M23G3C 晶圓材料 | Q141: 03089008 | AA141: 1560 中砂 | AB141: TSE | AC141: M23G3C 晶圓材料 | AD141: ID 03089008 | AH141: M26D 空運 | AI141: 4
A142: 1563 巧新 | B142: 675996 | C142: 558743 | D142: 682815 | E142: 1871937 | F142: 1918240 | G142: 1.3222 | H142: 2.0582 | I142: 3910 | J142: 3389 | K142: 0 | L142: 0 | M142: 798 | N142: 776 | O142: TSE | P142: M15D 汽車組件 | Q142: 84980915 | AA142: 1563 巧新 | AB142: TSE | AC142: M15D 汽車組件 | AD142: ID 84980915 | AH142: M29A9 其他零售 | AI142: 11
A143: 1565 精華 | B143: 305118 | C143: 283452 | D143: 376908 | E143: 899543 | F143: 1110980 | G143: 1.4353 | H143: -1.3954 | I143: 4424 | J143: 4590 | K143: 0 | L143: 0 | M143: 1059 | N143: 1100 | O143: =IF(ISERROR(VLOOKUP($A143,XX_TEJ01,O$2,FALSE))=TRUE,"",VLOOKUP($A143,XX_TEJ01,O$2,FALSE)) -> OTC | P143: M17G4 輔助與彌補 | Q143: 22195654 | AA143: 1565 精華 | AB143: OTC | AC143: M17G4 輔助與彌補 | AD143: ID 22195654 | AH143: M99D1 加油站 | AI143: 3
A144: 1568 倉佑 | B144: 109977 | C144: 66909 | D144: 86567 | E144: 250375 | F144: 284493 | G144: 4.6563 | H144: 9.7674 | I144: 1513 | J144: 1367 | K144: 2 | L144: 2 | M144: 1117 | N144: 1045 | O144: TSE | P144: M15D 汽車組件 | Q144: 66654986 | AA144: 1568 倉佑 | AB144: TSE | AC144: M15D 汽車組件 | AD144: ID 66654986 | AH144: M22B3 航空器製造 | AI144: 7
A145: 1569 濱川 | B145: 373329 | C145: 191198 | D145: 335086 | E145: 806020 | F145: 818505 | G145: 13.7931 | H145: 11.5307 | I145: 7837 | J145: 6324 | K145: 0 | L145: 0 | M145: 13798 | N145: 13594 | O145: OTC | P145: M23D4 機殼 | Q145: 76404919 | AA145: 1569 濱川 | AB145: OTC | AC145: M23D4 機殼 | AD145: ID 76404919 | AH145: M26B2 鐵路運輸 | AI145: 1
A146: 1570 力肯 | B146: 52171 | C146: 22460 | D146: 37267 | E146: 119412 | F146: 121072 | G146: 2.2365 | H146: 5.0905 | I146: 992 | J146: 958 | K146: 0 | L146: 0 | M146: 2665 | N146: 2334 | O146: OTC | P146: M15A1 工具機 | Q146: 36253534 | AA146: 1570 力肯 | AB146: OTC | AC146: M15A1 工具機 | AD146: ID 36253534 | AH146: M26B1 汽車陸運 | AI146: 1
A147: 1580 新麥 | B147: 351484 | C147: 312560 | D147: 414021 | E147: 1094432 | F147: 1089039 | G147: -0.7722 | H147: -1.5324 | I147: 2584 | J147: 2597 | K147: 0 | L147: 0 | M147: 18 | N147: 18 | O147: OTC | P147: M15H 儀器設備 | Q147: 12461082 | AA147: 1580 新麥 | AB147: OTC | AC147: M15H 儀器設備 | AD147: ID 12461082 | AH147: M27A1 飯店 | AI147: 17
A148: 1582 信錦 | B148: 741361 | C148: 550886 | D148: 742067 | E148: 2115435 | F148: 2243011 | G148: -7.4285 | H148: 13.1547 | I148: 7534 | J148: 6514 | K148: 844 | L148: 845 | M148: 6708 | N148: 8286 | O148: TSE | P148: M23D9A 沖壓零組件 | Q148: 35966577 | AA148: 1582 信錦 | AB148: TSE | AC148: M23D9A 沖壓零組件 | AD148: ID 35966577 | AH148: M27C 旅行社 | AI148: 7
A149: 1583 程泰 | B149: 414405 | C149: 205899 | D149: 287153 | E149: 932415 | F149: 863760 | G149: 2.1814 | H149: 0.6788 | I149: 339 | J149: 318 | K149: 0 | L149: 0 | M149: 26 | N149: 26 | O149: TSE | P149: M15A1 工具機 | Q149: 52353530 | AA149: 1583 程泰 | AB149: TSE | AC149: M15A1 工具機 | AD149: ID 52353530 | AH149: M28A 本國銀行 | AI149: 9
A150: 1584 精剛 | B150: 148942 | C150: 149886 | D150: 227919 | E150: 513036 | F150: 676003 | G150: -2.2989 | H150: -3.6283 | I150: 21403 | J150: 20945 | K150: 0 | L150: 0 | M150: 6753 | N150: 6765 | O150: OTC | P150: M20A6 不鏽鋼 | Q150: 80334042 | AA150: 1584 精剛 | AB150: OTC | AC150: M20A6 不鏽鋼 | AD150: ID 80334042 | AH150: M28J 產險 | AI150: 5
A151: 1586 和勤 | B151: 184217 | C151: 145330 | D151: 197556 | E151: 547977 | F151: 542289 | G151: 0 | H151: -2.3708 | I151: 1190 | J151: 1174 | K151: 0 | L151: 0 | M151: 14264 | N151: 14186 | O151: OTC | P151: M23D9A 沖壓零組件 | Q151: 86985605 | AA151: 1586 和勤 | AB151: OTC | AC151: M23D9A 沖壓零組件 | AD151: ID 86985605 | AH151: M28F 票券公司 | AI151: 1
A152: 1587 吉茂 | B152: 235251 | C152: 226514 | D152: 204897 | E152: 754074 | F152: 558760 | G152: -3.8674 | H152: -9.2569 | I152: 16633 | J152: 16804 | K152: 0 | L152: 0 | M152: 3667 | N152: 3575 | O152: TSE | P152: M15D 汽車組件 | Q152: 24157564 | AA152: 1587 吉茂 | AB152: TSE | AC152: M15D 汽車組件 | AD152: ID 24157564 | AH152: M30A 證券 | AI152: 8
A153: 1589 永冠-KY | B153: 667961 | C153: 420278 | D153: 677836 | E153: 1733327 | F153: 1667147 | G153: 0 | H153: -24.2134 | I153: 3585 | J153: 5845 | K153: 0 | L153: 0 | M153: 1975 | N153: 2055 | O153: TSE | P153: M15A2 模具零件 | Q153: 41048746 | AA153: 1589 永冠-KY | AB153: TSE | AC153: M15A2 模具零件 | AD153: ID 41048746 | AH153: M28I 壽險 | AI153: 1
A154: 1590 亞德客-KY | B154: 4139710 | C154: 2171413 | D154: 3505568 | E154: 10013505 | F154: 8096083 | G154: 11.9478 | H154: 14.9483 | I154: 159704 | J154: 159344 | K154: 858 | L154: 891 | M154: 142 | N154: 147 | O154: TSE | P154: M15A2 模具零件 | Q154: 53666460 | AA154: 1590 亞德客-KY | AB154: TSE | AC154: M15A2 模具零件 | AD154: ID 53666460 | AH154: M28L 金融控股 | AI154: 13
A155: 1591 駿吉-KY | B155: 50028 | C155: 38316 | D155: 2158 | E155: 132360 | F155: 13538 | G155: 30.8732 | H155: 15.9042 | I155: 1266 | J155: 1365 | K155: 0 | L155: 0 | M155: 2173 | N155: 1715 | O155: OTC | P155: M20B 金屬製品 | Q155: 53650116 | AA155: 1591 駿吉-KY | AB155: OTC | AC155: M20B 金屬製品 | AD155: ID 53650116 | AH155: M29B 貿易 | AI155: 8
A156: 1593 祺驊 | B156: 102625 | C156: 85852 | D156: 95390 | E156: 304299 | F156: 276336 | G156: -1.3236 | H156: -2.7535 | I156: 2327 | J156: 2318 | K156: 0 | L156: 0 | M156: 145 | N156: 145 | O156: OTC | P156: M15C3 健身器材 | Q156: 97432341 | AA156: 1593 祺驊 | AB156: OTC | AC156: M15C3 健身器材 | AD156: ID 97432341 | AH156: M29A4 便利商店 | AI156: 2
A157: 1595 川寶 | B157: 66552 | C157: 41533 | D157: 84144 | E157: 166389 | F157: 208652 | G157: 5.8394 | H157: 7.8065 | I157: 2566 | J157: 2209 | K157: 0 | L157: 0 | M157: 2217 | N157: 2231 | O157: OTC | P157: M23H2 電機設備 | Q157: 16860440 | AA157: 1595 川寶 | AB157: OTC | AC157: M23H2 電機設備 | AD157: ID 16860440 | AH157: M29A2 量販 | AI157: 1
A158: 1597 直得 | B158: 120499 | C158: 106281 | D158: 86976 | E158: 334402 | F158: 253359 | G158: 15.636 | H158: 37.2578 | I158: 5165 | J158: 4770 | K158: 0 | L158: 0 | M158: 4992 | N158: 3975 | O158: TSE | P158: M15A2 模具零件 | Q158: 16755427 | AA158: 1597 直得 | AB158: TSE | AC158: M15A2 模具零件 | AD158: ID 16755427 | AH158: M23E1 電子商務 | AI158: 10
A159: 1598 岱宇 | B159: 673288 | C159: 487111 | D159: 576460 | E159: 1636068 | F159: 1880356 | G159: 0 | H159: 3.6939 | I159: 2913 | J159: 2923 | K159: 0 | L159: 0 | M159: 2264 | N159: 2133 | O159: TSE | P159: M15C3 健身器材 | Q159: 23751545 | AA159: 1598 岱宇 | AB159: TSE | AC159: M15C3 健身器材 | AD159: ID 23751545 | AH159: M29A3 超市 | AI159: 1
A160: 1599 宏佳騰 | B160: 246130 | C160: 177997 | D160: 197084 | E160: 637637 | F160: 495965 | G160: -0.3921 | H160: -2.4952 | I160: 5867 | J160: 5864 | K160: 0 | L160: 0 | M160: 374 | N160: 370 | O160: OTC | P160: M22A 汽車製造 | Q160: 80621419 | AA160: 1599 宏佳騰 | AB160: OTC | AC160: M22A 汽車製造 | AD160: ID 80621419 | AH160: M29A7 批發 | AI160: 1
A161: 1603 華電 | B161: 537166 | C161: 303060 | D161: 546848 | E161: 1304277 | F161: 1425652 | G161: 1.7323 | H161: -9.9023 | I161: 5108 | J161: 5290 | K161: 3 | L161: 3 | M161: 2536 | N161: 2634 | O161: TSE | P161: M16 電纜 | Q161: 35882520 | AA161: 1603 華電 | AB161: TSE | AC161: M16 電纜 | AD161: ID 35882520 | AH161: M23G5E 記憶體IC | AI161: 5
A162: 1604 聲寶 | B162: 781256 | C162: 631054 | D162: 782851 | E162: 2372906 | F162: 2460993 | G162: -0.7874 | H162: 5.0001 | I162: 30158 | J162: 30593 | K162: 0 | L162: 0 | M162: 294 | N162: 315 | O162: TSE | P162: M15C1 家電 | Q162: 03607500 | AA162: 1604 聲寶 | AB162: TSE | AC162: M15C1 家電 | AD162: ID 03607500 | AH162: M23U1 光學鏡頭 | AI162: 13
A163: 1605 華新 | B163: 15722642 | C163: 11867190 | D163: 15337828 | E163: 41058266 | F163: 44876069 | G163: 5.1494 | H163: 0.4762 | I163: 625094 | J163: 611791 | K163: 8793 | L163: 8893 | M163: 46288 | N163: 49235 | O163: =IF(ISERROR(VLOOKUP($A163,XX_TEJ01,O$2,FALSE))=TRUE,"",VLOOKUP($A163,XX_TEJ01,O$2,FALSE)) -> TSE | P163: M16 電纜 | Q163: 35412204 | AA163: 1605 華新 | AB163: TSE | AC163: M16 電纜 | AD163: ID 35412204 | AH163: M23G5F 傳輸介面IC | AI163: 10
A164: 1608 華榮 | B164: 1288123 | C164: 983547 | D164: 1129386 | E164: 3453119 | F164: 2824877 | G164: 3.8461 | H164: -1.37 | I164: 25309 | J164: 24453 | K164: 1141 | L164: 1138 | M164: 8009 | N164: 7941 | O164: TSE | P164: M16 電纜 | Q164: 79460007 | AA164: 1608 華榮 | AB164: TSE | AC164: M16 電纜 | AD164: ID 79460007 | AH164: M23K1 網通工程 | AI164: 7
A165: 1609 大亞 | B165: 3088815 | C165: 2284297 | D165: 2574614 | E165: 8392871 | F165: 7138097 | G165: 3.2457 | H165: -7.9889 | I165: 95019 | J165: 94329 | K165: 1572 | L165: 1613 | M165: 12095 | N165: 12351 | O165: TSE | P165: M16 電纜 | Q165: 68035907 | AA165: 1609 大亞 | AB165: TSE | AC165: M16 電纜 | AD165: ID 68035907 | AH165: M23G5G 顯示驅動IC | AI165: 9
A166: 1611 中電 | B166: 91782 | C166: 65325 | D166: 98503 | E166: 252419 | F166: 283314 | G166: 0 | H166: 1.5116 | I166: 32515 | J166: 32660 | K166: 18 | L166: 18 | M166: 3702 | N166: 3729 | O166: TSE | P166: M15C4 照明 | Q166: 03086001 | AA166: 1611 中電 | AB166: TSE | AC166: M15C4 照明 | AD166: ID 03086001 | AH166: M23G5L 矽智財 | AI166: 10
A167: 1612 宏泰 | B167: 715343 | C167: 473965 | D167: 674482 | E167: 1919326 | F167: 1789065 | G167: 1.4473 | H167: 4.3156 | I167: 57435 | J167: 57685 | K167: 0 | L167: 0 | M167: 1539 | N167: 1540 | O167: TSE | P167: M16 電纜 | Q167: 43125162 | AA167: 1612 宏泰 | AB167: TSE | AC167: M16 電纜 | AD167: ID 43125162 | AH167: M23B2A IC載板 | AI167: 3
A168: 1614 三洋電 | B168: 381336 | C168: 419514 | D168: 444449 | E168: 1262257 | F168: 1391386 | G168: 2.0636 | H168: -1.8319 | I168: 5937 | J168: 5890 | K168: 0 | L168: 0 | M168: 326 | N168: 328 | O168: TSE | P168: M15C1 家電 | Q168: 03564501 | AA168: 1614 三洋電 | AB168: TSE | AC168: M15C1 家電 | AD168: ID 03564501 | AH168: M23C8D 其他LCD | AI168: 8
A169: 1615 大山 | B169: 690228 | C169: 238215 | D169: 630869 | E169: 1317763 | F169: 1514664 | G169: 3.1111 | H169: 5.4546 | I169: 2120 | J169: 1973 | K169: 0 | L169: 0 | M169: 128 | N169: 138 | O169: TSE | P169: M16 電纜 | Q169: 64829434 | AA169: 1615 大山 | AB169: TSE | AC169: M16 電纜 | AD169: ID 64829434 | AH169: M23C8E 觸控面板 | AI169: 10
A170: 1616 億泰 | B170: 411020 | C170: 314402 | D170: 430164 | E170: 1302893 | F170: 1199691 | G170: 1.5185 | H170: -15.3708 | I170: 5050 | J170: 4897 | K170: 0 | L170: 0 | M170: 3430 | N170: 3426 | O170: TSE | P170: M16 電纜 | Q170: 22819700 | AA170: 1616 億泰 | AB170: TSE | AC170: M16 電纜 | AD170: ID 22819700 | AH170: M23H3 設備通路 | AI170: 3
A171: 1617 榮星 | B171: 402765 | C171: 187172 | D171: 276875 | E171: 911155 | F171: 769547 | G171: 0 | H171: -1.0101 | I171: 32759 | J171: 32678 | K171: 16 | L171: 16 | M171: 1080 | N171: 1076 | O171: TSE | P171: M16 電纜 | Q171: 73341336 | AA171: 1617 榮星 | AB171: TSE | AC171: M16 電纜 | AD171: ID 73341336 | AH171: M99D4 電力及能源 | AI171: 4
A172: 1618 合機 | B172: 354943 | C172: 107573 | D172: 543581 | E172: 1166170 | F172: 1087730 | G172: -1.0417 | H172: -7.5427 | I172: 2988 | J172: 2991 | K172: 0 | L172: 0 | M172: 3712 | N172: 3697 | O172: TSE | P172: M16 電纜 | Q172: 23206102 | AA172: 1618 合機 | AB172: TSE | AC172: M16 電纜 | AD172: ID 23206102 | AH172: M23X2 遊戲軟體 | AI172: 14
A173: 1623 大東電 | B173: 646394 | C173: 602009 | D173: 599214 | E173: 1862336 | F173: 1656575 | G173: 2.2535 | H173: -5.4589 | I173: 249 | J173: 154 | K173: 0 | L173: 0 | O173: TSE | P173: M16 電纜 | Q173: 18523000 | AA173: 1623 大東電 | AB173: TSE | AC173: M16 電纜 | AD173: ID 18523000 | AH173: M23B3X 其他PCB材 | AI173: 9
A174: 1626 艾美特-KY | B174: 888905 | C174: 348225 | D174: 1003963 | E174: 1835215 | F174: 2008429 | G174: 0.3009 | H174: -6.5421 | I174: 64342 | J174: 64349 | K174: 0 | L174: 0 | M174: 2646 | N174: 2832 | O174: TSE | P174: M15C1 家電 | Q174: 34995738 | AA174: 1626 艾美特-KY | AB174: TSE | AC174: M15C1 家電 | AD174: ID 34995738 | AH174: M23G5H 微控制器IC | AI174: 15
A175: 1702 南僑 | B175: 2065666 | C175: 1645241 | D175: 2055925 | E175: 5815646 | F175: 5858566 | G175: -0.5509 | H175: -0.2763 | I175: 26186 | J175: 26030 | K175: 1436 | L175: 1457 | M175: 437 | N175: 435 | O175: TSE | P175: M12B 油脂飼料 | Q175: 07305506 | AA175: 1702 南僑 | AB175: TSE | AC175: M12B 油脂飼料 | AD175: ID 07305506 | AH175: M23E2 數位服務 | AI175: 9
A176: 1707 葡萄王 | B176: 857687 | C176: 625771 | D176: 921840 | E176: 2277961 | F176: 2252295 | G176: -0.4149 | H176: -1.2347 | I176: 21498 | J176: 21457 | K176: 116 | L176: 117 | M176: 322 | N176: 322 | O176: TSE | P176: M17C2 機能性食品 | Q176: 11880517 | AA176: 1707 葡萄王 | AB176: TSE | AC176: M17C2 機能性食品 | AD176: ID 11880517 | AH176: M23K6 光元件模組 | AI176: 13
A177: 1708 東鹼 | B177: 567965 | C177: 433100 | D177: 539073 | E177: 1553624 | F177: 1518516 | G177: -5.3827 | H177: 9.2543 | I177: 34849 | J177: 34647 | K177: 78 | L177: 78 | M177: 8039 | N177: 9141 | O177: TSE | P177: M17Z 其他化學 | Q177: 11384405 | AA177: 1708 東鹼 | AB177: TSE | AC177: M17Z 其他化學 | AD177: ID 11384405 | AH177: M17C1D 大分子新藥 | AI177: 12
A178: 1709 和益 | B178: 915765 | C178: 640347 | D178: 895778 | E178: 2423512 | F178: 2622512 | G178: 3.3708 | H178: 9.1985 | I178: 14992 | J178: 14776 | K178: 1 | L178: 1 | M178: 1973 | N178: 1952 | O178: TSE | P178: M17E1 清潔劑原料 | Q178: 04312878 | AA178: 1709 和益 | AB178: TSE | AC178: M17E1 清潔劑原料 | AD178: ID 04312878 | AH178: M23D9D 其他零組件 | AI178: 2
A179: 1710 東聯 | B179: 2229814 | C179: 1319865 | D179: 2144414 | E179: 5345825 | F179: 6133399 | G179: -4.5775 | H179: -1.8117 | I179: 40433 | J179: 36565 | K179: 0 | L179: 0 | M179: 8578 | N179: 9976 | O179: TSE | P179: M13A5 化纖 | Q179: 14057995 | AA179: 1710 東聯 | AB179: TSE | AC179: M13A5 化纖 | AD179: ID 14057995 | AH179: M17X1 醫療服務 | AI179: 3
A180: 1711 永光 | B180: 837200 | C180: 483949 | D180: 653281 | E180: 2045450 | F180: 1940988 | G180: 3.2001 | H180: 50.8769 | I180: 39883 | J180: 51670 | K180: 561 | L180: 0 | M180: 26827 | N180: 25002 | O180: TSE | P180: M17B 染料及顏料 | Q180: 15458455 | AA180: 1711 永光 | AB180: TSE | AC180: M17B 染料及顏料 | AD180: ID 15458455 | AH180: M23G5I 感測器IC | AI180: 3
A181: 1712 興農 | B181: 1874988 | C181: 1391427 | D181: 1739519 | E181: 4795226 | F181: 4898482 | G181: -2.5258 | H181: -4.7806 | I181: 65125 | J181: 65764 | K181: 0 | L181: 0 | M181: 593 | N181: 615 | O181: TSE | P181: M17C3 農藥肥料 | Q181: 51911712 | AA181: 1712 興農 | AB181: TSE | AC181: M17C3 農藥肥料 | AD181: ID 51911712 | AH181: M23G5J 音訊IC | AI181: 3
A182: 1713 國化 | B182: 53239 | C182: 28549 | D182: 43177 | E182: 112434 | F182: 108859 | G182: 2.5163 | H182: 4.1113 | I182: 1595 | J182: 1554 | K182: 2 | L182: 2 | M182: 2857 | N182: 2938 | O182: TSE | P182: M17B 染料及顏料 | Q182: 03375001 | AA182: 1713 國化 | AB182: TSE | AC182: M17B 染料及顏料 | AD182: ID 03375001 | AH182: M99C 印刷 | AI182: 6
A183: 1714 和桐 | B183: 2799580 | C183: 1848648 | D183: 1958430 | E183: 7280034 | F183: 5234049 | G183: 7.0304 | H183: 5.6994 | I183: 209550 | J183: 198848 | K183: 16 | L183: 16 | M183: 7472 | N183: 7479 | O183: =IF(ISERROR(VLOOKUP($A183,XX_TEJ01,O$2,FALSE))=TRUE,"",VLOOKUP($A183,XX_TEJ01,O$2,FALSE)) -> TSE | P183: M17E1 清潔劑原料 | Q183: 12526607 | AA183: 1714 和桐 | AB183: TSE | AC183: M17E1 清潔劑原料 | AD183: ID 12526607 | AH183: M23Z 其他電子 | AI183: 13
A184: 1717 長興 | B184: 3917069 | C184: 2436388 | D184: 3717051 | E184: 10243036 | F184: 10060654 | G184: 29.2407 | H184: 37.2212 | I184: 155816 | J184: 133670 | K184: 0 | L184: 1061 | M184: 32771 | N184: 24723 | O184: TSE | P184: M17F 樹脂 | Q184: 75339004 | AA184: 1717 長興 | AB184: TSE | AC184: M17F 樹脂 | AD184: ID 75339004 | AH184: M23G5K MOSFET | AI184: 8
A185: 1718 中纖 | B185: 3161766 | C185: 3618337 | D185: 4070040 | E185: 11422137 | F185: 11631098 | G185: -2.7137 | H185: -3.2388 | I185: 106346 | J185: 107154 | K185: 0 | L185: 0 | M185: 12843 | N185: 12651 | O185: TSE | P185: M13A5 化纖 | Q185: 07066907 | AA185: 1718 中纖 | AB185: TSE | AC185: M13A5 化纖 | AD185: ID 07066907 | AH185: M23B3C FCCL | AI185: 3
A186: 1720 生達 | B186: 570224 | C186: 466104 | D186: 554694 | E186: 1651192 | F186: 1639956 | G186: -1.2519 | H186: 0.1588 | I186: 10116 | J186: 10065 | K186: 52 | L186: 52 | M186: 386 | N186: 414 | O186: TSE | P186: M17C1B 學名藥 | Q186: 71122503 | AA186: 1720 生達 | AB186: TSE | AC186: M17C1B 學名藥 | AD186: ID 71122503 | AH186: M15Z 其他電製品 | AI186: 10
A187: 1721 三晃 | B187: 139148 | C187: 103657 | D187: 180455 | E187: 393220 | F187: 504910 | G187: 2.3122 | H187: 10.2804 | I187: 2322 | J187: 3395 | K187: 0 | L187: 0 | M187: 519 | N187: 549 | O187: TSE | P187: M17F 樹脂 | Q187: 55738290 | AA187: 1721 三晃 | AB187: TSE | AC187: M17F 樹脂 | AD187: ID 55738290 | AH187: M23CZ1 投影裝置 | AI187: 1
A188: 1722 台肥 | B188: 1373996 | C188: 960267 | D188: 1155725 | E188: 3749593 | F188: 3331515 | G188: 1.6466 | H188: -1.174 | I188: 83729 | J188: 82046 | K188: 749 | L188: 751 | M188: 2533 | N188: 2507 | O188: TSE | P188: M17C3 農藥肥料 | Q188: 03795101 | AA188: 1722 台肥 | AB188: TSE | AC188: M17C3 農藥肥料 | AD188: ID 03795101 | AH188: M23G5Z 其他IC | AI188: 9
A189: 1723 中碳 | B189: 528456 | C189: 414132 | D189: 464347 | E189: 1277807 | F189: 1691790 | G189: -8.3333 | H189: 13.8483 | I189: 17757 | J189: 17209 | K189: 2 | L189: 422 | M189: 1466 | N189: 2668 | O189: TSE | P189: M17Z 其他化學 | Q189: 23221384 | AA189: 1723 中碳 | AB189: TSE | AC189: M17Z 其他化學 | AD189: ID 23221384 | AH189: M23C8B 背光模組 | AI189: 6
A190: 1725 元禎 | B190: 957345 | C190: 487626 | D190: 780056 | E190: 2199773 | F190: 2132785 | G190: 8.3045 | H190: 16.1408 | I190: 404 | J190: 394 | K190: 8 | L190: 8 | M190: 261 | N190: 202 | O190: TSE | P190: M17Z 其他化學 | Q190: 12132033 | AA190: 1725 元禎 | AB190: TSE | AC190: M17Z 其他化學 | AD190: ID 12132033 | AH190: M23C7C 太陽能電池 | AI190: 4
A191: 1726 永記 | B191: 1037376 | C191: 647835 | D191: 900923 | E191: 2660371 | F191: 2544275 | G191: 0.6666 | H191: -0.1325 | I191: 20941 | J191: 20939 | K191: 0 | L191: 0 | M191: 0 | N191: 0 | O191: TSE | P191: M17B 染料及顏料 | Q191: 75137605 | AA191: 1726 永記 | AB191: TSE | AC191: M17B 染料及顏料 | AD191: ID 75137605 | AH191: M23A5A POS | AI191: 9
A192: 1727 中華化 | B192: 231340 | C192: 169192 | D192: 151002 | E192: 519337 | F192: 451831 | G192: 15.8004 | H192: 20.043 | I192: 9644 | J192: 7460 | K192: 321 | L192: 333 | M192: 6692 | N192: 6045 | O192: TSE | P192: M17Z 其他化學 | Q192: 03558206 | AA192: 1727 中華化 | AB192: TSE | AC192: M17Z 其他化學 | AD192: ID 03558206 | AH192: M23C7F 其他太陽能 | AI192: 2
A193: 1730 花仙子 | B193: 177226 | C193: 164991 | D193: 185955 | E193: 651549 | F193: 666761 | G193: 0.3789 | H193: -0.376 | I193: 4245 | J193: 4226 | K193: 0 | L193: 0 | M193: 5 | N193: 6 | O193: TSE | P193: M17E2 清潔用品 | Q193: 07708830 | AA193: 1730 花仙子 | AB193: TSE | AC193: M17E2 清潔用品 | AD193: ID 07708830 | AH193: M23C7E 太陽能系統 | AI193: 4
A194: 1731 美吾華 | B194: 137382 | C194: 127716 | D194: 119360 | E194: 452346 | F194: 422336 | G194: 0.4608 | H194: -0.2288 | I194: 1424 | J194: 1397 | K194: 0 | L194: 0 | M194: 202 | N194: 225 | O194: TSE | P194: M17C1C 小分子新藥 | Q194: 14089976 | AA194: 1731 美吾華 | AB194: TSE | AC194: M17C1C 小分子新藥 | AD194: ID 14089976 | AH194: M17C1E 植物及中藥 | AI194: 4
A195: 1732 毛寶 | B195: 59677 | C195: 48194 | D195: 49278 | E195: 170339 | F195: 159345 | G195: -1.711 | H195: -1.5238 | I195: 985 | J195: 693 | K195: 0 | L195: 0 | M195: 489 | N195: 475 | O195: TSE | P195: M17E2 清潔用品 | Q195: =RIGHT(IF(ISERROR(VLOOKUP($A195,XX_TEJ01,Q$2,FALSE))=TRUE,"",VLOOKUP($A195,XX_TEJ01,Q$2,FALSE)),8) -> 34245356 | AA195: 1732 毛寶 | AB195: TSE | AC195: M17E2 清潔用品 | AD195: ID 34245356 | AH195: M17X2 醫藥零售 | AI195: 7
A196: 1733 五鼎 | B196: 141377 | C196: 178279 | D196: 186373 | E196: 519723 | F196: 558753 | G196: -0.5068 | H196: 1.903 | I196: 4174 | J196: 4155 | K196: 0 | L196: 0 | M196: 3915 | N196: 3918 | O196: TSE | P196: M17G3 體外診斷 | Q196: 16130182 | AA196: 1733 五鼎 | AB196: TSE | AC196: M17G3 體外診斷 | AD196: ID 16130182 | AH196: M17Y 化妝美容 | AI196: =COUNTIF($AC$3:$AC$5000,AH196) -> 8
A197: 1734 杏輝 | B197: 317169 | C197: 196311 | D197: 301844 | E197: 826236 | F197: 805722 | G197: 0.9584 | H197: 3.437 | I197: 10161 | J197: 9908 | K197: 0 | L197: 0 | M197: 593 | N197: 622 | O197: TSE | P197: M17C1B 學名藥 | Q197: 42042734 | AA197: 1734 杏輝 | AB197: TSE | AC197: M17C1B 學名藥 | AD197: ID 42042734 | AH197: M17H2 基因檢測 | AI197: 3
A198: 1735 日勝化 | B198: 262636 | C198: 114072 | D198: 235854 | E198: 599713 | F198: 626263 | G198: 19.5652 | H198: 44.7368 | I198: 50358 | J198: 50376 | K198: 0 | L198: 0 | M198: 1181 | N198: 1286 | O198: TSE | P198: M17F 樹脂 | Q198: 23263551 | AA198: 1735 日勝化 | AB198: TSE | AC198: M17F 樹脂 | AD198: ID 23263551 | AH198: M17X9 其他藥通路 | AI198: 1
A199: 1736 喬山 | B199: 4267265 | C199: 3608791 | D199: 3827131 | E199: 11749762 | F199: 10609508 | G199: -1.626 | H199: -5.8366 | I199: 11909 | J199: 11815 | K199: 4682 | L199: 4788 | M199: 2100 | N199: 2038 | O199: TSE | P199: M15C3 健身器材 | Q199: 52347361 | AA199: 1736 喬山 | AB199: TSE | AC199: M15C3 健身器材 | AD199: ID 52347361 | AH199: M14Z 其他紡織 | AI199: 5
A200: 1737 臺鹽 | B200: 297553 | C200: 214779 | D200: 249440 | E200: 789500 | F200: 819189 | G200: 0.6289 | H200: 1.2656 | I200: 16889 | J200: 16775 | K200: 0 | L200: 0 | M200: 42 | N200: 46 | O200: TSE | P200: M12Z 其他食品 | Q200: 89397503 | AA200: 1737 臺鹽 | AB200: TSE | AC200: M12Z 其他食品 | AD200: ID 89397503 | AH200: M15C2 空調冷凍 | AI200: 2
... 1766 more rows
